Workbook

Sheet Planilha Resumida
A1: ESTIMATIVA ANUAL DE CUSTOS DE SERVIÇOS DE ADMINISTRAÇÃO, OPERAÇÃO E MANUTENÇÃO DO PERÍMETRO DE IRRIGAÇÃO PONTAL SUL (TERMO DE REFERÊNCIA)
A3: ITEM | B3: DESCRIÇÃO | C3: UNID. | D3: QUANT. | E3: VALOR ( R$ ) | J3: % BDI | K3: VALOR BDI | L3: Valor s/BDI
E4: UNITÁRIO | F4: TOTAL
A6: 1 | B6: Instalação, Mobilização e Desmobilização
A7: 1.1 | B7: Instalação
A8: 1.1.1 | B8: Aquisição de Móveis, Máquinas e Equipamentos de Escritório (Mat., Equip) | F8: ='1.1.1.Instalação (Mat., Equip) '!F40 -> 95629.3 | H8: =F8/$F$94 -> 0.0193 | J8: ='BDI - FORNECIMENTOS'!$C$31 -> 0.109 | K8: =F8-L8 -> 9399.09 | L8: =F8/(1+J8) -> 86230.21
A9: 1.1.2 | B9: Aquisição de Ferramental, Instrumentação e Equipamentos de Oficina | F9: ='1.1.2.Custo Ferramental'!F83 -> 124220.62 | H9: =F9/$F$94 -> 0.0251 | J9: ='BDI - FORNECIMENTOS'!$C$31 -> 0.109 | K9: =F9-L9 -> 12209.24 | L9: =F9/(1+J9) -> 112011.38
A10: 1.2 | B10: Mobilização | C10: Ud | D10: 1 | E10: ='1.2.Mob_1.3.Desm'!F30 -> 5272.52 | F10: =E10*D10 -> 5272.52 | H10: 0.0011 | J10: ='BDI - SERVIÇOS'!$C$30 -> 0.225 | K10: 968.42 | L10: 4304.1
A11: 1.3 | B11: Desmobilização | C11: Ud | D11: 1 | E11: ='1.2.Mob_1.3.Desm'!F61 -> 5272.52 | F11: =E11*D11 -> 5272.52 | H11: 0.0011 | J11: ='BDI - SERVIÇOS'!$C$30 -> 0.225 | K11: 968.42 | L11: 4304.1
A12: 1.4 | B12: Placa de identificação de obra (SINAPI - CÓD. 74209/1) | C12: M² | D12: 6 | E12: =SINAPI_COMP!K2301*(1+'BDI - SERVIÇOS'!C30) -> 395.41 | F12: =E12*D12 -> 2372.46 | H12: 0.0005 | J12: ='BDI - SERVIÇOS'!$C$30 -> 0.225 | K12: 435.76 | L12: 1936.7
A13: Subtotal 1 | F13: =SUM(F8:F12) -> 232767.42 | K13: =SUM(K8:K12) -> 23980.93 | L13: =SUM(L8:L12) -> 208786.49
F14: =F13*0% -> 0 | K14: =K13*0% -> 0 | L14: =L13*0% -> 0
A15: Total 1 | F15: =F14+F13 -> 232767.42 | I15: =F15/$F$94 -> 0.047 | K15: =K14+K13 -> 23980.93 | L15: =L14+L13 -> 208786.49
A17: 2 | B17: Serviços
A18: 2.1 | B18: Administração local | I18: =SUM(I21:I94) -> 0.8964
B19: SUBTOTAL 2.1 (Equipamentos + Materiais + Alimentação + Mão de Obra + Manutenção) | C19: Mês | D19: 12 | E19: =F19/12 -> 64276.06 | F19: =F23+F27+F30+F33+F36 -> 771312.72 | H19: =F19/$F$94 -> 0.1558 | K19: =K23+K27+K30+K33+K36 -> 139274.52 | L19: =L23+L27+L30+L33+L36 -> 632038.2
A21: 2.1.1 | B21: Equipamentos (Veículos) | C21: Mês | D21: 12 | E21: ='2.1.1.Adm. Local (Veículos)'!F17 -> 25894.06 | F21: =E21*D21 -> 310728.72 | I21: =F21/$F$94 -> 0.0628 | J21: ='BDI - SERVIÇOS'!$C$30 -> 0.225 | K21: =F21-L21 -> 57072.62 | L21: =F21/(1+J21) -> 253656.1
F22: =F21*0% -> 0 | L22: =L21*0% -> 0
A23: Total Equipamentos | F23: =F22+F21 -> 310728.72 | H23: 0.0628 | K23: =K22+K21 -> 57072.62 | L23: =L22+L21 -> 253656.1
A25: 2.1.2 | B25: Materiais | C25: Mês | D25: 12 | E25: ='2.1.2.Adm. Local (Material)'!F15 -> 2337.56 | F25: =E25*D25 -> 28050.72 | J25: ='BDI - FORNECIMENTOS'!$C$31 -> 0.109 | K25: =F25-L25 -> 2757.01 | L25: =F25/(1+J25) -> 25293.71
F26: =F25*0% -> 0 | L26: =L25*0% -> 0
A27: Total Materiais | F27: =F26+F25 -> 28050.72 | H27: 0.0057 | K27: =K26+K25 -> 2757.01 | L27: =L26+L25 -> 25293.71
A29: 2.1.3 | B29: Alimentação | C29: Mês | D29: 12 | E29: ='2.1.3.Adm. Local (Alimentação)'!F14 -> 5559.34 | F29: =E29*D29 -> 66712.08 | J29: ='BDI - SERVIÇOS'!$C$30 -> 0.225 | K29: =F29-L29 -> 12253.24 | L29: =F29/(1+J29) -> 54458.84
A30: Total Serviços - Comp. Auxiliares | F30: =F29 -> 66712.08 | H30: 0.0135 | K30: =K29 -> 12253.24 | L30: =L29 -> 54458.84
A32: 2.1.4 | B32: Mão de Obra | C32: Mês | D32: 12 | E32: ='2.1.4.Adm. Local (Mão Obra)'!H18 -> 30110.24 | F32: =E32*D32 -> 361322.88 | H32: 0.073 | J32: ='BDI - SERVIÇOS'!$C$30 -> 0.225 | K32: =F32-L32 -> 66365.43 | L32: =F32/(1+J32) -> 294957.45
A33: Total Mão de Obra Administração | F33: =F32 -> 361322.88 | K33: =K32 -> 66365.43 | L33: =L32 -> 294957.45
A35: 2.1.5 | B35: Manutenção | C35: Mês | D35: 12 | E35: ='2.1.5.Adm. Local (Manutenção)'!F15 -> 374.86 | F35: =E35*D35 -> 4498.32 | H35: 0.0009 | I35: =F35/$F$94 -> 0.0009 | J35: ='BDI - SERVIÇOS'!$C$30 -> 0.225 | K35: =F35-L35 -> 826.22 | L35: =F35/(1+J35) -> 3672.1
A36: Total Mão de Obra Administração | F36: =F35 -> 4498.32 | K36: =K35 -> 826.22 | L36: =L35 -> 3672.1
H37: 0
A38: 2.2 | B38: Operação das infraestruturas (mão de obra) | F38: 0
A39: 2.2.1 | B39: EB's, EP´s, Canais e Adutoras | C39: Mês | D39: 12 | E39: ='2.2.Operação'!W16 -> 55671.27 | F39: =E39*D39 -> 668055.24 | H39: 0.135 | J39: ='BDI - SERVIÇOS'!$C$30 -> 0.225 | K39: =F39-L39 -> 122704.02 | L39: =F39/(1+J39) -> 545351.22
A40: Subtotal 2.2 | F40: =F39 -> 668055.24 | K40: =K39 -> 122704.02 | L40: =L39 -> 545351.22
A42: 2.3 | B42: Manutenção das infraestruturas
A43: 2.3.1 | B43: Manutenção (mão de obra)
B44: EB's, EP´s, Canais, Adutoras e Escritório de Administração Local | C44: Mês | D44: 12 | E44: ='2.3.Manutenção'!W19 -> 39758.48 | F44: =E44*D44 -> 477101.76 | H44: 0.0964 | J44: ='BDI - SERVIÇOS'!$C$30 -> 0.225 | K44: =F44-L44 -> 87630.94 | L44: =F44/(1+J44) -> 389470.82
A45: Subtotal 2.3.1 | F45: =SUM(F42:F44) -> 477101.76 | K45: =SUM(K42:K44) -> 87630.94 | L45: =SUM(L42:L44) -> 389470.82
A47: 2.3.2 | B47: Manutenção (Serviços sazonais)
A49: 2.3.2.1 | B49: Locação de máquina Retroescavadeira sobre rodas tração 4X4, potência mín. 70HP, caçamba cap. Min. 0,7M3, peso operacional min. 6500 KG, profundidade de escavação superior a 4,00 m. | C49: horas | D49: ='2.3.2.1. e 2.3.2.2.Loc Máquinas'!E9 -> 440 | E49: =ROUND(F49/D49,2) -> 134.33 | F49: ='2.3.2.1. e 2.3.2.2.Loc Máquinas'!H13 -> 59106.74 | H49: 0.0119 | J49: ='BDI - SERVIÇOS'!$C$30 -> 0.225 | K49: =F49-L49 -> 10856.34 | L49: =F49/(1+J49) -> 48250.4
F50: =F49*0% -> 0 | J50: =J49*0% -> 0 | L50: =L49*0% -> 0
A51: Subtotal 2.3.2.1 | F51: =F50+F49 -> 59106.74 | H51: 0.0119 | K51: =K50+K49 -> 10856.34 | L51: =L50+L49 -> 48250.4
A53: 2.3.2.2 | B53: Locação de Equipamentos de Carga/Descarga e Transporte | C53: Mês | D53: 12 | E53: =F53/D53 -> 5201.1 | F53: ='2.3.2.1. e 2.3.2.2.Loc Máquinas'!H26 -> 62413.14 | H53: 0.0126 | J53: ='BDI - SERVIÇOS'!$C$30 -> 0.225 | K53: =F53-L53 -> 11463.64 | L53: =F53/(1+J53) -> 50949.5
F54: =F53*0% -> 0 | J54: =J53*0% -> 0 | L54: =L53*0% -> 0
A55: Subtotal 2.3.2.2 | F55: =F54+F53 -> 62413.14 | H55: 0.0126 | K55: =K54+K53 -> 11463.64 | L55: =L54+L53 -> 50949.5
A57: 2.3.2.3 | B57: Estimativa de custo anual de manutenção de canais e adutoras | C57: Mês | D57: 12 | E57: ='2.3.2.3.MS-Adutora e Canal'!H38/12 -> 20862.2 | F57: =E57*D57 -> 250346.4 | H57: 0.0506 | J57: ='BDI - SERVIÇOS'!$C$30 -> 0.225 | K57: =F57-L57 -> 45981.99 | L57: =F57/(1+J57) -> 204364.41
F58: =F57*0% -> 0 | J58: =J57*0% -> 0 | L58: =L57*0% -> 0
A59: Subtotal 2.3.2.3 | F59: =F58+F57 -> 250346.4 | H59: 0.0506 | K59: =K58+K57 -> 45981.99 | L59: =L58+L57 -> 204364.41
A61: 2.3.2.4 | B61: Estimativa de custo anual de manutenção da rede de drenagem | C61: Mês | D61: 12 | E61: =F61/12 -> 18731.46 | F61: ='2.3.2.4.Manut-Drenagem'!H39 -> 224777.57 | H61: 0.0454 | J61: ='BDI - SERVIÇOS'!$C$30 -> 0.225 | K61: =F61-L61 -> 41285.68 | L61: =F61/(1+J61) -> 183491.89
F62: =F61*0% -> 0 | J62: =J61*0% -> 0 | L62: =L61*0% -> 0
A63: Subtotal 2.3.2.4 | F63: =F62+F61 -> 224777.57 | H63: 0.0454 | K63: =K62+K61 -> 41285.68 | L63: =L62+L61 -> 183491.89
A65: 2.3.2.5 | B65: Estimativa de custo anual de manutenção de cercas | C65: Mês | D65: 12 | E65: =F65/D65 -> 5446.12 | F65: ='2.3.2.5.Manut-Cercas'!I21 -> 65353.43 | H65: 0.0132 | J65: ='BDI - SERVIÇOS'!$C$30 -> 0.225 | K65: =F65-L65 -> 12003.69 | L65: =F65/(1+J65) -> 53349.74
F66: =F65*0% -> 0 | J66: =J65*0% -> 0 | L66: =L65*0% -> 0
A67: Subtotal 2.3.2.5 | F67: =F66+F65 -> 65353.43 | H67: 0.0132 | K67: =K66+K65 -> 12003.69 | L67: =L66+L65 -> 53349.74
A69: 2.3.2.6 | B69: Estimativa de custo anual de manutenção das estradas de acesso as estruturas hidráulicas | C69: Mês | D69: 12 | E69: =F69/12 -> 43673.18 | F69: ='2.3.2.6.Manut-Estradas'!H28 -> 524078.15 | H69: 0.1059 | J69: ='BDI - SERVIÇOS'!$C$30 -> 0.225 | K69: =F69-L69 -> 96259.25 | L69: =F69/(1+J69) -> 427818.9
F70: =F69*0% -> 0 | J70: =J69*0% -> 0 | L70: =L69*0% -> 0
A71: Subtotal 2.3.2.6 | F71: =F70+F69 -> 524078.15 | K71: =K70+K69 -> 96259.25 | L71: =L70+L69 -> 427818.9
A73: 2.3.2.7 | B73: Estimativa de custo anual de manutenção e conservação de prédios (Escritório, oficinas, almoxarifado, abrigo dos paineis das comportas, EBs, Centro administrativo e Placa de identificação de obra) | C73: Mês | D73: 12 | E73: =F73/D73 -> 6773.12 | F73: ='2.3.2.7.Manut-Civil Prédios'!H88 -> 81277.49 | H73: 0.0164 | J73: ='BDI - SERVIÇOS'!$C$30 -> 0.225 | K73: =F73-L73 -> 14928.52 | L73: =F73/(1+J73) -> 66348.97
F74: =F73*0% -> 0 | J74: =J73*0% -> 0 | L74: =L73*0% -> 0
A75: SUB TOTAL 2.3.2.7 | F75: =F74+F73 -> 81277.49 | H75: 0.0164 | K75: =K74+K73 -> 14928.52 | L75: =L74+L73 -> 66348.97
A77: 2.3.2.8 | B77: Estimativa de custo anual de manutenção de Subestação | C77: Mês | D77: 12 | E77: =F77/D77 -> 1673.93 | F77: ='2.3.2.8.Manut-Subest. PONTAL'!F18 -> 20087.17 | H77: 0.0041 | J77: ='BDI - SERVIÇOS'!$C$30 -> 0.225 | K77: =F77-L77 -> 3689.48 | L77: =F77/(1+J77) -> 16397.69
F78: =F77*0% -> 0 | J78: =J77*0% -> 0 | L78: =L77*0% -> 0
A79: Subtotal 2.3.2.8 | F79: =F78+F77 -> 20087.17 | H79: 0.0041 | K79: =K78+K77 -> 3689.48 | L79: =L78+L77 -> 16397.69
A81: 2.3.2.9 | B81: Estimativa de custo anual de manutenção de motor e bombas (EB-01, EB-02 e EB-03) | K81: =F81-L81 -> 0 | L81: =F81/(1+J81) -> 0
A82: 2.3.2.9.1 | B82: Fornecimentos | C82: Mês | D82: 12 | E82: =F82/12 -> 51799.88 | F82: ='2.3.2.9.Man-Motobomba'!F77 -> 621598.58 | H82: 0.1256 | J82: ='BDI - FORNECIMENTOS'!$C$31 -> 0.109 | K82: =F82-L82 -> 61094.9 | L82: =F82/(1+J82) -> 560503.68
A83: 2.3.2.9.2 | B83: Serviços | C83: Mês | D83: 12 | E83: =F83/12 -> 24685.56 | F83: ='2.3.2.9.Man-Motobomba'!F78 -> 296226.69 | H83: =F83/$F$94 -> 0.0598 | J83: ='BDI - SERVIÇOS'!$C$30 -> 0.225 | K83: =F83-L83 -> 54408.98 | L83: =F83/(1+J83) -> 241817.71
F84: =F81*0% -> 0 | J84: =J81*0% -> 0 | L84: =L81*0% -> 0
A85: Subtotal 2.3.2.9 | F85: =F82+F83 -> 917825.27 | H85: 0.1854 | K85: =K82+K83 -> 115503.88 | L85: =L82+L83 -> 802321.39
A87: Total 2 | F87: =F85+F79+F75+F71+F67+F63+F59+F55+F51+F45+F40+F19 -> 4121735.08 | I87: =F87/$F$94 -> 0.8327 | K87: =K85+K79+K75+K71+K67+K63+K59+K55+K51+K45+K40+K19 -> 701581.95 | L87: =L85+L79+L75+L71+L67+L63+L59+L55+L51+L45+L40+L19 -> 3420153.13
A89: 3 | B89: Fornecimentos
A90: 3.1 | B90: Peças de Reposição e Materiais | C90: Mês | D90: 12 | E90: =F90/D90 -> 49624.79 | F90: ='3.Fornecimentos '!F14 -> 595497.5 | J90: ='BDI - FORNECIMENTOS'!$C$31 -> 0.109 | K90: =F90-L90 -> 58529.51 | L90: =F90/(1+J90) -> 536967.99
F91: =F90*0% -> 0 | J91: =J90*0% -> 0 | L91: =L90*0% -> 0
A92: Total 3 | F92: =F91+F90 -> 595497.5 | H92: 0.1203 | K92: =K91+K90 -> 58529.51 | L92: =L91+L90 -> 536967.99
A94: TOTAL GERAL | F94: =F92+F87+F15 -> 4950000 | J94: =J92+J87+J15 -> 0 | K94: =K92+K87+K15 -> 784092.39 | L94: =L92+L87+L15 -> 4165907.61
F96: 9120588.49 | L96: =L94+K94-F94 -> 0
F98: 4950000
F99: =F98-F94 -> 0

Sheet TAB REAJUSTAMENTO
A1: REPACTUAÇÃO
A3: ITENS | B3: DESCR. | C3: VALOR (R$) | D3: PESO
A4: ='[1]Planilha Resumida'!A32 -> 2.1.4 | B4: Mão de Obra da Administração | C4: ='[1]Planilha Resumida'!F32 -> 361322.88 | D4: =C4/$C$7 -> 0.2398
A5: ='[1]Planilha Resumida'!A39 -> 2.2.1 | B5: Mão de Obra da Operação | C5: ='[1]Planilha Resumida'!F39 -> 668055.24 | D5: =C5/$C$7 -> 0.4435
A6: ='[1]Planilha Resumida'!A43 -> 2.3.1 | B6: Mão de Obra da Manutenção | C6: ='[1]Planilha Resumida'!F44 -> 477101.76 | D6: 0.3167
B7: Total | C7: =SUM(C4:C6) -> 1506479.88 | D7: 1
A9: REAJUSTE
E10: BOLETIM DE ÍNDICES
A11: ITENS | B11: DESCR. | C11: VALOR (R$) | D11: PESO | E11: COLUNA - Nº | F11: COLUNA DESCR. | G11: COLUNA - CÓD
A12: 1. | B12: Instalação, Mobilização e Desmobilização
A13: ='[1]Planilha Resumida'!A7 -> 1.1 | B13: ='[1]Planilha Resumida'!B7 -> Instalação
A14: ='[1]Planilha Resumida'!A8 -> 1.1.1 | B14: ='[1]Planilha Resumida'!B8 -> Aquisição de Móveis, Máquinas e Equipamentos de Escritório (Mat., Equip) | C14: ='[1]Planilha Resumida'!F8 -> 95629.3 | D14: =C14/$C$37 -> 0.0278 | F14: IPA-ORIGEM-OG-DI-Prod. Ind. - Transformação - Maq. Aparelhos e Materiais Elétricos | G14: AO 1420855
A15: ='[1]Planilha Resumida'!A9 -> 1.1.2 | B15: ='[1]Planilha Resumida'!B9 -> Aquisição de Ferramental, Instrumentação e Equipamentos de Oficina | C15: ='[1]Planilha Resumida'!F9 -> 124220.62 | D15: 0.0361 | F15: IPA-ORIGEM-OG-DI-Prod. Ind. - Transformação - Maq. Aparelhos e Materiais Elétricos | G15: AO 1420855
A16: ='[1]Planilha Resumida'!A10 -> 1.2 | B16: ='[1]Planilha Resumida'!B10 -> Mobilização | C16: ='[1]Planilha Resumida'!F10 -> 5272.52 | D16: 0.0015 | E16: 42 | F16: MATERIAL DE TRANSPORTE - TOTAL | G16: AO 160612
A17: ='[1]Planilha Resumida'!A11 -> 1.3 | B17: ='[1]Planilha Resumida'!B11 -> Desmobilização | C17: ='[1]Planilha Resumida'!F11 -> 5272.52 | D17: 0.0015 | E17: 42 | F17: MATERIAL DE TRANSPORTE - TOTAL | G17: AO 160612
A18: ='[1]Planilha Resumida'!A12 -> 1.4 | B18: ='[1]Planilha Resumida'!B12 -> Placa de identificação de obra (SINAPI - CÓD. 74209/1) | C18: ='[1]Planilha Resumida'!F12 -> 2372.46 | D18: 0.0007 | E18: 6 | F18: INCC - ÍNDICE NACIONAL DE CONSTRUÇÃO CIVIL | G18: AO 160868
A19: 2.1. | B19: Administração | D19: 0
A20: ='[1]Planilha Resumida'!A21 -> 2.1.1 | B20: ='[1]Planilha Resumida'!B21 -> Equipamentos (Veículos) | C20: ='[1]Planilha Resumida'!F21 -> 310728.72 | D20: 0.0902 | E20: 42 | F20: MATERIAL DE TRANSPORTE - TOTAL | G20: AO 160612
A21: ='[1]Planilha Resumida'!A25 -> 2.1.2 | B21: ='[1]Planilha Resumida'!B25 -> Materiais | C21: ='[1]Planilha Resumida'!F25 -> 28050.72 | D21: 0.0081 | F21: IPA-EP-Bens Finais-Bens de Consumo Exceto Alim. e Combustíveis | G21: AO 1416635
A22: ='[1]Planilha Resumida'!A29 -> 2.1.3 | B22: ='[1]Planilha Resumida'!B29 -> Alimentação | C22: ='[1]Planilha Resumida'!F29 -> 60394.92 | D22: 0.0175 | F22: IPA-EP-Bens Finais-Bens de Consumo - Alimentação | G22: AO 1416630
A23: ='[1]Planilha Resumida'!A35 -> 2.1.5 | B23: ='[1]Planilha Resumida'!B35 -> Manutenção | C23: ='[1]Planilha Resumida'!F35 -> 4498.32 | D23: 0.0013 | E23: 13 | F23: Mão de Obra Especializada | G23: AO 159886
A24: ='[1]Planilha Resumida'!A47 -> 2.3.2 | B24: ='[1]Planilha Resumida'!B47 -> Manutenção (Serviços sazonais) | D24: 0
A25: ='[1]Planilha Resumida'!A49 -> 2.3.2.1 | B25: ='[1]Planilha Resumida'!B49 -> Locação de máquina Retroescavadeira sobre rodas tração 4X4, potência mín. 70HP, caçamba cap. Min. 0,7M3, peso operacional min. 6500 KG, profundidade de escavação superior a 4,00 m. | C25: ='[1]Planilha Resumida'!F49 -> 59106.74 | D25: 0.0172 | E25: 42 | F25: MATERIAL DE TRANSPORTE - TOTAL | G25: AO 160612
A26: ='[1]Planilha Resumida'!A53 -> 2.3.2.2 | B26: ='[1]Planilha Resumida'!B53 -> Locação de Equipamentos de Carga/Descarga e Transporte | C26: ='[1]Planilha Resumida'!F53 -> 62413.14 | D26: 0.0181 | E26: 42 | F26: MATERIAL DE TRANSPORTE - TOTAL | G26: AO 160612
A27: ='[1]Planilha Resumida'!A57 -> 2.3.2.3 | B27: ='[1]Planilha Resumida'!B57 -> Estimativa de custo anual de manutenção de canais e adutoras | C27: ='[1]Planilha Resumida'!F57 -> 254716.44 | D27: 0.074 | E27: 6 | F27: INCC - ÍNDICE NACIONAL DE CONSTRUÇÃO CIVIL | G27: AO 160868
A28: ='[1]Planilha Resumida'!A61 -> 2.3.2.4 | B28: ='[1]Planilha Resumida'!B61 -> Estimativa de custo anual de manutenção da rede de drenagem | C28: ='[1]Planilha Resumida'!F61 -> 224777.57 | D28: 0.0653 | E28: 38 | F28: TERRAPLENAGEM | G28: AO 157956
A29: ='[1]Planilha Resumida'!A65 -> 2.3.2.5 | B29: ='[1]Planilha Resumida'!B65 -> Estimativa de custo anual de manutenção de cercas | C29: ='[1]Planilha Resumida'!F65 -> 65353.43 | D29: 0.019 | E29: 6 | F29: INCC - ÍNDICE NACIONAL DE CONSTRUÇÃO CIVIL | G29: AO 160868
A30: ='[1]Planilha Resumida'!A69 -> 2.3.2.6 | B30: ='[1]Planilha Resumida'!B69 -> Estimativa de custo anual de manutenção das estradas de acesso as estruturas hidráulicas | C30: ='[1]Planilha Resumida'!F69 -> 526025.27 | D30: 0.1528 | E30: 38 | F30: TERRAPLENAGEM | G30: AO 157956
A31: ='[1]Planilha Resumida'!A73 -> 2.3.2.7 | B31: ='[1]Planilha Resumida'!B73 -> Estimativa de custo anual de manutenção e conservação de prédios (Escritório, oficinas, almoxarifado, abrigo dos paineis das comportas, EBs, Centro administrativo e Placa de identificação de obra) | C31: ='[1]Planilha Resumida'!F73 -> 81277.49 | D31: 0.0236 | E31: 6 | F31: INCC - ÍNDICE NACIONAL DE CONSTRUÇÃO CIVIL | G31: AO 160868
A32: ='[1]Planilha Resumida'!A77 -> 2.3.2.8 | B32: ='[1]Planilha Resumida'!B77 -> Estimativa de custo anual de manutenção de Subestação | C32: ='[1]Planilha Resumida'!F77 -> 20087.17 | D32: 0.0058 | E32: 13 | F32: Mão de Obra Especializada | G32: AO 159886
A33: ='[1]Planilha Resumida'!A81 -> 2.3.2.9 | B33: ='[1]Planilha Resumida'!B81 -> Estimativa de custo anual de manutenção de motor e bombas (EB-01, EB-02 e EB-03) | D33: 0
A34: ='[1]Planilha Resumida'!A82 -> 2.3.2.9.1 | B34: ='[1]Planilha Resumida'!B82 -> Fornecimentos | C34: ='[1]Planilha Resumida'!F82 -> 621598.58 | D34: 0.1805 | E34: 36 | F34: MÁQUINAS E EQUIPAMENTOS INDUSTRIAIS | G34: AO 160558
A35: ='[1]Planilha Resumida'!A83 -> 2.3.2.9.2 | B35: ='[1]Planilha Resumida'!B83 -> Serviços | C35: ='[1]Planilha Resumida'!F83 -> 296226.69 | D35: 0.086 | E35: 13 | F35: Mão de Obra Especializada | G35: AO 159886
A36: ='[1]Planilha Resumida'!A89 -> 3 | B36: ='[1]Planilha Resumida'!B89 -> Fornecimentos | C36: ='[1]Planilha Resumida'!F90 -> 595497.5 | D36: 0.1729 | F36: IPA-ORIGEM-OG-DI-Prod. Ind. - Transformação - Maq. Aparelhos e Materiais Elétricos | G36: AO 1420855
B37: Total | C37: =SUM(C12:C36) -> 3443520.12 | D37: 1
C40: =C37+C7 -> 4950000
E41: BOLETIM DE ÍNDICES
E42: PESO | F42: COLUNA DESCR. | G42: COLUNA - CÓD
D43: 1 | E43: =D14+D15+D36 -> 0.2368 | F43: IPA-ORIGEM-OG-DI-Prod. Ind. - Transformação - Maq. Aparelhos e Materiais Elétricos | G43: AO 1420855
D44: 2 | E44: =D16+D17+D20+D25+D26 -> 0.1285 | F44: MATERIAL DE TRANSPORTE - TOTAL | G44: AO 160612
D45: 3 | E45: =D18+D27+D29+D31 -> 0.1173 | F45: INCC - ÍNDICE NACIONAL DE CONSTRUÇÃO CIVIL | G45: AO 160868
D46: 4 | E46: =D21 -> 0.0081 | F46: IPA-EP-Bens Finais-Bens de Consumo Exceto Alim. e Combustíveis | G46: AO 1416635
D47: 5 | E47: =D22 -> 0.0175 | F47: IPA-EP-Bens Finais-Bens de Consumo - Alimentação | G47: AO 1416630
D48: 6 | E48: =D23+D32+D35 -> 0.0931 | F48: Mão de Obra Especializada | G48: AO 159886
D49: 7 | E49: =D28+D30 -> 0.2181 | F49: TERRAPLENAGEM | G49: AO 157956
D50: 8 | E50: =D34 -> 0.1805 | F50: MÁQUINAS E EQUIPAMENTOS INDUSTRIAIS | G50: AO 160558
E51: =SUM(E43:E50) -> 1

Sheet 1.1.1.Instalação (Mat., Equip)
A1: 1. INSTALAÇÃO, MOBILIZAÇÃO E DESMOBILIZAÇÃO
A3: 1.1. INSTALAÇÃO
A5: 1.1.1 PLANILHA DE INSTALAÇÃO DE MÁQUINAS E EQUIPAMENTOS DE ESCRITÓRIO (MATERIAIS E EQUIPAMENTOS)
A7: Item | B7: DESCRIÇÃO | C7: UNID. | D7: QUANT. | E7: VALOR | G7: REF.TAB. | H7: Cód. TAB.
E8: UNIT. (R$) | F8: TOTAL (R$)
A10: 1.1.1.1 | B10: =IF($G10="ORSE",VLOOKUP($H10,ORSE_INSUM!A:E,2,0),IF($G10="SINAPI",VLOOKUP($H10,SINAPI_INSUM!A:E,2,0),IF($G10="SEINFRA",VLOOKUP($H10,SEINFRA_INSUM!B:F,2,0),IF($G10="COTAÇÃO",VLOOKUP($H10,'COTAÇÃO - MAT_CONSUMO'!B:L,2,0),"")))) -> BEBEDOURO EM AÇO INOX COM 1,60M | C10: Ud | D10: 1 | E10: =IF($G10="ORSE",VLOOKUP($H10,ORSE_INSUM!A:E,4,0),IF($G10="SINAPI",VLOOKUP($H10,SINAPI_INSUM!A:E,5,0),IF($G10="SEINFRA",VLOOKUP($H10,SEINFRA_INSUM!B:F,4,0),IF($G10="COTAÇÃO",VLOOKUP($H10,'COTAÇÃO - MAT_CONSUMO'!B:L,10,0),"")))) -> 1819 | F10: =ROUND(D10*E10,2) -> 1819 | G10: SEINFRA | H10: I0215
A11: 1.1.1.2 | B11: =IF($G11="ORSE",VLOOKUP($H11,ORSE_INSUM!A:E,2,0),IF($G11="SINAPI",VLOOKUP($H11,SINAPI_INSUM!A:E,2,0),IF($G11="SEINFRA",VLOOKUP($H11,SEINFRA_INSUM!B:F,2,0),IF($G11="COTAÇÃO",VLOOKUP($H11,'COTAÇÃO - MAT_CONSUMO'!B:L,2,0),"")))) -> AR-CONDICIONADO FRIO SPLIT HI-WALL (PAREDE) 12000 BTU/H | C11: Ud | D11: 1 | E11: =IF($G11="ORSE",VLOOKUP($H11,ORSE_INSUM!A:E,4,0),IF($G11="SINAPI",VLOOKUP($H11,SINAPI_INSUM!A:E,5,0),IF($G11="SEINFRA",VLOOKUP($H11,SEINFRA_INSUM!B:F,4,0),IF($G11="COTAÇÃO",VLOOKUP($H11,'COTAÇÃO - MAT_CONSUMO'!B:L,10,0),"")))) -> 1.416,18 | F11: =ROUND(D11*E11,2) -> 1416.18 | G11: SINAPI | H11: 39847
A12: 1.1.1.3 | B12: =IF($G12="ORSE",VLOOKUP($H12,ORSE_INSUM!A:E,2,0),IF($G12="SINAPI",VLOOKUP($H12,SINAPI_INSUM!A:E,2,0),IF($G12="SEINFRA",VLOOKUP($H12,SEINFRA_INSUM!B:F,2,0),IF($G12="COTAÇÃO",VLOOKUP($H12,'COTAÇÃO - MAT_CONSUMO'!B:L,2,0),"")))) -> AR-CONDICIONADO FRIO SPLIT HI-WALL (PAREDE) 18000 BTU/H | C12: Ud | D12: 1 | E12: =IF($G12="ORSE",VLOOKUP($H12,ORSE_INSUM!A:E,4,0),IF($G12="SINAPI",VLOOKUP($H12,SINAPI_INSUM!A:E,5,0),IF($G12="SEINFRA",VLOOKUP($H12,SEINFRA_INSUM!B:F,4,0),IF($G12="COTAÇÃO",VLOOKUP($H12,'COTAÇÃO - MAT_CONSUMO'!B:L,10,0),"")))) -> 2.090,00 | F12: 2090 | G12: SINAPI | H12: 39844
A13: 1.1.1.4 | B13: =IF($G13="ORSE",VLOOKUP($H13,ORSE_INSUM!A:E,2,0),IF($G13="SINAPI",VLOOKUP($H13,SINAPI_INSUM!A:E,2,0),IF($G13="SEINFRA",VLOOKUP($H13,SEINFRA_INSUM!B:F,2,0),IF($G13="COTAÇÃO",VLOOKUP($H13,'COTAÇÃO - MAT_CONSUMO'!B:L,2,0),"")))) -> AR-CONDICIONADO QUENTE/FRIO SPLIT HI-WALL (PAREDE) 24000 BTU/H | C13: Ud | D13: 1 | E13: =IF($G13="ORSE",VLOOKUP($H13,ORSE_INSUM!A:E,4,0),IF($G13="SINAPI",VLOOKUP($H13,SINAPI_INSUM!A:E,5,0),IF($G13="SEINFRA",VLOOKUP($H13,SEINFRA_INSUM!B:F,4,0),IF($G13="COTAÇÃO",VLOOKUP($H13,'COTAÇÃO - MAT_CONSUMO'!B:L,10,0),"")))) -> 2.926,41 | F13: 2926.41 | G13: SINAPI | H13: 39554
A14: 1.1.1.5 | B14: =IF($G14="ORSE",VLOOKUP($H14,ORSE_INSUM!A:E,2,0),IF($G14="SINAPI",VLOOKUP($H14,SINAPI_INSUM!A:E,2,0),IF($G14="SEINFRA",VLOOKUP($H14,SEINFRA_INSUM!B:F,2,0),IF($G14="COTAÇÃO",VLOOKUP($H14,'COTAÇÃO - MAT_CONSUMO'!B:L,2,0),"")))) -> Armário de aço de duas portas, com no mínimo 4 prateleiras | C14: Ud | D14: 1 | E14: =IF($G14="ORSE",VLOOKUP($H14,ORSE_INSUM!A:E,4,0),IF($G14="SINAPI",VLOOKUP($H14,SINAPI_INSUM!A:E,5,0),IF($G14="SEINFRA",VLOOKUP($H14,SEINFRA_INSUM!B:F,4,0),IF($G14="COTAÇÃO",VLOOKUP($H14,'COTAÇÃO - MAT_CONSUMO'!B:L,10,0),"")))) -> 341.83 | F14: 341.83 | G14: COTAÇÃO | H14: ='COTAÇÃO - MAT_CONSUMO'!A4 -> 1
A15: 1.1.1.6 | B15: =IF($G15="ORSE",VLOOKUP($H15,ORSE_INSUM!A:E,2,0),IF($G15="SINAPI",VLOOKUP($H15,SINAPI_INSUM!A:E,2,0),IF($G15="SEINFRA",VLOOKUP($H15,SEINFRA_INSUM!B:F,2,0),IF($G15="COTAÇÃO",VLOOKUP($H15,'COTAÇÃO - MAT_CONSUMO'!B:L,2,0),"")))) -> Arquivo de pasta suspensa 4 gavetas de aço | C15: Ud | D15: 1 | E15: =IF($G15="ORSE",VLOOKUP($H15,ORSE_INSUM!A:E,4,0),IF($G15="SINAPI",VLOOKUP($H15,SINAPI_INSUM!A:E,5,0),IF($G15="SEINFRA",VLOOKUP($H15,SEINFRA_INSUM!B:F,4,0),IF($G15="COTAÇÃO",VLOOKUP($H15,'COTAÇÃO - MAT_CONSUMO'!B:L,10,0),"")))) -> 353.45 | F15: 353.45 | G15: COTAÇÃO | H15: ='COTAÇÃO - MAT_CONSUMO'!A5 -> 2
A16: 1.1.1.7 | B16: =IF($G16="ORSE",VLOOKUP($H16,ORSE_INSUM!A:E,2,0),IF($G16="SINAPI",VLOOKUP($H16,SINAPI_INSUM!A:E,2,0),IF($G16="SEINFRA",VLOOKUP($H16,SEINFRA_INSUM!B:F,2,0),IF($G16="COTAÇÃO",VLOOKUP($H16,'COTAÇÃO - MAT_CONSUMO'!B:L,2,0),"")))) -> Cadeira de aço para escritório | C16: Ud | D16: 6 | E16: =IF($G16="ORSE",VLOOKUP($H16,ORSE_INSUM!A:E,4,0),IF($G16="SINAPI",VLOOKUP($H16,SINAPI_INSUM!A:E,5,0),IF($G16="SEINFRA",VLOOKUP($H16,SEINFRA_INSUM!B:F,4,0),IF($G16="COTAÇÃO",VLOOKUP($H16,'COTAÇÃO - MAT_CONSUMO'!B:L,10,0),"")))) -> 79.98 | F16: 479.88 | G16: COTAÇÃO | H16: ='COTAÇÃO - MAT_CONSUMO'!A6 -> 3
A17: 1.1.1.8 | B17: =IF($G17="ORSE",VLOOKUP($H17,ORSE_INSUM!A:E,2,0),IF($G17="SINAPI",VLOOKUP($H17,SINAPI_INSUM!A:E,2,0),IF($G17="SEINFRA",VLOOKUP($H17,SEINFRA_INSUM!B:F,2,0),IF($G17="COTAÇÃO",VLOOKUP($H17,'COTAÇÃO - MAT_CONSUMO'!B:L,2,0),"")))) -> CADEIRA GIRATÓRIA SEM BRAÇO TIPO SECRETÁRIA EXECUTIVA, DIM:48X40CM, ESTOFADO INJETADO, REVESTIMENTO EM TECIDO OU COURO ECOLOGICO, BASE A GÁS, HASTE DE 05 PATAS FIXAS, PINTURA ELETROSTATICA EPOXI, MARCA MOVEART OU SIMILAR | C17: Ud | D17: 1 | E17: =IF($G17="ORSE",VLOOKUP($H17,ORSE_INSUM!A:E,4,0),IF($G17="SINAPI",VLOOKUP($H17,SINAPI_INSUM!A:E,5,0),IF($G17="SEINFRA",VLOOKUP($H17,SEINFRA_INSUM!B:F,4,0),IF($G17="COTAÇÃO",VLOOKUP($H17,'COTAÇÃO - MAT_CONSUMO'!B:L,10,0),"")))) -> 280 | F17: =ROUND(D17*E17,2) -> 280 | G17: ORSE | H17: 11534
A18: 1.1.1.9 | B18: =IF($G18="ORSE",VLOOKUP($H18,ORSE_INSUM!A:E,2,0),IF($G18="SINAPI",VLOOKUP($H18,SINAPI_INSUM!A:E,2,0),IF($G18="SEINFRA",VLOOKUP($H18,SEINFRA_INSUM!B:F,2,0),IF($G18="COTAÇÃO",VLOOKUP($H18,'COTAÇÃO - MAT_CONSUMO'!B:L,2,0),"")))) -> Central telefônica para 16 ramais | C18: Ud | D18: 1 | E18: =IF($G18="ORSE",VLOOKUP($H18,ORSE_INSUM!A:E,4,0),IF($G18="SINAPI",VLOOKUP($H18,SINAPI_INSUM!A:E,5,0),IF($G18="SEINFRA",VLOOKUP($H18,SEINFRA_INSUM!B:F,4,0),IF($G18="COTAÇÃO",VLOOKUP($H18,'COTAÇÃO - MAT_CONSUMO'!B:L,10,0),"")))) -> 495.45 | F18: =ROUND(D18*E18,2) -> 495.45 | G18: COTAÇÃO | H18: ='COTAÇÃO - MAT_CONSUMO'!A7 -> 4
A19: 1.1.1.10 | B19: =IF($G19="ORSE",VLOOKUP($H19,ORSE_INSUM!A:E,2,0),IF($G19="SINAPI",VLOOKUP($H19,SINAPI_INSUM!A:E,2,0),IF($G19="SEINFRA",VLOOKUP($H19,SEINFRA_INSUM!B:F,2,0),IF($G19="COTAÇÃO",VLOOKUP($H19,'COTAÇÃO - MAT_CONSUMO'!B:L,2,0),"")))) -> Estante metálica com 06 prateleiras | C19: Ud | D19: 2 | E19: =IF($G19="ORSE",VLOOKUP($H19,ORSE_INSUM!A:E,4,0),IF($G19="SINAPI",VLOOKUP($H19,SINAPI_INSUM!A:E,5,0),IF($G19="SEINFRA",VLOOKUP($H19,SEINFRA_INSUM!B:F,4,0),IF($G19="COTAÇÃO",VLOOKUP($H19,'COTAÇÃO - MAT_CONSUMO'!B:L,10,0),"")))) -> 146.21 | F19: =ROUND(D19*E19,2) -> 292.42 | G19: COTAÇÃO | H19: ='COTAÇÃO - MAT_CONSUMO'!A8 -> 5
A20: 1.1.1.11 | B20: =IF($G20="ORSE",VLOOKUP($H20,ORSE_INSUM!A:E,2,0),IF($G20="SINAPI",VLOOKUP($H20,SINAPI_INSUM!A:E,2,0),IF($G20="SEINFRA",VLOOKUP($H20,SEINFRA_INSUM!B:F,2,0),IF($G20="COTAÇÃO",VLOOKUP($H20,'COTAÇÃO - MAT_CONSUMO'!B:L,2,0),"")))) -> FOGÃO 06 BOCAS - CONSUL | C20: Ud | D20: 1 | E20: =IF($G20="ORSE",VLOOKUP($H20,ORSE_INSUM!A:E,4,0),IF($G20="SINAPI",VLOOKUP($H20,SINAPI_INSUM!A:E,5,0),IF($G20="SEINFRA",VLOOKUP($H20,SEINFRA_INSUM!B:F,4,0),IF($G20="COTAÇÃO",VLOOKUP($H20,'COTAÇÃO - MAT_CONSUMO'!B:L,10,0),"")))) -> 591.87 | F20: =ROUND(D20*E20,2) -> 591.87 | G20: ORSE | H20: 10231
A21: 1.1.1.12 | B21: =IF($G21="ORSE",VLOOKUP($H21,ORSE_INSUM!A:E,2,0),IF($G21="SINAPI",VLOOKUP($H21,SINAPI_INSUM!A:E,2,0),IF($G21="SEINFRA",VLOOKUP($H21,SEINFRA_INSUM!B:F,2,0),IF($G21="COTAÇÃO",VLOOKUP($H21,'COTAÇÃO - MAT_CONSUMO'!B:L,2,0),"")))) -> Freezer horizontal 1 porta 210 L | C21: Ud | D21: 1 | E21: =IF($G21="ORSE",VLOOKUP($H21,ORSE_INSUM!A:E,4,0),IF($G21="SINAPI",VLOOKUP($H21,SINAPI_INSUM!A:E,5,0),IF($G21="SEINFRA",VLOOKUP($H21,SEINFRA_INSUM!B:F,4,0),IF($G21="COTAÇÃO",VLOOKUP($H21,'COTAÇÃO - MAT_CONSUMO'!B:L,10,0),"")))) -> 1399 | F21: 1399 | G21: COTAÇÃO | H21: ='COTAÇÃO - MAT_CONSUMO'!A9 -> 6
A22: 1.1.1.13 | B22: =IF($G22="ORSE",VLOOKUP($H22,ORSE_INSUM!A:E,2,0),IF($G22="SINAPI",VLOOKUP($H22,SINAPI_INSUM!A:E,2,0),IF($G22="SEINFRA",VLOOKUP($H22,SEINFRA_INSUM!B:F,2,0),IF($G22="COTAÇÃO",VLOOKUP($H22,'COTAÇÃO - MAT_CONSUMO'!B:L,2,0),"")))) -> GELADEIRA 300 L | C22: Ud | D22: 1 | E22: =IF($G22="ORSE",VLOOKUP($H22,ORSE_INSUM!A:E,4,0),IF($G22="SINAPI",VLOOKUP($H22,SINAPI_INSUM!A:E,5,0),IF($G22="SEINFRA",VLOOKUP($H22,SEINFRA_INSUM!B:F,4,0),IF($G22="COTAÇÃO",VLOOKUP($H22,'COTAÇÃO - MAT_CONSUMO'!B:L,10,0),"")))) -> 1616.1 | F22: 1616.1 | G22: ORSE | H22: 10232
A23: 1.1.1.14 | B23: =IF($G23="ORSE",VLOOKUP($H23,ORSE_INSUM!A:E,2,0),IF($G23="SINAPI",VLOOKUP($H23,SINAPI_INSUM!A:E,2,0),IF($G23="SEINFRA",VLOOKUP($H23,SEINFRA_INSUM!B:F,2,0),IF($G23="COTAÇÃO",VLOOKUP($H23,'COTAÇÃO - MAT_CONSUMO'!B:L,2,0),"")))) -> Impressora Multifuncional Laser Colorida | C23: Ud | D23: 1 | E23: =IF($G23="ORSE",VLOOKUP($H23,ORSE_INSUM!A:E,4,0),IF($G23="SINAPI",VLOOKUP($H23,SINAPI_INSUM!A:E,5,0),IF($G23="SEINFRA",VLOOKUP($H23,SEINFRA_INSUM!B:F,4,0),IF($G23="COTAÇÃO",VLOOKUP($H23,'COTAÇÃO - MAT_CONSUMO'!B:L,10,0),"")))) -> 1045.32 | F23: 1045.32 | G23: COTAÇÃO | H23: ='COTAÇÃO - MAT_CONSUMO'!A10 -> 7
A24: 1.1.1.15 | B24: =IF($G24="ORSE",VLOOKUP($H24,ORSE_INSUM!A:E,2,0),IF($G24="SINAPI",VLOOKUP($H24,SINAPI_INSUM!A:E,2,0),IF($G24="SEINFRA",VLOOKUP($H24,SEINFRA_INSUM!B:F,2,0),IF($G24="COTAÇÃO",VLOOKUP($H24,'COTAÇÃO - MAT_CONSUMO'!B:L,2,0),"")))) -> LUMINÁRIA DE EMERGÊNCIA | C24: Ud | D24: 6 | E24: =IF($G24="ORSE",VLOOKUP($H24,ORSE_INSUM!A:E,4,0),IF($G24="SINAPI",VLOOKUP($H24,SINAPI_INSUM!A:E,5,0),IF($G24="SEINFRA",VLOOKUP($H24,SEINFRA_INSUM!B:F,4,0),IF($G24="COTAÇÃO",VLOOKUP($H24,'COTAÇÃO - MAT_CONSUMO'!B:L,10,0),"")))) -> 252.78 | F24: 1516.68 | G24: SEINFRA | H24: I8246
A25: 1.1.1.16 | B25: =IF($G25="ORSE",VLOOKUP($H25,ORSE_INSUM!A:E,2,0),IF($G25="SINAPI",VLOOKUP($H25,SINAPI_INSUM!A:E,2,0),IF($G25="SEINFRA",VLOOKUP($H25,SEINFRA_INSUM!B:F,2,0),IF($G25="COTAÇÃO",VLOOKUP($H25,'COTAÇÃO - MAT_CONSUMO'!B:L,2,0),"")))) -> MESA PARA ESCRITÓRIO MEDINDO 1,50 X 0,60 M EM MADEIRA E LAMINADO MELAMINICO, COM 02 GAVETAS C/ CHAVES | C25: Ud | D25: 2 | E25: =IF($G25="ORSE",VLOOKUP($H25,ORSE_INSUM!A:E,4,0),IF($G25="SINAPI",VLOOKUP($H25,SINAPI_INSUM!A:E,5,0),IF($G25="SEINFRA",VLOOKUP($H25,SEINFRA_INSUM!B:F,4,0),IF($G25="COTAÇÃO",VLOOKUP($H25,'COTAÇÃO - MAT_CONSUMO'!B:L,10,0),"")))) -> 345 | F25: =ROUND(D25*E25,2) -> 690 | G25: ORSE | H25: 11548
A26: 1.1.1.17 | B26: =IF($G26="ORSE",VLOOKUP($H26,ORSE_INSUM!A:E,2,0),IF($G26="SINAPI",VLOOKUP($H26,SINAPI_INSUM!A:E,2,0),IF($G26="SEINFRA",VLOOKUP($H26,SEINFRA_INSUM!B:F,2,0),IF($G26="COTAÇÃO",VLOOKUP($H26,'COTAÇÃO - MAT_CONSUMO'!B:L,2,0),"")))) -> Mesa para 8 (oito) cadeiras | C26: Ud | D26: 1 | E26: =IF($G26="ORSE",VLOOKUP($H26,ORSE_INSUM!A:E,4,0),IF($G26="SINAPI",VLOOKUP($H26,SINAPI_INSUM!A:E,5,0),IF($G26="SEINFRA",VLOOKUP($H26,SEINFRA_INSUM!B:F,4,0),IF($G26="COTAÇÃO",VLOOKUP($H26,'COTAÇÃO - MAT_CONSUMO'!B:L,10,0),"")))) -> 563.9 | F26: =ROUND(D26*E26,2) -> 563.9 | G26: COTAÇÃO | H26: ='COTAÇÃO - MAT_CONSUMO'!A11 -> 8
A27: 1.1.1.18 | B27: =IF($G27="ORSE",VLOOKUP($H27,ORSE_INSUM!A:E,2,0),IF($G27="SINAPI",VLOOKUP($H27,SINAPI_INSUM!A:E,2,0),IF($G27="SEINFRA",VLOOKUP($H27,SEINFRA_INSUM!B:F,2,0),IF($G27="COTAÇÃO",VLOOKUP($H27,'COTAÇÃO - MAT_CONSUMO'!B:L,2,0),"")))) -> Mesa para microcomputador | C27: Ud | D27: 1 | E27: =IF($G27="ORSE",VLOOKUP($H27,ORSE_INSUM!A:E,4,0),IF($G27="SINAPI",VLOOKUP($H27,SINAPI_INSUM!A:E,5,0),IF($G27="SEINFRA",VLOOKUP($H27,SEINFRA_INSUM!B:F,4,0),IF($G27="COTAÇÃO",VLOOKUP($H27,'COTAÇÃO - MAT_CONSUMO'!B:L,10,0),"")))) -> 243.33 | F27: 243.33 | G27: COTAÇÃO | H27: ='COTAÇÃO - MAT_CONSUMO'!A12 -> 9
A28: 1.1.1.19 | B28: =IF($G28="ORSE",VLOOKUP($H28,ORSE_INSUM!A:E,2,0),IF($G28="SINAPI",VLOOKUP($H28,SINAPI_INSUM!A:E,2,0),IF($G28="SEINFRA",VLOOKUP($H28,SEINFRA_INSUM!B:F,2,0),IF($G28="COTAÇÃO",VLOOKUP($H28,'COTAÇÃO - MAT_CONSUMO'!B:L,2,0),"")))) -> Computador de mesa 7400 Intel Core i5 4 GB 1 TB Windows 10 6 MB | C28: Ud | D28: 1 | E28: =IF($G28="ORSE",VLOOKUP($H28,ORSE_INSUM!A:E,4,0),IF($G28="SINAPI",VLOOKUP($H28,SINAPI_INSUM!A:E,5,0),IF($G28="SEINFRA",VLOOKUP($H28,SEINFRA_INSUM!B:F,4,0),IF($G28="COTAÇÃO",VLOOKUP($H28,'COTAÇÃO - MAT_CONSUMO'!B:L,10,0),"")))) -> 2329.99 | F28: 2329.99 | G28: COTAÇÃO | H28: 156
A29: 1.1.1.20 | B29: =IF($G29="ORSE",VLOOKUP($H29,ORSE_INSUM!A:E,2,0),IF($G29="SINAPI",VLOOKUP($H29,SINAPI_INSUM!A:E,2,0),IF($G29="SEINFRA",VLOOKUP($H29,SEINFRA_INSUM!B:F,2,0),IF($G29="COTAÇÃO",VLOOKUP($H29,'COTAÇÃO - MAT_CONSUMO'!B:L,2,0),"")))) -> NO BREAK 1.200VA - BIVOLT COM AUTONOMIA PARA SUPRIMENTO DE 30 MINUTOS, DA MIC ROSOL OU SIMILAR | C29: Ud | D29: 3 | E29: =IF($G29="ORSE",VLOOKUP($H29,ORSE_INSUM!A:E,4,0),IF($G29="SINAPI",VLOOKUP($H29,SINAPI_INSUM!A:E,5,0),IF($G29="SEINFRA",VLOOKUP($H29,SEINFRA_INSUM!B:F,4,0),IF($G29="COTAÇÃO",VLOOKUP($H29,'COTAÇÃO - MAT_CONSUMO'!B:L,10,0),"")))) -> 350 | F29: 1050 | G29: ORSE | H29: 10691
A30: 1.1.1.21 | B30: =IF($G30="ORSE",VLOOKUP($H30,ORSE_INSUM!A:E,2,0),IF($G30="SINAPI",VLOOKUP($H30,SINAPI_INSUM!A:E,2,0),IF($G30="SEINFRA",VLOOKUP($H30,SEINFRA_INSUM!B:F,2,0),IF($G30="COTAÇÃO",VLOOKUP($H30,'COTAÇÃO - MAT_CONSUMO'!B:L,2,0),"")))) -> Notebook, Intel Core i5-7200U, 12GB, 1TB, 15.6", GeForce 940MX, | C30: Ud | D30: 2 | E30: =IF($G30="ORSE",VLOOKUP($H30,ORSE_INSUM!A:E,4,0),IF($G30="SINAPI",VLOOKUP($H30,SINAPI_INSUM!A:E,5,0),IF($G30="SEINFRA",VLOOKUP($H30,SEINFRA_INSUM!B:F,4,0),IF($G30="COTAÇÃO",VLOOKUP($H30,'COTAÇÃO - MAT_CONSUMO'!B:L,10,0),"")))) -> 2799 | F30: =ROUND(D30*E30,2) -> 5598 | G30: COTAÇÃO | H30: 157
A31: 1.1.1.22 | B31: =IF($G31="ORSE",VLOOKUP($H31,ORSE_INSUM!A:E,2,0),IF($G31="SINAPI",VLOOKUP($H31,SINAPI_INSUM!A:E,2,0),IF($G31="SEINFRA",VLOOKUP($H31,SEINFRA_INSUM!B:F,2,0),IF($G31="COTAÇÃO",VLOOKUP($H31,'COTAÇÃO - MAT_CONSUMO'!B:L,2,0),"")))) -> Kit telefone celular fixo com antena externa (rural) | C31: Ud | D31: 1 | E31: =IF($G31="ORSE",VLOOKUP($H31,ORSE_INSUM!A:E,4,0),IF($G31="SINAPI",VLOOKUP($H31,SINAPI_INSUM!A:E,5,0),IF($G31="SEINFRA",VLOOKUP($H31,SEINFRA_INSUM!B:F,4,0),IF($G31="COTAÇÃO",VLOOKUP($H31,'COTAÇÃO - MAT_CONSUMO'!B:L,10,0),"")))) -> 346.4 | F31: =ROUND(D31*E31,2) -> 346.4 | G31: COTAÇÃO | H31: ='COTAÇÃO - MAT_CONSUMO'!A13 -> 10
A32: 1.1.1.23 | B32: =IF($G32="ORSE",VLOOKUP($H32,ORSE_INSUM!A:E,2,0),IF($G32="SINAPI",VLOOKUP($H32,SINAPI_INSUM!A:E,2,0),IF($G32="SEINFRA",VLOOKUP($H32,SEINFRA_INSUM!B:F,2,0),IF($G32="COTAÇÃO",VLOOKUP($H32,'COTAÇÃO - MAT_CONSUMO'!B:L,2,0),"")))) -> Projetor Epson X29 3000 Lumens XGA HDMI WiFi V11H691024 (ou similar) | C32: Ud | D32: 1 | E32: =IF($G32="ORSE",VLOOKUP($H32,ORSE_INSUM!A:E,4,0),IF($G32="SINAPI",VLOOKUP($H32,SINAPI_INSUM!A:E,5,0),IF($G32="SEINFRA",VLOOKUP($H32,SEINFRA_INSUM!B:F,4,0),IF($G32="COTAÇÃO",VLOOKUP($H32,'COTAÇÃO - MAT_CONSUMO'!B:L,10,0),"")))) -> 2399 | F32: 2399 | G32: COTAÇÃO | H32: ='COTAÇÃO - MAT_CONSUMO'!A14 -> 11
A33: 1.1.1.24 | B33: =IF($G33="ORSE",VLOOKUP($H33,ORSE_INSUM!A:E,2,0),IF($G33="SINAPI",VLOOKUP($H33,SINAPI_INSUM!A:E,2,0),IF($G33="SEINFRA",VLOOKUP($H33,SEINFRA_INSUM!B:F,2,0),IF($G33="COTAÇÃO",VLOOKUP($H33,'COTAÇÃO - MAT_CONSUMO'!B:L,2,0),"")))) -> Rádio comunicador fixo digital tipo DMR/MOTOTRBO, marca Motorola, Modelo DEM 300, ou similar, acompanhado de microfone de mão, cabo de alimentação com fusível, suporte para fixação do rádio e parafusos, manual de operação em português, fonte de alimentação bivolt com gabinete para estação fixa, antena, cabo coaxial e conectores | C33: Ud | D33: 4 | E33: =IF($G33="ORSE",VLOOKUP($H33,ORSE_INSUM!A:E,4,0),IF($G33="SINAPI",VLOOKUP($H33,SINAPI_INSUM!A:E,5,0),IF($G33="SEINFRA",VLOOKUP($H33,SEINFRA_INSUM!B:F,4,0),IF($G33="COTAÇÃO",VLOOKUP($H33,'COTAÇÃO - MAT_CONSUMO'!B:L,10,0),"")))) -> 4151 | F33: 16604 | G33: COTAÇÃO | H33: DEM 300 FIXO
A34: 1.1.1.25 | B34: =IF($G34="ORSE",VLOOKUP($H34,ORSE_INSUM!A:E,2,0),IF($G34="SINAPI",VLOOKUP($H34,SINAPI_INSUM!A:E,2,0),IF($G34="SEINFRA",VLOOKUP($H34,SEINFRA_INSUM!B:F,2,0),IF($G34="COTAÇÃO",VLOOKUP($H34,'COTAÇÃO - MAT_CONSUMO'!B:L,2,0),"")))) -> Rádio comunicador móvel digital tipo DMR/MOTOTRBO, marca Motorola, Modelo DEM 300, ou similar, acompanhado de microfone de mão, cabo de alimentação com fusível, suporte para fixação do rádio e parafusos, manual de operação em português, antena com base magnetica, cabo e conectores | C34: Ud | D34: 6 | E34: =IF($G34="ORSE",VLOOKUP($H34,ORSE_INSUM!A:E,4,0),IF($G34="SINAPI",VLOOKUP($H34,SINAPI_INSUM!A:E,5,0),IF($G34="SEINFRA",VLOOKUP($H34,SEINFRA_INSUM!B:F,4,0),IF($G34="COTAÇÃO",VLOOKUP($H34,'COTAÇÃO - MAT_CONSUMO'!B:L,10,0),"")))) -> 2437 | F34: 14622 | G34: COTAÇÃO | H34: DEM 300 MÓVEL
A35: 1.1.1.26 | B35: =IF($G35="ORSE",VLOOKUP($H35,ORSE_INSUM!A:E,2,0),IF($G35="SINAPI",VLOOKUP($H35,SINAPI_INSUM!A:E,2,0),IF($G35="SEINFRA",VLOOKUP($H35,SEINFRA_INSUM!B:F,2,0),IF($G35="COTAÇÃO",VLOOKUP($H35,'COTAÇÃO - MAT_CONSUMO'!B:L,2,0),"")))) -> Rádio comunicador portátil digital tipo DMR/MOTOTRBO, marca Motorola, Modelo DEP 450, ou similar, acompanhado de bateria, carregador rápido bivolt, antena flexivel, clip de cinto e manual de operação em português | C35: Ud | D35: 6 | E35: =IF($G35="ORSE",VLOOKUP($H35,ORSE_INSUM!A:E,4,0),IF($G35="SINAPI",VLOOKUP($H35,SINAPI_INSUM!A:E,5,0),IF($G35="SEINFRA",VLOOKUP($H35,SEINFRA_INSUM!B:F,4,0),IF($G35="COTAÇÃO",VLOOKUP($H35,'COTAÇÃO - MAT_CONSUMO'!B:L,10,0),"")))) -> 1470 | F35: =ROUND(D35*E35,2) -> 8820 | G35: COTAÇÃO | H35: DEP 450
A36: 1.1.1.27 | B36: =IF($G36="ORSE",VLOOKUP($H36,ORSE_INSUM!A:E,2,0),IF($G36="SINAPI",VLOOKUP($H36,SINAPI_INSUM!A:E,2,0),IF($G36="SEINFRA",VLOOKUP($H36,SEINFRA_INSUM!B:F,2,0),IF($G36="COTAÇÃO",VLOOKUP($H36,'COTAÇÃO - MAT_CONSUMO'!B:L,2,0),"")))) -> Base Repetidora - repetidor digital tipo DMR/MOTOTRBO, marca Motorola, Modelo SLR 5100, ou similar, para 64 canais, acompanhado de fonte de alimentação bivolt e carregador de bateria integrados, antena, cabo, duplexador e conectores | C36: Ud | D36: 1 | E36: =IF($G36="ORSE",VLOOKUP($H36,ORSE_INSUM!A:E,4,0),IF($G36="SINAPI",VLOOKUP($H36,SINAPI_INSUM!A:E,5,0),IF($G36="SEINFRA",VLOOKUP($H36,SEINFRA_INSUM!B:F,4,0),IF($G36="COTAÇÃO",VLOOKUP($H36,'COTAÇÃO - MAT_CONSUMO'!B:L,10,0),"")))) -> 16300 | F36: =ROUND(D36*E36,2) -> 16300 | G36: COTAÇÃO | H36: SLR 5100
A38: TOTAL | F38: =SUM(F10:F36) -> 86230.21
A39: BDI DE FORNECIMENTO | E39: ='BDI - FORNECIMENTOS'!$C$31 -> 0.109 | F39: =ROUND(F38*E39,2) -> 9399.09
A40: TOTAL COM BDI DE FORNECIMENTO | F40: =F38*'BDI - FORNECIMENTOS'!$C$31+F38 -> 95629.3

Sheet 1.1.2.Custo Ferramental
A1: 1. INSTALAÇÃO, MOBILIZAÇÃO E DESMOBILIZAÇÃO
A3: 1.1. INSTALAÇÃO
A5: 1.1.2 PLANILHA DE ESTIMATIVA DE CUSTO DE FERRAMENTAL, INSTRUMENTAÇÃO E EQUIPAMENTOS DE OFICINA
A7: Item | B7: DESCRIÇÃO | C7: UNID. | D7: QUANT. | E7: VALOR | G7: REF.TAB. | H7: Cód. TAB.
E8: UNIT. (R$) | F8: TOTAL (R$)
A10: 1.1.2.1 | B10: =IF($G10="ORSE",VLOOKUP($H10,ORSE_INSUM!A:E,2,0),IF($G10="SINAPI",VLOOKUP($H10,SINAPI_INSUM!A:E,2,0),IF($G10="SEINFRA",VLOOKUP($H10,SEINFRA_INSUM!B:F,2,0),IF($G10="COTAÇÃO",VLOOKUP($H10,'COTAÇÃO - MAT_CONSUMO'!B:L,2,0),"")))) -> ALICATE VOLT-AMPERIMETRO | C10: Ud | D10: 1 | E10: =IF($G10="ORSE",VLOOKUP($H10,ORSE_INSUM!A:E,4,0),IF($G10="SINAPI",VLOOKUP($H10,SINAPI_INSUM!A:E,5,0),IF($G10="SEINFRA",VLOOKUP($H10,SEINFRA_INSUM!B:F,4,0),IF($G10="COTAÇÃO",VLOOKUP($H10,'COTAÇÃO - MAT_CONSUMO'!B:L,10,0),"")))) -> 108.11 | F10: =ROUND(E10*D10,2) -> 108.11 | G10: ORSE | H10: 11241
A11: 1.1.2.2 | B11: =IF($G11="ORSE",VLOOKUP($H11,ORSE_INSUM!A:E,2,0),IF($G11="SINAPI",VLOOKUP($H11,SINAPI_INSUM!A:E,2,0),IF($G11="SEINFRA",VLOOKUP($H11,SEINFRA_INSUM!B:F,2,0),IF($G11="COTAÇÃO",VLOOKUP($H11,'COTAÇÃO - MAT_CONSUMO'!B:L,2,0),"")))) -> Alicate hidráulico (prensa terminal), cap.12 ton | C11: Ud | D11: 1 | E11: =IF($G11="ORSE",VLOOKUP($H11,ORSE_INSUM!A:E,4,0),IF($G11="SINAPI",VLOOKUP($H11,SINAPI_INSUM!A:E,5,0),IF($G11="SEINFRA",VLOOKUP($H11,SEINFRA_INSUM!B:F,4,0),IF($G11="COTAÇÃO",VLOOKUP($H11,'COTAÇÃO - MAT_CONSUMO'!B:L,10,0),"")))) -> 589 | F11: =ROUND(E11*D11,2) -> 589 | G11: COTAÇÃO | H11: 12
A12: 1.1.2.3 | B12: =IF($G12="ORSE",VLOOKUP($H12,ORSE_INSUM!A:E,2,0),IF($G12="SINAPI",VLOOKUP($H12,SINAPI_INSUM!A:E,2,0),IF($G12="SEINFRA",VLOOKUP($H12,SEINFRA_INSUM!B:F,2,0),IF($G12="COTAÇÃO",VLOOKUP($H12,'COTAÇÃO - MAT_CONSUMO'!B:L,2,0),"")))) -> Alicate Wattimetro digital True RMS Trifasico | C12: Ud | D12: 1 | E12: =IF($G12="ORSE",VLOOKUP($H12,ORSE_INSUM!A:E,4,0),IF($G12="SINAPI",VLOOKUP($H12,SINAPI_INSUM!A:E,5,0),IF($G12="SEINFRA",VLOOKUP($H12,SEINFRA_INSUM!B:F,4,0),IF($G12="COTAÇÃO",VLOOKUP($H12,'COTAÇÃO - MAT_CONSUMO'!B:L,10,0),"")))) -> 612.5 | F12: 612.5 | G12: COTAÇÃO | H12: 17
A13: 1.1.2.4 | B13: =IF($G13="ORSE",VLOOKUP($H13,ORSE_INSUM!A:E,2,0),IF($G13="SINAPI",VLOOKUP($H13,SINAPI_INSUM!A:E,2,0),IF($G13="SEINFRA",VLOOKUP($H13,SEINFRA_INSUM!B:F,2,0),IF($G13="COTAÇÃO",VLOOKUP($H13,'COTAÇÃO - MAT_CONSUMO'!B:L,2,0),"")))) -> Analisador de qualidade da energia Classe S- Energy Master MI 2883 Fab: METREL | C13: Ud | D13: 1 | E13: =IF($G13="ORSE",VLOOKUP($H13,ORSE_INSUM!A:E,4,0),IF($G13="SINAPI",VLOOKUP($H13,SINAPI_INSUM!A:E,5,0),IF($G13="SEINFRA",VLOOKUP($H13,SEINFRA_INSUM!B:F,4,0),IF($G13="COTAÇÃO",VLOOKUP($H13,'COTAÇÃO - MAT_CONSUMO'!B:L,10,0),"")))) -> 7800 | F13: 7800 | G13: COTAÇÃO | H13: 99
A14: 1.1.2.5 | B14: =IF($G14="ORSE",VLOOKUP($H14,ORSE_INSUM!A:E,2,0),IF($G14="SINAPI",VLOOKUP($H14,SINAPI_INSUM!A:E,2,0),IF($G14="SEINFRA",VLOOKUP($H14,SEINFRA_INSUM!B:F,2,0),IF($G14="COTAÇÃO",VLOOKUP($H14,'COTAÇÃO - MAT_CONSUMO'!B:L,2,0),"")))) -> APARELHO CORTE OXI-ACETILENO PARA SOLDA E CORTE CONTENDO MACARICO SOLDA, BICO DE CORTE, CILINDROS, REGULADORES, MANGUEIRAS E CARRINHO | C14: Ud | D14: 1 | E14: =IF($G14="ORSE",VLOOKUP($H14,ORSE_INSUM!A:E,4,0),IF($G14="SINAPI",VLOOKUP($H14,SINAPI_INSUM!A:E,5,0),IF($G14="SEINFRA",VLOOKUP($H14,SEINFRA_INSUM!B:F,4,0),IF($G14="COTAÇÃO",VLOOKUP($H14,'COTAÇÃO - MAT_CONSUMO'!B:L,10,0),"")))) -> 2.800,00 | F14: 2800 | G14: SINAPI | H14: 13761
A15: 1.1.2.6 | B15: =IF($G15="ORSE",VLOOKUP($H15,ORSE_INSUM!A:E,2,0),IF($G15="SINAPI",VLOOKUP($H15,SINAPI_INSUM!A:E,2,0),IF($G15="SEINFRA",VLOOKUP($H15,SEINFRA_INSUM!B:F,2,0),IF($G15="COTAÇÃO",VLOOKUP($H15,'COTAÇÃO - MAT_CONSUMO'!B:L,2,0),"")))) -> Aquecedor Indutivo TIH 100M/230V | C15: Ud | D15: 1 | E15: =IF($G15="ORSE",VLOOKUP($H15,ORSE_INSUM!A:E,4,0),IF($G15="SINAPI",VLOOKUP($H15,SINAPI_INSUM!A:E,5,0),IF($G15="SEINFRA",VLOOKUP($H15,SEINFRA_INSUM!B:F,4,0),IF($G15="COTAÇÃO",VLOOKUP($H15,'COTAÇÃO - MAT_CONSUMO'!B:L,10,0),"")))) -> 23995.4 | F15: 23995.4 | G15: COTAÇÃO | H15: 85
A16: 1.1.2.7 | B16: =IF($G16="ORSE",VLOOKUP($H16,ORSE_INSUM!A:E,2,0),IF($G16="SINAPI",VLOOKUP($H16,SINAPI_INSUM!A:E,2,0),IF($G16="SEINFRA",VLOOKUP($H16,SEINFRA_INSUM!B:F,2,0),IF($G16="COTAÇÃO",VLOOKUP($H16,'COTAÇÃO - MAT_CONSUMO'!B:L,2,0),"")))) -> Base Magnética p/ relógio comparador | C16: um | D16: 1 | E16: =IF($G16="ORSE",VLOOKUP($H16,ORSE_INSUM!A:E,4,0),IF($G16="SINAPI",VLOOKUP($H16,SINAPI_INSUM!A:E,5,0),IF($G16="SEINFRA",VLOOKUP($H16,SEINFRA_INSUM!B:F,4,0),IF($G16="COTAÇÃO",VLOOKUP($H16,'COTAÇÃO - MAT_CONSUMO'!B:L,10,0),"")))) -> 67.9 | F16: 67.9 | G16: COTAÇÃO | H16: 71
A17: 1.1.2.8 | B17: =IF($G17="ORSE",VLOOKUP($H17,ORSE_INSUM!A:E,2,0),IF($G17="SINAPI",VLOOKUP($H17,SINAPI_INSUM!A:E,2,0),IF($G17="SEINFRA",VLOOKUP($H17,SEINFRA_INSUM!B:F,2,0),IF($G17="COTAÇÃO",VLOOKUP($H17,'COTAÇÃO - MAT_CONSUMO'!B:L,2,0),"")))) -> Bancada de madeira profissional 1200 x 2500mm | C17: Ud | D17: 1 | E17: =IF($G17="ORSE",VLOOKUP($H17,ORSE_INSUM!A:E,4,0),IF($G17="SINAPI",VLOOKUP($H17,SINAPI_INSUM!A:E,5,0),IF($G17="SEINFRA",VLOOKUP($H17,SEINFRA_INSUM!B:F,4,0),IF($G17="COTAÇÃO",VLOOKUP($H17,'COTAÇÃO - MAT_CONSUMO'!B:L,10,0),"")))) -> 2000 | F17: 2000 | G17: COTAÇÃO | H17: 1002
A18: 1.1.2.9 | B18: =IF($G18="ORSE",VLOOKUP($H18,ORSE_INSUM!A:E,2,0),IF($G18="SINAPI",VLOOKUP($H18,SINAPI_INSUM!A:E,2,0),IF($G18="SEINFRA",VLOOKUP($H18,SEINFRA_INSUM!B:F,2,0),IF($G18="COTAÇÃO",VLOOKUP($H18,'COTAÇÃO - MAT_CONSUMO'!B:L,2,0),"")))) -> Balde De Lona Para Içar Ferramentas | C18: Ud | D18: 1 | E18: =IF($G18="ORSE",VLOOKUP($H18,ORSE_INSUM!A:E,4,0),IF($G18="SINAPI",VLOOKUP($H18,SINAPI_INSUM!A:E,5,0),IF($G18="SEINFRA",VLOOKUP($H18,SEINFRA_INSUM!B:F,4,0),IF($G18="COTAÇÃO",VLOOKUP($H18,'COTAÇÃO - MAT_CONSUMO'!B:L,10,0),"")))) -> 99.9 | F18: =ROUND(E18*D18,2) -> 99.9 | G18: COTAÇÃO | H18: 73
A19: 1.1.2.10 | B19: =IF($G19="ORSE",VLOOKUP($H19,ORSE_INSUM!A:E,2,0),IF($G19="SINAPI",VLOOKUP($H19,SINAPI_INSUM!A:E,2,0),IF($G19="SEINFRA",VLOOKUP($H19,SEINFRA_INSUM!B:F,2,0),IF($G19="COTAÇÃO",VLOOKUP($H19,'COTAÇÃO - MAT_CONSUMO'!B:L,2,0),"")))) -> BETONEIRA CAPACIDADE NOMINAL 400 L, CAPACIDADE DE MISTURA 280 L, MOTOR ELETRICO TRIFASICO 220/380 V POTENCIA 2 CV, SEM CARREGADOR | C19: Ud | D19: 1 | E19: =IF($G19="ORSE",VLOOKUP($H19,ORSE_INSUM!A:E,4,0),IF($G19="SINAPI",VLOOKUP($H19,SINAPI_INSUM!A:E,5,0),IF($G19="SEINFRA",VLOOKUP($H19,SEINFRA_INSUM!B:F,4,0),IF($G19="COTAÇÃO",VLOOKUP($H19,'COTAÇÃO - MAT_CONSUMO'!B:L,10,0),"")))) -> 3.589,50 | F19: 3589.5 | G19: SINAPI | H19: 10535
A20: 1.1.2.11 | B20: =IF($G20="ORSE",VLOOKUP($H20,ORSE_INSUM!A:E,2,0),IF($G20="SINAPI",VLOOKUP($H20,SINAPI_INSUM!A:E,2,0),IF($G20="SEINFRA",VLOOKUP($H20,SEINFRA_INSUM!B:F,2,0),IF($G20="COTAÇÃO",VLOOKUP($H20,'COTAÇÃO - MAT_CONSUMO'!B:L,2,0),"")))) -> Bomba de graxa 5kg | C20: Ud | D20: 1 | E20: =IF($G20="ORSE",VLOOKUP($H20,ORSE_INSUM!A:E,4,0),IF($G20="SINAPI",VLOOKUP($H20,SINAPI_INSUM!A:E,5,0),IF($G20="SEINFRA",VLOOKUP($H20,SEINFRA_INSUM!B:F,4,0),IF($G20="COTAÇÃO",VLOOKUP($H20,'COTAÇÃO - MAT_CONSUMO'!B:L,10,0),"")))) -> 264.58 | F20: 264.58 | G20: COTAÇÃO | H20: 72
A21: 1.1.2.12 | B21: =IF($G21="ORSE",VLOOKUP($H21,ORSE_INSUM!A:E,2,0),IF($G21="SINAPI",VLOOKUP($H21,SINAPI_INSUM!A:E,2,0),IF($G21="SEINFRA",VLOOKUP($H21,SEINFRA_INSUM!B:F,2,0),IF($G21="COTAÇÃO",VLOOKUP($H21,'COTAÇÃO - MAT_CONSUMO'!B:L,2,0),"")))) -> Calibrador de folgas de 0,03 mm - 0,50 mm | C21: Ud | D21: 1 | E21: =IF($G21="ORSE",VLOOKUP($H21,ORSE_INSUM!A:E,4,0),IF($G21="SINAPI",VLOOKUP($H21,SINAPI_INSUM!A:E,5,0),IF($G21="SEINFRA",VLOOKUP($H21,SEINFRA_INSUM!B:F,4,0),IF($G21="COTAÇÃO",VLOOKUP($H21,'COTAÇÃO - MAT_CONSUMO'!B:L,10,0),"")))) -> 64.99 | F21: 64.99 | G21: COTAÇÃO | H21: 74
A22: 1.1.2.13 | B22: =IF($G22="ORSE",VLOOKUP($H22,ORSE_INSUM!A:E,2,0),IF($G22="SINAPI",VLOOKUP($H22,SINAPI_INSUM!A:E,2,0),IF($G22="SEINFRA",VLOOKUP($H22,SEINFRA_INSUM!B:F,2,0),IF($G22="COTAÇÃO",VLOOKUP($H22,'COTAÇÃO - MAT_CONSUMO'!B:L,2,0),"")))) -> Calibrador de loop 4 a 20mA, fonte 4 a 20mA, medição, simulação, passos de 25% FE | C22: Ud | D22: 1 | E22: =IF($G22="ORSE",VLOOKUP($H22,ORSE_INSUM!A:E,4,0),IF($G22="SINAPI",VLOOKUP($H22,SINAPI_INSUM!A:E,5,0),IF($G22="SEINFRA",VLOOKUP($H22,SEINFRA_INSUM!B:F,4,0),IF($G22="COTAÇÃO",VLOOKUP($H22,'COTAÇÃO - MAT_CONSUMO'!B:L,10,0),"")))) -> 899 | F22: 899 | G22: COTAÇÃO | H22: 88
A23: 1.1.2.14 | B23: =IF($G23="ORSE",VLOOKUP($H23,ORSE_INSUM!A:E,2,0),IF($G23="SINAPI",VLOOKUP($H23,SINAPI_INSUM!A:E,2,0),IF($G23="SEINFRA",VLOOKUP($H23,SEINFRA_INSUM!B:F,2,0),IF($G23="COTAÇÃO",VLOOKUP($H23,'COTAÇÃO - MAT_CONSUMO'!B:L,2,0),"")))) -> Capacitímetro digital com fundo de escala mínimo de 2000 micro Farads | C23: Ud | D23: 1 | E23: =IF($G23="ORSE",VLOOKUP($H23,ORSE_INSUM!A:E,4,0),IF($G23="SINAPI",VLOOKUP($H23,SINAPI_INSUM!A:E,5,0),IF($G23="SEINFRA",VLOOKUP($H23,SEINFRA_INSUM!B:F,4,0),IF($G23="COTAÇÃO",VLOOKUP($H23,'COTAÇÃO - MAT_CONSUMO'!B:L,10,0),"")))) -> 99.83 | F23: 99.83 | G23: COTAÇÃO | H23: 159
A24: 1.1.2.15 | B24: =IF($G24="ORSE",VLOOKUP($H24,ORSE_INSUM!A:E,2,0),IF($G24="SINAPI",VLOOKUP($H24,SINAPI_INSUM!A:E,2,0),IF($G24="SEINFRA",VLOOKUP($H24,SEINFRA_INSUM!B:F,2,0),IF($G24="COTAÇÃO",VLOOKUP($H24,'COTAÇÃO - MAT_CONSUMO'!B:L,2,0),"")))) -> Chave grifo de 18" | C24: Ud | D24: 1 | E24: =IF($G24="ORSE",VLOOKUP($H24,ORSE_INSUM!A:E,4,0),IF($G24="SINAPI",VLOOKUP($H24,SINAPI_INSUM!A:E,5,0),IF($G24="SEINFRA",VLOOKUP($H24,SEINFRA_INSUM!B:F,4,0),IF($G24="COTAÇÃO",VLOOKUP($H24,'COTAÇÃO - MAT_CONSUMO'!B:L,10,0),"")))) -> 99.83 | F24: 99.83 | G24: COTAÇÃO | H24: 82
A25: 1.1.2.16 | B25: =IF($G25="ORSE",VLOOKUP($H25,ORSE_INSUM!A:E,2,0),IF($G25="SINAPI",VLOOKUP($H25,SINAPI_INSUM!A:E,2,0),IF($G25="SEINFRA",VLOOKUP($H25,SEINFRA_INSUM!B:F,2,0),IF($G25="COTAÇÃO",VLOOKUP($H25,'COTAÇÃO - MAT_CONSUMO'!B:L,2,0),"")))) -> Chave grifo de 24" | C25: Ud | D25: 1 | E25: =IF($G25="ORSE",VLOOKUP($H25,ORSE_INSUM!A:E,4,0),IF($G25="SINAPI",VLOOKUP($H25,SINAPI_INSUM!A:E,5,0),IF($G25="SEINFRA",VLOOKUP($H25,SEINFRA_INSUM!B:F,4,0),IF($G25="COTAÇÃO",VLOOKUP($H25,'COTAÇÃO - MAT_CONSUMO'!B:L,10,0),"")))) -> 59.34 | F25: 59.34 | G25: COTAÇÃO | H25: 14
A26: 1.1.2.17 | B26: =IF($G26="ORSE",VLOOKUP($H26,ORSE_INSUM!A:E,2,0),IF($G26="SINAPI",VLOOKUP($H26,SINAPI_INSUM!A:E,2,0),IF($G26="SEINFRA",VLOOKUP($H26,SEINFRA_INSUM!B:F,2,0),IF($G26="COTAÇÃO",VLOOKUP($H26,'COTAÇÃO - MAT_CONSUMO'!B:L,2,0),"")))) -> Chave grifo de 8" | C26: Ud | D26: 1 | E26: =IF($G26="ORSE",VLOOKUP($H26,ORSE_INSUM!A:E,4,0),IF($G26="SINAPI",VLOOKUP($H26,SINAPI_INSUM!A:E,5,0),IF($G26="SEINFRA",VLOOKUP($H26,SEINFRA_INSUM!B:F,4,0),IF($G26="COTAÇÃO",VLOOKUP($H26,'COTAÇÃO - MAT_CONSUMO'!B:L,10,0),"")))) -> 88.57 | F26: 88.57 | G26: COTAÇÃO | H26: 15
A27: 1.1.2.18 | B27: =IF($G27="ORSE",VLOOKUP($H27,ORSE_INSUM!A:E,2,0),IF($G27="SINAPI",VLOOKUP($H27,SINAPI_INSUM!A:E,2,0),IF($G27="SEINFRA",VLOOKUP($H27,SEINFRA_INSUM!B:F,2,0),IF($G27="COTAÇÃO",VLOOKUP($H27,'COTAÇÃO - MAT_CONSUMO'!B:L,2,0),"")))) -> Cinta de poliéster, 6 m, Cap. 8,0 Ton | C27: Ud | D27: 2 | E27: =IF($G27="ORSE",VLOOKUP($H27,ORSE_INSUM!A:E,4,0),IF($G27="SINAPI",VLOOKUP($H27,SINAPI_INSUM!A:E,5,0),IF($G27="SEINFRA",VLOOKUP($H27,SEINFRA_INSUM!B:F,4,0),IF($G27="COTAÇÃO",VLOOKUP($H27,'COTAÇÃO - MAT_CONSUMO'!B:L,10,0),"")))) -> 345.85 | F27: 691.7 | G27: COTAÇÃO | H27: 89
A28: 1.1.2.19 | B28: =IF($G28="ORSE",VLOOKUP($H28,ORSE_INSUM!A:E,2,0),IF($G28="SINAPI",VLOOKUP($H28,SINAPI_INSUM!A:E,2,0),IF($G28="SEINFRA",VLOOKUP($H28,SEINFRA_INSUM!B:F,2,0),IF($G28="COTAÇÃO",VLOOKUP($H28,'COTAÇÃO - MAT_CONSUMO'!B:L,2,0),"")))) -> COMPRESSOR DE AR, VAZAO DE 10 PCM, RESERVATORIO 100 L, PRESSAO DE TRABALHO ENTRE 6,9 E 9,7 BAR, POTENCIA 2 HP, TENSAO 110/220 V (COLETADO CAIXA) | C28: Ud | D28: 1 | E28: =IF($G28="ORSE",VLOOKUP($H28,ORSE_INSUM!A:E,4,0),IF($G28="SINAPI",VLOOKUP($H28,SINAPI_INSUM!A:E,5,0),IF($G28="SEINFRA",VLOOKUP($H28,SEINFRA_INSUM!B:F,4,0),IF($G28="COTAÇÃO",VLOOKUP($H28,'COTAÇÃO - MAT_CONSUMO'!B:L,10,0),"")))) -> 1.786,17 | F28: 1786.17 | G28: SINAPI | H28: 41991
A29: 1.1.2.20 | B29: Conjunto de ferramentas para eletrotécnico/eletrônico e eletricista | C29: Ud | D29: 1 | E29: =VLOOKUP(A29,'1.1.2A. Custo Conjuntos Ferr.'!A:F,6,0) -> 1638.52 | F29: =ROUND(E29*D29,2) -> 1638.52 | G29: COMPOSIÇÃO 1.1.2A
A30: 1.1.2.21 | B30: Conjunto de ferramentas para mecânico | C30: Ud | D30: 1 | E30: =VLOOKUP(A30,'1.1.2A. Custo Conjuntos Ferr.'!A:F,6,0) -> 1585.02 | F30: 1585.02 | G30: COMPOSIÇÃO 1.1.2A
A31: 1.1.2.22 | B31: Conjunto ferramentas básicas para encanador | C31: Ud | D31: 1 | E31: =VLOOKUP(A31,'1.1.2A. Custo Conjuntos Ferr.'!A:F,6,0) -> 1166.09 | F31: 1166.09 | G31: COMPOSIÇÃO 1.1.2A
A32: 1.1.2.23 | B32: =IF($G32="ORSE",VLOOKUP($H32,ORSE_INSUM!A:E,2,0),IF($G32="SINAPI",VLOOKUP($H32,SINAPI_INSUM!A:E,2,0),IF($G32="SEINFRA",VLOOKUP($H32,SEINFRA_INSUM!B:F,2,0),IF($G32="COTAÇÃO",VLOOKUP($H32,'COTAÇÃO - MAT_CONSUMO'!B:L,2,0),"")))) -> Década resistiva com passo de 01 ohm | C32: Ud | D32: 1 | E32: =IF($G32="ORSE",VLOOKUP($H32,ORSE_INSUM!A:E,4,0),IF($G32="SINAPI",VLOOKUP($H32,SINAPI_INSUM!A:E,5,0),IF($G32="SEINFRA",VLOOKUP($H32,SEINFRA_INSUM!B:F,4,0),IF($G32="COTAÇÃO",VLOOKUP($H32,'COTAÇÃO - MAT_CONSUMO'!B:L,10,0),"")))) -> 337 | F32: 337 | G32: COTAÇÃO | H32: 91
A33: 1.1.2.24 | B33: =IF($G33="ORSE",VLOOKUP($H33,ORSE_INSUM!A:E,2,0),IF($G33="SINAPI",VLOOKUP($H33,SINAPI_INSUM!A:E,2,0),IF($G33="SEINFRA",VLOOKUP($H33,SEINFRA_INSUM!B:F,2,0),IF($G33="COTAÇÃO",VLOOKUP($H33,'COTAÇÃO - MAT_CONSUMO'!B:L,2,0),"")))) -> Detector de Alta Tensão sem contato ezHv - Minipa | C33: Ud | D33: 1 | E33: =IF($G33="ORSE",VLOOKUP($H33,ORSE_INSUM!A:E,4,0),IF($G33="SINAPI",VLOOKUP($H33,SINAPI_INSUM!A:E,5,0),IF($G33="SEINFRA",VLOOKUP($H33,SEINFRA_INSUM!B:F,4,0),IF($G33="COTAÇÃO",VLOOKUP($H33,'COTAÇÃO - MAT_CONSUMO'!B:L,10,0),"")))) -> 1332.22 | F33: =ROUND(E33*D33,2) -> 1332.22 | G33: COTAÇÃO | H33: 70
A34: 1.1.2.25 | B34: =IF($G34="ORSE",VLOOKUP($H34,ORSE_INSUM!A:E,2,0),IF($G34="SINAPI",VLOOKUP($H34,SINAPI_INSUM!A:E,2,0),IF($G34="SEINFRA",VLOOKUP($H34,SEINFRA_INSUM!B:F,2,0),IF($G34="COTAÇÃO",VLOOKUP($H34,'COTAÇÃO - MAT_CONSUMO'!B:L,2,0),"")))) -> Escada de Alumínio Dobrável 6 Degraus | C34: Ud | D34: 1 | E34: =IF($G34="ORSE",VLOOKUP($H34,ORSE_INSUM!A:E,4,0),IF($G34="SINAPI",VLOOKUP($H34,SINAPI_INSUM!A:E,5,0),IF($G34="SEINFRA",VLOOKUP($H34,SEINFRA_INSUM!B:F,4,0),IF($G34="COTAÇÃO",VLOOKUP($H34,'COTAÇÃO - MAT_CONSUMO'!B:L,10,0),"")))) -> 110.78 | F34: 110.78 | G34: COTAÇÃO | H34: 92
A35: 1.1.2.26 | B35: =IF($G35="ORSE",VLOOKUP($H35,ORSE_INSUM!A:E,2,0),IF($G35="SINAPI",VLOOKUP($H35,SINAPI_INSUM!A:E,2,0),IF($G35="SEINFRA",VLOOKUP($H35,SEINFRA_INSUM!B:F,2,0),IF($G35="COTAÇÃO",VLOOKUP($H35,'COTAÇÃO - MAT_CONSUMO'!B:L,2,0),"")))) -> Escada extensivel em aluminio, 6 metros | C35: Ud | D35: 1 | E35: =IF($G35="ORSE",VLOOKUP($H35,ORSE_INSUM!A:E,4,0),IF($G35="SINAPI",VLOOKUP($H35,SINAPI_INSUM!A:E,5,0),IF($G35="SEINFRA",VLOOKUP($H35,SEINFRA_INSUM!B:F,4,0),IF($G35="COTAÇÃO",VLOOKUP($H35,'COTAÇÃO - MAT_CONSUMO'!B:L,10,0),"")))) -> 330.5 | F35: 330.5 | G35: COTAÇÃO | H35: 93
A36: 1.1.2.27 | B36: =IF($G36="ORSE",VLOOKUP($H36,ORSE_INSUM!A:E,2,0),IF($G36="SINAPI",VLOOKUP($H36,SINAPI_INSUM!A:E,2,0),IF($G36="SEINFRA",VLOOKUP($H36,SEINFRA_INSUM!B:F,2,0),IF($G36="COTAÇÃO",VLOOKUP($H36,'COTAÇÃO - MAT_CONSUMO'!B:L,2,0),"")))) -> ESMERILHADEIRA ANGULAR ELETRICA, DIAMETRO DO DISCO 7 '' (180 MM), ROTACAO 8500 RPM, POTENCIA 2400 W | C36: Ud | D36: 1 | E36: =IF($G36="ORSE",VLOOKUP($H36,ORSE_INSUM!A:E,4,0),IF($G36="SINAPI",VLOOKUP($H36,SINAPI_INSUM!A:E,5,0),IF($G36="SEINFRA",VLOOKUP($H36,SEINFRA_INSUM!B:F,4,0),IF($G36="COTAÇÃO",VLOOKUP($H36,'COTAÇÃO - MAT_CONSUMO'!B:L,10,0),"")))) -> 703,00 | F36: 703 | G36: SINAPI | H36: 11359
A37: 1.1.2.28 | B37: =IF($G37="ORSE",VLOOKUP($H37,ORSE_INSUM!A:E,2,0),IF($G37="SINAPI",VLOOKUP($H37,SINAPI_INSUM!A:E,2,0),IF($G37="SEINFRA",VLOOKUP($H37,SEINFRA_INSUM!B:F,2,0),IF($G37="COTAÇÃO",VLOOKUP($H37,'COTAÇÃO - MAT_CONSUMO'!B:L,2,0),"")))) -> ESMERILHADEIRA ANGULAR ELÉTRICO PORTÁTIL 4 1/2" - 1000 WATTS - REF. G1000KB2 BLACK E DECKER | C37: Ud | D37: 1 | E37: =IF($G37="ORSE",VLOOKUP($H37,ORSE_INSUM!A:E,4,0),IF($G37="SINAPI",VLOOKUP($H37,SINAPI_INSUM!A:E,5,0),IF($G37="SEINFRA",VLOOKUP($H37,SEINFRA_INSUM!B:F,4,0),IF($G37="COTAÇÃO",VLOOKUP($H37,'COTAÇÃO - MAT_CONSUMO'!B:L,10,0),"")))) -> 372.42 | F37: 372.42 | G37: ORSE | H37: 11282
A38: 1.1.2.29 | B38: =IF($G38="ORSE",VLOOKUP($H38,ORSE_INSUM!A:E,2,0),IF($G38="SINAPI",VLOOKUP($H38,SINAPI_INSUM!A:E,2,0),IF($G38="SEINFRA",VLOOKUP($H38,SEINFRA_INSUM!B:F,2,0),IF($G38="COTAÇÃO",VLOOKUP($H38,'COTAÇÃO - MAT_CONSUMO'!B:L,2,0),"")))) -> Estetoscópio Kent | C38: Ud | D38: 1 | E38: =IF($G38="ORSE",VLOOKUP($H38,ORSE_INSUM!A:E,4,0),IF($G38="SINAPI",VLOOKUP($H38,SINAPI_INSUM!A:E,5,0),IF($G38="SEINFRA",VLOOKUP($H38,SEINFRA_INSUM!B:F,4,0),IF($G38="COTAÇÃO",VLOOKUP($H38,'COTAÇÃO - MAT_CONSUMO'!B:L,10,0),"")))) -> 16.66 | F38: 16.66 | G38: COTAÇÃO | H38: 61
A39: 1.1.2.30 | B39: =IF($G39="ORSE",VLOOKUP($H39,ORSE_INSUM!A:E,2,0),IF($G39="SINAPI",VLOOKUP($H39,SINAPI_INSUM!A:E,2,0),IF($G39="SEINFRA",VLOOKUP($H39,SEINFRA_INSUM!B:F,2,0),IF($G39="COTAÇÃO",VLOOKUP($H39,'COTAÇÃO - MAT_CONSUMO'!B:L,2,0),"")))) -> EXTINTOR DE INCENDIO PORTATIL COM CARGA DE AGUA PRESSURIZADA DE 10 L, CLASSE A | C39: Ud | D39: 5 | E39: =IF($G39="ORSE",VLOOKUP($H39,ORSE_INSUM!A:E,4,0),IF($G39="SINAPI",VLOOKUP($H39,SINAPI_INSUM!A:E,5,0),IF($G39="SEINFRA",VLOOKUP($H39,SEINFRA_INSUM!B:F,4,0),IF($G39="COTAÇÃO",VLOOKUP($H39,'COTAÇÃO - MAT_CONSUMO'!B:L,10,0),"")))) -> 140,00 | F39: 700 | G39: SINAPI | H39: 10886
A40: 1.1.2.31 | B40: =IF($G40="ORSE",VLOOKUP($H40,ORSE_INSUM!A:E,2,0),IF($G40="SINAPI",VLOOKUP($H40,SINAPI_INSUM!A:E,2,0),IF($G40="SEINFRA",VLOOKUP($H40,SEINFRA_INSUM!B:F,2,0),IF($G40="COTAÇÃO",VLOOKUP($H40,'COTAÇÃO - MAT_CONSUMO'!B:L,2,0),"")))) -> EXTINTOR DE INCENDIO PORTATIL COM CARGA DE GAS CARBONICO CO2 DE 6 KG, CLASSE BC | C40: Ud | D40: 5 | E40: =IF($G40="ORSE",VLOOKUP($H40,ORSE_INSUM!A:E,4,0),IF($G40="SINAPI",VLOOKUP($H40,SINAPI_INSUM!A:E,5,0),IF($G40="SEINFRA",VLOOKUP($H40,SEINFRA_INSUM!B:F,4,0),IF($G40="COTAÇÃO",VLOOKUP($H40,'COTAÇÃO - MAT_CONSUMO'!B:L,10,0),"")))) -> 480,00 | F40: 2400 | G40: SINAPI | H40: 10889
A41: 1.1.2.32 | B41: =IF($G41="ORSE",VLOOKUP($H41,ORSE_INSUM!A:E,2,0),IF($G41="SINAPI",VLOOKUP($H41,SINAPI_INSUM!A:E,2,0),IF($G41="SEINFRA",VLOOKUP($H41,SEINFRA_INSUM!B:F,2,0),IF($G41="COTAÇÃO",VLOOKUP($H41,'COTAÇÃO - MAT_CONSUMO'!B:L,2,0),"")))) -> Fumigador p/ apicultura | C41: Ud | D41: 1 | E41: =IF($G41="ORSE",VLOOKUP($H41,ORSE_INSUM!A:E,4,0),IF($G41="SINAPI",VLOOKUP($H41,SINAPI_INSUM!A:E,5,0),IF($G41="SEINFRA",VLOOKUP($H41,SEINFRA_INSUM!B:F,4,0),IF($G41="COTAÇÃO",VLOOKUP($H41,'COTAÇÃO - MAT_CONSUMO'!B:L,10,0),"")))) -> 109 | F41: =ROUND(E41*D41,2) -> 109 | G41: COTAÇÃO | H41: 62
A42: 1.1.2.33 | B42: =IF($G42="ORSE",VLOOKUP($H42,ORSE_INSUM!A:E,2,0),IF($G42="SINAPI",VLOOKUP($H42,SINAPI_INSUM!A:E,2,0),IF($G42="SEINFRA",VLOOKUP($H42,SEINFRA_INSUM!B:F,2,0),IF($G42="COTAÇÃO",VLOOKUP($H42,'COTAÇÃO - MAT_CONSUMO'!B:L,2,0),"")))) -> FURADEIRA ELETRICA PROFISSIONAL | C42: Ud | D42: 1 | E42: =IF($G42="ORSE",VLOOKUP($H42,ORSE_INSUM!A:E,4,0),IF($G42="SINAPI",VLOOKUP($H42,SINAPI_INSUM!A:E,5,0),IF($G42="SEINFRA",VLOOKUP($H42,SEINFRA_INSUM!B:F,4,0),IF($G42="COTAÇÃO",VLOOKUP($H42,'COTAÇÃO - MAT_CONSUMO'!B:L,10,0),"")))) -> 227.9 | F42: 227.9 | G42: COTAÇÃO | H42: 158
A43: 1.1.2.34 | B43: =IF($G43="ORSE",VLOOKUP($H43,ORSE_INSUM!A:E,2,0),IF($G43="SINAPI",VLOOKUP($H43,SINAPI_INSUM!A:E,2,0),IF($G43="SEINFRA",VLOOKUP($H43,SEINFRA_INSUM!B:F,2,0),IF($G43="COTAÇÃO",VLOOKUP($H43,'COTAÇÃO - MAT_CONSUMO'!B:L,2,0),"")))) -> Furadeira/Parafusadeira a Bateria de Lítio 12V com 2 Baterias Bivolt | C43: Ud | D43: 1 | E43: =IF($G43="ORSE",VLOOKUP($H43,ORSE_INSUM!A:E,4,0),IF($G43="SINAPI",VLOOKUP($H43,SINAPI_INSUM!A:E,5,0),IF($G43="SEINFRA",VLOOKUP($H43,SEINFRA_INSUM!B:F,4,0),IF($G43="COTAÇÃO",VLOOKUP($H43,'COTAÇÃO - MAT_CONSUMO'!B:L,10,0),"")))) -> 253.05 | F43: 253.05 | G43: COTAÇÃO | H43: 96
A44: 1.1.2.35 | B44: =IF($G44="ORSE",VLOOKUP($H44,ORSE_INSUM!A:E,2,0),IF($G44="SINAPI",VLOOKUP($H44,SINAPI_INSUM!A:E,2,0),IF($G44="SEINFRA",VLOOKUP($H44,SEINFRA_INSUM!B:F,2,0),IF($G44="COTAÇÃO",VLOOKUP($H44,'COTAÇÃO - MAT_CONSUMO'!B:L,2,0),"")))) -> GERADOR PORTATIL MONOFASICO, POTENCIA 5500 VA, MOTOR A GASOLINA, POTENCIA DO MOTOR 13 CV | C44: Ud | D44: 1 | E44: =IF($G44="ORSE",VLOOKUP($H44,ORSE_INSUM!A:E,4,0),IF($G44="SINAPI",VLOOKUP($H44,SINAPI_INSUM!A:E,5,0),IF($G44="SEINFRA",VLOOKUP($H44,SEINFRA_INSUM!B:F,4,0),IF($G44="COTAÇÃO",VLOOKUP($H44,'COTAÇÃO - MAT_CONSUMO'!B:L,10,0),"")))) -> 3.594,35 | F44: 3594.35 | G44: SINAPI | H44: 36498
A45: 1.1.2.36 | B45: =IF($G45="ORSE",VLOOKUP($H45,ORSE_INSUM!A:E,2,0),IF($G45="SINAPI",VLOOKUP($H45,SINAPI_INSUM!A:E,2,0),IF($G45="SEINFRA",VLOOKUP($H45,SEINFRA_INSUM!B:F,2,0),IF($G45="COTAÇÃO",VLOOKUP($H45,'COTAÇÃO - MAT_CONSUMO'!B:L,2,0),"")))) -> Guincho girafa de 2 t com prolongador roda de ferro | C45: Ud | D45: 1 | E45: =IF($G45="ORSE",VLOOKUP($H45,ORSE_INSUM!A:E,4,0),IF($G45="SINAPI",VLOOKUP($H45,SINAPI_INSUM!A:E,5,0),IF($G45="SEINFRA",VLOOKUP($H45,SEINFRA_INSUM!B:F,4,0),IF($G45="COTAÇÃO",VLOOKUP($H45,'COTAÇÃO - MAT_CONSUMO'!B:L,10,0),"")))) -> 1999 | F45: 1999 | G45: COTAÇÃO | H45: 80
A46: 1.1.2.37 | B46: =IF($G46="ORSE",VLOOKUP($H46,ORSE_INSUM!A:E,2,0),IF($G46="SINAPI",VLOOKUP($H46,SINAPI_INSUM!A:E,2,0),IF($G46="SEINFRA",VLOOKUP($H46,SEINFRA_INSUM!B:F,2,0),IF($G46="COTAÇÃO",VLOOKUP($H46,'COTAÇÃO - MAT_CONSUMO'!B:L,2,0),"")))) -> Inversor de frequencia de onda senoidal pura, entrada 12VDC, saida 220VAC | C46: Ud | D46: 1 | E46: =IF($G46="ORSE",VLOOKUP($H46,ORSE_INSUM!A:E,4,0),IF($G46="SINAPI",VLOOKUP($H46,SINAPI_INSUM!A:E,5,0),IF($G46="SEINFRA",VLOOKUP($H46,SEINFRA_INSUM!B:F,4,0),IF($G46="COTAÇÃO",VLOOKUP($H46,'COTAÇÃO - MAT_CONSUMO'!B:L,10,0),"")))) -> 2929.5 | F46: 2929.5 | G46: COTAÇÃO | H46: 98
A47: 1.1.2.38 | B47: =IF($G47="ORSE",VLOOKUP($H47,ORSE_INSUM!A:E,2,0),IF($G47="SINAPI",VLOOKUP($H47,SINAPI_INSUM!A:E,2,0),IF($G47="SEINFRA",VLOOKUP($H47,SEINFRA_INSUM!B:F,2,0),IF($G47="COTAÇÃO",VLOOKUP($H47,'COTAÇÃO - MAT_CONSUMO'!B:L,2,0),"")))) -> Kit de acessorios para compressor de ar (pistola, mangueira, pulverizador, calibrador) | C47: Ud | D47: 1 | E47: =IF($G47="ORSE",VLOOKUP($H47,ORSE_INSUM!A:E,4,0),IF($G47="SINAPI",VLOOKUP($H47,SINAPI_INSUM!A:E,5,0),IF($G47="SEINFRA",VLOOKUP($H47,SEINFRA_INSUM!B:F,4,0),IF($G47="COTAÇÃO",VLOOKUP($H47,'COTAÇÃO - MAT_CONSUMO'!B:L,10,0),"")))) -> 89.9 | F47: 89.9 | G47: COTAÇÃO | H47: 107
A48: 1.1.2.39 | B48: =IF($G48="ORSE",VLOOKUP($H48,ORSE_INSUM!A:E,2,0),IF($G48="SINAPI",VLOOKUP($H48,SINAPI_INSUM!A:E,2,0),IF($G48="SEINFRA",VLOOKUP($H48,SEINFRA_INSUM!B:F,2,0),IF($G48="COTAÇÃO",VLOOKUP($H48,'COTAÇÃO - MAT_CONSUMO'!B:L,2,0),"")))) -> Máquina de solda de 250A - portátil | C48: Ud | D48: 1 | E48: =IF($G48="ORSE",VLOOKUP($H48,ORSE_INSUM!A:E,4,0),IF($G48="SINAPI",VLOOKUP($H48,SINAPI_INSUM!A:E,5,0),IF($G48="SEINFRA",VLOOKUP($H48,SEINFRA_INSUM!B:F,4,0),IF($G48="COTAÇÃO",VLOOKUP($H48,'COTAÇÃO - MAT_CONSUMO'!B:L,10,0),"")))) -> 388.9 | F48: 388.9 | G48: COTAÇÃO | H48: 102
A49: 1.1.2.40 | B49: =IF($G49="ORSE",VLOOKUP($H49,ORSE_INSUM!A:E,2,0),IF($G49="SINAPI",VLOOKUP($H49,SINAPI_INSUM!A:E,2,0),IF($G49="SEINFRA",VLOOKUP($H49,SEINFRA_INSUM!B:F,2,0),IF($G49="COTAÇÃO",VLOOKUP($H49,'COTAÇÃO - MAT_CONSUMO'!B:L,2,0),"")))) -> Máquina de solda de 425A - trifasica | C49: Ud | D49: 1 | E49: =IF($G49="ORSE",VLOOKUP($H49,ORSE_INSUM!A:E,4,0),IF($G49="SINAPI",VLOOKUP($H49,SINAPI_INSUM!A:E,5,0),IF($G49="SEINFRA",VLOOKUP($H49,SEINFRA_INSUM!B:F,4,0),IF($G49="COTAÇÃO",VLOOKUP($H49,'COTAÇÃO - MAT_CONSUMO'!B:L,10,0),"")))) -> 3099.9 | F49: 3099.9 | G49: COTAÇÃO | H49: 103
A50: 1.1.2.41 | B50: =IF($G50="ORSE",VLOOKUP($H50,ORSE_INSUM!A:E,2,0),IF($G50="SINAPI",VLOOKUP($H50,SINAPI_INSUM!A:E,2,0),IF($G50="SEINFRA",VLOOKUP($H50,SEINFRA_INSUM!B:F,2,0),IF($G50="COTAÇÃO",VLOOKUP($H50,'COTAÇÃO - MAT_CONSUMO'!B:L,2,0),"")))) -> Martelete Sds-Plus 820w 2,7 Kg Gbh 2-24d Perfurador Rompedor Bosch ou similar | C50: Ud | D50: 1 | E50: =IF($G50="ORSE",VLOOKUP($H50,ORSE_INSUM!A:E,4,0),IF($G50="SINAPI",VLOOKUP($H50,SINAPI_INSUM!A:E,5,0),IF($G50="SEINFRA",VLOOKUP($H50,SEINFRA_INSUM!B:F,4,0),IF($G50="COTAÇÃO",VLOOKUP($H50,'COTAÇÃO - MAT_CONSUMO'!B:L,10,0),"")))) -> 499.9 | F50: 499.9 | G50: COTAÇÃO | H50: 44
A51: 1.1.2.42 | B51: =IF($G51="ORSE",VLOOKUP($H51,ORSE_INSUM!A:E,2,0),IF($G51="SINAPI",VLOOKUP($H51,SINAPI_INSUM!A:E,2,0),IF($G51="SEINFRA",VLOOKUP($H51,SEINFRA_INSUM!B:F,2,0),IF($G51="COTAÇÃO",VLOOKUP($H51,'COTAÇÃO - MAT_CONSUMO'!B:L,2,0),"")))) -> Medidor Analisador Digital de Vibrações, intervalo de frequência de 10Hz a 1kHz - medição de acordo com a norma ISO 2954 - sensor de vibração e base magnética. Medição de aceleração, velocidade e deslocamento - rms, valor de pico - sáida RS 232 - display LCD com gráfico de barras (BARGRAPH) - memória interna para até 500 medições. | C51: Ud | D51: 1 | E51: =IF($G51="ORSE",VLOOKUP($H51,ORSE_INSUM!A:E,4,0),IF($G51="SINAPI",VLOOKUP($H51,SINAPI_INSUM!A:E,5,0),IF($G51="SEINFRA",VLOOKUP($H51,SEINFRA_INSUM!B:F,4,0),IF($G51="COTAÇÃO",VLOOKUP($H51,'COTAÇÃO - MAT_CONSUMO'!B:L,10,0),"")))) -> 3999.99 | F51: 3999.99 | G51: COTAÇÃO | H51: 81
A52: 1.1.2.43 | B52: =IF($G52="ORSE",VLOOKUP($H52,ORSE_INSUM!A:E,2,0),IF($G52="SINAPI",VLOOKUP($H52,SINAPI_INSUM!A:E,2,0),IF($G52="SEINFRA",VLOOKUP($H52,SEINFRA_INSUM!B:F,2,0),IF($G52="COTAÇÃO",VLOOKUP($H52,'COTAÇÃO - MAT_CONSUMO'!B:L,2,0),"")))) -> Megôhmetro digital portatil 750 -1000V/ 4000MOhm | C52: Ud | D52: 1 | E52: =IF($G52="ORSE",VLOOKUP($H52,ORSE_INSUM!A:E,4,0),IF($G52="SINAPI",VLOOKUP($H52,SINAPI_INSUM!A:E,5,0),IF($G52="SEINFRA",VLOOKUP($H52,SEINFRA_INSUM!B:F,4,0),IF($G52="COTAÇÃO",VLOOKUP($H52,'COTAÇÃO - MAT_CONSUMO'!B:L,10,0),"")))) -> 731 | F52: 731 | G52: COTAÇÃO | H52: 104
A53: 1.1.2.44 | B53: =IF($G53="ORSE",VLOOKUP($H53,ORSE_INSUM!A:E,2,0),IF($G53="SINAPI",VLOOKUP($H53,SINAPI_INSUM!A:E,2,0),IF($G53="SEINFRA",VLOOKUP($H53,SEINFRA_INSUM!B:F,2,0),IF($G53="COTAÇÃO",VLOOKUP($H53,'COTAÇÃO - MAT_CONSUMO'!B:L,2,0),"")))) -> Megôhmetroanalogico portatil 15000V / 4000MOhm | C53: Ud | D53: 1 | E53: =IF($G53="ORSE",VLOOKUP($H53,ORSE_INSUM!A:E,4,0),IF($G53="SINAPI",VLOOKUP($H53,SINAPI_INSUM!A:E,5,0),IF($G53="SEINFRA",VLOOKUP($H53,SEINFRA_INSUM!B:F,4,0),IF($G53="COTAÇÃO",VLOOKUP($H53,'COTAÇÃO - MAT_CONSUMO'!B:L,10,0),"")))) -> 13431.99 | F53: 13431.99 | G53: COTAÇÃO | H53: 105
A54: 1.1.2.45 | B54: =IF($G54="ORSE",VLOOKUP($H54,ORSE_INSUM!A:E,2,0),IF($G54="SINAPI",VLOOKUP($H54,SINAPI_INSUM!A:E,2,0),IF($G54="SEINFRA",VLOOKUP($H54,SEINFRA_INSUM!B:F,2,0),IF($G54="COTAÇÃO",VLOOKUP($H54,'COTAÇÃO - MAT_CONSUMO'!B:L,2,0),"")))) -> Micrômetro externo 100 - 125mm | C54: Ud | D54: 1 | E54: =IF($G54="ORSE",VLOOKUP($H54,ORSE_INSUM!A:E,4,0),IF($G54="SINAPI",VLOOKUP($H54,SINAPI_INSUM!A:E,5,0),IF($G54="SEINFRA",VLOOKUP($H54,SEINFRA_INSUM!B:F,4,0),IF($G54="COTAÇÃO",VLOOKUP($H54,'COTAÇÃO - MAT_CONSUMO'!B:L,10,0),"")))) -> 245 | F54: 245 | G54: COTAÇÃO | H54: 19
A55: 1.1.2.46 | B55: =IF($G55="ORSE",VLOOKUP($H55,ORSE_INSUM!A:E,2,0),IF($G55="SINAPI",VLOOKUP($H55,SINAPI_INSUM!A:E,2,0),IF($G55="SEINFRA",VLOOKUP($H55,SEINFRA_INSUM!B:F,2,0),IF($G55="COTAÇÃO",VLOOKUP($H55,'COTAÇÃO - MAT_CONSUMO'!B:L,2,0),"")))) -> Micrômetro externo 75 - 100 mm | C55: Ud | D55: 1 | E55: =IF($G55="ORSE",VLOOKUP($H55,ORSE_INSUM!A:E,4,0),IF($G55="SINAPI",VLOOKUP($H55,SINAPI_INSUM!A:E,5,0),IF($G55="SEINFRA",VLOOKUP($H55,SEINFRA_INSUM!B:F,4,0),IF($G55="COTAÇÃO",VLOOKUP($H55,'COTAÇÃO - MAT_CONSUMO'!B:L,10,0),"")))) -> 161.04 | F55: 161.04 | G55: COTAÇÃO | H55: 18
A56: 1.1.2.47 | B56: =IF($G56="ORSE",VLOOKUP($H56,ORSE_INSUM!A:E,2,0),IF($G56="SINAPI",VLOOKUP($H56,SINAPI_INSUM!A:E,2,0),IF($G56="SEINFRA",VLOOKUP($H56,SEINFRA_INSUM!B:F,2,0),IF($G56="COTAÇÃO",VLOOKUP($H56,'COTAÇÃO - MAT_CONSUMO'!B:L,2,0),"")))) -> Micrômetro interno 50 - 150mm | C56: Ud | D56: 1 | E56: =IF($G56="ORSE",VLOOKUP($H56,ORSE_INSUM!A:E,4,0),IF($G56="SINAPI",VLOOKUP($H56,SINAPI_INSUM!A:E,5,0),IF($G56="SEINFRA",VLOOKUP($H56,SEINFRA_INSUM!B:F,4,0),IF($G56="COTAÇÃO",VLOOKUP($H56,'COTAÇÃO - MAT_CONSUMO'!B:L,10,0),"")))) -> 683.63 | F56: 683.63 | G56: COTAÇÃO | H56: 106
A57: 1.1.2.48 | B57: =IF($G57="ORSE",VLOOKUP($H57,ORSE_INSUM!A:E,2,0),IF($G57="SINAPI",VLOOKUP($H57,SINAPI_INSUM!A:E,2,0),IF($G57="SEINFRA",VLOOKUP($H57,SEINFRA_INSUM!B:F,2,0),IF($G57="COTAÇÃO",VLOOKUP($H57,'COTAÇÃO - MAT_CONSUMO'!B:L,2,0),"")))) -> Morsa p/ bancada nº 02 | C57: Ud | D57: 1 | E57: =IF($G57="ORSE",VLOOKUP($H57,ORSE_INSUM!A:E,4,0),IF($G57="SINAPI",VLOOKUP($H57,SINAPI_INSUM!A:E,5,0),IF($G57="SEINFRA",VLOOKUP($H57,SEINFRA_INSUM!B:F,4,0),IF($G57="COTAÇÃO",VLOOKUP($H57,'COTAÇÃO - MAT_CONSUMO'!B:L,10,0),"")))) -> 56.34 | F57: 56.34 | G57: COTAÇÃO | H57: 1001
A58: 1.1.2.49 | B58: =IF($G58="ORSE",VLOOKUP($H58,ORSE_INSUM!A:E,2,0),IF($G58="SINAPI",VLOOKUP($H58,SINAPI_INSUM!A:E,2,0),IF($G58="SEINFRA",VLOOKUP($H58,SEINFRA_INSUM!B:F,2,0),IF($G58="COTAÇÃO",VLOOKUP($H58,'COTAÇÃO - MAT_CONSUMO'!B:L,2,0),"")))) -> Morsa p/ bancada nº 08 | C58: Ud | D58: 1 | E58: =IF($G58="ORSE",VLOOKUP($H58,ORSE_INSUM!A:E,4,0),IF($G58="SINAPI",VLOOKUP($H58,SINAPI_INSUM!A:E,5,0),IF($G58="SEINFRA",VLOOKUP($H58,SEINFRA_INSUM!B:F,4,0),IF($G58="COTAÇÃO",VLOOKUP($H58,'COTAÇÃO - MAT_CONSUMO'!B:L,10,0),"")))) -> 49.9 | F58: 49.9 | G58: COTAÇÃO | H58: 751
A59: 1.1.2.50 | B59: =IF($G59="ORSE",VLOOKUP($H59,ORSE_INSUM!A:E,2,0),IF($G59="SINAPI",VLOOKUP($H59,SINAPI_INSUM!A:E,2,0),IF($G59="SEINFRA",VLOOKUP($H59,SEINFRA_INSUM!B:F,2,0),IF($G59="COTAÇÃO",VLOOKUP($H59,'COTAÇÃO - MAT_CONSUMO'!B:L,2,0),"")))) -> MOTOBOMBA AUTOESCORVANTE MOTOR A GASOLINA, POTENCIA 6,0HP, BOCAIS 3" X 3", HM/Q = 5 MCA / 24 M3/H A 52,5 MCA / 5,0 M3/H | C59: Ud | D59: 1 | E59: =IF($G59="ORSE",VLOOKUP($H59,ORSE_INSUM!A:E,4,0),IF($G59="SINAPI",VLOOKUP($H59,SINAPI_INSUM!A:E,5,0),IF($G59="SEINFRA",VLOOKUP($H59,SEINFRA_INSUM!B:F,4,0),IF($G59="COTAÇÃO",VLOOKUP($H59,'COTAÇÃO - MAT_CONSUMO'!B:L,10,0),"")))) -> 1.671,48 | F59: 1671.48 | G59: SINAPI | H59: 14252
A60: 1.1.2.51 | B60: =IF($G60="ORSE",VLOOKUP($H60,ORSE_INSUM!A:E,2,0),IF($G60="SINAPI",VLOOKUP($H60,SINAPI_INSUM!A:E,2,0),IF($G60="SEINFRA",VLOOKUP($H60,SEINFRA_INSUM!B:F,2,0),IF($G60="COTAÇÃO",VLOOKUP($H60,'COTAÇÃO - MAT_CONSUMO'!B:L,2,0),"")))) -> Motoesmeril de 1cv - 3.500 RPM | C60: Ud | D60: 1 | E60: =IF($G60="ORSE",VLOOKUP($H60,ORSE_INSUM!A:E,4,0),IF($G60="SINAPI",VLOOKUP($H60,SINAPI_INSUM!A:E,5,0),IF($G60="SEINFRA",VLOOKUP($H60,SEINFRA_INSUM!B:F,4,0),IF($G60="COTAÇÃO",VLOOKUP($H60,'COTAÇÃO - MAT_CONSUMO'!B:L,10,0),"")))) -> 629 | F60: 629 | G60: COTAÇÃO | H60: 78
A61: 1.1.2.52 | B61: =IF($G61="ORSE",VLOOKUP($H61,ORSE_INSUM!A:E,2,0),IF($G61="SINAPI",VLOOKUP($H61,SINAPI_INSUM!A:E,2,0),IF($G61="SEINFRA",VLOOKUP($H61,SEINFRA_INSUM!B:F,2,0),IF($G61="COTAÇÃO",VLOOKUP($H61,'COTAÇÃO - MAT_CONSUMO'!B:L,2,0),"")))) -> Motosserra portatil 62cc, a gasolina | C61: Ud | D61: 1 | E61: =IF($G61="ORSE",VLOOKUP($H61,ORSE_INSUM!A:E,4,0),IF($G61="SINAPI",VLOOKUP($H61,SINAPI_INSUM!A:E,5,0),IF($G61="SEINFRA",VLOOKUP($H61,SEINFRA_INSUM!B:F,4,0),IF($G61="COTAÇÃO",VLOOKUP($H61,'COTAÇÃO - MAT_CONSUMO'!B:L,10,0),"")))) -> 809.9 | F61: 809.9 | G61: COTAÇÃO | H61: 111
A62: 1.1.2.53 | B62: =IF($G62="ORSE",VLOOKUP($H62,ORSE_INSUM!A:E,2,0),IF($G62="SINAPI",VLOOKUP($H62,SINAPI_INSUM!A:E,2,0),IF($G62="SEINFRA",VLOOKUP($H62,SEINFRA_INSUM!B:F,2,0),IF($G62="COTAÇÃO",VLOOKUP($H62,'COTAÇÃO - MAT_CONSUMO'!B:L,2,0),"")))) -> Multiteste digital, medição de tensão, corrente, resistência, capacitância, frequencia | C62: Ud | D62: 2 | E62: =IF($G62="ORSE",VLOOKUP($H62,ORSE_INSUM!A:E,4,0),IF($G62="SINAPI",VLOOKUP($H62,SINAPI_INSUM!A:E,5,0),IF($G62="SEINFRA",VLOOKUP($H62,SEINFRA_INSUM!B:F,4,0),IF($G62="COTAÇÃO",VLOOKUP($H62,'COTAÇÃO - MAT_CONSUMO'!B:L,10,0),"")))) -> 107.63 | F62: 215.26 | G62: COTAÇÃO | H62: 178
A63: 1.1.2.54 | B63: =IF($G63="ORSE",VLOOKUP($H63,ORSE_INSUM!A:E,2,0),IF($G63="SINAPI",VLOOKUP($H63,SINAPI_INSUM!A:E,2,0),IF($G63="SEINFRA",VLOOKUP($H63,SEINFRA_INSUM!B:F,2,0),IF($G63="COTAÇÃO",VLOOKUP($H63,'COTAÇÃO - MAT_CONSUMO'!B:L,2,0),"")))) -> Paquímetro universal 0 - 200mm/0,02mm | C63: Ud | D63: 1 | E63: =IF($G63="ORSE",VLOOKUP($H63,ORSE_INSUM!A:E,4,0),IF($G63="SINAPI",VLOOKUP($H63,SINAPI_INSUM!A:E,5,0),IF($G63="SEINFRA",VLOOKUP($H63,SEINFRA_INSUM!B:F,4,0),IF($G63="COTAÇÃO",VLOOKUP($H63,'COTAÇÃO - MAT_CONSUMO'!B:L,10,0),"")))) -> 203.99 | F63: 203.99 | G63: COTAÇÃO | H63: 77
A64: 1.1.2.55 | B64: =IF($G64="ORSE",VLOOKUP($H64,ORSE_INSUM!A:E,2,0),IF($G64="SINAPI",VLOOKUP($H64,SINAPI_INSUM!A:E,2,0),IF($G64="SEINFRA",VLOOKUP($H64,SEINFRA_INSUM!B:F,2,0),IF($G64="COTAÇÃO",VLOOKUP($H64,'COTAÇÃO - MAT_CONSUMO'!B:L,2,0),"")))) -> Prensa Hidráulica 15 Ton. | C64: Ud | D64: 1 | E64: =IF($G64="ORSE",VLOOKUP($H64,ORSE_INSUM!A:E,4,0),IF($G64="SINAPI",VLOOKUP($H64,SINAPI_INSUM!A:E,5,0),IF($G64="SEINFRA",VLOOKUP($H64,SEINFRA_INSUM!B:F,4,0),IF($G64="COTAÇÃO",VLOOKUP($H64,'COTAÇÃO - MAT_CONSUMO'!B:L,10,0),"")))) -> 725.21 | F64: 725.21 | G64: COTAÇÃO | H64: 1000
A65: 1.1.2.56 | B65: =IF($G65="ORSE",VLOOKUP($H65,ORSE_INSUM!A:E,2,0),IF($G65="SINAPI",VLOOKUP($H65,SINAPI_INSUM!A:E,2,0),IF($G65="SEINFRA",VLOOKUP($H65,SEINFRA_INSUM!B:F,2,0),IF($G65="COTAÇÃO",VLOOKUP($H65,'COTAÇÃO - MAT_CONSUMO'!B:L,2,0),"")))) -> Pulverizador costal 20 l | C65: Ud | D65: 1 | E65: =IF($G65="ORSE",VLOOKUP($H65,ORSE_INSUM!A:E,4,0),IF($G65="SINAPI",VLOOKUP($H65,SINAPI_INSUM!A:E,5,0),IF($G65="SEINFRA",VLOOKUP($H65,SEINFRA_INSUM!B:F,4,0),IF($G65="COTAÇÃO",VLOOKUP($H65,'COTAÇÃO - MAT_CONSUMO'!B:L,10,0),"")))) -> 609.99 | F65: 609.99 | G65: COTAÇÃO | H65: 79
A66: 1.1.2.57 | B66: =IF($G66="ORSE",VLOOKUP($H66,ORSE_INSUM!A:E,2,0),IF($G66="SINAPI",VLOOKUP($H66,SINAPI_INSUM!A:E,2,0),IF($G66="SEINFRA",VLOOKUP($H66,SEINFRA_INSUM!B:F,2,0),IF($G66="COTAÇÃO",VLOOKUP($H66,'COTAÇÃO - MAT_CONSUMO'!B:L,2,0),"")))) -> Relógio Comparador 0-10/0,01mm | C66: Ud | D66: 1 | E66: =IF($G66="ORSE",VLOOKUP($H66,ORSE_INSUM!A:E,4,0),IF($G66="SINAPI",VLOOKUP($H66,SINAPI_INSUM!A:E,5,0),IF($G66="SEINFRA",VLOOKUP($H66,SEINFRA_INSUM!B:F,4,0),IF($G66="COTAÇÃO",VLOOKUP($H66,'COTAÇÃO - MAT_CONSUMO'!B:L,10,0),"")))) -> 109.99 | F66: 109.99 | G66: COTAÇÃO | H66: 230
A67: 1.1.2.58 | B67: =IF($G67="ORSE",VLOOKUP($H67,ORSE_INSUM!A:E,2,0),IF($G67="SINAPI",VLOOKUP($H67,SINAPI_INSUM!A:E,2,0),IF($G67="SEINFRA",VLOOKUP($H67,SEINFRA_INSUM!B:F,2,0),IF($G67="COTAÇÃO",VLOOKUP($H67,'COTAÇÃO - MAT_CONSUMO'!B:L,2,0),"")))) -> Relógio Termo-Higrômetro (minipa) | C67: Ud | D67: 1 | E67: =IF($G67="ORSE",VLOOKUP($H67,ORSE_INSUM!A:E,4,0),IF($G67="SINAPI",VLOOKUP($H67,SINAPI_INSUM!A:E,5,0),IF($G67="SEINFRA",VLOOKUP($H67,SEINFRA_INSUM!B:F,4,0),IF($G67="COTAÇÃO",VLOOKUP($H67,'COTAÇÃO - MAT_CONSUMO'!B:L,10,0),"")))) -> 136.96 | F67: =ROUND(E67*D67,2) -> 136.96 | G67: COTAÇÃO | H67: 755
A68: 1.1.2.59 | B68: =IF($G68="ORSE",VLOOKUP($H68,ORSE_INSUM!A:E,2,0),IF($G68="SINAPI",VLOOKUP($H68,SINAPI_INSUM!A:E,2,0),IF($G68="SEINFRA",VLOOKUP($H68,SEINFRA_INSUM!B:F,2,0),IF($G68="COTAÇÃO",VLOOKUP($H68,'COTAÇÃO - MAT_CONSUMO'!B:L,2,0),"")))) -> Saca polia 3 garras com acionamento hidráulico, cap. 20 Ton | C68: Ud | D68: 1 | E68: =IF($G68="ORSE",VLOOKUP($H68,ORSE_INSUM!A:E,4,0),IF($G68="SINAPI",VLOOKUP($H68,SINAPI_INSUM!A:E,5,0),IF($G68="SEINFRA",VLOOKUP($H68,SEINFRA_INSUM!B:F,4,0),IF($G68="COTAÇÃO",VLOOKUP($H68,'COTAÇÃO - MAT_CONSUMO'!B:L,10,0),"")))) -> 1471.32 | F68: 1471.32 | G68: COTAÇÃO | H68: 790
A69: 1.1.2.60 | B69: =IF($G69="ORSE",VLOOKUP($H69,ORSE_INSUM!A:E,2,0),IF($G69="SINAPI",VLOOKUP($H69,SINAPI_INSUM!A:E,2,0),IF($G69="SEINFRA",VLOOKUP($H69,SEINFRA_INSUM!B:F,2,0),IF($G69="COTAÇÃO",VLOOKUP($H69,'COTAÇÃO - MAT_CONSUMO'!B:L,2,0),"")))) -> Saca polias 3 garras deslizante 120mm | C69: Ud | D69: 1 | E69: =IF($G69="ORSE",VLOOKUP($H69,ORSE_INSUM!A:E,4,0),IF($G69="SINAPI",VLOOKUP($H69,SINAPI_INSUM!A:E,5,0),IF($G69="SEINFRA",VLOOKUP($H69,SEINFRA_INSUM!B:F,4,0),IF($G69="COTAÇÃO",VLOOKUP($H69,'COTAÇÃO - MAT_CONSUMO'!B:L,10,0),"")))) -> 236.9 | F69: 236.9 | G69: COTAÇÃO | H69: 133
A70: 1.1.2.61 | B70: =IF($G70="ORSE",VLOOKUP($H70,ORSE_INSUM!A:E,2,0),IF($G70="SINAPI",VLOOKUP($H70,SINAPI_INSUM!A:E,2,0),IF($G70="SEINFRA",VLOOKUP($H70,SEINFRA_INSUM!B:F,2,0),IF($G70="COTAÇÃO",VLOOKUP($H70,'COTAÇÃO - MAT_CONSUMO'!B:L,2,0),"")))) -> Saca polias 3 garras deslizante 300mm | C70: Ud | D70: 1 | E70: =IF($G70="ORSE",VLOOKUP($H70,ORSE_INSUM!A:E,4,0),IF($G70="SINAPI",VLOOKUP($H70,SINAPI_INSUM!A:E,5,0),IF($G70="SEINFRA",VLOOKUP($H70,SEINFRA_INSUM!B:F,4,0),IF($G70="COTAÇÃO",VLOOKUP($H70,'COTAÇÃO - MAT_CONSUMO'!B:L,10,0),"")))) -> 949.9 | F70: 949.9 | G70: COTAÇÃO | H70: 134
A71: 1.1.2.62 | B71: =IF($G71="ORSE",VLOOKUP($H71,ORSE_INSUM!A:E,2,0),IF($G71="SINAPI",VLOOKUP($H71,SINAPI_INSUM!A:E,2,0),IF($G71="SEINFRA",VLOOKUP($H71,SEINFRA_INSUM!B:F,2,0),IF($G71="COTAÇÃO",VLOOKUP($H71,'COTAÇÃO - MAT_CONSUMO'!B:L,2,0),"")))) -> Saca ponteiros para manometro | C71: Ud | D71: 1 | E71: =IF($G71="ORSE",VLOOKUP($H71,ORSE_INSUM!A:E,4,0),IF($G71="SINAPI",VLOOKUP($H71,SINAPI_INSUM!A:E,5,0),IF($G71="SEINFRA",VLOOKUP($H71,SEINFRA_INSUM!B:F,4,0),IF($G71="COTAÇÃO",VLOOKUP($H71,'COTAÇÃO - MAT_CONSUMO'!B:L,10,0),"")))) -> 30.7 | F71: 30.7 | G71: COTAÇÃO | H71: 126
A72: 1.1.2.63 | B72: =IF($G72="ORSE",VLOOKUP($H72,ORSE_INSUM!A:E,2,0),IF($G72="SINAPI",VLOOKUP($H72,SINAPI_INSUM!A:E,2,0),IF($G72="SEINFRA",VLOOKUP($H72,SEINFRA_INSUM!B:F,2,0),IF($G72="COTAÇÃO",VLOOKUP($H72,'COTAÇÃO - MAT_CONSUMO'!B:L,2,0),"")))) -> Soprador Termico 2000w 220v | C72: Ud | D72: 1 | E72: =IF($G72="ORSE",VLOOKUP($H72,ORSE_INSUM!A:E,4,0),IF($G72="SINAPI",VLOOKUP($H72,SINAPI_INSUM!A:E,5,0),IF($G72="SEINFRA",VLOOKUP($H72,SEINFRA_INSUM!B:F,4,0),IF($G72="COTAÇÃO",VLOOKUP($H72,'COTAÇÃO - MAT_CONSUMO'!B:L,10,0),"")))) -> 229.9 | F72: 229.9 | G72: COTAÇÃO | H72: 125
A73: 1.1.2.64 | B73: =IF($G73="ORSE",VLOOKUP($H73,ORSE_INSUM!A:E,2,0),IF($G73="SINAPI",VLOOKUP($H73,SINAPI_INSUM!A:E,2,0),IF($G73="SEINFRA",VLOOKUP($H73,SEINFRA_INSUM!B:F,2,0),IF($G73="COTAÇÃO",VLOOKUP($H73,'COTAÇÃO - MAT_CONSUMO'!B:L,2,0),"")))) -> Tacômetro digital sem contato, Faixa: 5 ~ 10.000 RPM | C73: Ud | D73: 1 | E73: =IF($G73="ORSE",VLOOKUP($H73,ORSE_INSUM!A:E,4,0),IF($G73="SINAPI",VLOOKUP($H73,SINAPI_INSUM!A:E,5,0),IF($G73="SEINFRA",VLOOKUP($H73,SEINFRA_INSUM!B:F,4,0),IF($G73="COTAÇÃO",VLOOKUP($H73,'COTAÇÃO - MAT_CONSUMO'!B:L,10,0),"")))) -> 729.83 | F73: 729.83 | G73: COTAÇÃO | H73: 150
A74: 1.1.2.65 | B74: =IF($G74="ORSE",VLOOKUP($H74,ORSE_INSUM!A:E,2,0),IF($G74="SINAPI",VLOOKUP($H74,SINAPI_INSUM!A:E,2,0),IF($G74="SEINFRA",VLOOKUP($H74,SEINFRA_INSUM!B:F,2,0),IF($G74="COTAÇÃO",VLOOKUP($H74,'COTAÇÃO - MAT_CONSUMO'!B:L,2,0),"")))) -> Termômetro Digital Infravermelho com Mira a Laser -50 a 800°C MINIPA-MT350A | C74: Ud | D74: 1 | E74: =IF($G74="ORSE",VLOOKUP($H74,ORSE_INSUM!A:E,4,0),IF($G74="SINAPI",VLOOKUP($H74,SINAPI_INSUM!A:E,5,0),IF($G74="SEINFRA",VLOOKUP($H74,SEINFRA_INSUM!B:F,4,0),IF($G74="COTAÇÃO",VLOOKUP($H74,'COTAÇÃO - MAT_CONSUMO'!B:L,10,0),"")))) -> 99.9 | F74: 99.9 | G74: COTAÇÃO | H74: 123
A75: 1.1.2.66 | B75: =IF($G75="ORSE",VLOOKUP($H75,ORSE_INSUM!A:E,2,0),IF($G75="SINAPI",VLOOKUP($H75,SINAPI_INSUM!A:E,2,0),IF($G75="SEINFRA",VLOOKUP($H75,SEINFRA_INSUM!B:F,2,0),IF($G75="COTAÇÃO",VLOOKUP($H75,'COTAÇÃO - MAT_CONSUMO'!B:L,2,0),"")))) -> Termovisor com Field of view - FOV 25° x 25° - REF. FLIR E06 | C75: Ud | D75: 1 | E75: =IF($G75="ORSE",VLOOKUP($H75,ORSE_INSUM!A:E,4,0),IF($G75="SINAPI",VLOOKUP($H75,SINAPI_INSUM!A:E,5,0),IF($G75="SEINFRA",VLOOKUP($H75,SEINFRA_INSUM!B:F,4,0),IF($G75="COTAÇÃO",VLOOKUP($H75,'COTAÇÃO - MAT_CONSUMO'!B:L,10,0),"")))) -> 10159.95 | F75: 10159.95 | G75: COTAÇÃO | H75: 124
A76: 1.1.2.67 | B76: =IF($G76="ORSE",VLOOKUP($H76,ORSE_INSUM!A:E,2,0),IF($G76="SINAPI",VLOOKUP($H76,SINAPI_INSUM!A:E,2,0),IF($G76="SEINFRA",VLOOKUP($H76,SEINFRA_INSUM!B:F,2,0),IF($G76="COTAÇÃO",VLOOKUP($H76,'COTAÇÃO - MAT_CONSUMO'!B:L,2,0),"")))) -> Terrometro digital | C76: Ud | D76: 1 | E76: =IF($G76="ORSE",VLOOKUP($H76,ORSE_INSUM!A:E,4,0),IF($G76="SINAPI",VLOOKUP($H76,SINAPI_INSUM!A:E,5,0),IF($G76="SEINFRA",VLOOKUP($H76,SEINFRA_INSUM!B:F,4,0),IF($G76="COTAÇÃO",VLOOKUP($H76,'COTAÇÃO - MAT_CONSUMO'!B:L,10,0),"")))) -> 1121 | F76: 1121 | G76: COTAÇÃO | H76: 121
A77: 1.1.2.68 | B77: =IF($G77="ORSE",VLOOKUP($H77,ORSE_INSUM!A:E,2,0),IF($G77="SINAPI",VLOOKUP($H77,SINAPI_INSUM!A:E,2,0),IF($G77="SEINFRA",VLOOKUP($H77,SEINFRA_INSUM!B:F,2,0),IF($G77="COTAÇÃO",VLOOKUP($H77,'COTAÇÃO - MAT_CONSUMO'!B:L,2,0),"")))) -> Teste de bateria, analogico ou micropocessado, para testes em baterias de 200A | C77: Ud | D77: 1 | E77: =IF($G77="ORSE",VLOOKUP($H77,ORSE_INSUM!A:E,4,0),IF($G77="SINAPI",VLOOKUP($H77,SINAPI_INSUM!A:E,5,0),IF($G77="SEINFRA",VLOOKUP($H77,SEINFRA_INSUM!B:F,4,0),IF($G77="COTAÇÃO",VLOOKUP($H77,'COTAÇÃO - MAT_CONSUMO'!B:L,10,0),"")))) -> 999.89 | F77: 999.89 | G77: COTAÇÃO | H77: 110
A78: 1.1.2.69 | B78: =IF($G78="ORSE",VLOOKUP($H78,ORSE_INSUM!A:E,2,0),IF($G78="SINAPI",VLOOKUP($H78,SINAPI_INSUM!A:E,2,0),IF($G78="SEINFRA",VLOOKUP($H78,SEINFRA_INSUM!B:F,2,0),IF($G78="COTAÇÃO",VLOOKUP($H78,'COTAÇÃO - MAT_CONSUMO'!B:L,2,0),"")))) -> Torquímetro de Estalo, Industrial, com Encaixe de 1/2 Pol. 40 - 200 Nm | C78: Ud | D78: 1 | E78: =IF($G78="ORSE",VLOOKUP($H78,ORSE_INSUM!A:E,4,0),IF($G78="SINAPI",VLOOKUP($H78,SINAPI_INSUM!A:E,5,0),IF($G78="SEINFRA",VLOOKUP($H78,SEINFRA_INSUM!B:F,4,0),IF($G78="COTAÇÃO",VLOOKUP($H78,'COTAÇÃO - MAT_CONSUMO'!B:L,10,0),"")))) -> 1136.49 | F78: 1136.49 | G78: COTAÇÃO | H78: 122
A79: 1.1.2.70 | B79: =IF($G79="ORSE",VLOOKUP($H79,ORSE_INSUM!A:E,2,0),IF($G79="SINAPI",VLOOKUP($H79,SINAPI_INSUM!A:E,2,0),IF($G79="SEINFRA",VLOOKUP($H79,SEINFRA_INSUM!B:F,2,0),IF($G79="COTAÇÃO",VLOOKUP($H79,'COTAÇÃO - MAT_CONSUMO'!B:L,2,0),"")))) -> Vara de Manobra - telescopica ou 5 elementos | C79: Ud | D79: 1 | E79: =IF($G79="ORSE",VLOOKUP($H79,ORSE_INSUM!A:E,4,0),IF($G79="SINAPI",VLOOKUP($H79,SINAPI_INSUM!A:E,5,0),IF($G79="SEINFRA",VLOOKUP($H79,SEINFRA_INSUM!B:F,4,0),IF($G79="COTAÇÃO",VLOOKUP($H79,'COTAÇÃO - MAT_CONSUMO'!B:L,10,0),"")))) -> 775 | F79: 775 | G79: COTAÇÃO | H79: 86
A81: TOTAL | F81: =SUM(F10:F80) -> 112011.38
A82: BDI DE FORNECIMENTO | E82: ='BDI - FORNECIMENTOS'!$C$31 -> 0.109 | F82: =ROUND(F81*E82,2) -> 12209.24
A83: TOTAL COM BDI DE FORNECIMENTO | F83: =F81*'BDI - FORNECIMENTOS'!C31+F81 -> 124220.62

Sheet 1.1.2A. Custo Conjuntos Ferr.
A1: * CONJUNTO DE FERRAMENTAS PARA ELETROTÉCNICO/ELETRÔNICO/ELETRICISTA
H2: REF. JUL/18
A3: Item | B3: DESCRIÇÃO | C3: UNID. | D3: QUANT. | E3: VALOR | G3: REF.TAB. | H3: Cód. TAB.
E4: UNIT. (R$) | F4: TOTAL (R$)
A6: 1.1.2.20.1 | B6: =IF($G6="ORSE",VLOOKUP($H6,ORSE_INSUM!A:E,2,0),IF($G6="SINAPI",VLOOKUP($H6,SINAPI_INSUM!A:E,2,0),IF($G6="SEINFRA",VLOOKUP($H6,SEINFRA_INSUM!B:F,2,0),IF($G6="COTAÇÃO",VLOOKUP($H6,'COTAÇÃO - MAT_CONSUMO'!B:L,2,0),"")))) -> Alicate de bico reto 6 1/2" | C6: Ud | D6: 1 | E6: =IF($G6="ORSE",VLOOKUP($H6,ORSE_INSUM!A:E,4,0),IF($G6="SINAPI",VLOOKUP($H6,SINAPI_INSUM!A:E,5,0),IF($G6="SEINFRA",VLOOKUP($H6,SEINFRA_INSUM!B:F,4,0),IF($G6="COTAÇÃO",VLOOKUP($H6,'COTAÇÃO - MAT_CONSUMO'!B:L,10,0),"")))) -> 56.67 | F6: =ROUND(E6*D6,2) -> 56.67 | G6: COTAÇÃO | H6: 56
A7: 1.1.2.20.2 | B7: =IF($G7="ORSE",VLOOKUP($H7,ORSE_INSUM!A:E,2,0),IF($G7="SINAPI",VLOOKUP($H7,SINAPI_INSUM!A:E,2,0),IF($G7="SEINFRA",VLOOKUP($H7,SEINFRA_INSUM!B:F,2,0),IF($G7="COTAÇÃO",VLOOKUP($H7,'COTAÇÃO - MAT_CONSUMO'!B:L,2,0),"")))) -> ALICATE DIAGONAL PARA CORTE RENTE 5" A 8" | C7: Ud | D7: 1 | E7: =IF($G7="ORSE",VLOOKUP($H7,ORSE_INSUM!A:E,4,0),IF($G7="SINAPI",VLOOKUP($H7,SINAPI_INSUM!A:E,5,0),IF($G7="SEINFRA",VLOOKUP($H7,SEINFRA_INSUM!B:F,4,0),IF($G7="COTAÇÃO",VLOOKUP($H7,'COTAÇÃO - MAT_CONSUMO'!B:L,10,0),"")))) -> 24.5 | F7: 24.5 | G7: ORSE | H7: 11278
A8: 1.1.2.20.3 | B8: =IF($G8="ORSE",VLOOKUP($H8,ORSE_INSUM!A:E,2,0),IF($G8="SINAPI",VLOOKUP($H8,SINAPI_INSUM!A:E,2,0),IF($G8="SEINFRA",VLOOKUP($H8,SEINFRA_INSUM!B:F,2,0),IF($G8="COTAÇÃO",VLOOKUP($H8,'COTAÇÃO - MAT_CONSUMO'!B:L,2,0),"")))) -> ALICATE DE PRESSÃO 11" | C8: Ud | D8: 1 | E8: =IF($G8="ORSE",VLOOKUP($H8,ORSE_INSUM!A:E,4,0),IF($G8="SINAPI",VLOOKUP($H8,SINAPI_INSUM!A:E,5,0),IF($G8="SEINFRA",VLOOKUP($H8,SEINFRA_INSUM!B:F,4,0),IF($G8="COTAÇÃO",VLOOKUP($H8,'COTAÇÃO - MAT_CONSUMO'!B:L,10,0),"")))) -> 15.79 | F8: 15.79 | G8: ORSE | H8: 11275
A9: 1.1.2.20.4 | B9: =IF($G9="ORSE",VLOOKUP($H9,ORSE_INSUM!A:E,2,0),IF($G9="SINAPI",VLOOKUP($H9,SINAPI_INSUM!A:E,2,0),IF($G9="SEINFRA",VLOOKUP($H9,SEINFRA_INSUM!B:F,2,0),IF($G9="COTAÇÃO",VLOOKUP($H9,'COTAÇÃO - MAT_CONSUMO'!B:L,2,0),"")))) -> Alicate prensa terminal hidráulico | C9: Ud | D9: 1 | E9: =IF($G9="ORSE",VLOOKUP($H9,ORSE_INSUM!A:E,4,0),IF($G9="SINAPI",VLOOKUP($H9,SINAPI_INSUM!A:E,5,0),IF($G9="SEINFRA",VLOOKUP($H9,SEINFRA_INSUM!B:F,4,0),IF($G9="COTAÇÃO",VLOOKUP($H9,'COTAÇÃO - MAT_CONSUMO'!B:L,10,0),"")))) -> 398 | F9: 398 | G9: COTAÇÃO | H9: 66
A10: 1.1.2.20.5 | B10: =IF($G10="ORSE",VLOOKUP($H10,ORSE_INSUM!A:E,2,0),IF($G10="SINAPI",VLOOKUP($H10,SINAPI_INSUM!A:E,2,0),IF($G10="SEINFRA",VLOOKUP($H10,SEINFRA_INSUM!B:F,2,0),IF($G10="COTAÇÃO",VLOOKUP($H10,'COTAÇÃO - MAT_CONSUMO'!B:L,2,0),"")))) -> Alicate universal 8" | C10: Ud | D10: 1 | E10: =IF($G10="ORSE",VLOOKUP($H10,ORSE_INSUM!A:E,4,0),IF($G10="SINAPI",VLOOKUP($H10,SINAPI_INSUM!A:E,5,0),IF($G10="SEINFRA",VLOOKUP($H10,SEINFRA_INSUM!B:F,4,0),IF($G10="COTAÇÃO",VLOOKUP($H10,'COTAÇÃO - MAT_CONSUMO'!B:L,10,0),"")))) -> 22 | F10: 22 | G10: COTAÇÃO | H10: 39
A11: 1.1.2.20.6 | B11: =IF($G11="ORSE",VLOOKUP($H11,ORSE_INSUM!A:E,2,0),IF($G11="SINAPI",VLOOKUP($H11,SINAPI_INSUM!A:E,2,0),IF($G11="SEINFRA",VLOOKUP($H11,SEINFRA_INSUM!B:F,2,0),IF($G11="COTAÇÃO",VLOOKUP($H11,'COTAÇÃO - MAT_CONSUMO'!B:L,2,0),"")))) -> Caixa sanfonada com cinco gavetas | C11: Ud | D11: 1 | E11: =IF($G11="ORSE",VLOOKUP($H11,ORSE_INSUM!A:E,4,0),IF($G11="SINAPI",VLOOKUP($H11,SINAPI_INSUM!A:E,5,0),IF($G11="SEINFRA",VLOOKUP($H11,SEINFRA_INSUM!B:F,4,0),IF($G11="COTAÇÃO",VLOOKUP($H11,'COTAÇÃO - MAT_CONSUMO'!B:L,10,0),"")))) -> 75.25 | F11: 75.25 | G11: COTAÇÃO | H11: 42
A12: 1.1.2.20.7 | B12: =IF($G12="ORSE",VLOOKUP($H12,ORSE_INSUM!A:E,2,0),IF($G12="SINAPI",VLOOKUP($H12,SINAPI_INSUM!A:E,2,0),IF($G12="SEINFRA",VLOOKUP($H12,SEINFRA_INSUM!B:F,2,0),IF($G12="COTAÇÃO",VLOOKUP($H12,'COTAÇÃO - MAT_CONSUMO'!B:L,2,0),"")))) -> Chave ajustável 12" | C12: Ud | D12: 1 | E12: =IF($G12="ORSE",VLOOKUP($H12,ORSE_INSUM!A:E,4,0),IF($G12="SINAPI",VLOOKUP($H12,SINAPI_INSUM!A:E,5,0),IF($G12="SEINFRA",VLOOKUP($H12,SEINFRA_INSUM!B:F,4,0),IF($G12="COTAÇÃO",VLOOKUP($H12,'COTAÇÃO - MAT_CONSUMO'!B:L,10,0),"")))) -> 52.99 | F12: 52.99 | G12: COTAÇÃO | H12: 20
A13: 1.1.2.20.8 | B13: =IF($G13="ORSE",VLOOKUP($H13,ORSE_INSUM!A:E,2,0),IF($G13="SINAPI",VLOOKUP($H13,SINAPI_INSUM!A:E,2,0),IF($G13="SEINFRA",VLOOKUP($H13,SEINFRA_INSUM!B:F,2,0),IF($G13="COTAÇÃO",VLOOKUP($H13,'COTAÇÃO - MAT_CONSUMO'!B:L,2,0),"")))) -> Chave ajustável 8" | C13: Ud | D13: 1 | E13: =IF($G13="ORSE",VLOOKUP($H13,ORSE_INSUM!A:E,4,0),IF($G13="SINAPI",VLOOKUP($H13,SINAPI_INSUM!A:E,5,0),IF($G13="SEINFRA",VLOOKUP($H13,SEINFRA_INSUM!B:F,4,0),IF($G13="COTAÇÃO",VLOOKUP($H13,'COTAÇÃO - MAT_CONSUMO'!B:L,10,0),"")))) -> 36.99 | F13: 36.99 | G13: COTAÇÃO | H13: 21
A14: 1.1.2.20.9 | B14: =IF($G14="ORSE",VLOOKUP($H14,ORSE_INSUM!A:E,2,0),IF($G14="SINAPI",VLOOKUP($H14,SINAPI_INSUM!A:E,2,0),IF($G14="SEINFRA",VLOOKUP($H14,SEINFRA_INSUM!B:F,2,0),IF($G14="COTAÇÃO",VLOOKUP($H14,'COTAÇÃO - MAT_CONSUMO'!B:L,2,0),"")))) -> Chave allen 1/4" | C14: Ud | D14: 1 | E14: =IF($G14="ORSE",VLOOKUP($H14,ORSE_INSUM!A:E,4,0),IF($G14="SINAPI",VLOOKUP($H14,SINAPI_INSUM!A:E,5,0),IF($G14="SEINFRA",VLOOKUP($H14,SEINFRA_INSUM!B:F,4,0),IF($G14="COTAÇÃO",VLOOKUP($H14,'COTAÇÃO - MAT_CONSUMO'!B:L,10,0),"")))) -> 3.2 | F14: 3.2 | G14: COTAÇÃO | H14: 22
A15: 1.1.2.20.10 | B15: =IF($G15="ORSE",VLOOKUP($H15,ORSE_INSUM!A:E,2,0),IF($G15="SINAPI",VLOOKUP($H15,SINAPI_INSUM!A:E,2,0),IF($G15="SEINFRA",VLOOKUP($H15,SEINFRA_INSUM!B:F,2,0),IF($G15="COTAÇÃO",VLOOKUP($H15,'COTAÇÃO - MAT_CONSUMO'!B:L,2,0),"")))) -> Chave allen 1/8" | C15: Ud | D15: 1 | E15: =IF($G15="ORSE",VLOOKUP($H15,ORSE_INSUM!A:E,4,0),IF($G15="SINAPI",VLOOKUP($H15,SINAPI_INSUM!A:E,5,0),IF($G15="SEINFRA",VLOOKUP($H15,SEINFRA_INSUM!B:F,4,0),IF($G15="COTAÇÃO",VLOOKUP($H15,'COTAÇÃO - MAT_CONSUMO'!B:L,10,0),"")))) -> 1.98 | F15: 1.98 | G15: COTAÇÃO | H15: 23
A16: 1.1.2.20.11 | B16: =IF($G16="ORSE",VLOOKUP($H16,ORSE_INSUM!A:E,2,0),IF($G16="SINAPI",VLOOKUP($H16,SINAPI_INSUM!A:E,2,0),IF($G16="SEINFRA",VLOOKUP($H16,SEINFRA_INSUM!B:F,2,0),IF($G16="COTAÇÃO",VLOOKUP($H16,'COTAÇÃO - MAT_CONSUMO'!B:L,2,0),"")))) -> Chave allen 3/16" | C16: Ud | D16: 1 | E16: =IF($G16="ORSE",VLOOKUP($H16,ORSE_INSUM!A:E,4,0),IF($G16="SINAPI",VLOOKUP($H16,SINAPI_INSUM!A:E,5,0),IF($G16="SEINFRA",VLOOKUP($H16,SEINFRA_INSUM!B:F,4,0),IF($G16="COTAÇÃO",VLOOKUP($H16,'COTAÇÃO - MAT_CONSUMO'!B:L,10,0),"")))) -> 2.96 | F16: 2.96 | G16: COTAÇÃO | H16: 24
A17: 1.1.2.20.12 | B17: =IF($G17="ORSE",VLOOKUP($H17,ORSE_INSUM!A:E,2,0),IF($G17="SINAPI",VLOOKUP($H17,SINAPI_INSUM!A:E,2,0),IF($G17="SEINFRA",VLOOKUP($H17,SEINFRA_INSUM!B:F,2,0),IF($G17="COTAÇÃO",VLOOKUP($H17,'COTAÇÃO - MAT_CONSUMO'!B:L,2,0),"")))) -> Chave allen 3/8" | C17: Ud | D17: 1 | E17: =IF($G17="ORSE",VLOOKUP($H17,ORSE_INSUM!A:E,4,0),IF($G17="SINAPI",VLOOKUP($H17,SINAPI_INSUM!A:E,5,0),IF($G17="SEINFRA",VLOOKUP($H17,SEINFRA_INSUM!B:F,4,0),IF($G17="COTAÇÃO",VLOOKUP($H17,'COTAÇÃO - MAT_CONSUMO'!B:L,10,0),"")))) -> 6.6 | F17: 6.6 | G17: COTAÇÃO | H17: 25
A18: 1.1.2.20.13 | B18: =IF($G18="ORSE",VLOOKUP($H18,ORSE_INSUM!A:E,2,0),IF($G18="SINAPI",VLOOKUP($H18,SINAPI_INSUM!A:E,2,0),IF($G18="SEINFRA",VLOOKUP($H18,SEINFRA_INSUM!B:F,2,0),IF($G18="COTAÇÃO",VLOOKUP($H18,'COTAÇÃO - MAT_CONSUMO'!B:L,2,0),"")))) -> Chave allen 5/16" | C18: Ud | D18: 1 | E18: =IF($G18="ORSE",VLOOKUP($H18,ORSE_INSUM!A:E,4,0),IF($G18="SINAPI",VLOOKUP($H18,SINAPI_INSUM!A:E,5,0),IF($G18="SEINFRA",VLOOKUP($H18,SEINFRA_INSUM!B:F,4,0),IF($G18="COTAÇÃO",VLOOKUP($H18,'COTAÇÃO - MAT_CONSUMO'!B:L,10,0),"")))) -> 5.9 | F18: 5.9 | G18: COTAÇÃO | H18: 26
A19: 1.1.2.20.14 | B19: =IF($G19="ORSE",VLOOKUP($H19,ORSE_INSUM!A:E,2,0),IF($G19="SINAPI",VLOOKUP($H19,SINAPI_INSUM!A:E,2,0),IF($G19="SEINFRA",VLOOKUP($H19,SEINFRA_INSUM!B:F,2,0),IF($G19="COTAÇÃO",VLOOKUP($H19,'COTAÇÃO - MAT_CONSUMO'!B:L,2,0),"")))) -> Chave allen 5/32" | C19: Ud | D19: 1 | E19: =IF($G19="ORSE",VLOOKUP($H19,ORSE_INSUM!A:E,4,0),IF($G19="SINAPI",VLOOKUP($H19,SINAPI_INSUM!A:E,5,0),IF($G19="SEINFRA",VLOOKUP($H19,SEINFRA_INSUM!B:F,4,0),IF($G19="COTAÇÃO",VLOOKUP($H19,'COTAÇÃO - MAT_CONSUMO'!B:L,10,0),"")))) -> 2.58 | F19: 2.58 | G19: COTAÇÃO | H19: 27
A20: 1.1.2.20.15 | B20: =IF($G20="ORSE",VLOOKUP($H20,ORSE_INSUM!A:E,2,0),IF($G20="SINAPI",VLOOKUP($H20,SINAPI_INSUM!A:E,2,0),IF($G20="SEINFRA",VLOOKUP($H20,SEINFRA_INSUM!B:F,2,0),IF($G20="COTAÇÃO",VLOOKUP($H20,'COTAÇÃO - MAT_CONSUMO'!B:L,2,0),"")))) -> Jogo de Chave Estrela 6 a 22mm | C20: Ud | D20: 1 | E20: =IF($G20="ORSE",VLOOKUP($H20,ORSE_INSUM!A:E,4,0),IF($G20="SINAPI",VLOOKUP($H20,SINAPI_INSUM!A:E,5,0),IF($G20="SEINFRA",VLOOKUP($H20,SEINFRA_INSUM!B:F,4,0),IF($G20="COTAÇÃO",VLOOKUP($H20,'COTAÇÃO - MAT_CONSUMO'!B:L,10,0),"")))) -> 109.99 | F20: 109.99 | G20: COTAÇÃO | H20: 28
A21: 1.1.2.20.16 | B21: =IF($G21="ORSE",VLOOKUP($H21,ORSE_INSUM!A:E,2,0),IF($G21="SINAPI",VLOOKUP($H21,SINAPI_INSUM!A:E,2,0),IF($G21="SEINFRA",VLOOKUP($H21,SEINFRA_INSUM!B:F,2,0),IF($G21="COTAÇÃO",VLOOKUP($H21,'COTAÇÃO - MAT_CONSUMO'!B:L,2,0),"")))) -> Chave de fenda 1/4" x 5" | C21: Ud | D21: 1 | E21: =IF($G21="ORSE",VLOOKUP($H21,ORSE_INSUM!A:E,4,0),IF($G21="SINAPI",VLOOKUP($H21,SINAPI_INSUM!A:E,5,0),IF($G21="SEINFRA",VLOOKUP($H21,SEINFRA_INSUM!B:F,4,0),IF($G21="COTAÇÃO",VLOOKUP($H21,'COTAÇÃO - MAT_CONSUMO'!B:L,10,0),"")))) -> 9.89 | F21: 9.89 | G21: COTAÇÃO | H21: 29
A22: 1.1.2.20.17 | B22: =IF($G22="ORSE",VLOOKUP($H22,ORSE_INSUM!A:E,2,0),IF($G22="SINAPI",VLOOKUP($H22,SINAPI_INSUM!A:E,2,0),IF($G22="SEINFRA",VLOOKUP($H22,SEINFRA_INSUM!B:F,2,0),IF($G22="COTAÇÃO",VLOOKUP($H22,'COTAÇÃO - MAT_CONSUMO'!B:L,2,0),"")))) -> CHAVE DE FENDA 1/8" X 5" | C22: Ud | D22: 1 | E22: =IF($G22="ORSE",VLOOKUP($H22,ORSE_INSUM!A:E,4,0),IF($G22="SINAPI",VLOOKUP($H22,SINAPI_INSUM!A:E,5,0),IF($G22="SEINFRA",VLOOKUP($H22,SEINFRA_INSUM!B:F,4,0),IF($G22="COTAÇÃO",VLOOKUP($H22,'COTAÇÃO - MAT_CONSUMO'!B:L,10,0),"")))) -> 3.09 | F22: 3.09 | G22: ORSE | H22: 11468
A23: 1.1.2.20.18 | B23: =IF($G23="ORSE",VLOOKUP($H23,ORSE_INSUM!A:E,2,0),IF($G23="SINAPI",VLOOKUP($H23,SINAPI_INSUM!A:E,2,0),IF($G23="SEINFRA",VLOOKUP($H23,SEINFRA_INSUM!B:F,2,0),IF($G23="COTAÇÃO",VLOOKUP($H23,'COTAÇÃO - MAT_CONSUMO'!B:L,2,0),"")))) -> Chave de fenda 3/16" x 5" | C23: Ud | D23: 1 | E23: =IF($G23="ORSE",VLOOKUP($H23,ORSE_INSUM!A:E,4,0),IF($G23="SINAPI",VLOOKUP($H23,SINAPI_INSUM!A:E,5,0),IF($G23="SEINFRA",VLOOKUP($H23,SEINFRA_INSUM!B:F,4,0),IF($G23="COTAÇÃO",VLOOKUP($H23,'COTAÇÃO - MAT_CONSUMO'!B:L,10,0),"")))) -> 6.69 | F23: 6.69 | G23: COTAÇÃO | H23: 31
A24: 1.1.2.20.19 | B24: =IF($G24="ORSE",VLOOKUP($H24,ORSE_INSUM!A:E,2,0),IF($G24="SINAPI",VLOOKUP($H24,SINAPI_INSUM!A:E,2,0),IF($G24="SEINFRA",VLOOKUP($H24,SEINFRA_INSUM!B:F,2,0),IF($G24="COTAÇÃO",VLOOKUP($H24,'COTAÇÃO - MAT_CONSUMO'!B:L,2,0),"")))) -> Chave de fenda 3/8" x 10" | C24: Ud | D24: 1 | E24: =IF($G24="ORSE",VLOOKUP($H24,ORSE_INSUM!A:E,4,0),IF($G24="SINAPI",VLOOKUP($H24,SINAPI_INSUM!A:E,5,0),IF($G24="SEINFRA",VLOOKUP($H24,SEINFRA_INSUM!B:F,4,0),IF($G24="COTAÇÃO",VLOOKUP($H24,'COTAÇÃO - MAT_CONSUMO'!B:L,10,0),"")))) -> 17.74 | F24: 17.74 | G24: COTAÇÃO | H24: 32
A25: 1.1.2.20.20 | B25: =IF($G25="ORSE",VLOOKUP($H25,ORSE_INSUM!A:E,2,0),IF($G25="SINAPI",VLOOKUP($H25,SINAPI_INSUM!A:E,2,0),IF($G25="SEINFRA",VLOOKUP($H25,SEINFRA_INSUM!B:F,2,0),IF($G25="COTAÇÃO",VLOOKUP($H25,'COTAÇÃO - MAT_CONSUMO'!B:L,2,0),"")))) -> Chave de fenda 5/16" x 10" | C25: Ud | D25: 1 | E25: =IF($G25="ORSE",VLOOKUP($H25,ORSE_INSUM!A:E,4,0),IF($G25="SINAPI",VLOOKUP($H25,SINAPI_INSUM!A:E,5,0),IF($G25="SEINFRA",VLOOKUP($H25,SEINFRA_INSUM!B:F,4,0),IF($G25="COTAÇÃO",VLOOKUP($H25,'COTAÇÃO - MAT_CONSUMO'!B:L,10,0),"")))) -> 12.55 | F25: 12.55 | G25: COTAÇÃO | H25: 33
A26: 1.1.2.20.21 | B26: =IF($G26="ORSE",VLOOKUP($H26,ORSE_INSUM!A:E,2,0),IF($G26="SINAPI",VLOOKUP($H26,SINAPI_INSUM!A:E,2,0),IF($G26="SEINFRA",VLOOKUP($H26,SEINFRA_INSUM!B:F,2,0),IF($G26="COTAÇÃO",VLOOKUP($H26,'COTAÇÃO - MAT_CONSUMO'!B:L,2,0),"")))) -> Chave de fenda simples "tipo toco" 3/16" | C26: Ud | D26: 1 | E26: =IF($G26="ORSE",VLOOKUP($H26,ORSE_INSUM!A:E,4,0),IF($G26="SINAPI",VLOOKUP($H26,SINAPI_INSUM!A:E,5,0),IF($G26="SEINFRA",VLOOKUP($H26,SEINFRA_INSUM!B:F,4,0),IF($G26="COTAÇÃO",VLOOKUP($H26,'COTAÇÃO - MAT_CONSUMO'!B:L,10,0),"")))) -> 6.52 | F26: 6.52 | G26: COTAÇÃO | H26: 34
A27: 1.1.2.20.22 | B27: =IF($G27="ORSE",VLOOKUP($H27,ORSE_INSUM!A:E,2,0),IF($G27="SINAPI",VLOOKUP($H27,SINAPI_INSUM!A:E,2,0),IF($G27="SEINFRA",VLOOKUP($H27,SEINFRA_INSUM!B:F,2,0),IF($G27="COTAÇÃO",VLOOKUP($H27,'COTAÇÃO - MAT_CONSUMO'!B:L,2,0),"")))) -> Chave de fenda teste (chave neon) | C27: Ud | D27: 1 | E27: =IF($G27="ORSE",VLOOKUP($H27,ORSE_INSUM!A:E,4,0),IF($G27="SINAPI",VLOOKUP($H27,SINAPI_INSUM!A:E,5,0),IF($G27="SEINFRA",VLOOKUP($H27,SEINFRA_INSUM!B:F,4,0),IF($G27="COTAÇÃO",VLOOKUP($H27,'COTAÇÃO - MAT_CONSUMO'!B:L,10,0),"")))) -> 12.7 | F27: 12.7 | G27: COTAÇÃO | H27: 64
A28: 1.1.2.20.23 | B28: =IF($G28="ORSE",VLOOKUP($H28,ORSE_INSUM!A:E,2,0),IF($G28="SINAPI",VLOOKUP($H28,SINAPI_INSUM!A:E,2,0),IF($G28="SEINFRA",VLOOKUP($H28,SEINFRA_INSUM!B:F,2,0),IF($G28="COTAÇÃO",VLOOKUP($H28,'COTAÇÃO - MAT_CONSUMO'!B:L,2,0),"")))) -> Chave de precisão tipo relojoeiro c/6 peças | C28: Ud | D28: 1 | E28: =IF($G28="ORSE",VLOOKUP($H28,ORSE_INSUM!A:E,4,0),IF($G28="SINAPI",VLOOKUP($H28,SINAPI_INSUM!A:E,5,0),IF($G28="SEINFRA",VLOOKUP($H28,SEINFRA_INSUM!B:F,4,0),IF($G28="COTAÇÃO",VLOOKUP($H28,'COTAÇÃO - MAT_CONSUMO'!B:L,10,0),"")))) -> 11.49 | F28: 11.49 | G28: COTAÇÃO | H28: 65
A29: 1.1.2.20.24 | B29: =IF($G29="ORSE",VLOOKUP($H29,ORSE_INSUM!A:E,2,0),IF($G29="SINAPI",VLOOKUP($H29,SINAPI_INSUM!A:E,2,0),IF($G29="SEINFRA",VLOOKUP($H29,SEINFRA_INSUM!B:F,2,0),IF($G29="COTAÇÃO",VLOOKUP($H29,'COTAÇÃO - MAT_CONSUMO'!B:L,2,0),"")))) -> Chave Torx T10 (cabo plástico) | C29: Ud | D29: 1 | E29: =IF($G29="ORSE",VLOOKUP($H29,ORSE_INSUM!A:E,4,0),IF($G29="SINAPI",VLOOKUP($H29,SINAPI_INSUM!A:E,5,0),IF($G29="SEINFRA",VLOOKUP($H29,SEINFRA_INSUM!B:F,4,0),IF($G29="COTAÇÃO",VLOOKUP($H29,'COTAÇÃO - MAT_CONSUMO'!B:L,10,0),"")))) -> 8.14 | F29: 8.14 | G29: COTAÇÃO | H29: 40
A30: 1.1.2.20.25 | B30: =IF($G30="ORSE",VLOOKUP($H30,ORSE_INSUM!A:E,2,0),IF($G30="SINAPI",VLOOKUP($H30,SINAPI_INSUM!A:E,2,0),IF($G30="SEINFRA",VLOOKUP($H30,SEINFRA_INSUM!B:F,2,0),IF($G30="COTAÇÃO",VLOOKUP($H30,'COTAÇÃO - MAT_CONSUMO'!B:L,2,0),"")))) -> Chave Torx T15 (cabo plástico) | C30: Ud | D30: 1 | E30: =IF($G30="ORSE",VLOOKUP($H30,ORSE_INSUM!A:E,4,0),IF($G30="SINAPI",VLOOKUP($H30,SINAPI_INSUM!A:E,5,0),IF($G30="SEINFRA",VLOOKUP($H30,SEINFRA_INSUM!B:F,4,0),IF($G30="COTAÇÃO",VLOOKUP($H30,'COTAÇÃO - MAT_CONSUMO'!B:L,10,0),"")))) -> 5.54 | F30: 5.54 | G30: COTAÇÃO | H30: 63
A31: 1.1.2.20.26 | B31: =IF($G31="ORSE",VLOOKUP($H31,ORSE_INSUM!A:E,2,0),IF($G31="SINAPI",VLOOKUP($H31,SINAPI_INSUM!A:E,2,0),IF($G31="SEINFRA",VLOOKUP($H31,SEINFRA_INSUM!B:F,2,0),IF($G31="COTAÇÃO",VLOOKUP($H31,'COTAÇÃO - MAT_CONSUMO'!B:L,2,0),"")))) -> Chave Torx T20 (cabo plástico) | C31: Ud | D31: 1 | E31: =IF($G31="ORSE",VLOOKUP($H31,ORSE_INSUM!A:E,4,0),IF($G31="SINAPI",VLOOKUP($H31,SINAPI_INSUM!A:E,5,0),IF($G31="SEINFRA",VLOOKUP($H31,SEINFRA_INSUM!B:F,4,0),IF($G31="COTAÇÃO",VLOOKUP($H31,'COTAÇÃO - MAT_CONSUMO'!B:L,10,0),"")))) -> 13.32 | F31: 13.32 | G31: COTAÇÃO | H31: 171
A32: 1.1.2.20.27 | B32: =IF($G32="ORSE",VLOOKUP($H32,ORSE_INSUM!A:E,2,0),IF($G32="SINAPI",VLOOKUP($H32,SINAPI_INSUM!A:E,2,0),IF($G32="SEINFRA",VLOOKUP($H32,SEINFRA_INSUM!B:F,2,0),IF($G32="COTAÇÃO",VLOOKUP($H32,'COTAÇÃO - MAT_CONSUMO'!B:L,2,0),"")))) -> Chave Torx T25 (cabo plástico) | C32: Ud | D32: 1 | E32: =IF($G32="ORSE",VLOOKUP($H32,ORSE_INSUM!A:E,4,0),IF($G32="SINAPI",VLOOKUP($H32,SINAPI_INSUM!A:E,5,0),IF($G32="SEINFRA",VLOOKUP($H32,SEINFRA_INSUM!B:F,4,0),IF($G32="COTAÇÃO",VLOOKUP($H32,'COTAÇÃO - MAT_CONSUMO'!B:L,10,0),"")))) -> 10.32 | F32: 10.32 | G32: COTAÇÃO | H32: 172
A33: 1.1.2.20.28 | B33: =IF($G33="ORSE",VLOOKUP($H33,ORSE_INSUM!A:E,2,0),IF($G33="SINAPI",VLOOKUP($H33,SINAPI_INSUM!A:E,2,0),IF($G33="SEINFRA",VLOOKUP($H33,SEINFRA_INSUM!B:F,2,0),IF($G33="COTAÇÃO",VLOOKUP($H33,'COTAÇÃO - MAT_CONSUMO'!B:L,2,0),"")))) -> Chave Torx T27 (cabo plástico) | C33: Ud | D33: 1 | E33: =IF($G33="ORSE",VLOOKUP($H33,ORSE_INSUM!A:E,4,0),IF($G33="SINAPI",VLOOKUP($H33,SINAPI_INSUM!A:E,5,0),IF($G33="SEINFRA",VLOOKUP($H33,SEINFRA_INSUM!B:F,4,0),IF($G33="COTAÇÃO",VLOOKUP($H33,'COTAÇÃO - MAT_CONSUMO'!B:L,10,0),"")))) -> 12.69 | F33: 12.69 | G33: COTAÇÃO | H33: 173
A34: 1.1.2.20.29 | B34: =IF($G34="ORSE",VLOOKUP($H34,ORSE_INSUM!A:E,2,0),IF($G34="SINAPI",VLOOKUP($H34,SINAPI_INSUM!A:E,2,0),IF($G34="SEINFRA",VLOOKUP($H34,SEINFRA_INSUM!B:F,2,0),IF($G34="COTAÇÃO",VLOOKUP($H34,'COTAÇÃO - MAT_CONSUMO'!B:L,2,0),"")))) -> Chave Torx T30 (cabo plástico) | C34: Ud | D34: 1 | E34: =IF($G34="ORSE",VLOOKUP($H34,ORSE_INSUM!A:E,4,0),IF($G34="SINAPI",VLOOKUP($H34,SINAPI_INSUM!A:E,5,0),IF($G34="SEINFRA",VLOOKUP($H34,SEINFRA_INSUM!B:F,4,0),IF($G34="COTAÇÃO",VLOOKUP($H34,'COTAÇÃO - MAT_CONSUMO'!B:L,10,0),"")))) -> 18.78 | F34: 18.78 | G34: COTAÇÃO | H34: 174
A35: 1.1.2.20.30 | B35: =IF($G35="ORSE",VLOOKUP($H35,ORSE_INSUM!A:E,2,0),IF($G35="SINAPI",VLOOKUP($H35,SINAPI_INSUM!A:E,2,0),IF($G35="SEINFRA",VLOOKUP($H35,SEINFRA_INSUM!B:F,2,0),IF($G35="COTAÇÃO",VLOOKUP($H35,'COTAÇÃO - MAT_CONSUMO'!B:L,2,0),"")))) -> Ferro de solda 220V 60W | C35: Ud | D35: 1 | E35: =IF($G35="ORSE",VLOOKUP($H35,ORSE_INSUM!A:E,4,0),IF($G35="SINAPI",VLOOKUP($H35,SINAPI_INSUM!A:E,5,0),IF($G35="SEINFRA",VLOOKUP($H35,SEINFRA_INSUM!B:F,4,0),IF($G35="COTAÇÃO",VLOOKUP($H35,'COTAÇÃO - MAT_CONSUMO'!B:L,10,0),"")))) -> 22.83 | F35: 22.83 | G35: COTAÇÃO | H35: 68
A36: 1.1.2.20.31 | B36: =IF($G36="ORSE",VLOOKUP($H36,ORSE_INSUM!A:E,2,0),IF($G36="SINAPI",VLOOKUP($H36,SINAPI_INSUM!A:E,2,0),IF($G36="SEINFRA",VLOOKUP($H36,SEINFRA_INSUM!B:F,2,0),IF($G36="COTAÇÃO",VLOOKUP($H36,'COTAÇÃO - MAT_CONSUMO'!B:L,2,0),"")))) -> Jogo de chaves combinadas de 6, 7, 8, 10,11,12, 13, 14, 17, 19, 22, 24, 27, 30 e 32 | C36: Ud | D36: 1 | E36: =IF($G36="ORSE",VLOOKUP($H36,ORSE_INSUM!A:E,4,0),IF($G36="SINAPI",VLOOKUP($H36,SINAPI_INSUM!A:E,5,0),IF($G36="SEINFRA",VLOOKUP($H36,SEINFRA_INSUM!B:F,4,0),IF($G36="COTAÇÃO",VLOOKUP($H36,'COTAÇÃO - MAT_CONSUMO'!B:L,10,0),"")))) -> 329.9 | F36: 329.9 | G36: COTAÇÃO | H36: 30
A37: 1.1.2.20.32 | B37: =IF($G37="ORSE",VLOOKUP($H37,ORSE_INSUM!A:E,2,0),IF($G37="SINAPI",VLOOKUP($H37,SINAPI_INSUM!A:E,2,0),IF($G37="SEINFRA",VLOOKUP($H37,SEINFRA_INSUM!B:F,2,0),IF($G37="COTAÇÃO",VLOOKUP($H37,'COTAÇÃO - MAT_CONSUMO'!B:L,2,0),"")))) -> MARTELO DE BORRACHA COM CABO | C37: Ud | D37: 1 | E37: =IF($G37="ORSE",VLOOKUP($H37,ORSE_INSUM!A:E,4,0),IF($G37="SINAPI",VLOOKUP($H37,SINAPI_INSUM!A:E,5,0),IF($G37="SEINFRA",VLOOKUP($H37,SEINFRA_INSUM!B:F,4,0),IF($G37="COTAÇÃO",VLOOKUP($H37,'COTAÇÃO - MAT_CONSUMO'!B:L,10,0),"")))) -> 14.9 | F37: 14.9 | G37: ORSE | H37: 11265
A38: 1.1.2.20.33 | B38: =IF($G38="ORSE",VLOOKUP($H38,ORSE_INSUM!A:E,2,0),IF($G38="SINAPI",VLOOKUP($H38,SINAPI_INSUM!A:E,2,0),IF($G38="SEINFRA",VLOOKUP($H38,SEINFRA_INSUM!B:F,2,0),IF($G38="COTAÇÃO",VLOOKUP($H38,'COTAÇÃO - MAT_CONSUMO'!B:L,2,0),"")))) -> Pinça bico curvo ( terceira mão) | C38: Ud | D38: 1 | E38: =IF($G38="ORSE",VLOOKUP($H38,ORSE_INSUM!A:E,4,0),IF($G38="SINAPI",VLOOKUP($H38,SINAPI_INSUM!A:E,5,0),IF($G38="SEINFRA",VLOOKUP($H38,SEINFRA_INSUM!B:F,4,0),IF($G38="COTAÇÃO",VLOOKUP($H38,'COTAÇÃO - MAT_CONSUMO'!B:L,10,0),"")))) -> 13.9 | F38: 13.9 | G38: COTAÇÃO | H38: 118
A39: 1.1.2.20.34 | B39: =IF($G39="ORSE",VLOOKUP($H39,ORSE_INSUM!A:E,2,0),IF($G39="SINAPI",VLOOKUP($H39,SINAPI_INSUM!A:E,2,0),IF($G39="SEINFRA",VLOOKUP($H39,SEINFRA_INSUM!B:F,2,0),IF($G39="COTAÇÃO",VLOOKUP($H39,'COTAÇÃO - MAT_CONSUMO'!B:L,2,0),"")))) -> Pinça bico reto | C39: Ud | D39: 1 | E39: =IF($G39="ORSE",VLOOKUP($H39,ORSE_INSUM!A:E,4,0),IF($G39="SINAPI",VLOOKUP($H39,SINAPI_INSUM!A:E,5,0),IF($G39="SEINFRA",VLOOKUP($H39,SEINFRA_INSUM!B:F,4,0),IF($G39="COTAÇÃO",VLOOKUP($H39,'COTAÇÃO - MAT_CONSUMO'!B:L,10,0),"")))) -> 13.9 | F39: 13.9 | G39: COTAÇÃO | H39: 119
A40: 1.1.2.20.35 | B40: =IF($G40="ORSE",VLOOKUP($H40,ORSE_INSUM!A:E,2,0),IF($G40="SINAPI",VLOOKUP($H40,SINAPI_INSUM!A:E,2,0),IF($G40="SEINFRA",VLOOKUP($H40,SEINFRA_INSUM!B:F,2,0),IF($G40="COTAÇÃO",VLOOKUP($H40,'COTAÇÃO - MAT_CONSUMO'!B:L,2,0),"")))) -> Pistola para solda 220V 100W | C40: Ud | D40: 1 | E40: =IF($G40="ORSE",VLOOKUP($H40,ORSE_INSUM!A:E,4,0),IF($G40="SINAPI",VLOOKUP($H40,SINAPI_INSUM!A:E,5,0),IF($G40="SEINFRA",VLOOKUP($H40,SEINFRA_INSUM!B:F,4,0),IF($G40="COTAÇÃO",VLOOKUP($H40,'COTAÇÃO - MAT_CONSUMO'!B:L,10,0),"")))) -> 120 | F40: 120 | G40: COTAÇÃO | H40: 120
A41: 1.1.2.20.36 | B41: =IF($G41="ORSE",VLOOKUP($H41,ORSE_INSUM!A:E,2,0),IF($G41="SINAPI",VLOOKUP($H41,SINAPI_INSUM!A:E,2,0),IF($G41="SEINFRA",VLOOKUP($H41,SEINFRA_INSUM!B:F,2,0),IF($G41="COTAÇÃO",VLOOKUP($H41,'COTAÇÃO - MAT_CONSUMO'!B:L,2,0),"")))) -> Punção de centro 5" | C41: Ud | D41: 1 | E41: =IF($G41="ORSE",VLOOKUP($H41,ORSE_INSUM!A:E,4,0),IF($G41="SINAPI",VLOOKUP($H41,SINAPI_INSUM!A:E,5,0),IF($G41="SEINFRA",VLOOKUP($H41,SEINFRA_INSUM!B:F,4,0),IF($G41="COTAÇÃO",VLOOKUP($H41,'COTAÇÃO - MAT_CONSUMO'!B:L,10,0),"")))) -> 15.05 | F41: 15.05 | G41: COTAÇÃO | H41: 144
A42: 1.1.2.20.37 | B42: =IF($G42="ORSE",VLOOKUP($H42,ORSE_INSUM!A:E,2,0),IF($G42="SINAPI",VLOOKUP($H42,SINAPI_INSUM!A:E,2,0),IF($G42="SEINFRA",VLOOKUP($H42,SEINFRA_INSUM!B:F,2,0),IF($G42="COTAÇÃO",VLOOKUP($H42,'COTAÇÃO - MAT_CONSUMO'!B:L,2,0),"")))) -> Jogo de chaves soquete PNZ 1032 3/8"-1.1/4" | C42: Ud | D42: 1 | E42: =IF($G42="ORSE",VLOOKUP($H42,ORSE_INSUM!A:E,4,0),IF($G42="SINAPI",VLOOKUP($H42,SINAPI_INSUM!A:E,5,0),IF($G42="SEINFRA",VLOOKUP($H42,SEINFRA_INSUM!B:F,4,0),IF($G42="COTAÇÃO",VLOOKUP($H42,'COTAÇÃO - MAT_CONSUMO'!B:L,10,0),"")))) -> 129.9 | F42: 129.9 | G42: COTAÇÃO | H42: 54
A43: 1.1.2.20.38 | B43: =IF($G43="ORSE",VLOOKUP($H43,ORSE_INSUM!A:E,2,0),IF($G43="SINAPI",VLOOKUP($H43,SINAPI_INSUM!A:E,2,0),IF($G43="SEINFRA",VLOOKUP($H43,SEINFRA_INSUM!B:F,2,0),IF($G43="COTAÇÃO",VLOOKUP($H43,'COTAÇÃO - MAT_CONSUMO'!B:L,2,0),"")))) -> Trena de 5m | C43: Ud | D43: 1 | E43: =IF($G43="ORSE",VLOOKUP($H43,ORSE_INSUM!A:E,4,0),IF($G43="SINAPI",VLOOKUP($H43,SINAPI_INSUM!A:E,5,0),IF($G43="SEINFRA",VLOOKUP($H43,SEINFRA_INSUM!B:F,4,0),IF($G43="COTAÇÃO",VLOOKUP($H43,'COTAÇÃO - MAT_CONSUMO'!B:L,10,0),"")))) -> 13.28 | F43: 13.28 | G43: COTAÇÃO | H43: 41
A45: 1.1.2.20 | B45: SUB TOTAL | F45: =SUM(F6:F43) -> 1638.52
A47: ** CONJUNTO DE FERRAMENTAS PARA TÉCNICO MECÂNICO/MECÂNICO
H48: REF. JUL/18
A49: Item | B49: DESCRIÇÃO | C49: UNID. | D49: QUANT. | E49: VALOR | G49: REF.TAB. | H49: Cód. TAB.
E50: UNIT. (R$) | F50: TOTAL (R$)
A52: 1.1.2.21.1 | B52: =IF($G52="ORSE",VLOOKUP($H52,ORSE_INSUM!A:E,2,0),IF($G52="SINAPI",VLOOKUP($H52,SINAPI_INSUM!A:E,2,0),IF($G52="SEINFRA",VLOOKUP($H52,SEINFRA_INSUM!B:F,2,0),IF($G52="COTAÇÃO",VLOOKUP($H52,'COTAÇÃO - MAT_CONSUMO'!B:L,2,0),"")))) -> Alicate de anel curvo interno | C52: Ud | D52: 1 | E52: =IF($G52="ORSE",VLOOKUP($H52,ORSE_INSUM!A:E,4,0),IF($G52="SINAPI",VLOOKUP($H52,SINAPI_INSUM!A:E,5,0),IF($G52="SEINFRA",VLOOKUP($H52,SEINFRA_INSUM!B:F,4,0),IF($G52="COTAÇÃO",VLOOKUP($H52,'COTAÇÃO - MAT_CONSUMO'!B:L,10,0),"")))) -> 42.92 | F52: =ROUND(E52*D52,2) -> 42.92 | G52: COTAÇÃO | H52: 36
A53: 1.1.2.21.2 | B53: =IF($G53="ORSE",VLOOKUP($H53,ORSE_INSUM!A:E,2,0),IF($G53="SINAPI",VLOOKUP($H53,SINAPI_INSUM!A:E,2,0),IF($G53="SEINFRA",VLOOKUP($H53,SEINFRA_INSUM!B:F,2,0),IF($G53="COTAÇÃO",VLOOKUP($H53,'COTAÇÃO - MAT_CONSUMO'!B:L,2,0),"")))) -> Alicate de anel curvo externo | C53: Ud | D53: 1 | E53: =IF($G53="ORSE",VLOOKUP($H53,ORSE_INSUM!A:E,4,0),IF($G53="SINAPI",VLOOKUP($H53,SINAPI_INSUM!A:E,5,0),IF($G53="SEINFRA",VLOOKUP($H53,SEINFRA_INSUM!B:F,4,0),IF($G53="COTAÇÃO",VLOOKUP($H53,'COTAÇÃO - MAT_CONSUMO'!B:L,10,0),"")))) -> 32.77 | F53: 32.77 | G53: COTAÇÃO | H53: 35
A54: 1.1.2.21.3 | B54: =IF($G54="ORSE",VLOOKUP($H54,ORSE_INSUM!A:E,2,0),IF($G54="SINAPI",VLOOKUP($H54,SINAPI_INSUM!A:E,2,0),IF($G54="SEINFRA",VLOOKUP($H54,SEINFRA_INSUM!B:F,2,0),IF($G54="COTAÇÃO",VLOOKUP($H54,'COTAÇÃO - MAT_CONSUMO'!B:L,2,0),"")))) -> Alicate de anel reto externo | C54: Ud | D54: 1 | E54: =IF($G54="ORSE",VLOOKUP($H54,ORSE_INSUM!A:E,4,0),IF($G54="SINAPI",VLOOKUP($H54,SINAPI_INSUM!A:E,5,0),IF($G54="SEINFRA",VLOOKUP($H54,SEINFRA_INSUM!B:F,4,0),IF($G54="COTAÇÃO",VLOOKUP($H54,'COTAÇÃO - MAT_CONSUMO'!B:L,10,0),"")))) -> 23.33 | F54: 23.33 | G54: COTAÇÃO | H54: 37
A55: 1.1.2.21.4 | B55: =IF($G55="ORSE",VLOOKUP($H55,ORSE_INSUM!A:E,2,0),IF($G55="SINAPI",VLOOKUP($H55,SINAPI_INSUM!A:E,2,0),IF($G55="SEINFRA",VLOOKUP($H55,SEINFRA_INSUM!B:F,2,0),IF($G55="COTAÇÃO",VLOOKUP($H55,'COTAÇÃO - MAT_CONSUMO'!B:L,2,0),"")))) -> Alicate de anel reto interno | C55: Ud | D55: 1 | E55: =IF($G55="ORSE",VLOOKUP($H55,ORSE_INSUM!A:E,4,0),IF($G55="SINAPI",VLOOKUP($H55,SINAPI_INSUM!A:E,5,0),IF($G55="SEINFRA",VLOOKUP($H55,SEINFRA_INSUM!B:F,4,0),IF($G55="COTAÇÃO",VLOOKUP($H55,'COTAÇÃO - MAT_CONSUMO'!B:L,10,0),"")))) -> 61.99 | F55: 61.99 | G55: COTAÇÃO | H55: 38
A56: 1.1.2.21.5 | B56: =IF($G56="ORSE",VLOOKUP($H56,ORSE_INSUM!A:E,2,0),IF($G56="SINAPI",VLOOKUP($H56,SINAPI_INSUM!A:E,2,0),IF($G56="SEINFRA",VLOOKUP($H56,SEINFRA_INSUM!B:F,2,0),IF($G56="COTAÇÃO",VLOOKUP($H56,'COTAÇÃO - MAT_CONSUMO'!B:L,2,0),"")))) -> ALICATE DE PRESSÃO 11" | C56: Ud | D56: 1 | E56: =IF($G56="ORSE",VLOOKUP($H56,ORSE_INSUM!A:E,4,0),IF($G56="SINAPI",VLOOKUP($H56,SINAPI_INSUM!A:E,5,0),IF($G56="SEINFRA",VLOOKUP($H56,SEINFRA_INSUM!B:F,4,0),IF($G56="COTAÇÃO",VLOOKUP($H56,'COTAÇÃO - MAT_CONSUMO'!B:L,10,0),"")))) -> 15.79 | F56: 15.79 | G56: ORSE | H56: 11275
A57: 1.1.2.21.6 | B57: =IF($G57="ORSE",VLOOKUP($H57,ORSE_INSUM!A:E,2,0),IF($G57="SINAPI",VLOOKUP($H57,SINAPI_INSUM!A:E,2,0),IF($G57="SEINFRA",VLOOKUP($H57,SEINFRA_INSUM!B:F,2,0),IF($G57="COTAÇÃO",VLOOKUP($H57,'COTAÇÃO - MAT_CONSUMO'!B:L,2,0),"")))) -> Alicate de rebites | C57: Ud | D57: 1 | E57: =IF($G57="ORSE",VLOOKUP($H57,ORSE_INSUM!A:E,4,0),IF($G57="SINAPI",VLOOKUP($H57,SINAPI_INSUM!A:E,5,0),IF($G57="SEINFRA",VLOOKUP($H57,SEINFRA_INSUM!B:F,4,0),IF($G57="COTAÇÃO",VLOOKUP($H57,'COTAÇÃO - MAT_CONSUMO'!B:L,10,0),"")))) -> 112.96 | F57: 112.96 | G57: COTAÇÃO | H57: 59
A58: 1.1.2.21.7 | B58: =IF($G58="ORSE",VLOOKUP($H58,ORSE_INSUM!A:E,2,0),IF($G58="SINAPI",VLOOKUP($H58,SINAPI_INSUM!A:E,2,0),IF($G58="SEINFRA",VLOOKUP($H58,SEINFRA_INSUM!B:F,2,0),IF($G58="COTAÇÃO",VLOOKUP($H58,'COTAÇÃO - MAT_CONSUMO'!B:L,2,0),"")))) -> Alicate universal 8" | C58: Ud | D58: 1 | E58: =IF($G58="ORSE",VLOOKUP($H58,ORSE_INSUM!A:E,4,0),IF($G58="SINAPI",VLOOKUP($H58,SINAPI_INSUM!A:E,5,0),IF($G58="SEINFRA",VLOOKUP($H58,SEINFRA_INSUM!B:F,4,0),IF($G58="COTAÇÃO",VLOOKUP($H58,'COTAÇÃO - MAT_CONSUMO'!B:L,10,0),"")))) -> 22 | F58: 22 | G58: COTAÇÃO | H58: 39
A59: 1.1.2.21.8 | B59: =IF($G59="ORSE",VLOOKUP($H59,ORSE_INSUM!A:E,2,0),IF($G59="SINAPI",VLOOKUP($H59,SINAPI_INSUM!A:E,2,0),IF($G59="SEINFRA",VLOOKUP($H59,SEINFRA_INSUM!B:F,2,0),IF($G59="COTAÇÃO",VLOOKUP($H59,'COTAÇÃO - MAT_CONSUMO'!B:L,2,0),"")))) -> ARCO DE SERRA | C59: Ud | D59: 1 | E59: =IF($G59="ORSE",VLOOKUP($H59,ORSE_INSUM!A:E,4,0),IF($G59="SINAPI",VLOOKUP($H59,SINAPI_INSUM!A:E,5,0),IF($G59="SEINFRA",VLOOKUP($H59,SEINFRA_INSUM!B:F,4,0),IF($G59="COTAÇÃO",VLOOKUP($H59,'COTAÇÃO - MAT_CONSUMO'!B:L,10,0),"")))) -> 19.5 | F59: 19.5 | G59: ORSE | H59: 10585
A60: 1.1.2.21.9 | B60: =IF($G60="ORSE",VLOOKUP($H60,ORSE_INSUM!A:E,2,0),IF($G60="SINAPI",VLOOKUP($H60,SINAPI_INSUM!A:E,2,0),IF($G60="SEINFRA",VLOOKUP($H60,SEINFRA_INSUM!B:F,2,0),IF($G60="COTAÇÃO",VLOOKUP($H60,'COTAÇÃO - MAT_CONSUMO'!B:L,2,0),"")))) -> Calibre de rosca | C60: Ud | D60: 1 | E60: =IF($G60="ORSE",VLOOKUP($H60,ORSE_INSUM!A:E,4,0),IF($G60="SINAPI",VLOOKUP($H60,SINAPI_INSUM!A:E,5,0),IF($G60="SEINFRA",VLOOKUP($H60,SEINFRA_INSUM!B:F,4,0),IF($G60="COTAÇÃO",VLOOKUP($H60,'COTAÇÃO - MAT_CONSUMO'!B:L,10,0),"")))) -> 39.89 | F60: 39.89 | G60: COTAÇÃO | H60: 55
A61: 1.1.2.21.10 | B61: =IF($G61="ORSE",VLOOKUP($H61,ORSE_INSUM!A:E,2,0),IF($G61="SINAPI",VLOOKUP($H61,SINAPI_INSUM!A:E,2,0),IF($G61="SEINFRA",VLOOKUP($H61,SEINFRA_INSUM!B:F,2,0),IF($G61="COTAÇÃO",VLOOKUP($H61,'COTAÇÃO - MAT_CONSUMO'!B:L,2,0),"")))) -> Caixa sanfonada com cinco gavetas | C61: Ud | D61: 1 | E61: =IF($G61="ORSE",VLOOKUP($H61,ORSE_INSUM!A:E,4,0),IF($G61="SINAPI",VLOOKUP($H61,SINAPI_INSUM!A:E,5,0),IF($G61="SEINFRA",VLOOKUP($H61,SEINFRA_INSUM!B:F,4,0),IF($G61="COTAÇÃO",VLOOKUP($H61,'COTAÇÃO - MAT_CONSUMO'!B:L,10,0),"")))) -> 75.25 | F61: 75.25 | G61: COTAÇÃO | H61: 42
A62: 1.1.2.21.11 | B62: =IF($G62="ORSE",VLOOKUP($H62,ORSE_INSUM!A:E,2,0),IF($G62="SINAPI",VLOOKUP($H62,SINAPI_INSUM!A:E,2,0),IF($G62="SEINFRA",VLOOKUP($H62,SEINFRA_INSUM!B:F,2,0),IF($G62="COTAÇÃO",VLOOKUP($H62,'COTAÇÃO - MAT_CONSUMO'!B:L,2,0),"")))) -> Compasso mecânico | C62: Ud | D62: 1 | E62: =IF($G62="ORSE",VLOOKUP($H62,ORSE_INSUM!A:E,4,0),IF($G62="SINAPI",VLOOKUP($H62,SINAPI_INSUM!A:E,5,0),IF($G62="SEINFRA",VLOOKUP($H62,SEINFRA_INSUM!B:F,4,0),IF($G62="COTAÇÃO",VLOOKUP($H62,'COTAÇÃO - MAT_CONSUMO'!B:L,10,0),"")))) -> 135.68 | F62: 135.68 | G62: COTAÇÃO | H62: 60
A63: 1.1.2.21.12 | B63: =IF($G63="ORSE",VLOOKUP($H63,ORSE_INSUM!A:E,2,0),IF($G63="SINAPI",VLOOKUP($H63,SINAPI_INSUM!A:E,2,0),IF($G63="SEINFRA",VLOOKUP($H63,SEINFRA_INSUM!B:F,2,0),IF($G63="COTAÇÃO",VLOOKUP($H63,'COTAÇÃO - MAT_CONSUMO'!B:L,2,0),"")))) -> Chave ajustável 12" | C63: Ud | D63: 1 | E63: =IF($G63="ORSE",VLOOKUP($H63,ORSE_INSUM!A:E,4,0),IF($G63="SINAPI",VLOOKUP($H63,SINAPI_INSUM!A:E,5,0),IF($G63="SEINFRA",VLOOKUP($H63,SEINFRA_INSUM!B:F,4,0),IF($G63="COTAÇÃO",VLOOKUP($H63,'COTAÇÃO - MAT_CONSUMO'!B:L,10,0),"")))) -> 52.99 | F63: 52.99 | G63: COTAÇÃO | H63: 20
A64: 1.1.2.21.13 | B64: =IF($G64="ORSE",VLOOKUP($H64,ORSE_INSUM!A:E,2,0),IF($G64="SINAPI",VLOOKUP($H64,SINAPI_INSUM!A:E,2,0),IF($G64="SEINFRA",VLOOKUP($H64,SEINFRA_INSUM!B:F,2,0),IF($G64="COTAÇÃO",VLOOKUP($H64,'COTAÇÃO - MAT_CONSUMO'!B:L,2,0),"")))) -> Chave ajustável 8" | C64: Ud | D64: 1 | E64: =IF($G64="ORSE",VLOOKUP($H64,ORSE_INSUM!A:E,4,0),IF($G64="SINAPI",VLOOKUP($H64,SINAPI_INSUM!A:E,5,0),IF($G64="SEINFRA",VLOOKUP($H64,SEINFRA_INSUM!B:F,4,0),IF($G64="COTAÇÃO",VLOOKUP($H64,'COTAÇÃO - MAT_CONSUMO'!B:L,10,0),"")))) -> 36.99 | F64: 36.99 | G64: COTAÇÃO | H64: 21
A65: 1.1.2.21.14 | B65: =IF($G65="ORSE",VLOOKUP($H65,ORSE_INSUM!A:E,2,0),IF($G65="SINAPI",VLOOKUP($H65,SINAPI_INSUM!A:E,2,0),IF($G65="SEINFRA",VLOOKUP($H65,SEINFRA_INSUM!B:F,2,0),IF($G65="COTAÇÃO",VLOOKUP($H65,'COTAÇÃO - MAT_CONSUMO'!B:L,2,0),"")))) -> Chave allen 1/4" | C65: Ud | D65: 1 | E65: =IF($G65="ORSE",VLOOKUP($H65,ORSE_INSUM!A:E,4,0),IF($G65="SINAPI",VLOOKUP($H65,SINAPI_INSUM!A:E,5,0),IF($G65="SEINFRA",VLOOKUP($H65,SEINFRA_INSUM!B:F,4,0),IF($G65="COTAÇÃO",VLOOKUP($H65,'COTAÇÃO - MAT_CONSUMO'!B:L,10,0),"")))) -> 3.2 | F65: 3.2 | G65: COTAÇÃO | H65: 22
A66: 1.1.2.21.15 | B66: =IF($G66="ORSE",VLOOKUP($H66,ORSE_INSUM!A:E,2,0),IF($G66="SINAPI",VLOOKUP($H66,SINAPI_INSUM!A:E,2,0),IF($G66="SEINFRA",VLOOKUP($H66,SEINFRA_INSUM!B:F,2,0),IF($G66="COTAÇÃO",VLOOKUP($H66,'COTAÇÃO - MAT_CONSUMO'!B:L,2,0),"")))) -> Chave allen 1/8" | C66: Ud | D66: 1 | E66: =IF($G66="ORSE",VLOOKUP($H66,ORSE_INSUM!A:E,4,0),IF($G66="SINAPI",VLOOKUP($H66,SINAPI_INSUM!A:E,5,0),IF($G66="SEINFRA",VLOOKUP($H66,SEINFRA_INSUM!B:F,4,0),IF($G66="COTAÇÃO",VLOOKUP($H66,'COTAÇÃO - MAT_CONSUMO'!B:L,10,0),"")))) -> 1.98 | F66: 1.98 | G66: COTAÇÃO | H66: 23
A67: 1.1.2.21.16 | B67: =IF($G67="ORSE",VLOOKUP($H67,ORSE_INSUM!A:E,2,0),IF($G67="SINAPI",VLOOKUP($H67,SINAPI_INSUM!A:E,2,0),IF($G67="SEINFRA",VLOOKUP($H67,SEINFRA_INSUM!B:F,2,0),IF($G67="COTAÇÃO",VLOOKUP($H67,'COTAÇÃO - MAT_CONSUMO'!B:L,2,0),"")))) -> Chave allen 3/16" | C67: Ud | D67: 1 | E67: =IF($G67="ORSE",VLOOKUP($H67,ORSE_INSUM!A:E,4,0),IF($G67="SINAPI",VLOOKUP($H67,SINAPI_INSUM!A:E,5,0),IF($G67="SEINFRA",VLOOKUP($H67,SEINFRA_INSUM!B:F,4,0),IF($G67="COTAÇÃO",VLOOKUP($H67,'COTAÇÃO - MAT_CONSUMO'!B:L,10,0),"")))) -> 2.96 | F67: 2.96 | G67: COTAÇÃO | H67: 24
A68: 1.1.2.21.17 | B68: =IF($G68="ORSE",VLOOKUP($H68,ORSE_INSUM!A:E,2,0),IF($G68="SINAPI",VLOOKUP($H68,SINAPI_INSUM!A:E,2,0),IF($G68="SEINFRA",VLOOKUP($H68,SEINFRA_INSUM!B:F,2,0),IF($G68="COTAÇÃO",VLOOKUP($H68,'COTAÇÃO - MAT_CONSUMO'!B:L,2,0),"")))) -> Chave allen 3/8" | C68: Ud | D68: 1 | E68: =IF($G68="ORSE",VLOOKUP($H68,ORSE_INSUM!A:E,4,0),IF($G68="SINAPI",VLOOKUP($H68,SINAPI_INSUM!A:E,5,0),IF($G68="SEINFRA",VLOOKUP($H68,SEINFRA_INSUM!B:F,4,0),IF($G68="COTAÇÃO",VLOOKUP($H68,'COTAÇÃO - MAT_CONSUMO'!B:L,10,0),"")))) -> 6.6 | F68: 6.6 | G68: COTAÇÃO | H68: 25
A69: 1.1.2.21.18 | B69: =IF($G69="ORSE",VLOOKUP($H69,ORSE_INSUM!A:E,2,0),IF($G69="SINAPI",VLOOKUP($H69,SINAPI_INSUM!A:E,2,0),IF($G69="SEINFRA",VLOOKUP($H69,SEINFRA_INSUM!B:F,2,0),IF($G69="COTAÇÃO",VLOOKUP($H69,'COTAÇÃO - MAT_CONSUMO'!B:L,2,0),"")))) -> Chave allen 5/16" | C69: Ud | D69: 1 | E69: =IF($G69="ORSE",VLOOKUP($H69,ORSE_INSUM!A:E,4,0),IF($G69="SINAPI",VLOOKUP($H69,SINAPI_INSUM!A:E,5,0),IF($G69="SEINFRA",VLOOKUP($H69,SEINFRA_INSUM!B:F,4,0),IF($G69="COTAÇÃO",VLOOKUP($H69,'COTAÇÃO - MAT_CONSUMO'!B:L,10,0),"")))) -> 5.9 | F69: 5.9 | G69: COTAÇÃO | H69: 26
A70: 1.1.2.21.19 | B70: =IF($G70="ORSE",VLOOKUP($H70,ORSE_INSUM!A:E,2,0),IF($G70="SINAPI",VLOOKUP($H70,SINAPI_INSUM!A:E,2,0),IF($G70="SEINFRA",VLOOKUP($H70,SEINFRA_INSUM!B:F,2,0),IF($G70="COTAÇÃO",VLOOKUP($H70,'COTAÇÃO - MAT_CONSUMO'!B:L,2,0),"")))) -> Chave allen 5/32" | C70: Ud | D70: 1 | E70: =IF($G70="ORSE",VLOOKUP($H70,ORSE_INSUM!A:E,4,0),IF($G70="SINAPI",VLOOKUP($H70,SINAPI_INSUM!A:E,5,0),IF($G70="SEINFRA",VLOOKUP($H70,SEINFRA_INSUM!B:F,4,0),IF($G70="COTAÇÃO",VLOOKUP($H70,'COTAÇÃO - MAT_CONSUMO'!B:L,10,0),"")))) -> 2.58 | F70: 2.58 | G70: COTAÇÃO | H70: 27
A71: 1.1.2.21.20 | B71: =IF($G71="ORSE",VLOOKUP($H71,ORSE_INSUM!A:E,2,0),IF($G71="SINAPI",VLOOKUP($H71,SINAPI_INSUM!A:E,2,0),IF($G71="SEINFRA",VLOOKUP($H71,SEINFRA_INSUM!B:F,2,0),IF($G71="COTAÇÃO",VLOOKUP($H71,'COTAÇÃO - MAT_CONSUMO'!B:L,2,0),"")))) -> Jogo de Chave Estrela 6 a 22mm | C71: Ud | D71: 1 | E71: =IF($G71="ORSE",VLOOKUP($H71,ORSE_INSUM!A:E,4,0),IF($G71="SINAPI",VLOOKUP($H71,SINAPI_INSUM!A:E,5,0),IF($G71="SEINFRA",VLOOKUP($H71,SEINFRA_INSUM!B:F,4,0),IF($G71="COTAÇÃO",VLOOKUP($H71,'COTAÇÃO - MAT_CONSUMO'!B:L,10,0),"")))) -> 109.99 | F71: 109.99 | G71: COTAÇÃO | H71: 28
A72: 1.1.2.21.21 | B72: =IF($G72="ORSE",VLOOKUP($H72,ORSE_INSUM!A:E,2,0),IF($G72="SINAPI",VLOOKUP($H72,SINAPI_INSUM!A:E,2,0),IF($G72="SEINFRA",VLOOKUP($H72,SEINFRA_INSUM!B:F,2,0),IF($G72="COTAÇÃO",VLOOKUP($H72,'COTAÇÃO - MAT_CONSUMO'!B:L,2,0),"")))) -> Chave de fenda 1/4" x 5" | C72: Ud | D72: 1 | E72: =IF($G72="ORSE",VLOOKUP($H72,ORSE_INSUM!A:E,4,0),IF($G72="SINAPI",VLOOKUP($H72,SINAPI_INSUM!A:E,5,0),IF($G72="SEINFRA",VLOOKUP($H72,SEINFRA_INSUM!B:F,4,0),IF($G72="COTAÇÃO",VLOOKUP($H72,'COTAÇÃO - MAT_CONSUMO'!B:L,10,0),"")))) -> 9.89 | F72: 9.89 | G72: COTAÇÃO | H72: 29
A73: 1.1.2.21.22 | B73: =IF($G73="ORSE",VLOOKUP($H73,ORSE_INSUM!A:E,2,0),IF($G73="SINAPI",VLOOKUP($H73,SINAPI_INSUM!A:E,2,0),IF($G73="SEINFRA",VLOOKUP($H73,SEINFRA_INSUM!B:F,2,0),IF($G73="COTAÇÃO",VLOOKUP($H73,'COTAÇÃO - MAT_CONSUMO'!B:L,2,0),"")))) -> CHAVE DE FENDA 1/8" X 5" | C73: Ud | D73: 1 | E73: =IF($G73="ORSE",VLOOKUP($H73,ORSE_INSUM!A:E,4,0),IF($G73="SINAPI",VLOOKUP($H73,SINAPI_INSUM!A:E,5,0),IF($G73="SEINFRA",VLOOKUP($H73,SEINFRA_INSUM!B:F,4,0),IF($G73="COTAÇÃO",VLOOKUP($H73,'COTAÇÃO - MAT_CONSUMO'!B:L,10,0),"")))) -> 3.09 | F73: 3.09 | G73: ORSE | H73: 11468
A74: 1.1.2.21.23 | B74: =IF($G74="ORSE",VLOOKUP($H74,ORSE_INSUM!A:E,2,0),IF($G74="SINAPI",VLOOKUP($H74,SINAPI_INSUM!A:E,2,0),IF($G74="SEINFRA",VLOOKUP($H74,SEINFRA_INSUM!B:F,2,0),IF($G74="COTAÇÃO",VLOOKUP($H74,'COTAÇÃO - MAT_CONSUMO'!B:L,2,0),"")))) -> Chave de fenda 3/16" x 5" | C74: Ud | D74: 1 | E74: =IF($G74="ORSE",VLOOKUP($H74,ORSE_INSUM!A:E,4,0),IF($G74="SINAPI",VLOOKUP($H74,SINAPI_INSUM!A:E,5,0),IF($G74="SEINFRA",VLOOKUP($H74,SEINFRA_INSUM!B:F,4,0),IF($G74="COTAÇÃO",VLOOKUP($H74,'COTAÇÃO - MAT_CONSUMO'!B:L,10,0),"")))) -> 6.69 | F74: 6.69 | G74: COTAÇÃO | H74: 31
A75: 1.1.2.21.24 | B75: =IF($G75="ORSE",VLOOKUP($H75,ORSE_INSUM!A:E,2,0),IF($G75="SINAPI",VLOOKUP($H75,SINAPI_INSUM!A:E,2,0),IF($G75="SEINFRA",VLOOKUP($H75,SEINFRA_INSUM!B:F,2,0),IF($G75="COTAÇÃO",VLOOKUP($H75,'COTAÇÃO - MAT_CONSUMO'!B:L,2,0),"")))) -> Chave de fenda 3/8" x 10" | C75: Ud | D75: 1 | E75: =IF($G75="ORSE",VLOOKUP($H75,ORSE_INSUM!A:E,4,0),IF($G75="SINAPI",VLOOKUP($H75,SINAPI_INSUM!A:E,5,0),IF($G75="SEINFRA",VLOOKUP($H75,SEINFRA_INSUM!B:F,4,0),IF($G75="COTAÇÃO",VLOOKUP($H75,'COTAÇÃO - MAT_CONSUMO'!B:L,10,0),"")))) -> 17.74 | F75: 17.74 | G75: COTAÇÃO | H75: 32
A76: 1.1.2.21.25 | B76: =IF($G76="ORSE",VLOOKUP($H76,ORSE_INSUM!A:E,2,0),IF($G76="SINAPI",VLOOKUP($H76,SINAPI_INSUM!A:E,2,0),IF($G76="SEINFRA",VLOOKUP($H76,SEINFRA_INSUM!B:F,2,0),IF($G76="COTAÇÃO",VLOOKUP($H76,'COTAÇÃO - MAT_CONSUMO'!B:L,2,0),"")))) -> Chave de fenda 5/16" x 10" | C76: Ud | D76: 1 | E76: =IF($G76="ORSE",VLOOKUP($H76,ORSE_INSUM!A:E,4,0),IF($G76="SINAPI",VLOOKUP($H76,SINAPI_INSUM!A:E,5,0),IF($G76="SEINFRA",VLOOKUP($H76,SEINFRA_INSUM!B:F,4,0),IF($G76="COTAÇÃO",VLOOKUP($H76,'COTAÇÃO - MAT_CONSUMO'!B:L,10,0),"")))) -> 12.55 | F76: 12.55 | G76: COTAÇÃO | H76: 33
A77: 1.1.2.21.26 | B77: =IF($G77="ORSE",VLOOKUP($H77,ORSE_INSUM!A:E,2,0),IF($G77="SINAPI",VLOOKUP($H77,SINAPI_INSUM!A:E,2,0),IF($G77="SEINFRA",VLOOKUP($H77,SEINFRA_INSUM!B:F,2,0),IF($G77="COTAÇÃO",VLOOKUP($H77,'COTAÇÃO - MAT_CONSUMO'!B:L,2,0),"")))) -> Chave de fenda simples "tipo toco" 3/16" | C77: Ud | D77: 1 | E77: =IF($G77="ORSE",VLOOKUP($H77,ORSE_INSUM!A:E,4,0),IF($G77="SINAPI",VLOOKUP($H77,SINAPI_INSUM!A:E,5,0),IF($G77="SEINFRA",VLOOKUP($H77,SEINFRA_INSUM!B:F,4,0),IF($G77="COTAÇÃO",VLOOKUP($H77,'COTAÇÃO - MAT_CONSUMO'!B:L,10,0),"")))) -> 6.52 | F77: 6.52 | G77: COTAÇÃO | H77: 34
A78: 1.1.2.21.27 | B78: =IF($G78="ORSE",VLOOKUP($H78,ORSE_INSUM!A:E,2,0),IF($G78="SINAPI",VLOOKUP($H78,SINAPI_INSUM!A:E,2,0),IF($G78="SEINFRA",VLOOKUP($H78,SEINFRA_INSUM!B:F,2,0),IF($G78="COTAÇÃO",VLOOKUP($H78,'COTAÇÃO - MAT_CONSUMO'!B:L,2,0),"")))) -> Esquadro magnetico p/ soldador | C78: Ud | D78: 1 | E78: =IF($G78="ORSE",VLOOKUP($H78,ORSE_INSUM!A:E,4,0),IF($G78="SINAPI",VLOOKUP($H78,SINAPI_INSUM!A:E,5,0),IF($G78="SEINFRA",VLOOKUP($H78,SEINFRA_INSUM!B:F,4,0),IF($G78="COTAÇÃO",VLOOKUP($H78,'COTAÇÃO - MAT_CONSUMO'!B:L,10,0),"")))) -> 46.99 | F78: 46.99 | G78: COTAÇÃO | H78: 115
A79: 1.1.2.21.28 | B79: =IF($G79="ORSE",VLOOKUP($H79,ORSE_INSUM!A:E,2,0),IF($G79="SINAPI",VLOOKUP($H79,SINAPI_INSUM!A:E,2,0),IF($G79="SEINFRA",VLOOKUP($H79,SEINFRA_INSUM!B:F,2,0),IF($G79="COTAÇÃO",VLOOKUP($H79,'COTAÇÃO - MAT_CONSUMO'!B:L,2,0),"")))) -> Esquadro metálico | C79: Ud | D79: 1 | E79: =IF($G79="ORSE",VLOOKUP($H79,ORSE_INSUM!A:E,4,0),IF($G79="SINAPI",VLOOKUP($H79,SINAPI_INSUM!A:E,5,0),IF($G79="SEINFRA",VLOOKUP($H79,SEINFRA_INSUM!B:F,4,0),IF($G79="COTAÇÃO",VLOOKUP($H79,'COTAÇÃO - MAT_CONSUMO'!B:L,10,0),"")))) -> 52.55 | F79: 52.55 | G79: COTAÇÃO | H79: 117
A80: 1.1.2.21.29 | B80: =IF($G80="ORSE",VLOOKUP($H80,ORSE_INSUM!A:E,2,0),IF($G80="SINAPI",VLOOKUP($H80,SINAPI_INSUM!A:E,2,0),IF($G80="SEINFRA",VLOOKUP($H80,SEINFRA_INSUM!B:F,2,0),IF($G80="COTAÇÃO",VLOOKUP($H80,'COTAÇÃO - MAT_CONSUMO'!B:L,2,0),"")))) -> Jogo de chaves combinadas de 6, 7, 8, 10,11,12, 13, 14, 17, 19, 22, 24, 27, 30 e 32 | C80: Ud | D80: 1 | E80: =IF($G80="ORSE",VLOOKUP($H80,ORSE_INSUM!A:E,4,0),IF($G80="SINAPI",VLOOKUP($H80,SINAPI_INSUM!A:E,5,0),IF($G80="SEINFRA",VLOOKUP($H80,SEINFRA_INSUM!B:F,4,0),IF($G80="COTAÇÃO",VLOOKUP($H80,'COTAÇÃO - MAT_CONSUMO'!B:L,10,0),"")))) -> 329.9 | F80: 329.9 | G80: COTAÇÃO | H80: 30
A81: 1.1.2.21.30 | B81: =IF($G81="ORSE",VLOOKUP($H81,ORSE_INSUM!A:E,2,0),IF($G81="SINAPI",VLOOKUP($H81,SINAPI_INSUM!A:E,2,0),IF($G81="SEINFRA",VLOOKUP($H81,SEINFRA_INSUM!B:F,2,0),IF($G81="COTAÇÃO",VLOOKUP($H81,'COTAÇÃO - MAT_CONSUMO'!B:L,2,0),"")))) -> Jogo de chaves soquete PNZ 1032 3/8"-1.1/4" | C81: Ud | D81: 1 | E81: =IF($G81="ORSE",VLOOKUP($H81,ORSE_INSUM!A:E,4,0),IF($G81="SINAPI",VLOOKUP($H81,SINAPI_INSUM!A:E,5,0),IF($G81="SEINFRA",VLOOKUP($H81,SEINFRA_INSUM!B:F,4,0),IF($G81="COTAÇÃO",VLOOKUP($H81,'COTAÇÃO - MAT_CONSUMO'!B:L,10,0),"")))) -> 129.9 | F81: 129.9 | G81: COTAÇÃO | H81: 54
A82: 1.1.2.21.31 | B82: =IF($G82="ORSE",VLOOKUP($H82,ORSE_INSUM!A:E,2,0),IF($G82="SINAPI",VLOOKUP($H82,SINAPI_INSUM!A:E,2,0),IF($G82="SEINFRA",VLOOKUP($H82,SEINFRA_INSUM!B:F,2,0),IF($G82="COTAÇÃO",VLOOKUP($H82,'COTAÇÃO - MAT_CONSUMO'!B:L,2,0),"")))) -> Lima chata 10" | C82: Ud | D82: 1 | E82: =IF($G82="ORSE",VLOOKUP($H82,ORSE_INSUM!A:E,4,0),IF($G82="SINAPI",VLOOKUP($H82,SINAPI_INSUM!A:E,5,0),IF($G82="SEINFRA",VLOOKUP($H82,SEINFRA_INSUM!B:F,4,0),IF($G82="COTAÇÃO",VLOOKUP($H82,'COTAÇÃO - MAT_CONSUMO'!B:L,10,0),"")))) -> 17.65 | F82: 17.65 | G82: COTAÇÃO | H82: 53
A83: 1.1.2.21.32 | B83: =IF($G83="ORSE",VLOOKUP($H83,ORSE_INSUM!A:E,2,0),IF($G83="SINAPI",VLOOKUP($H83,SINAPI_INSUM!A:E,2,0),IF($G83="SEINFRA",VLOOKUP($H83,SEINFRA_INSUM!B:F,2,0),IF($G83="COTAÇÃO",VLOOKUP($H83,'COTAÇÃO - MAT_CONSUMO'!B:L,2,0),"")))) -> Martelo bola 500 g | C83: Ud | D83: 1 | E83: =IF($G83="ORSE",VLOOKUP($H83,ORSE_INSUM!A:E,4,0),IF($G83="SINAPI",VLOOKUP($H83,SINAPI_INSUM!A:E,5,0),IF($G83="SEINFRA",VLOOKUP($H83,SEINFRA_INSUM!B:F,4,0),IF($G83="COTAÇÃO",VLOOKUP($H83,'COTAÇÃO - MAT_CONSUMO'!B:L,10,0),"")))) -> 41.99 | F83: 41.99 | G83: COTAÇÃO | H83: 46
A84: 1.1.2.21.33 | B84: =IF($G84="ORSE",VLOOKUP($H84,ORSE_INSUM!A:E,2,0),IF($G84="SINAPI",VLOOKUP($H84,SINAPI_INSUM!A:E,2,0),IF($G84="SEINFRA",VLOOKUP($H84,SEINFRA_INSUM!B:F,2,0),IF($G84="COTAÇÃO",VLOOKUP($H84,'COTAÇÃO - MAT_CONSUMO'!B:L,2,0),"")))) -> Martelo pena 500g | C84: Ud | D84: 1 | E84: =IF($G84="ORSE",VLOOKUP($H84,ORSE_INSUM!A:E,4,0),IF($G84="SINAPI",VLOOKUP($H84,SINAPI_INSUM!A:E,5,0),IF($G84="SEINFRA",VLOOKUP($H84,SEINFRA_INSUM!B:F,4,0),IF($G84="COTAÇÃO",VLOOKUP($H84,'COTAÇÃO - MAT_CONSUMO'!B:L,10,0),"")))) -> 35.06 | F84: 35.06 | G84: COTAÇÃO | H84: 45
A85: 1.1.2.21.34 | B85: =IF($G85="ORSE",VLOOKUP($H85,ORSE_INSUM!A:E,2,0),IF($G85="SINAPI",VLOOKUP($H85,SINAPI_INSUM!A:E,2,0),IF($G85="SEINFRA",VLOOKUP($H85,SEINFRA_INSUM!B:F,2,0),IF($G85="COTAÇÃO",VLOOKUP($H85,'COTAÇÃO - MAT_CONSUMO'!B:L,2,0),"")))) -> Punção de centro 5" | C85: Ud | D85: 1 | E85: =IF($G85="ORSE",VLOOKUP($H85,ORSE_INSUM!A:E,4,0),IF($G85="SINAPI",VLOOKUP($H85,SINAPI_INSUM!A:E,5,0),IF($G85="SEINFRA",VLOOKUP($H85,SEINFRA_INSUM!B:F,4,0),IF($G85="COTAÇÃO",VLOOKUP($H85,'COTAÇÃO - MAT_CONSUMO'!B:L,10,0),"")))) -> 15.05 | F85: 15.05 | G85: COTAÇÃO | H85: 144
A86: 1.1.2.21.35 | B86: =IF($G86="ORSE",VLOOKUP($H86,ORSE_INSUM!A:E,2,0),IF($G86="SINAPI",VLOOKUP($H86,SINAPI_INSUM!A:E,2,0),IF($G86="SEINFRA",VLOOKUP($H86,SEINFRA_INSUM!B:F,2,0),IF($G86="COTAÇÃO",VLOOKUP($H86,'COTAÇÃO - MAT_CONSUMO'!B:L,2,0),"")))) -> Tesoura de funilaria 10" | C86: Ud | D86: 1 | E86: =IF($G86="ORSE",VLOOKUP($H86,ORSE_INSUM!A:E,4,0),IF($G86="SINAPI",VLOOKUP($H86,SINAPI_INSUM!A:E,5,0),IF($G86="SEINFRA",VLOOKUP($H86,SEINFRA_INSUM!B:F,4,0),IF($G86="COTAÇÃO",VLOOKUP($H86,'COTAÇÃO - MAT_CONSUMO'!B:L,10,0),"")))) -> 40.9 | F86: 40.9 | G86: COTAÇÃO | H86: 47
A87: 1.1.2.21.36 | B87: =IF($G87="ORSE",VLOOKUP($H87,ORSE_INSUM!A:E,2,0),IF($G87="SINAPI",VLOOKUP($H87,SINAPI_INSUM!A:E,2,0),IF($G87="SEINFRA",VLOOKUP($H87,SEINFRA_INSUM!B:F,2,0),IF($G87="COTAÇÃO",VLOOKUP($H87,'COTAÇÃO - MAT_CONSUMO'!B:L,2,0),"")))) -> Trena de 5m | C87: Ud | D87: 1 | E87: =IF($G87="ORSE",VLOOKUP($H87,ORSE_INSUM!A:E,4,0),IF($G87="SINAPI",VLOOKUP($H87,SINAPI_INSUM!A:E,5,0),IF($G87="SEINFRA",VLOOKUP($H87,SEINFRA_INSUM!B:F,4,0),IF($G87="COTAÇÃO",VLOOKUP($H87,'COTAÇÃO - MAT_CONSUMO'!B:L,10,0),"")))) -> 13.28 | F87: 13.28 | G87: COTAÇÃO | H87: 41
A89: 1.1.2.21 | B89: SUB TOTAL | F89: =SUM(F52:F87) -> 1585.02
A91: *** CONJUNTO DE FERRAMENTAS PARA ENCANADOR
H92: REF. JUL/18
A93: ITEM | B93: DESCRIÇÃO | C93: UNID. | D93: QUANT. | E93: VALOR | G93: REF.TAB. | H93: Cód. TAB.
E94: UNIT. (R$) | F94: TOTAL (R$)
A96: 1.1.2.22.1 | B96: =IF($G96="ORSE",VLOOKUP($H96,ORSE_INSUM!A:E,2,0),IF($G96="SINAPI",VLOOKUP($H96,SINAPI_INSUM!A:E,2,0),IF($G96="SEINFRA",VLOOKUP($H96,SEINFRA_INSUM!B:F,2,0),IF($G96="COTAÇÃO",VLOOKUP($H96,'COTAÇÃO - MAT_CONSUMO'!B:L,2,0),"")))) -> ALAVANCA REDONDA 6KG 1" X 1,5M | C96: Ud | D96: 1 | E96: =IF($G96="ORSE",VLOOKUP($H96,ORSE_INSUM!A:E,4,0),IF($G96="SINAPI",VLOOKUP($H96,SINAPI_INSUM!A:E,5,0),IF($G96="SEINFRA",VLOOKUP($H96,SEINFRA_INSUM!B:F,4,0),IF($G96="COTAÇÃO",VLOOKUP($H96,'COTAÇÃO - MAT_CONSUMO'!B:L,10,0),"")))) -> 94.9 | F96: =ROUND(E96*D96,2) -> 94.9 | G96: ORSE | H96: 148
A97: 1.1.2.22.2 | B97: =IF($G97="ORSE",VLOOKUP($H97,ORSE_INSUM!A:E,2,0),IF($G97="SINAPI",VLOOKUP($H97,SINAPI_INSUM!A:E,2,0),IF($G97="SEINFRA",VLOOKUP($H97,SEINFRA_INSUM!B:F,2,0),IF($G97="COTAÇÃO",VLOOKUP($H97,'COTAÇÃO - MAT_CONSUMO'!B:L,2,0),"")))) -> ALICATE DE PRESSÃO 11" | C97: Ud | D97: 1 | E97: =IF($G97="ORSE",VLOOKUP($H97,ORSE_INSUM!A:E,4,0),IF($G97="SINAPI",VLOOKUP($H97,SINAPI_INSUM!A:E,5,0),IF($G97="SEINFRA",VLOOKUP($H97,SEINFRA_INSUM!B:F,4,0),IF($G97="COTAÇÃO",VLOOKUP($H97,'COTAÇÃO - MAT_CONSUMO'!B:L,10,0),"")))) -> 15.79 | F97: =ROUND(E97*D97,2) -> 15.79 | G97: ORSE | H97: 11275
A98: 1.1.2.22.3 | B98: =IF($G98="ORSE",VLOOKUP($H98,ORSE_INSUM!A:E,2,0),IF($G98="SINAPI",VLOOKUP($H98,SINAPI_INSUM!A:E,2,0),IF($G98="SEINFRA",VLOOKUP($H98,SEINFRA_INSUM!B:F,2,0),IF($G98="COTAÇÃO",VLOOKUP($H98,'COTAÇÃO - MAT_CONSUMO'!B:L,2,0),"")))) -> Alicate universal 8" | C98: Ud | D98: 1 | E98: =IF($G98="ORSE",VLOOKUP($H98,ORSE_INSUM!A:E,4,0),IF($G98="SINAPI",VLOOKUP($H98,SINAPI_INSUM!A:E,5,0),IF($G98="SEINFRA",VLOOKUP($H98,SEINFRA_INSUM!B:F,4,0),IF($G98="COTAÇÃO",VLOOKUP($H98,'COTAÇÃO - MAT_CONSUMO'!B:L,10,0),"")))) -> 22 | F98: 22 | G98: COTAÇÃO | H98: 39
A99: 1.1.2.22.4 | B99: =IF($G99="ORSE",VLOOKUP($H99,ORSE_INSUM!A:E,2,0),IF($G99="SINAPI",VLOOKUP($H99,SINAPI_INSUM!A:E,2,0),IF($G99="SEINFRA",VLOOKUP($H99,SEINFRA_INSUM!B:F,2,0),IF($G99="COTAÇÃO",VLOOKUP($H99,'COTAÇÃO - MAT_CONSUMO'!B:L,2,0),"")))) -> ARCO DE SERRA | C99: Ud | D99: 1 | E99: =IF($G99="ORSE",VLOOKUP($H99,ORSE_INSUM!A:E,4,0),IF($G99="SINAPI",VLOOKUP($H99,SINAPI_INSUM!A:E,5,0),IF($G99="SEINFRA",VLOOKUP($H99,SEINFRA_INSUM!B:F,4,0),IF($G99="COTAÇÃO",VLOOKUP($H99,'COTAÇÃO - MAT_CONSUMO'!B:L,10,0),"")))) -> 19.5 | F99: 19.5 | G99: ORSE | H99: 10585
A100: 1.1.2.22.5 | B100: =IF($G100="ORSE",VLOOKUP($H100,ORSE_INSUM!A:E,2,0),IF($G100="SINAPI",VLOOKUP($H100,SINAPI_INSUM!A:E,2,0),IF($G100="SEINFRA",VLOOKUP($H100,SEINFRA_INSUM!B:F,2,0),IF($G100="COTAÇÃO",VLOOKUP($H100,'COTAÇÃO - MAT_CONSUMO'!B:L,2,0),"")))) -> Caixa sanfonada com cinco gavetas | C100: Ud | D100: 1 | E100: =IF($G100="ORSE",VLOOKUP($H100,ORSE_INSUM!A:E,4,0),IF($G100="SINAPI",VLOOKUP($H100,SINAPI_INSUM!A:E,5,0),IF($G100="SEINFRA",VLOOKUP($H100,SEINFRA_INSUM!B:F,4,0),IF($G100="COTAÇÃO",VLOOKUP($H100,'COTAÇÃO - MAT_CONSUMO'!B:L,10,0),"")))) -> 75.25 | F100: 75.25 | G100: COTAÇÃO | H100: 42
A101: 1.1.2.22.6 | B101: =IF($G101="ORSE",VLOOKUP($H101,ORSE_INSUM!A:E,2,0),IF($G101="SINAPI",VLOOKUP($H101,SINAPI_INSUM!A:E,2,0),IF($G101="SEINFRA",VLOOKUP($H101,SEINFRA_INSUM!B:F,2,0),IF($G101="COTAÇÃO",VLOOKUP($H101,'COTAÇÃO - MAT_CONSUMO'!B:L,2,0),"")))) -> CARRINHO DE MÃO | C101: Ud | D101: 1 | E101: =IF($G101="ORSE",VLOOKUP($H101,ORSE_INSUM!A:E,4,0),IF($G101="SINAPI",VLOOKUP($H101,SINAPI_INSUM!A:E,5,0),IF($G101="SEINFRA",VLOOKUP($H101,SEINFRA_INSUM!B:F,4,0),IF($G101="COTAÇÃO",VLOOKUP($H101,'COTAÇÃO - MAT_CONSUMO'!B:L,10,0),"")))) -> 110 | F101: 110 | G101: ORSE | H101: 10787
A102: 1.1.2.22.7 | B102: =IF($G102="ORSE",VLOOKUP($H102,ORSE_INSUM!A:E,2,0),IF($G102="SINAPI",VLOOKUP($H102,SINAPI_INSUM!A:E,2,0),IF($G102="SEINFRA",VLOOKUP($H102,SEINFRA_INSUM!B:F,2,0),IF($G102="COTAÇÃO",VLOOKUP($H102,'COTAÇÃO - MAT_CONSUMO'!B:L,2,0),"")))) -> Chave de fenda 5/16" x 10" | C102: Ud | D102: 1 | E102: =IF($G102="ORSE",VLOOKUP($H102,ORSE_INSUM!A:E,4,0),IF($G102="SINAPI",VLOOKUP($H102,SINAPI_INSUM!A:E,5,0),IF($G102="SEINFRA",VLOOKUP($H102,SEINFRA_INSUM!B:F,4,0),IF($G102="COTAÇÃO",VLOOKUP($H102,'COTAÇÃO - MAT_CONSUMO'!B:L,10,0),"")))) -> 12.55 | F102: 12.55 | G102: COTAÇÃO | H102: 33
A103: 1.1.2.22.8 | B103: =IF($G103="ORSE",VLOOKUP($H103,ORSE_INSUM!A:E,2,0),IF($G103="SINAPI",VLOOKUP($H103,SINAPI_INSUM!A:E,2,0),IF($G103="SEINFRA",VLOOKUP($H103,SEINFRA_INSUM!B:F,2,0),IF($G103="COTAÇÃO",VLOOKUP($H103,'COTAÇÃO - MAT_CONSUMO'!B:L,2,0),"")))) -> Chibanca com cabo | C103: Ud | D103: 1 | E103: =IF($G103="ORSE",VLOOKUP($H103,ORSE_INSUM!A:E,4,0),IF($G103="SINAPI",VLOOKUP($H103,SINAPI_INSUM!A:E,5,0),IF($G103="SEINFRA",VLOOKUP($H103,SEINFRA_INSUM!B:F,4,0),IF($G103="COTAÇÃO",VLOOKUP($H103,'COTAÇÃO - MAT_CONSUMO'!B:L,10,0),"")))) -> 54.9 | F103: 54.9 | G103: COTAÇÃO | H103: 52
A104: 1.1.2.22.9 | B104: =IF($G104="ORSE",VLOOKUP($H104,ORSE_INSUM!A:E,2,0),IF($G104="SINAPI",VLOOKUP($H104,SINAPI_INSUM!A:E,2,0),IF($G104="SEINFRA",VLOOKUP($H104,SEINFRA_INSUM!B:F,2,0),IF($G104="COTAÇÃO",VLOOKUP($H104,'COTAÇÃO - MAT_CONSUMO'!B:L,2,0),"")))) -> ENXADA ESTREITA *25 X 23* CM COM CABO | C104: Ud | D104: 1 | E104: =IF($G104="ORSE",VLOOKUP($H104,ORSE_INSUM!A:E,4,0),IF($G104="SINAPI",VLOOKUP($H104,SINAPI_INSUM!A:E,5,0),IF($G104="SEINFRA",VLOOKUP($H104,SEINFRA_INSUM!B:F,4,0),IF($G104="COTAÇÃO",VLOOKUP($H104,'COTAÇÃO - MAT_CONSUMO'!B:L,10,0),"")))) -> 27,22 | F104: 27.22 | G104: SINAPI | H104: 38403
A105: 1.1.2.22.10 | B105: =IF($G105="ORSE",VLOOKUP($H105,ORSE_INSUM!A:E,2,0),IF($G105="SINAPI",VLOOKUP($H105,SINAPI_INSUM!A:E,2,0),IF($G105="SEINFRA",VLOOKUP($H105,SEINFRA_INSUM!B:F,2,0),IF($G105="COTAÇÃO",VLOOKUP($H105,'COTAÇÃO - MAT_CONSUMO'!B:L,2,0),"")))) -> Facão 20" | C105: Ud | D105: 1 | E105: =IF($G105="ORSE",VLOOKUP($H105,ORSE_INSUM!A:E,4,0),IF($G105="SINAPI",VLOOKUP($H105,SINAPI_INSUM!A:E,5,0),IF($G105="SEINFRA",VLOOKUP($H105,SEINFRA_INSUM!B:F,4,0),IF($G105="COTAÇÃO",VLOOKUP($H105,'COTAÇÃO - MAT_CONSUMO'!B:L,10,0),"")))) -> 42.66 | F105: 42.66 | G105: COTAÇÃO | H105: 57
A106: 1.1.2.22.11 | B106: =IF($G106="ORSE",VLOOKUP($H106,ORSE_INSUM!A:E,2,0),IF($G106="SINAPI",VLOOKUP($H106,SINAPI_INSUM!A:E,2,0),IF($G106="SEINFRA",VLOOKUP($H106,SEINFRA_INSUM!B:F,2,0),IF($G106="COTAÇÃO",VLOOKUP($H106,'COTAÇÃO - MAT_CONSUMO'!B:L,2,0),"")))) -> Foice roçadeira com cabo | C106: Ud | D106: 1 | E106: =IF($G106="ORSE",VLOOKUP($H106,ORSE_INSUM!A:E,4,0),IF($G106="SINAPI",VLOOKUP($H106,SINAPI_INSUM!A:E,5,0),IF($G106="SEINFRA",VLOOKUP($H106,SEINFRA_INSUM!B:F,4,0),IF($G106="COTAÇÃO",VLOOKUP($H106,'COTAÇÃO - MAT_CONSUMO'!B:L,10,0),"")))) -> 28.41 | F106: 28.41 | G106: COTAÇÃO | H106: 51
A107: 1.1.2.22.12 | B107: =IF($G107="ORSE",VLOOKUP($H107,ORSE_INSUM!A:E,2,0),IF($G107="SINAPI",VLOOKUP($H107,SINAPI_INSUM!A:E,2,0),IF($G107="SEINFRA",VLOOKUP($H107,SEINFRA_INSUM!B:F,2,0),IF($G107="COTAÇÃO",VLOOKUP($H107,'COTAÇÃO - MAT_CONSUMO'!B:L,2,0),"")))) -> Grosa 12" | C107: Ud | D107: 1 | E107: =IF($G107="ORSE",VLOOKUP($H107,ORSE_INSUM!A:E,4,0),IF($G107="SINAPI",VLOOKUP($H107,SINAPI_INSUM!A:E,5,0),IF($G107="SEINFRA",VLOOKUP($H107,SEINFRA_INSUM!B:F,4,0),IF($G107="COTAÇÃO",VLOOKUP($H107,'COTAÇÃO - MAT_CONSUMO'!B:L,10,0),"")))) -> 22.3 | F107: 22.3 | G107: COTAÇÃO | H107: 58
A108: 1.1.2.22.13 | B108: =IF($G108="ORSE",VLOOKUP($H108,ORSE_INSUM!A:E,2,0),IF($G108="SINAPI",VLOOKUP($H108,SINAPI_INSUM!A:E,2,0),IF($G108="SEINFRA",VLOOKUP($H108,SEINFRA_INSUM!B:F,2,0),IF($G108="COTAÇÃO",VLOOKUP($H108,'COTAÇÃO - MAT_CONSUMO'!B:L,2,0),"")))) -> Jogo de Chave Estrela 6 a 22mm | C108: Ud | D108: 1 | E108: =IF($G108="ORSE",VLOOKUP($H108,ORSE_INSUM!A:E,4,0),IF($G108="SINAPI",VLOOKUP($H108,SINAPI_INSUM!A:E,5,0),IF($G108="SEINFRA",VLOOKUP($H108,SEINFRA_INSUM!B:F,4,0),IF($G108="COTAÇÃO",VLOOKUP($H108,'COTAÇÃO - MAT_CONSUMO'!B:L,10,0),"")))) -> 109.99 | F108: =ROUND(E108*D108,2) -> 109.99 | G108: COTAÇÃO | H108: 28
A109: 1.1.2.22.14 | B109: =IF($G109="ORSE",VLOOKUP($H109,ORSE_INSUM!A:E,2,0),IF($G109="SINAPI",VLOOKUP($H109,SINAPI_INSUM!A:E,2,0),IF($G109="SEINFRA",VLOOKUP($H109,SEINFRA_INSUM!B:F,2,0),IF($G109="COTAÇÃO",VLOOKUP($H109,'COTAÇÃO - MAT_CONSUMO'!B:L,2,0),"")))) -> Jogo de chaves combinadas de 6, 7, 8, 10,11,12, 13, 14, 17, 19, 22, 24, 27, 30 e 32 | C109: Ud | D109: 1 | E109: =IF($G109="ORSE",VLOOKUP($H109,ORSE_INSUM!A:E,4,0),IF($G109="SINAPI",VLOOKUP($H109,SINAPI_INSUM!A:E,5,0),IF($G109="SEINFRA",VLOOKUP($H109,SEINFRA_INSUM!B:F,4,0),IF($G109="COTAÇÃO",VLOOKUP($H109,'COTAÇÃO - MAT_CONSUMO'!B:L,10,0),"")))) -> 329.9 | F109: 329.9 | G109: COTAÇÃO | H109: 30
A110: 1.1.2.22.15 | B110: =IF($G110="ORSE",VLOOKUP($H110,ORSE_INSUM!A:E,2,0),IF($G110="SINAPI",VLOOKUP($H110,SINAPI_INSUM!A:E,2,0),IF($G110="SEINFRA",VLOOKUP($H110,SEINFRA_INSUM!B:F,2,0),IF($G110="COTAÇÃO",VLOOKUP($H110,'COTAÇÃO - MAT_CONSUMO'!B:L,2,0),"")))) -> Lima chata 10" | C110: Ud | D110: 1 | E110: =IF($G110="ORSE",VLOOKUP($H110,ORSE_INSUM!A:E,4,0),IF($G110="SINAPI",VLOOKUP($H110,SINAPI_INSUM!A:E,5,0),IF($G110="SEINFRA",VLOOKUP($H110,SEINFRA_INSUM!B:F,4,0),IF($G110="COTAÇÃO",VLOOKUP($H110,'COTAÇÃO - MAT_CONSUMO'!B:L,10,0),"")))) -> 17.65 | F110: 17.65 | G110: COTAÇÃO | H110: 53
A111: 1.1.2.22.16 | B111: =IF($G111="ORSE",VLOOKUP($H111,ORSE_INSUM!A:E,2,0),IF($G111="SINAPI",VLOOKUP($H111,SINAPI_INSUM!A:E,2,0),IF($G111="SEINFRA",VLOOKUP($H111,SEINFRA_INSUM!B:F,2,0),IF($G111="COTAÇÃO",VLOOKUP($H111,'COTAÇÃO - MAT_CONSUMO'!B:L,2,0),"")))) -> Marreta de 2kg | C111: Ud | D111: 1 | E111: =IF($G111="ORSE",VLOOKUP($H111,ORSE_INSUM!A:E,4,0),IF($G111="SINAPI",VLOOKUP($H111,SINAPI_INSUM!A:E,5,0),IF($G111="SEINFRA",VLOOKUP($H111,SEINFRA_INSUM!B:F,4,0),IF($G111="COTAÇÃO",VLOOKUP($H111,'COTAÇÃO - MAT_CONSUMO'!B:L,10,0),"")))) -> 30.96 | F111: 30.96 | G111: COTAÇÃO | H111: 43
A112: 1.1.2.22.17 | B112: =IF($G112="ORSE",VLOOKUP($H112,ORSE_INSUM!A:E,2,0),IF($G112="SINAPI",VLOOKUP($H112,SINAPI_INSUM!A:E,2,0),IF($G112="SEINFRA",VLOOKUP($H112,SEINFRA_INSUM!B:F,2,0),IF($G112="COTAÇÃO",VLOOKUP($H112,'COTAÇÃO - MAT_CONSUMO'!B:L,2,0),"")))) -> Martelo pena 500g | C112: Ud | D112: 1 | E112: =IF($G112="ORSE",VLOOKUP($H112,ORSE_INSUM!A:E,4,0),IF($G112="SINAPI",VLOOKUP($H112,SINAPI_INSUM!A:E,5,0),IF($G112="SEINFRA",VLOOKUP($H112,SEINFRA_INSUM!B:F,4,0),IF($G112="COTAÇÃO",VLOOKUP($H112,'COTAÇÃO - MAT_CONSUMO'!B:L,10,0),"")))) -> 35.06 | F112: 35.06 | G112: COTAÇÃO | H112: 45
A113: 1.1.2.22.18 | B113: =IF($G113="ORSE",VLOOKUP($H113,ORSE_INSUM!A:E,2,0),IF($G113="SINAPI",VLOOKUP($H113,SINAPI_INSUM!A:E,2,0),IF($G113="SEINFRA",VLOOKUP($H113,SEINFRA_INSUM!B:F,2,0),IF($G113="COTAÇÃO",VLOOKUP($H113,'COTAÇÃO - MAT_CONSUMO'!B:L,2,0),"")))) -> PÁ DE BICO | C113: Ud | D113: 1 | E113: =IF($G113="ORSE",VLOOKUP($H113,ORSE_INSUM!A:E,4,0),IF($G113="SINAPI",VLOOKUP($H113,SINAPI_INSUM!A:E,5,0),IF($G113="SEINFRA",VLOOKUP($H113,SEINFRA_INSUM!B:F,4,0),IF($G113="COTAÇÃO",VLOOKUP($H113,'COTAÇÃO - MAT_CONSUMO'!B:L,10,0),"")))) -> 25.36 | F113: 25.36 | G113: SEINFRA | H113: I8933
A114: 1.1.2.22.19 | B114: =IF($G114="ORSE",VLOOKUP($H114,ORSE_INSUM!A:E,2,0),IF($G114="SINAPI",VLOOKUP($H114,SINAPI_INSUM!A:E,2,0),IF($G114="SEINFRA",VLOOKUP($H114,SEINFRA_INSUM!B:F,2,0),IF($G114="COTAÇÃO",VLOOKUP($H114,'COTAÇÃO - MAT_CONSUMO'!B:L,2,0),"")))) -> Picareta com cabo | C114: Ud | D114: 1 | E114: =IF($G114="ORSE",VLOOKUP($H114,ORSE_INSUM!A:E,4,0),IF($G114="SINAPI",VLOOKUP($H114,SINAPI_INSUM!A:E,5,0),IF($G114="SEINFRA",VLOOKUP($H114,SEINFRA_INSUM!B:F,4,0),IF($G114="COTAÇÃO",VLOOKUP($H114,'COTAÇÃO - MAT_CONSUMO'!B:L,10,0),"")))) -> 53.22 | F114: 53.22 | G114: COTAÇÃO | H114: 50
A115: 1.1.2.22.20 | B115: =IF($G115="ORSE",VLOOKUP($H115,ORSE_INSUM!A:E,2,0),IF($G115="SINAPI",VLOOKUP($H115,SINAPI_INSUM!A:E,2,0),IF($G115="SEINFRA",VLOOKUP($H115,SEINFRA_INSUM!B:F,2,0),IF($G115="COTAÇÃO",VLOOKUP($H115,'COTAÇÃO - MAT_CONSUMO'!B:L,2,0),"")))) -> Talhadeira em aço | C115: Ud | D115: 1 | E115: =IF($G115="ORSE",VLOOKUP($H115,ORSE_INSUM!A:E,4,0),IF($G115="SINAPI",VLOOKUP($H115,SINAPI_INSUM!A:E,5,0),IF($G115="SEINFRA",VLOOKUP($H115,SEINFRA_INSUM!B:F,4,0),IF($G115="COTAÇÃO",VLOOKUP($H115,'COTAÇÃO - MAT_CONSUMO'!B:L,10,0),"")))) -> 14.43 | F115: 14.43 | G115: COTAÇÃO | H115: 49
A116: 1.1.3.22.21 | B116: =IF($G116="ORSE",VLOOKUP($H116,ORSE_INSUM!A:E,2,0),IF($G116="SINAPI",VLOOKUP($H116,SINAPI_INSUM!A:E,2,0),IF($G116="SEINFRA",VLOOKUP($H116,SEINFRA_INSUM!B:F,2,0),IF($G116="COTAÇÃO",VLOOKUP($H116,'COTAÇÃO - MAT_CONSUMO'!B:L,2,0),"")))) -> Trena de 10m | C116: Ud | D116: 1 | E116: =IF($G116="ORSE",VLOOKUP($H116,ORSE_INSUM!A:E,4,0),IF($G116="SINAPI",VLOOKUP($H116,SINAPI_INSUM!A:E,5,0),IF($G116="SEINFRA",VLOOKUP($H116,SEINFRA_INSUM!B:F,4,0),IF($G116="COTAÇÃO",VLOOKUP($H116,'COTAÇÃO - MAT_CONSUMO'!B:L,10,0),"")))) -> 24.04 | F116: 24.04 | G116: COTAÇÃO | H116: 48
A118: 1.1.2.22 | B118: SUB TOTAL | F118: =SUM(F96:F116) -> 1166.09

Sheet 1.2.Mob_1.3.Desm
A1: 1. INSTALAÇÃO, MOBILIZAÇÃO E DESMOBILIZAÇÃO
A3: 1.2. MOBILIZAÇÃO
A5: 1.2.1. PLANILHA DE ESTIMATIVA DE CUSTO DE MOBILIZAÇÃO
A7: Item | B7: DESCRIÇÃO | C7: UNID. | D7: QUANT. | E7: VALOR
E8: UNIT. (R$) | F8: TOTAL (R$) | H8: Cód. SINAPI
A10: Equipamento
B11: =SINAPI_COMP!H2434 -> CAMINHÃO TOCO, PESO BRUTO TOTAL 16.000 KG, CARGA ÚTIL MÁXIMA DE 10.685 KG, DISTÂNCIA ENTRE EIXOS 4,80 M, POTÊNCIA 189 CV EXCLUSIVE CARROCERIA - CHP DIURNO. AF_06/2014 | C11: H | D11: 25 | E11: =VLOOKUP(H11,SINAPI_COMP!G:K,5,0) -> 140,89 | F11: =ROUND(D11*E11,2) -> 3522.25 | G11: SINAPI | H11: 5894 | L11: ='Planilha Resumida'!F97/2 -> 0
E12: Subtotal | F12: =SUM(F11) -> 3522.25
A14: Material
B15: - | C15: - | D15: 0 | E15: 0 | F15: =D15*E15 -> 0
E16: Subtotal | F16: =SUM(F15) -> 0
A18: Serviços - Composições Auxiliares
D19: 0 | E19: 0 | F19: =D19*E19 -> 0
E20: Subtotal | F20: =SUM(F19) -> 0
A22: Mão de Obra
B23: =SINAPI_INSUM!B425 -> AUXILIAR DE SERVICOS GERAIS | C23: H | D23: 50 | E23: =ROUND(VLOOKUP(H23,SINAPI_INSUM!A:E,5,0)/('ENC. SOCIAIS'!$D$46+1),2) -> 7.2 | F23: =D23*E23 -> 360 | G23: SINAPI | H23: 6121
E24: Subtotal | F24: =SUM(F23:F23) -> 360
D25: Enc. Sociais | E25: ='ENC. SOCIAIS'!$D$46 -> 1.1718 | F25: =ROUND(F24*E25,2) -> 421.85
E27: Subtotal Geral | F27: =F25+F24+F20+F16+F12 -> 4304.1
D28: BDI | E28: ='BDI - SERVIÇOS'!$C$30 -> 0.225 | F28: =F27*E28 -> 968.42
E30: Total Geral | F30: =F28+F27 -> 5272.52
A32: 1. INSTALAÇÃO, MOBILIZAÇÃO E DESMOBILIZAÇÃO
A34: 1.3. DESMOBILIZAÇÃO
A36: 1.3.1. PLANILHA DE ESTIMATIVA DE CUSTO DE DESMOBILIZAÇÃO
A38: Item | B38: DESCRIÇÃO | C38: UNID. | D38: QUANT. | E38: VALOR
E39: UNIT. (R$) | F39: TOTAL (R$)
A41: Equipamento
B42: =B11 -> CAMINHÃO TOCO, PESO BRUTO TOTAL 16.000 KG, CARGA ÚTIL MÁXIMA DE 10.685 KG, DISTÂNCIA ENTRE EIXOS 4,80 M, POTÊNCIA 189 CV EXCLUSIVE CARROCERIA - CHP DIURNO. AF_06/2014 | C42: H | D42: =D11 -> 25 | E42: =VLOOKUP(H42,SINAPI_COMP!G:K,5,0) -> 140,89 | F42: =ROUND(D42*E42,2) -> 3522.25 | G42: SINAPI | H42: 5894
E43: Subtotal | F43: =SUM(F42) -> 3522.25
A45: Material
B46: - | C46: - | D46: 0 | E46: 0 | F46: =D46*E46 -> 0
E47: Subtotal | F47: =SUM(F46) -> 0
A49: Serviços - Composições Auxiliares
D50: 0 | E50: 0 | F50: =D50*E50 -> 0
E51: Subtotal | F51: =SUM(F50) -> 0
A53: Mão de Obra
B54: =B23 -> AUXILIAR DE SERVICOS GERAIS | C54: H | D54: =D23 -> 50 | E54: =ROUND(VLOOKUP(H54,SINAPI_INSUM!A:E,5,0)/('ENC. SOCIAIS'!$D$46+1),2) -> 7.2 | F54: =D54*E54 -> 360 | G54: SINAPI | H54: 6121
E55: Subtotal | F55: =SUM(F54:F54) -> 360
D56: Enc. Sociais | E56: ='ENC. SOCIAIS'!$D$46 -> 1.1718 | F56: =F55*E56 -> 421.85
E58: Subtotal Geral | F58: =F56+F55+F51+F47+F43 -> 4304.1
D59: BDI | E59: ='BDI - SERVIÇOS'!C30 -> 0.225 | F59: =F58*E59 -> 968.42
E61: Total Geral | F61: =F59+F58 -> 5272.52

Sheet 2.1.1.Adm. Local (Veículos)
A1: 2. SERVIÇOS
A3: 2.1. ADMINISTRAÇÃO LOCAL
A5: 2.1.1. EQUIPAMENTOS (VEÍCULOS)
A7: Item | B7: DESCRIÇÃO | C7: UNID. | D7: QUANT. | E7: VALOR
E8: UNIT. (R$) | F8: TOTAL (R$)
A10: 2.1.1.1 | B10: Tipo picape compacta, cabine dupla, motor 1.4 ou maior, flex | C10: mês | D10: 2 | E10: ='CPU5 - VEÍCULOS E MAQ'!I40 -> 3986.57 | F10: =ROUND(E10*D10,2) -> 7973.14
A11: 2.1.1.2 | B11: Moto tipo cross 150 CC | C11: mês | D11: 3 | E11: ='CPU5 - VEÍCULOS E MAQ'!I154 -> 1601.21 | F11: =ROUND(E11*D11,2) -> 4803.63
A12: 2.1.1.3 | B12: Tipo passeio com motor 1.0 flex, potencia 72/85 cv, 5 portas, cor solida, básico | C12: mês | D12: 1 | E12: ='CPU5 - VEÍCULOS E MAQ'!I78 -> 3169.04 | F12: 3169.04
A13: 2.1.1.4 | B13: Tipo Van, Capac. mínima 15 passageiros, com ar-refrigerado e motor à diesel | C13: mês | D13: 1 | E13: ='CPU5 - VEÍCULOS E MAQ'!I192 -> 9948.25 | F13: 9948.25
A15: Subtotal | F15: =SUM(F10:F14) -> 25894.06
A17: TOTAL GERAL | F17: =F15 -> 25894.06
A19: Observação:

Sheet 2.1.2.Adm. Local (Material)
A1: 2. SERVIÇOS
A3: 2.1. ADMINISTRAÇÃO LOCAL
A5: 2.1.2. MATERIAL DE CONSUMO
A7: Item | B7: DESCRIÇÃO | C7: UNID. | D7: QUANT. | E7: VALOR
E8: UNIT. (R$) | F8: TOTAL (R$)
A10: 2.1.2.1 | B10: Material de limpeza e higiene | C10: mês | D10: 1 | E10: ='2.1.2.1. Mat_Cons_Limp'!F45 -> 1012.63 | F10: =E10*D10 -> 1012.63
A11: 2.1.2.2 | B11: Material de escritório | C11: mês | D11: 1 | E11: ='2.1.2.2. Mat_Escritório'!F53 -> 1095.18 | F11: =E11*D11 -> 1095.18
A13: Subtotal | F13: =SUM(F10:F12) -> 2107.81
A14: BDI FORNECIMENTO | E14: ='BDI - FORNECIMENTOS'!$C$31 -> 0.109 | F14: ='BDI - FORNECIMENTOS'!$C$31*F13 -> 229.75
A15: Subtotal + BDI | F15: =F14+F13 -> 2337.56
A17: TOTAL GERAL | F17: =F15 -> 2337.56

Sheet 2.1.2.1. Mat_Cons_Limp
A1: 2. SERVIÇOS
A3: 2.1. ADMINISTRAÇÃO LOCAL
A5: 2.1.2. MATERIAL DE CONSUMO
A7: 2.1.2.1. MATERIAIS DE CONSUMO, HIEGINE E LIMPEZA
A9: f) PLANILHA DE ESTIMATIVA DE DESPESAS ANUAL DE COPA, HIGIENE E LIMPEZA
A11: Item | B11: Descrição Material | C11: Quant. | D11: Unid. | E11: R$ unit. | F11: R$ total | H11: Cotação 1 | I11: Cotação 2 | J11: Cotação 3 | K11: Mediana (ADOTADO)
A14: 2.1.2.1.1 | B14: Material de Higiene e Limpeza:
A15: 2.1.2.1.1.1 | B15: Água Sanitária | C15: 240 | D15: L | E15: =K15 -> 3.16 | F15: =ROUND(C15*E15,2) -> 758.4 | H15: 1.74 | I15: 3.16 | J15: 3.25 | K15: =MEDIAN(H15:J15) -> 3.16
A16: 2.1.2.1.1.2 | B16: Balde 10 L | C16: 12 | D16: Ud | E16: =K16 -> 6.95 | F16: =ROUND(C16*E16,2) -> 83.4 | H16: 4.58 | I16: 6.95 | J16: 7.11 | K16: =MEDIAN(H16:J16) -> 6.95
A17: 2.1.2.1.1.3 | B17: Bom ar/Desodor | C17: 48 | D17: Ud | E17: 12.71 | F17: 610.08 | H17: 12.71 | I17: 12 | J17: 13.71 | K17: 12.71
A18: 2.1.2.1.1.4 | B18: Desinfetante, bactericida | C18: 180 | D18: L | E18: 5.38 | F18: 968.4 | H18: 6.49 | I18: =8.99/2 -> 4.5 | J18: =2.69*2 -> 5.38 | K18: 5.38
A19: 2.1.2.1.1.5 | B19: Detergente líquido | C19: 100 | D19: L | E19: 3.6 | F19: 360 | H19: =2.2*2 -> 4.4 | I19: =1.79*2 -> 3.58 | J19: =1.8*2 -> 3.6 | K19: 3.6
A20: 2.1.2.1.1.6 | B20: Guardanapo 21 x 22 cm (Pacote com 50 unidades) | C20: 100 | D20: Ud | E20: 1.99 | F20: 199 | H20: 1.99 | I20: 1.36 | J20: 2.99 | K20: 1.99
A21: 2.1.2.1.1.7 | B21: Lã de aço | C21: 100 | D21: Ud | E21: 2.18 | F21: 218 | H21: 1.29 | I21: 2.18 | J21: 2.56 | K21: 2.18
A22: 2.1.2.1.1.8 | B22: Pano de limpeza | C22: 72 | D22: Ud | E22: 4.49 | F22: 323.28 | H22: 3.6 | I22: 4.49 | J22: 5.25 | K22: 4.49
A23: 2.1.2.1.1.9 | B23: Papel Higiênico (rolo com 30 m) | C23: 360 | D23: Ud | E23: 1.56 | F23: 561.6 | H23: =10.99/8 -> 1.37 | I23: =100/64 -> 1.56 | J23: =6.59/4 -> 1.65 | K23: 1.56
A24: 2.1.2.1.1.10 | B24: Papel toalha | C24: 240 | D24: Ud | E24: 1.84 | F24: =ROUND(C24*E24,2) -> 441.6 | H24: =3.29/2 -> 1.65 | I24: =3.68/2 -> 1.84 | J24: =4.99/2 -> 2.5 | K24: 1.84
A25: 2.1.2.1.1.11 | B25: Rodo | C25: 20 | D25: Ud | E25: 14.99 | F25: 299.8 | H25: 14.99 | I25: 14.99 | J25: 14.38 | K25: 14.99
A26: 2.1.2.1.1.12 | B26: Sabão em pó | C26: 120 | D26: Kg | E26: 6.98 | F26: 837.6 | H26: =3.99*2 -> 7.98 | I26: =3.49*2 -> 6.98 | J26: 6.4 | K26: 6.98
A27: 2.1.2.1.1.13 | B27: Sabão de pedra (c/5 unidades) | C27: 12 | D27: Pct | E27: 7.15 | F27: 85.8 | H27: 5.49 | I27: 7.15 | J27: 7.35 | K27: 7.15
A28: 2.1.2.1.1.14 | B28: Sabonete líquido | C28: 180 | D28: L | E28: 7.8 | F28: 1404 | H28: =38.4/5 -> 7.68 | I28: =41.45/5 -> 8.29 | J28: =39/5 -> 7.8 | K28: 7.8
A29: 2.1.2.1.1.15 | B29: Sabonete 90 g | C29: 120 | D29: Ud | E29: 1.55 | F29: 186 | H29: 1.32 | I29: 1.55 | J29: 1.69 | K29: 1.55
A30: 2.1.2.1.1.16 | B30: Saco de lixo 30 L (pct c/ 10 unidades) | C30: 60 | D30: Pct | E30: 7.99 | F30: 479.4 | H30: 9.18 | I30: 4.29 | J30: 7.99 | K30: 7.99
A31: 2.1.2.1.1.17 | B31: Vassoura de nylon | C31: 20 | D31: Ud | E31: 15.06 | F31: 301.2 | H31: 15.69 | I31: 15.06 | J31: 15.06 | K31: 15.06
A32: Sub-total | F32: =SUM(F15:F31) -> 8117.56
A34: 2.1.2.1.2 | B34: Material de Copa:
A35: 2.1.2.1.2.1 | B35: Açúcar | C35: 100 | D35: Kg | E35: =K35 -> 2.89 | F35: =ROUND(C35*E35,2) -> 289 | H35: 2.78 | I35: 2.99 | K35: =MEDIAN(H35:J35) -> 2.89
A36: 2.1.2.1.2.2 | B36: Água Mineral (garrafão de 20 litros) | C36: 240 | D36: Garafão | E36: =K36 -> 9.5 | F36: 2280 | H36: 9.5 | K36: 9.5
A37: 2.1.2.1.2.3 | B37: Café torrado e moído | C37: 36 | D37: Kg | E37: 18.72 | F37: 673.92 | H37: =4.79*4 -> 19.16 | I37: =3.89*4 -> 15.56 | J37: =4.68*4 -> 18.72 | K37: 18.72
A38: 2.1.2.1.2.4 | B38: Copo descartável 200 ml | C38: 24 | D38: 100 ud | E38: 3.39 | F38: 81.36 | H38: =81.9/25 -> 3.28 | I38: 3.39 | J38: 4.66 | K38: 3.39
A39: 2.1.2.1.2.5 | B39: Copo descartável 50 ml | C39: 24 | D39: 100 ud | E39: 2.07 | F39: 49.68 | H39: 2.38 | I39: =100.76/50 -> 2.02 | J39: 2.07 | K39: 2.07
A40: 2.1.2.1.2.6 | B40: Gás de cozinha - GLP 13 Kg | C40: 12 | D40: Ud | E40: 55 | F40: 660 | H40: 55 | K40: 55
B42: Sub-total | F42: =SUM(F35:F41) -> 4033.96
A44: TOTAL ANUAL | F44: =F42+F32 -> 12151.52
A45: TOTAL MENSAL | F45: =F44/12 -> 1012.63

Sheet 2.1.2.2. Mat_Escritório
A1: 2. SERVIÇOS
A3: 2.1. ADMINISTRAÇÃO LOCAL
A5: 2.1.2. MATERIAL DE CONSUMO
A7: 2.1.2.2. MATERIAIS DE ESCRITÓRIO
A9: Item | B9: Descrição Material | C9: Quant. | D9: Unid. | E9: R$ unit. | F9: R$ total | H9: Cotação 1 | I9: Cotação 2 | J9: Cotação 3 | K9: Mediana (ADOTADO)
A12: 2.1.2.2.1 | B12: Aspiral 12 mm (para encadernação) | C12: 36 | D12: Ud | E12: =K12 -> 0.16 | F12: =ROUND(C12*E12,2) -> 5.76 | H12: =7.2/50 -> 0.14 | I12: =7.8/50 -> 0.16 | J12: =27.2/100 -> 0.27 | K12: =MEDIAN(H12:J12) -> 0.16
A13: 2.1.2.2.2 | B13: Aspiral 7 mm (para encadernação) | C13: 36 | D13: Ud | E13: =K13 -> 0.18 | F13: =ROUND(C13*E13,2) -> 6.48 | H13: 0.27 | I13: =2.99/25 -> 0.12 | J13: =4.57/25 -> 0.18 | K13: =MEDIAN(H13:J13) -> 0.18
A14: 2.1.2.2.3 | B14: Aspiral 9 mm (para encadernação) | C14: 36 | D14: Ud | E14: 0.14 | F14: 5.04 | H14: =4.6/50 -> 0.09 | I14: =3.59/25 -> 0.14 | J14: =6.86/50 -> 0.14 | K14: 0.14
A15: 2.1.2.2.4 | B15: Caneta esferográfica Azul | C15: 180 | D15: Ud | E15: 0.9 | F15: 162 | H15: 0.9 | I15: 0.85 | J15: 0.98 | K15: 0.9
A16: 2.1.2.2.5 | B16: Capa para encadernação Azul | C16: 36 | D16: Ud | E16: 0.45 | F16: 16.2 | H16: 0.45 | I16: =38.41/100 -> 0.38 | J16: =49.8/100 -> 0.5 | K16: 0.45
A17: 2.1.2.2.6 | B17: Capa para encadernação transparente | C17: 36 | D17: Ud | E17: 0.36 | F17: 12.96 | H17: =35.9/100 -> 0.36 | I17: =28.6/50 -> 0.57 | J17: =34.56/100 -> 0.35 | K17: 0.36
A18: 2.1.2.2.7 | B18: Cartucho preto para impressora deskjet | C18: 12 | D18: Ud | E18: 59.9 | F18: 718.8 | H18: 79 | I18: =59.9 -> 59.9 | J18: 56.94 | K18: 59.9
A19: 2.1.2.2.8 | B19: CD RW | C19: 12 | D19: Ud | E19: 1.96 | F19: 23.52 | H19: 0.9 | I19: =49.01/25 -> 1.96 | J19: =23.9/10 -> 2.39 | K19: 1.96
A20: 2.1.2.2.9 | B20: Clips nº 00 | C20: 6 | D20: Cx | E20: 2.1 | F20: 12.6 | H20: 2.1 | I20: 1.77 | J20: 2.4 | K20: 2.1
A21: 2.1.2.2.10 | B21: Clips nº 02 | C21: 6 | D21: Cx | E21: 2.11 | F21: 12.66 | H21: 1.57 | I21: 2.11 | J21: 2.95 | K21: 2.11
A22: 2.1.2.2.11 | B22: Clips nº 04 | C22: 6 | D22: Cx | E22: 2.9 | F22: 17.4 | H22: 1.57 | I22: 3.04 | J22: 2.9 | K22: =MEDIAN(H22:J22) -> 2.9
A23: 2.1.2.2.12 | B23: Clips nº 06 | C23: 6 | D23: Cx | E23: 2.88 | F23: 17.28 | H23: 1.57 | I23: 2.88 | J23: =31.99/10 -> 3.2 | K23: 2.88
A24: 2.1.2.2.13 | B24: Clips nº 08 | C24: 6 | D24: Cx | E24: 2.61 | F24: 15.66 | H24: 1.57 | I24: 2.61 | J24: =27.99/10 -> 2.8 | K24: 2.61
A25: 2.1.2.2.14 | B25: Cola branca 1litro | C25: 4 | D25: Ud | E25: 9.93 | F25: 39.72 | H25: 18.9 | I25: 7.02 | J25: 9.93 | K25: 9.93
A26: 2.1.2.2.15 | B26: Cópia em papel A4 (impressora laser) | C26: 6000 | D26: Ud | E26: 0.32 | F26: 1920 | H26: 0.32 | K26: 0.32
A27: 2.1.2.2.16 | B27: Corretivo a base d'água 18 ml | C27: 6 | D27: Ud | E27: 2.25 | F27: 13.5 | H27: 2.25 | I27: 2.02 | J27: 2.38 | K27: 2.25
A28: 2.1.2.2.17 | B28: Envelope de papel tamanho grande - 40 cm | C28: 60 | D28: Ud | E28: 0.56 | F28: 33.6 | H28: 0.67 | I28: 0.54 | J28: =55.53/100 -> 0.56 | K28: 0.56
A29: 2.1.2.2.18 | B29: Envelope de papel tamanho médio - 35 cm | C29: 60 | D29: Ud | E29: 0.32 | F29: 19.2 | H29: 0.54 | I29: 0.31 | J29: =31.99/100 -> 0.32 | K29: 0.32
A30: 2.1.2.2.19 | B30: Envelope de papel tamanho pequeno - 30 cm | C30: 60 | D30: Ud | E30: 0.29 | F30: 17.4 | H30: 0.5 | I30: 0.27 | J30: =28.85/100 -> 0.29 | K30: 0.29
A31: 2.1.2.2.20 | B31: Estilete | C31: 6 | D31: Ud | E31: 1.08 | F31: =ROUND(C31*E31,2) -> 6.48 | H31: 2.7 | I31: 0.99 | J31: 1.08 | K31: 1.08
A32: 2.1.2.2.21 | B32: Fita adesiva | C32: 6 | D32: Ud | E32: 2.7 | F32: 16.2 | H32: 3.6 | I32: 2.43 | J32: 2.7 | K32: 2.7
A33: 2.1.2.2.22 | B33: Fita adesiva transparente | C33: 12 | D33: Ud | E33: 1.53 | F33: 18.36 | H33: 1.12 | I33: 1.53 | J33: =11.42/6 -> 1.9 | K33: 1.53
A34: 2.1.2.2.23 | B34: Fita crepe branca 45 x 50 m | C34: 12 | D34: Ud | E34: 9.45 | F34: 113.4 | H34: 9.45 | I34: 6.33 | J34: 10 | K34: 9.45
A35: 2.1.2.2.24 | B35: Grampo 26/6 | C35: 12 | D35: Cx | E35: 5.4 | F35: 64.8 | H35: 5.4 | I35: 3.24 | J35: 10.15 | K35: 5.4
A36: 2.1.2.2.25 | B36: Grampo tipo trilho | C36: 12 | D36: Cx | E36: 12.15 | F36: 145.8 | H36: 12.15 | I36: 8.05 | J36: 12.99 | K36: 12.15
A37: 2.1.2.2.26 | B37: Lápis grafite comum | C37: 120 | D37: Ud | E37: 0.54 | F37: 64.8 | H37: 0.45 | I37: 0.72 | J37: =39.2/72 -> 0.54 | K37: 0.54
A38: 2.1.2.2.27 | B38: Lapiseira grafite, 05 mm | C38: 4 | D38: Ud | E38: 5.62 | F38: 22.48 | H38: 5.62 | I38: 3.15 | J38: 6.98 | K38: 5.62
A39: 2.1.2.2.28 | B39: Lapiseira grafite, 09 mm | C39: 4 | D39: Ud | E39: 5.62 | F39: 22.48 | H39: 5.62 | I39: 3.15 | J39: 6.9 | K39: 5.62
A40: 2.1.2.2.29 | B40: Livro de ata com 100 páginas numeradas | C40: 7 | D40: Ud | E40: 10.62 | F40: 74.34 | H40: 10.57 | I40: 10.62 | J40: 12.02 | K40: 10.62
A41: 2.1.2.2.30 | B41: Marca texto | C41: 5 | D41: Ud | E41: 2.02 | F41: 10.1 | H41: 1.57 | I41: 2.02 | J41: =28.44/12 -> 2.37 | K41: 2.02
A42: 2.1.2.2.31 | B42: Mina grafite 05mm com 12 unidades | C42: 4 | D42: Ud | E42: 3.24 | F42: =ROUND(C42*E42,2) -> 12.96 | H42: 2 | I42: 3.24 | J42: 6.6 | K42: 3.24
A43: 2.1.2.2.32 | B43: Mina grafite 09mm com 12 unidades | C43: 4 | D43: Ud | E43: 3.24 | F43: 12.96 | H43: 2 | I43: 3.24 | J43: 4.9 | K43: 3.24
A44: 2.1.2.2.33 | B44: Pasta aba elastica para arquivo | C44: 6 | D44: Ud | E44: 1.75 | F44: 10.5 | H44: 1.75 | I44: 1.62 | J44: 3.08 | K44: 1.75
A45: 2.1.2.2.34 | B45: Pasta para arquivo(suspensa) | C45: 80 | D45: Ud | E45: 1.62 | F45: 129.6 | H45: 1.57 | I45: 1.62 | J45: =81.91/50 -> 1.64 | K45: 1.62
A46: 2.1.2.2.35 | B46: Pen Drive 8 GB | C46: 4 | D46: Ud | E46: 33 | F46: 132 | H46: 33 | I46: 32.35 | J46: 38.25 | K46: 33
A47: 2.1.2.2.36 | B47: Régua 30 cm | C47: 12 | D47: Ud | E47: 1.89 | F47: 22.68 | H47: 1.75 | I47: 1.89 | J47: 2.2 | K47: 1.89
A48: 2.1.2.2.37 | B48: Resma papel A4 | C48: 24 | D48: Resma | E48: 19.9 | F48: =ROUND(C48*E48,2) -> 477.6 | H48: 21 | I48: 19.7 | J48: 19.9 | K48: 19.9
A49: 2.1.2.2.38 | B49: Tonner para impressora multifuncional laser com 10 ppm preto | C49: 12 | D49: Unid. | E49: 363.12 | F49: 4357.44 | H49: 363.12 | I49: 381.9 | J49: 334.71 | K49: 363.12
A50: 2.1.2.2.39 | B50: Tonner para impressora multifuncional laser com 10 ppm cor | C50: 12 | D50: Unid. | E50: 363.12 | F50: 4357.44 | H50: 363.12 | I50: 381.9 | J50: 334.71 | K50: 363.12
A52: TOTAL | F52: =SUM(F12:F51) -> 13142.2
A53: TOTAL MENSAL | F53: =F52/12 -> 1095.18

Sheet 2.1.3.Adm. Local (Alimentação)
A1: 2. SERVIÇOS
A3: 2.1. ADMINISTRAÇÃO LOCAL
A5: 2.1.3. ALIMENTAÇÃO
A7: Item | B7: DESCRIÇÃO | C7: UNID. | D7: QUANT. | E7: VALOR
E8: UNIT. (R$) | F8: TOTAL (R$)
A10: 2.1.3.1 | B10: Ticket alimentação O&M (Cláusula Nona - CCT SIEMACO 2018) | C10: ud | D10: =(SUM('2.1.4.Adm. Local (Mão Obra)'!F10:F13)+SUM('2.2.Operação'!E9:E12)+SUM('2.3.Manutenção'!E10:E15))*22 -> 528 | E10: 7.08 | F10: =E10*D10 -> 3738.24
A11: 2.1.3.3 | B11: Cesta Básica O&M (Cláusula Décima Primeira - CCT SIEMACO 2018) | C11: ud | D11: ='2.1.4.Adm. Local (Mão Obra)'!F12+'2.2.Operação'!E11+'2.3.Manutenção'!E13+'2.3.Manutenção'!E15 -> 8 | E11: 100 | F11: =E11*D11 -> 800 | G11: Direito à aqueles que recebem até R$ 1.046,40. | K11: ='2.2.Operação'!E11+'2.3.Manutenção'!E13+'2.3.Manutenção'!E15 -> 6
A12: Subtotal | F12: =SUM(F10:F11) -> 4538.24
A13: BDI DE SERVIÇO | E13: ='BDI - SERVIÇOS'!C30 -> 0.225 | F13: =ROUND(F12*'BDI - SERVIÇOS'!$C$30,2) -> 1021.1
A14: Subtotal + BDI | F14: =F13+F12 -> 5559.34
A16: TOTAL DO SERVIÇO - R$ | F16: =F14 -> 5559.34
A18: Observação:
A19: -
A20: Os valores dos salários acima especificados, foram repactuados conforme Convenção Coletiva de Trabalho 2015 do SIEMACO, Cláusula Terceira - Do Piso da Categoria para o cargo de Auxiliar de Serviços Gerais, Cláusula Quarta - Dos Reajustes Salariais, Parágrafo Primeiro, para os cargos de Gerente Executivo Pleno, Secretária, Assistente Administrativo, Auxiliar Administrativo e Almoxarife, e Convenção Coletiva de Trabalho 2014 do SINTTROP, Cláusula Terceira - Piso Salarial do Motorista, para o cargo de Motorista.
A21: O valor do Ticket Alimentação foi repactuado conforme Convenção Coletiva de Trabalho 2015 do SIEMACO, Cláusula Oitava - Do Vale Refeição/Alimentação ao valor de R$ 6,02.
A23: O valor da Contribuição Social foi repactuado conforme Convenção Coletiva de Trabalho 2015 do SIEMACO, Cláusula Décima Primeira - Dos Direitos as Coberturas Sociais, Parágrafo Primeiro.
A25: O valor da Cesta Básica foi adicionado ao custo dos Serviços - Composições Auxiliares identificado no quadro acima, conforme prescrito na Convenção Coletiva de Trabalho 2015 do SIEMACO, Item Gratificações, Adicionais, Auxílio e Outros - Auxílio Alimentação, Cláusula Décima - Cesta Básica, páginas 4 e 5 desssa convenção.

Sheet 2.1.4.Adm. Local (Mão Obra)
A1: 2. SERVIÇOS
A3: 2.1. ADMINISTRAÇÃO LOCAL
A5: 2.1.4. MÃO DE OBRA
A7: Item | B7: Ref. | C7: Cód. | D7: DESCRIÇÃO | E7: UNID. | F7: QUANT. | G7: VALOR
G8: UNIT. (R$) | H8: TOTAL (R$)
A10: 2.1.4.1 | B10: SINAPI | C10: 40813 | D10: Gerente Executivo Pleno (Engenheiro Pleno) | E10: mês | F10: 1 | G10: =ROUND(VLOOKUP(C10,SINAPI_INSUM!A:E,5,0)/(1+'ENC. SOCIAIS'!$C$46),2) -> 9229.94 | H10: =G10*F10 -> 9229.94
A11: 2.1.4.2 | B11: SINAPI | C11: 40908 | D11: =SINAPI_INSUM!B413 -> AUXILIAR DE ALMOXARIFE (MENSALISTA) | E11: mês | F11: 1 | G11: =ROUND(VLOOKUP(C11,SINAPI_INSUM!A:E,5,0)/(1+'ENC. SOCIAIS'!$C$46),2) -> 1127.76 | H11: =G11*F11 -> 1127.76
A12: 2.1.4.3 | B12: CCT2017/2018 | C12: PE000205/2018 | D12: =ORSE_INSUM!B775 -> AUXILIAR DE SERVIÇOS GERAIS | E12: mês | F12: 2 | G12: 975.72 | H12: =G12*F12 -> 1951.44
A13: 2.1.4.4 | B13: CCT2017/2018 | C13: PE001199/2017 | D13: MOTORISTA - SINDICATO DOS TRAB. EM TRANSP. RODOV. DE PETROLINA E DA REG. SERTÃO PERNAMBUCO | E13: mês | F13: 1 | G13: 1959.04 | H13: =G13*F13 -> 1959.04
A14: Subtotal | H14: =SUM(H10:H13) -> 14268.18
A15: Encargos Sociais | G15: ='ENC. SOCIAIS'!$C$46 -> 0.7227 | H15: =H14*G15 -> 10311.61
A16: Subtotal + E. Sociais | H16: =SUM(H14:H15) -> 24579.79
A17: BDI DE SERVIÇO sobre Subtotal + E. Sociais | H17: =H16*'BDI - SERVIÇOS'!C30 -> 5530.45
A18: SUBTOTAL | H18: =SUM(H16:H17) -> 30110.24
A20: TOTAL DO SERVIÇO - R$ | H20: =H18 -> 30110.24
A22: Observação:

Sheet 2.1.5.Adm. Local (Manutenção)
A1: 2. SERVIÇOS
A3: 2.1. ADMINISTRAÇÃO LOCAL
A5: 2.1.5. SERVIÇO DE MANUTENÇÃO TÉCNICO ESPECIALIZADO
A7: Item | B7: DESCRIÇÃO | C7: UNID. | D7: QUANT. | E7: VALOR
E8: UNIT. (R$) | F8: TOTAL (R$)
G9: SINAPI
A10: 2.1.5.1 | B10: Serviço técnico especializado para manutenção preventiva e corretiva de máquinas e equipamentos (hora/homem - ref. montador eletromecânico com encargos - cód. comp. 88279) | C10: h | D10: =ROUND(265/2,0) -> 133 | E10: =VLOOKUP(G10,SINAPI_COMP!G:K,5,0) -> 27,61 | F10: =E10*D10 -> 3672.13 | G10: 88279
A12: TOTAL ANUAL | F12: =SUM(F10:F10) -> 3672.13
A13: TOTAL MENSAL | F13: =F12/12 -> 306.01
A14: BDI DE SERVIÇO | E14: ='BDI - SERVIÇOS'!$C$30 -> 0.225 | F14: =(F13*$E$14) -> 68.85
A15: TOTAL MENSAL COM BDI DE SERVIÇO | F15: =F14+F13 -> 374.86
A17: Observação:
A18: * Serviços de manutenção e instalação de ar-condicionados, rádios transmissores (fixos e móveis), internet, telefone, computadores e impressoras.

Sheet 2.2.Operação
A1: 2.2. PLANILHA DE ESTIMATIVA DE CUSTO ANUAL DE OPERAÇÃO DAS INFRAESTRUTURAS (MÃO-DE-OBRA):
A3: 2.2.1. PLANILHA DE ESTIMATIVA DE CUSTO ANUAL DE MÃO-DE-OBRA DE OPERAÇÃO EB'S E CANAIS
A5: Item | B5: Ref. | C5: Cód. | D5: Atividade/Função | G5: Mão-de-obra/unidade/ano | U5: TOTAL ANUAL (R$) | V5: ENCARGOS SOCIAIS | W5: TOTAL ANUAL COM ENCARGOS (+72,27%) (R$)
E6: Quantidade de empregados | F6: Salário | G6: Unidade de Execução de Serviços | H6: Quantidade de Unidades | I6: Quantidade de horas/Ano | J6: Valor Unit. R$/h | K6: Valor Total (B) | L6: Aditivo de periculosidade:30% / ad.noturno: 7 h a 20%/noturna red a 50% e intrajornada:13ªhora a 50% ( C ) | M6: Horas-Extras | T6: Valor Total (R$)
M7: Horas-Extras | O7: Valor Unitário (R$) | Q7: Valor Total (R$) | S7: Valor Total (R$)
H8: (A) | K8: (R$) | M8: 1 | N8: 0.6 | O8: 1 | P8: 0.6 | Q8: 1 | R8: 0.6 | S8: (D) | T8: (E)=(B+C+D) | U8: (F)=(ExA) | V8: ='ENC. SOCIAIS'!C46 -> 0.7227
A9: 1 | B9: SINAPI | C9: 40928 | D9: Operador de Estação de Bombas - DIURNO | E9: 2 | F9: =VLOOKUP(C9,SINAPI_INSUM!A:E,5,0)/(1+'ENC. SOCIAIS'!$C$46) -> 1471.79 | G9: EB´s, EP´s, Canais e Adutoras | H9: 1 | I9: =ROUND((52*44*E9)/H9,2) -> 4576 | J9: =F9/(189.2) -> 7.78 | K9: =J9*I9 -> 35601.28 | L9: =(K9*0.3) -> 10680.38 | M9: 0 | N9: 0 | O9: 0 | P9: 0 | Q9: =O9*M9*1.21 -> 0 | R9: 0 | S9: =(SUM(Q9:R9)) -> 0 | T9: =SUM(K9+L9+S9) -> 46281.66 | U9: =(T9)*H9 -> 46281.66 | V9: =U9*$V$8 -> 33447.76 | W9: =ROUND(U9+V9,2) -> 79729.42
B10: SINAPI | C10: 40928 | D10: Operador de Estação de Bombas - NOTURNO | E10: 6 | F10: =VLOOKUP(C10,SINAPI_INSUM!A:E,5,0)/(1+'ENC. SOCIAIS'!$C$46) -> 1471.79 | G10: EB´s, EP´s, Canais e Adutoras | H10: 3 | I10: =ROUND((52*44*E10)/H10,2) -> 4576 | J10: =F10/(189.2) -> 7.78 | K10: =J10*I10 -> 35601.28 | L10: =(K10*0.3)+(((365*7)*J10*0.2))+((1*J10*1.5*365)/H10)+((0.14285*7*1.5*J10*365)/H10) -> 17495.59 | T10: =SUM(K10+L10+S10) -> 53096.87 | U10: =(T10)*H10 -> 159290.61 | V10: =U10*$V$8 -> 115119.32 | W10: =ROUND(U10+V10,2) -> 274409.93
A11: 2 | B11: CCT2017/2018 | C11: PE000205/2018 | D11: Leiturista/Inspetor de Irrigação/Canaleiro | E11: 4 | F11: ='2.1.4.Adm. Local (Mão Obra)'!G12 -> 975.72 | G11: EB´s, EP´s, Canais e Adutoras | H11: 2 | I11: =ROUND((52*44*E11)/H11,2) -> 4576 | J11: =F11/(189.2) -> 5.16 | K11: =J11*I11 -> 23612.16 | L11: =K11*0.3 -> 7083.65 | M11: 0 | N11: 0 | O11: 0 | P11: 0 | Q11: 0 | R11: 0 | S11: =(SUM(Q11:R11)) -> 0 | T11: =SUM(K11+L11+S11) -> 30695.81 | U11: =(T11)*H11 -> 61391.62 | V11: =U11*$V$8 -> 44367.72 | W11: =ROUND(U11+V11,2) -> 105759.34
A12: 3 | B12: Codevasf | C12: T2 | D12: Técnico Agrícola - Coordenador Operação e Manutenção | E12: 1 | F12: =4769.6 -> 4769.6 | G12: EB´s, EP´s, Canais e Adutoras | H12: 1 | I12: =ROUND((52*44*E12)/(H12),2) -> 2288 | J12: =F12/220 -> 21.68 | K12: =J12*I12 -> 49603.84 | M12: 0 | N12: 0 | O12: 0 | P12: 0 | Q12: =O12*M12*1.21 -> 0 | R12: =P12*N12*1.21 -> 0 | S12: =(SUM(Q12:R12)) -> 0 | T12: =SUM(K12+L12+S12) -> 49603.84 | U12: =(T12)*H12 -> 49603.84 | V12: =U12*$V$8 -> 35848.7 | W12: =ROUND(U12+V12,2) -> 85452.54
A13: TOTAL GERAL | S13: =SUM(S9:S12) -> 0 | T13: =SUM(T9:T12) -> 179678.18 | U13: =SUM(U9:U12) -> 316567.73 | W13: =SUM(W9:W12) -> 545351.23
A14: BDI - SERVIÇO | V14: ='BDI - SERVIÇOS'!$C$30 -> 0.225 | W14: =W13*V14 -> 122704.03
A15: TOTAL GERAL COM BDI | W15: =ROUND(W13+W14,2) -> 668055.26
A16: TOTAL MENSAL COM BDI | W16: =W15/12 -> 55671.27

Sheet 2.3.Manutenção
A1: 2.3. PLANILHA DE ESTIMATIVA DE CUSTO ANUAL DE SERVIÇO DE MANUTENÇÃO (MÃO-DE-OBRA)
A3: 2.3.1 PLANILHA DE ESTIMATIVA DE CUSTO ANUAL DE MÃO-DE-OBRA DE MANUTENÇÃO ELETROMECÂNICA E HIDRÁULICA
A5: Item | B5: Ref. | C5: Cód. | D5: Atividade/Função | E5: Quant. | F5: Salário | G5: Unidade de Execução de Serviços | H5: Quantidade de Unidades | I5: Mão-de-obra/unidade /ano | U5: TOTAL ANUAL (R$) | V5: ENCARGOS SOCIAIS | W5: TOTAL ANUAL COM ENCARGOS (***) (R$)
I6: CUSTO FIXO - CF | M6: CUSTO VARIÁVEL - CV | T6: Valor Total (R$)
I7: Quant. de horas/Ano | J7: Valor Unit. (R$) | K7: Valor Total (B) | L7: Adicionais de periculosidade à 30% (C) | M7: Horas-Extras
M8: Horas-Extras | O8: Valor Unitário (R$) | Q8: Valor Total (R$) | S8: Valor Total (R$)
H9: (A) | K9: (R$) | M9: 1 | N9: 0.6 | O9: 1 | P9: 0.6 | Q9: 1 | R9: 0.6 | S9: (D) | T9: (E)=(B+C+D) | U9: (F)=(ExA) | V9: ='ENC. SOCIAIS'!$C$46 -> 0.7227
A10: 1 | B10: Codevasf | C10: T2 | D10: Técnico Junior Mecânico | E10: 1 | F10: ='2.2.Operação'!$F$12 -> 4769.6 | G10: EB´s, EP´s, Canais, Adutoras e Esc. Adm. Local | H10: 1 | I10: =ROUND((52*44*E10)/(H10),2) -> 2288 | J10: =F10/220 -> 21.68 | K10: =J10*I10 -> 49603.84 | L10: =K10*0.3 -> 14881.15 | M10: =I10*0.05 -> 114.4 | N10: =I10*0.025 -> 57.2 | O10: =J10*2 -> 43.36 | P10: =J10*1.6 -> 34.69 | Q10: =M10*O10*1.21 -> 6002.06 | R10: 2400.96 | S10: =(SUM(Q10:R10)) -> 8403.02 | T10: =SUM(K10+L10+S10) -> 72888.01 | U10: =T10*H10 -> 72888.01 | V10: =ROUND(U10*$V$9,2) -> 52676.16 | W10: =ROUND(U10+V10,2) -> 125564.17
A11: 2 | B11: SINAPI | C11: 40975 | D11: Auxiliar de Mecânico | E11: 1 | F11: =VLOOKUP(C11,SINAPI_INSUM!A:E,5,0)/(1+'ENC. SOCIAIS'!$C$46) -> 2217.97 | G11: EB´s, EP´s, Canais, Adutoras e Esc. Adm. Local | H11: 1 | I11: 2288 | J11: 10.08 | K11: 23063.04 | L11: =K11*0.3 -> 6918.91 | M11: 114.4 | N11: 57.2 | O11: 20.16 | P11: 16.13 | Q11: 2790.63 | R11: 1116.39 | S11: 3907.02 | T11: 33888.97 | U11: 33888.97 | V11: =ROUND(U11*$V$9,2) -> 24491.56 | W11: =ROUND(U11+V11,2) -> 58380.53
A12: 3 | B12: Codevasf | C12: T2 | D12: Técnico Junior Eletrotécnico | E12: 1 | F12: ='2.2.Operação'!$F$12 -> 4769.6 | G12: EB´s, EP´s, Canais, Adutoras e Esc. Adm. Local | H12: 1 | I12: 2288 | J12: 21.68 | K12: 49603.84 | L12: =K12*0.3 -> 14881.15 | M12: 114.4 | N12: 57.2 | O12: 43.36 | P12: 34.69 | Q12: 6002.06 | R12: 2400.96 | S12: 8403.02 | T12: 72888.01 | U12: 72888.01 | V12: 52676.16 | W12: 125564.17
A13: 4 | B13: SINAPI | C13: 40919 | D13: Ajudante de Eletricista | E13: 1 | F13: =VLOOKUP(C13,SINAPI_INSUM!A:E,5,0)/(1+'ENC. SOCIAIS'!$C$46) -> 1035.33 | G13: EB´s, EP´s, Canais, Adutoras e Esc. Adm. Local | H13: 1 | I13: 2288 | J13: 4.71 | K13: 10776.48 | L13: =K13*0.3 -> 3232.94 | M13: 114.4 | N13: 57.2 | O13: 9.42 | P13: 7.54 | Q13: 1303.95 | R13: 521.86 | S13: 1825.81 | T13: 15835.23 | U13: 15835.23 | V13: =ROUND(U13*$V$9,2) -> 11444.12 | W13: =ROUND(U13+V13,2) -> 27279.35
A14: 5 | B14: SINAPI | C14: 40928 | D14: Encanador | E14: 1 | F14: =VLOOKUP(C14,SINAPI_INSUM!A:E,5,0)/(1+'ENC. SOCIAIS'!$C$46) -> 1471.79 | G14: EB´s, EP´s, Canais, Adutoras e Esc. Adm. Local | H14: 1 | I14: 2288 | J14: 6.69 | K14: 15306.72 | L14: 0 | M14: 114.4 | N14: 57.2 | O14: 13.38 | P14: 10.7 | Q14: 1852.11 | R14: 740.57 | S14: 2592.68 | T14: 17899.4 | U14: 17899.4 | V14: 12935.9 | W14: =ROUND(U14+V14,2) -> 30835.3
A15: 6 | B15: SINAPI | C15: 40927 | D15: Auxiliar de encanador | E15: 1 | F15: =VLOOKUP(C15,SINAPI_INSUM!A:E,5,0)/(1+'ENC. SOCIAIS'!$C$46) -> 1043.48 | G15: EB´s, EP´s, Canais, Adutoras e Esc. Adm. Local | H15: 1 | I15: 2288 | J15: 4.74 | K15: 10845.12 | L15: 0 | M15: 114.4 | N15: 57.2 | O15: 9.48 | P15: 7.58 | Q15: 1312.26 | R15: 524.63 | S15: 1836.89 | T15: 12682.01 | U15: 12682.01 | V15: 9165.29 | W15: 21847.3
A16: TOTAL GERAL | S16: =SUM(S10:S15) -> 26968.44 | T16: =SUM(T10:T15) -> 226081.63 | U16: =SUM(U10:U15) -> 226081.63 | V16: =SUM(V10:V15) -> 163389.19 | W16: =SUM(W10:W15) -> 389470.82
A17: BDI - SERVIÇO | V17: ='BDI - SERVIÇOS'!$C$30 -> 0.225 | W17: =W16*V17 -> 87630.93
A18: TOTAL GERAL COM BDI | W18: =W16+W17 -> 477101.75
A19: TOTAL MENSAL COM BDI | W19: =W18/12 -> 39758.48
U20: Valor Original | W20: 41977.1

Sheet 2.3.2.1. e 2.3.2.2.Loc Máquinas
A1: 2.3. MANUTENÇÃO DAS INFRAESTRUTURAS
A3: 2.3.2 MANUTENÇÃO (SERVIÇOS SAZONAIS)
A5: 2.3.2.1. LOCAÇÃO DE MÁQUINA RETROESCAVADEIRA SOBRE RODAS, TRAÇÃO 4X4, POTÊNCIA MÍN. 70 HP, CAÇAMBA CAP. MÍN. 0,73 M³, PESO OPERACIONAL MÍN. 6.500 KG, PROFUNDIDADE DE ESCAVAÇÃO SUPERIOR A 4,0 M
A7: ITEM | B7: Ref. | C7: Cód CPU | D7: DESCRIÇÃO | E7: QUANT. | F7: UNID. | G7: VALOR
G8: UNIT. (R$) | H8: TOTAL (R$)
A9: 2.3.2.1.1 | B9: SINAPI | C9: 5680 | D9: =SINAPI_COMP!H2323 -> RETROESCAVADEIRA SOBRE RODAS COM CARREGADEIRA, TRAÇÃO 4X2, POTÊNCIA LÍQ. 79 HP, CAÇAMBA CARREG. CAP. MÍN. 1 M3, CAÇAMBA RETRO CAP. 0,20 M3, PESO OPERACIONAL MÍN. 6.570 KG, PROFUNDIDADE ESCAVAÇÃO MÁX. 4,37 M - CHP DIURNO. AF_06/2014 | E9: =1320/3 -> 440 | F9: Horas | G9: =VLOOKUP(C9,SINAPI_COMP!G:K,5,0) -> 109,66 | H9: =G9*E9 -> 48250.4
A11: SUBTOTAL | H11: =H9 -> 48250.4
A12: BDI (SERVIÇO) | G12: ='BDI - SERVIÇOS'!$C$30 -> 0.225 | H12: =ROUND(H11*G12,2) -> 10856.34
A13: TOTAL GERAL | H13: =SUM(H11:H12) -> 59106.74
A15: 2.3.2.2. LOCAÇÃO DE EQUIPAMENTOS DE CARGA E TRANSPORTE
A17: ITEM | B17: Ref. | C17: Cód CPU | D17: DESCRIÇÃO | E17: QUANT. | F17: UNID. | G17: VALOR
G18: UNIT. (R$) | H18: TOTAL (R$)
A20: 2.3.2.2.1 | B20: SINAPI | C20: 5928 | D20: =SINAPI_COMP!H2458 -> GUINDAUTO HIDRÁULICO, CAPACIDADE MÁXIMA DE CARGA 6200 KG, MOMENTO MÁXIMO DE CARGA 11,7 TM, ALCANCE MÁXIMO HORIZONTAL 9,70 M, INCLUSIVE CAMINHÃO TOCO PBT 16.000 KG, POTÊNCIA DE 189 CV - CHP DIURNO. AF_06/2014 | E20: =ROUND(500/3,2) -> 166.67 | F20: Horas | G20: =VLOOKUP(C20,SINAPI_COMP!G:K,5,0) -> 150,99 | H20: =ROUND(G20*E20,2) -> 25165.5
A21: 2.3.2.2.2 | B21: SINAPI | C21: 67826 | D21: =SINAPI_COMP!H2517 -> CAMINHÃO BASCULANTE 6 M3 TOCO, PESO BRUTO TOTAL 16.000 KG, CARGA ÚTIL MÁXIMA 11.130 KG, DISTÂNCIA ENTRE EIXOS 5,36 M, POTÊNCIA 185 CV, INCLUSIVE CAÇAMBA METÁLICA - CHP DIURNO. AF_06/2014 | E21: =480/3 -> 160 | F21: Horas | G21: =VLOOKUP(C21,SINAPI_COMP!G:K,5,0) -> 149,90 | H21: =ROUND(G21*E21,2) -> 23984
A22: 2.3.2.2.3 | B22: ORSE | C22: 3465 | D22: =ORSE_COMP!B3146 -> TRANSPORTE DE MÁQUINAS E EQUIPAMENTOS POR PRANCHA REBAIXADA (MIN.=100KM) | E22: =4*150 -> 600 | F22: km | G22: =VLOOKUP(C22,ORSE_COMP!A:D,4,0) -> 3 | H22: 1800
A24: SUBTOTAL | H24: =SUM(H20:H22) -> 50949.5
A25: BDI (SERVIÇO) | G25: ='BDI - SERVIÇOS'!$C$30 -> 0.225 | H25: =ROUND(H24*G25,2) -> 11463.64
A26: TOTAL GERAL | H26: =SUM(H24:H25) -> 62413.14

Sheet 2.3.2.3.MS-Adutora e Canal
A1: 2.3. MANUTENÇÃO DAS INFRAESTRUTURAS
A3: 2.3.2 MANUTENÇÃO (SERVIÇOS SAZONAIS)
A5: 2.3.2.3 CANAL PRINCIPAL E SECUNDÁRIO
A7: ITEM | B7: Ref. | C7: Cód. CPU | D7: DESCRIÇÃO | E7: UNID. | F7: QUANT. | G7: VALOR
G8: UNIT. (R$) | H8: TOTAL (R$)
A10: 2.3.2.3.1. CONSERTOS DE CANAIS E ADUTORAS
A11: 2.3.2.3.1.1 | B11: CODEVASF | C11: ='CPU1 - CANAL'!C165 -> 10 | D11: Limpeza manual das placas dos canais com hidrojato, com retirada de solo e vegetação, inclusive das juntas, com ferramentas | E11: km | F11: 2 | G11: =IF($B11="ORSE",VLOOKUP($C11,ORSE_COMP!A:D,4,0),IF($B11="SINAPI",VLOOKUP($C11,SINAPI_COMP!G:K,5,0),IF($B11="SEINFRA",VLOOKUP($C11,SEINFRA_COMP!A:G,7,0),IF(B11="CODEVASF",VLOOKUP(C11,'CPU1 - CANAL'!C:I,7,0),"")))) -> 5823.2 | H11: =ROUND(G11*F11,2) -> 11646.4 | K11: 10 | L11: Limpeza manual das placas dos canais com hidrojato, com retirada de solo e vegetação, inclusive das juntas, com ferramentas
A12: 2.3.2.3.1.2 | B12: CODEVASF | C12: ='CPU1 - CANAL'!C138 -> 9 | D12: Limpeza dos canais de irrigação com escavadeira hidráulica sobre esteira, de longo alcance, com concha lisa com lâmina | E12: km | F12: =ROUND('MEMO - ESTRADAS'!B79/2,0) -> 24 | G12: =IF($B12="ORSE",VLOOKUP($C12,ORSE_COMP!A:D,4,0),IF($B12="SINAPI",VLOOKUP($C12,SINAPI_COMP!G:K,5,0),IF($B12="SEINFRA",VLOOKUP($C12,SEINFRA_COMP!A:G,7,0),IF(B12="CODEVASF",VLOOKUP(C12,'CPU1 - CANAL'!C:I,7,0),"")))) -> 1191.07 | H12: =ROUND(G12*F12,2) -> 28585.68 | K12: 9 | L12: Limpeza dos canais de irrigação com escavadeira hidráulica sobre esteira, de longo alcance, com concha lisa com lâmina
A13: 2.3.2.3.1.3 | B13: SINAPI | C13: 93358 | D13: Escavação manual - aterro da seção do canal | E13: m³ | F13: =ROUND('MEMO - ESTRADAS'!D45/3,0) -> 56 | G13: =IF($B13="ORSE",VLOOKUP($C13,ORSE_COMP!A:D,4,0),IF($B13="SINAPI",VLOOKUP($C13,SINAPI_COMP!G:K,5,0),IF($B13="SEINFRA",VLOOKUP($C13,SEINFRA_COMP!A:G,7,0),IF(B13="CODEVASF",VLOOKUP(C13,'CPU1 - CANAL'!C:I,7,0),"")))) -> 62,06 | H13: =G13*F13 -> 3475.36 | K13: 93358 | L13: Escavação manual de valas
A14: 2.3.2.3.1.4 | B14: CODEVASF | C14: ='CPU1 - CANAL'!C111 -> 8 | D14: Aterro compactado p/ regularização dos taludes dos canais com solo cimento (6%) | E14: m³ | F14: =ROUND('MEMO - ESTRADAS'!D45/3,0) -> 56 | G14: =IF($B14="ORSE",VLOOKUP($C14,ORSE_COMP!A:D,4,0),IF($B14="SINAPI",VLOOKUP($C14,SINAPI_COMP!G:K,5,0),IF($B14="SEINFRA",VLOOKUP($C14,SEINFRA_COMP!A:G,7,0),IF(B14="CODEVASF",VLOOKUP(C14,'CPU1 - CANAL'!C:I,7,0),"")))) -> 91.1 | H14: 5101.6 | K14: 8 | L14: Aterro compactado p/ regularização dos taludes dos canais com solo cimento (6%)
A15: 2.3.2.3.1.5 | B15: ORSE | C15: 13 | D15: =IF($B15="ORSE",VLOOKUP($C15,ORSE_COMP!A:D,2,0),IF($B15="SINAPI",VLOOKUP($C15,SINAPI_COMP!G:K,2,0),IF($B15="SEINFRA",VLOOKUP($C15,SEINFRA_COMP!A:G,3,0),""))) -> DEMOLIÇÃO DE CONCRETO MANUALMENTE | E15: m³ | F15: =ROUND('MEMO - ESTRADAS'!I48/3,0) -> 83 | G15: =IF($B15="ORSE",VLOOKUP($C15,ORSE_COMP!A:D,4,0),IF($B15="SINAPI",VLOOKUP($C15,SINAPI_COMP!G:K,5,0),IF($B15="SEINFRA",VLOOKUP($C15,SEINFRA_COMP!A:G,7,0),IF(B15="CODEVASF",VLOOKUP(C15,'CPU1 - CANAL'!C:I,7,0),"")))) -> 173.86 | H15: 14430.38 | K15: 97629 | L15: DEMOLIÇÃO DE LAJES, DE FORMA MECANIZADA COM MARTELETE, SEM REAPROVEITAMENTO. AF_12/2017
A16: 2.3.2.3.1.6 | B16: CODEVASF | C16: ='CPU1 - CANAL'!C1 -> 1 | D16: Recuperação de placas de concreto 15 Mpa | E16: m³ | F16: =ROUND('MEMO - ESTRADAS'!I48/3,0) -> 83 | G16: =IF($B16="ORSE",VLOOKUP($C16,ORSE_COMP!A:D,4,0),IF($B16="SINAPI",VLOOKUP($C16,SINAPI_COMP!G:K,5,0),IF($B16="SEINFRA",VLOOKUP($C16,SEINFRA_COMP!A:G,7,0),IF(B16="CODEVASF",VLOOKUP(C16,'CPU1 - CANAL'!C:I,7,0),"")))) -> 298.1 | H16: =G16*F16 -> 24742.3 | K16: 1 | L16: Recuperação de placas de concreto 15 Mpa
A17: 2.3.2.3.1.7 | B17: ORSE | C17: 4114 | D17: =IF($B17="ORSE",VLOOKUP($C17,ORSE_COMP!A:D,2,0),IF($B17="SINAPI",VLOOKUP($C17,SINAPI_COMP!G:K,2,0),IF($B17="SEINFRA",VLOOKUP($C17,SEINFRA_COMP!A:G,3,0),""))) -> TRATAMENTO DE FISSURAS COM ARGAMASSA DE CIMENTO E AREIA TRAÇO 1:3 COM ADITIVO BIANCO OU SIMILAR (SEÇÃO ATÉ 5 X 5 CM) | E17: m² | F17: =ROUND(200/3,0) -> 67 | G17: =IF($B17="ORSE",VLOOKUP($C17,ORSE_COMP!A:D,4,0),IF($B17="SINAPI",VLOOKUP($C17,SINAPI_COMP!G:K,5,0),IF($B17="SEINFRA",VLOOKUP($C17,SEINFRA_COMP!A:G,7,0),IF(B17="CODEVASF",VLOOKUP(C17,'CPU1 - CANAL'!C:I,7,0),"")))) -> 12.3 | H17: 824.1 | K17: 7 | L17: Recuperação de trincas
A18: 2.3.2.3.1.8 | B18: CODEVASF | C18: ='CPU1 - CANAL'!C33 -> 3 | D18: Retirada de geomembrana existente | E18: m² | F18: =ROUND('MEMO - ESTRADAS'!D52/3,0) -> 1664 | G18: =IF($B18="ORSE",VLOOKUP($C18,ORSE_COMP!A:D,4,0),IF($B18="SINAPI",VLOOKUP($C18,SINAPI_COMP!G:K,5,0),IF($B18="SEINFRA",VLOOKUP($C18,SEINFRA_COMP!A:G,7,0),IF(B18="CODEVASF",VLOOKUP(C18,'CPU1 - CANAL'!C:I,7,0),"")))) -> 1.09 | H18: 1813.76 | J18: ='Planilha Resumida'!F94 -> 4950000 | K18: 3 | L18: Retirada de geomembrana existente
A19: 2.3.2.3.1.12 | B19: CODEVASF | C19: ='CPU1 - CANAL'!C55 -> 4 | D19: Manta termoplástica, PEAD ou PVC, geomembrana texturizada ou com bidim acoplado, e = 0,80 mm (fornec, transporte e instalação) | E19: m² | F19: =F18 -> 1664 | G19: =IF($B19="ORSE",VLOOKUP($C19,ORSE_COMP!A:D,4,0),IF($B19="SINAPI",VLOOKUP($C19,SINAPI_COMP!G:K,5,0),IF($B19="SEINFRA",VLOOKUP($C19,SEINFRA_COMP!A:G,7,0),IF(B19="CODEVASF",VLOOKUP(C19,'CPU1 - CANAL'!C:I,7,0),"")))) -> 19.37 | H19: 32231.68 | J19: =4950000 -> 4950000 | K19: 4 | L19: Manta termoplástica, PEAD ou PVC, geomembrana texturizada ou com bidim acoplado, e = 0,80 mm (fornec, transporte e instalação)
A20: 2.3.2.3.1.13 | B20: SINAPI | C20: 74121/1 | D20: =SINAPI_COMP!H14034 -> JUNTA DE DILATACAO PARA IMPERMEABILIZACAO, COM SELANTE ELASTICO MONOCOMPONENTE A BASE DE POLIURETANO, DIMENSOES 1X1CM. | E20: m | F20: =ROUND('MEMO - ESTRADAS'!I42/3,0) -> 786 | G20: =IF($B20="ORSE",VLOOKUP($C20,ORSE_COMP!A:D,4,0),IF($B20="SINAPI",VLOOKUP($C20,SINAPI_COMP!G:K,5,0),IF($B20="SEINFRA",VLOOKUP($C20,SEINFRA_COMP!A:G,7,0),""))) -> 21,92 | H20: 17229.12 | J20: =J19-J18 -> 0 | K20: 74121/1 | L20: JUNTA DE DILATACAO PARA IMPERMEABILIZACAO, COM SELANTE ELASTICO MONOCOMPONENTE A BASE DE POLIURETANO, DIMENSOES 1X1CM.
A21: 2.3.2.3.1.14 | B21: SEINFRA | C21: 22.4.2 | D21: =SEINFRA_COMP!C4674 -> DRAGAGEM INCLUINDO MOBILIZAÇÃO/DESMOBILIZAÇÃO DA DRAGA | E21: m³ | F21: =ROUND('MEMO - ESTRADAS'!C129,0) -> 484 | G21: =IF($B21="ORSE",VLOOKUP($C21,ORSE_COMP!A:D,4,0),IF($B21="SINAPI",VLOOKUP($C21,SINAPI_COMP!G:K,5,0),IF($B21="SEINFRA",VLOOKUP($C21,SEINFRA_COMP!A:G,7,0),""))) -> 21.24 | H21: 10280.16 | K21: 42.83 | L21: DRAGAGEM INCLUINDO MOBILIZAÇÃO/DESMOBILIZAÇÃO DA DRAGA
A22: 2.3.2.3.1.15 | B22: SEINFRA | C22: 21.1.48 | D22: Roço Manual | E22: m² | F22: 168066.28 | G22: =IF($B22="ORSE",VLOOKUP($C22,ORSE_COMP!A:D,4,0),IF($B22="SINAPI",VLOOKUP($C22,SINAPI_COMP!G:K,5,0),IF($B22="SEINFRA",VLOOKUP($C22,SEINFRA_COMP!A:G,7,0),""))) -> 0.21 | H22: 35293.92 | K22: C4187 | L22: Roço Manual
A23: 2.3.2.3.1.19 | B23: SEINFRA | C23: 3.7.1 | D23: =SEINFRA_COMP!C420 -> LASTRO DE AREIA ADQUIRIDA | E23: m³ | F23: 97.14 | G23: =IF($B23="ORSE",VLOOKUP($C23,ORSE_COMP!A:D,4,0),IF($B23="SINAPI",VLOOKUP($C23,SINAPI_COMP!G:K,5,0),IF($B23="SEINFRA",VLOOKUP($C23,SEINFRA_COMP!A:G,7,0),""))) -> 69.36 | H23: =G23*F23 -> 6737.63 | I23: 6737.67 | K23: C2860 | L23: LASTRO DE AREIA ADQUIRIDA
A24: SUBTOTAL | H24: =ROUND(SUM(H11:H23),2) -> 192392.09
A25: BDI (SERVIÇO) | G25: ='BDI - SERVIÇOS'!$C$30 -> 0.225 | H25: =ROUND(H24*G25,2) -> 43288.22 | J25: 4950043.41
A26: SUBTOTAL COM BDI | H26: =H25+H24 -> 235680.31
A28: 2.3.2.3.2. MANUTENÇÃO DE CA´S e TA´S | J28: =H22-43.41 -> 35250.51
A29: 2.3.2.3.2.1 | B29: COTAÇÃO | C29: ='COTACAO - PEÇAS E MATERIAIS'!B282 -> 429 | D29: Haste de interligação, em aço inoxidável AISI 304, com diâmetro 36 mm x comprimento de 2300 mm, com extremidades com rosca para ligação com luvas de interligação | E29: Ud | F29: 2 | G29: =IF($B29="ORSE",VLOOKUP($C29,ORSE_COMP!A:D,4,0),IF($B29="SINAPI",VLOOKUP($C29,SINAPI_COMP!G:K,5,0),IF($B29="SEINFRA",VLOOKUP($C29,SEINFRA_COMP!A:G,7,0),IF(B29="COTAÇÃO",VLOOKUP(C29,'COTACAO - PEÇAS E MATERIAIS'!B:L,10,0),"")))) -> 2980 | H29: =ROUND(G29*F29,2) -> 5960
A30: 2.3.2.3.2.2 | B30: COTAÇÃO | C30: ='COTACAO - PEÇAS E MATERIAIS'!B283 -> 430 | D30: Haste de interligação, em aço carbono SAE 1045, com diâmetro de 36 mm x comprimento de 2300 mm, com extremidades de rosca para ligação com luvas de interligação | E30: Ud | F30: 2 | G30: =IF($B30="ORSE",VLOOKUP($C30,ORSE_COMP!A:D,4,0),IF($B30="SINAPI",VLOOKUP($C30,SINAPI_COMP!G:K,5,0),IF($B30="SEINFRA",VLOOKUP($C30,SEINFRA_COMP!A:G,7,0),IF(B30="COTAÇÃO",VLOOKUP(C30,'COTACAO - PEÇAS E MATERIAIS'!B:L,10,0),"")))) -> 1988.32 | H30: =ROUND(G30*F30,2) -> 3976.64
A32: 2.3.2.3.3. MANUTENÇÃO DE RESERVATÓRIO EM CONCRETO ARMADO
A33: 2.3.2.3.3.1 | B33: SINAPI | C33: 73929/1 | D33: =SINAPI_COMP!H14593 -> IMPERMEABILIZACAO DE SUPERFICIE COM CIMENTO ESPECIAL CRISTALIZANTE COM ADESIVO LIQUIDO, UMA DEMAO. | E33: m² | F33: 100 | G33: =IF($B33="ORSE",VLOOKUP($C33,ORSE_COMP!A:D,4,0),IF($B33="SINAPI",VLOOKUP($C33,SINAPI_COMP!G:K,5,0),IF($B33="SEINFRA",VLOOKUP($C33,SEINFRA_COMP!A:G,7,0),""))) -> 32,88 | H33: =ROUND(G33*F33,2) -> 3288
A34: SUBTOTAL | H34: =ROUND(SUM(H29:H33),2) -> 13224.64
A35: BDI (FORNECIMENTO) | G35: ='BDI - FORNECIMENTOS'!$C$31 -> 0.109 | H35: =ROUND(G35*H34,2) -> 1441.49
A36: SUBTOTAL COM BDI | H36: =H34+H35 -> 14666.13
A38: TOTAL COM BDI | H38: =H36+H26 -> 250346.44
P61: =P58+P35 -> 0

Sheet 2.3.2.4.Manut-Drenagem
A1: 2.3. MANUTENÇÃO DAS INFRAESTRUTURAS
A3: 2.3.2. MANUTENÇÃO (SERVIÇOS SAZONAIS)
A5: 2.3.2.4. PLANILHA DE ESTIMATIVA DE CUSTO ANUAL DE MANUTENÇÃO DA REDE DE DRENAGEM
A7: ITEM | B7: Ref. | C7: Cód. CPU | D7: DESCRIÇÃO | E7: UNID. | F7: QUANT. | G7: VALOR
G8: UNIT. (R$) | H8: TOTAL (R$)
A10: 2.3.2.4.1 | D10: MANUTENÇÃO DE DRENOS COLETORES ABERTOS
A11: 2.3.2.4.1.1 | B11: ORSE | C11: 9164 | D11: =ORSE_COMP!B1744 -> LOCAÇÃO TOPOGRÁFICA COM NIVELAMENTO DE SEÇÕES TRANSVERSAIS DE SERVIÇOS DE TER RAPLENAGEM, INCLUSIVE CONFERÊNCIAS | E11: m | F11: =10000/4 -> 2500 | G11: =IF($B11="ORSE",VLOOKUP($C11,ORSE_COMP!A:D,4,0),IF($B11="SINAPI",VLOOKUP($C11,SINAPI_COMP!G:K,5,0),IF($B11="SEINFRA",VLOOKUP($C11,SEINFRA_COMP!A:G,7,0),IF(B11="CODEVASF",VLOOKUP(C11,'CPU1 - CANAL'!C:I,7,0),"")))) -> 4.22 | H11: =ROUND(G11*F11,2) -> 10550
A12: 2.3.2.4.1.2 | B12: SEINFRA | C12: 21.1.48 | D12: Roço Manual | E12: m² | F12: 25871.27 | G12: =IF($B12="ORSE",VLOOKUP($C12,ORSE_COMP!A:D,4,0),IF($B12="SINAPI",VLOOKUP($C12,SINAPI_COMP!G:K,5,0),IF($B12="SEINFRA",VLOOKUP($C12,SEINFRA_COMP!A:G,7,0),IF(B12="CODEVASF",VLOOKUP(C12,'CPU1 - CANAL'!C:I,7,0),"")))) -> 0.21 | H12: =ROUND(G12*F12,2) -> 5432.97
A13: 2.3.2.4.1.3 | B13: CODEVASF | C13: 6.1.5.1.4 | D13: Desassoreamento mecânico. | E13: m³ | F13: 2500 | G13: =IF($B13="ORSE",VLOOKUP($C13,ORSE_COMP!A:D,4,0),IF($B13="SINAPI",VLOOKUP($C13,SINAPI_COMP!G:K,5,0),IF($B13="SEINFRA",VLOOKUP($C13,SEINFRA_COMP!A:G,7,0),IF(B13="CODEVASF",VLOOKUP(C13,'CPU2 - REDE DREN'!C:I,7,0),"")))) -> 19.12 | H13: 47800
A14: 2.3.2.4.2 | D14: LIMPEZA DE VALETAS E SARJETAS
A15: 2.3.2.4.2.1 | B15: SEINFRA | C15: 21.1.34 | D15: =SEINFRA_COMP!C4502 -> LIMPEZA DE VALETAS REVESTIDAS COM CONCRETO | E15: M | F15: 8500 | G15: =IF($B15="ORSE",VLOOKUP($C15,ORSE_COMP!A:D,4,0),IF($B15="SINAPI",VLOOKUP($C15,SINAPI_COMP!G:K,5,0),IF($B15="SEINFRA",VLOOKUP($C15,SEINFRA_COMP!A:G,7,0),IF(B15="CODEVASF",VLOOKUP(C15,'CPU2 - REDE DREN'!C:I,7,0),"")))) -> 2.66 | H15: 22610
A16: 2.3.2.4.2.2 | B16: CODEVASF | C16: 8 | D16: Recuperação de taludes e obras de arte, com solo cimento (6%) | E16: M³ | F16: =ROUND(6,0) -> 6 | G16: =IF($B16="ORSE",VLOOKUP($C16,ORSE_COMP!A:D,4,0),IF($B16="SINAPI",VLOOKUP($C16,SINAPI_COMP!G:K,5,0),IF($B16="SEINFRA",VLOOKUP($C16,SEINFRA_COMP!A:G,7,0),IF(B16="CODEVASF",VLOOKUP(C16,'CPU2 - REDE DREN'!C:I,7,0),"")))) -> 91.1 | H16: 546.6
A17: 2.3.2.4.2.3 | B17: CODEVASF | C17: ='CPU2 - REDE DREN'!C45 -> 6.1.5.1.6 | D17: Recuperação de obras de arte em alvenaria de pedra argamassada, assentamento 1:3. | E17: M³ | F17: =10 -> 10 | G17: =IF($B17="ORSE",VLOOKUP($C17,ORSE_COMP!A:D,4,0),IF($B17="SINAPI",VLOOKUP($C17,SINAPI_COMP!G:K,5,0),IF($B17="SEINFRA",VLOOKUP($C17,SEINFRA_COMP!A:G,7,0),IF(B17="CODEVASF",VLOOKUP(C17,'CPU2 - REDE DREN'!C:I,7,0),"")))) -> 296.44 | H17: 2964.4
A18: 2.3.2.4.2.4 | B18: CODEVASF | C18: ='CPU2 - REDE DREN'!C65 -> 6.1.5.1.8 | D18: Recuperação de obras de arte - instalação de tubo de concreto CA II Ø 800mm | E18: M | F18: 7 | G18: =IF($B18="ORSE",VLOOKUP($C18,ORSE_COMP!A:D,4,0),IF($B18="SINAPI",VLOOKUP($C18,SINAPI_COMP!G:K,5,0),IF($B18="SEINFRA",VLOOKUP($C18,SEINFRA_COMP!A:G,7,0),IF(B18="CODEVASF",VLOOKUP(C18,'CPU2 - REDE DREN'!C:I,7,0),"")))) -> 27.77 | H18: 194.39
A19: 2.3.2.4.2.5 | B19: CODEVASF | C19: ='CPU2 - REDE DREN'!C83 -> 6.1.5.1.9 | D19: Recuperação de obras de arte - instação de tubo de concreto CA II Ø 1000mm. | E19: M | F19: 7 | G19: =IF($B19="ORSE",VLOOKUP($C19,ORSE_COMP!A:D,4,0),IF($B19="SINAPI",VLOOKUP($C19,SINAPI_COMP!G:K,5,0),IF($B19="SEINFRA",VLOOKUP($C19,SEINFRA_COMP!A:G,7,0),IF(B19="CODEVASF",VLOOKUP(C19,'CPU2 - REDE DREN'!C:I,7,0),"")))) -> 94.26 | H19: 659.82
A21: 2.3.2.4.3 | D21: Desobstrução de Bueiros
A22: 2.3.2.4.3.1 | B22: SEINFRA | C22: 21.1.37 | D22: =SEINFRA_COMP!C4506 -> LIMPEZA DE BUEIRO, INCLUINDO A RETIRADA DOS ENTULHOS BEM COMO A ROÇADA E LIMPEZA GERAL DAS BOCAS | E22: M | F22: =3200 -> 3200 | G22: =IF($B22="ORSE",VLOOKUP($C22,ORSE_COMP!A:D,4,0),IF($B22="SINAPI",VLOOKUP($C22,SINAPI_COMP!G:K,5,0),IF($B22="SEINFRA",VLOOKUP($C22,SEINFRA_COMP!A:G,7,0),IF(B22="CODEVASF",VLOOKUP(C22,'CPU2 - REDE DREN'!C:I,7,0),"")))) -> 10.64 | H22: =ROUND(G22*F22,2) -> 34048
A24: 2.3.2.4.4 | D24: Destinação do material do desassoreamento
A25: 2.3.2.4.4.1 | B25: SINAPI | C25: 74153/1 | D25: Espalhamento mecanizado | E25: M³ | F25: =F13 -> 2500 | G25: =IF($B25="ORSE",VLOOKUP($C25,ORSE_COMP!A:D,4,0),IF($B25="SINAPI",VLOOKUP($C25,SINAPI_COMP!G:K,5,0),IF($B25="SEINFRA",VLOOKUP($C25,SEINFRA_COMP!A:G,7,0),IF(B25="CODEVASF",VLOOKUP(C25,'CPU2 - REDE DREN'!C:I,7,0),"")))) -> 0,22 | H25: =ROUND(G25*F25,2) -> 550
A26: 2.3.2.4.4.2 | B26: SEINFRA | C26: 2.3.6 | D26: =SEINFRA_COMP!C220 -> CARGA MECANIZADA DE TERRA EM CAMINHÃO BASCULANTE | E26: M³ | F26: =F25 -> 2500 | G26: =IF($B26="ORSE",VLOOKUP($C26,ORSE_COMP!A:D,4,0),IF($B26="SINAPI",VLOOKUP($C26,SINAPI_COMP!G:K,5,0),IF($B26="SEINFRA",VLOOKUP($C26,SEINFRA_COMP!A:G,7,0),IF(B26="CODEVASF",VLOOKUP(C26,'CPU2 - REDE DREN'!C:I,7,0),"")))) -> 2.65 | H26: 6625
A27: 2.3.2.4.4.3 | B27: SEINFRA | C27: 2.3.10 | D27: =SEINFRA_COMP!C224 -> TRANSPORTE DE MATERIAL, EXCETO ROCHA EM CAMINHÃO ATÉ 5 KM | E27: M³ | F27: =F25 -> 2500 | G27: =IF($B27="ORSE",VLOOKUP($C27,ORSE_COMP!A:D,4,0),IF($B27="SINAPI",VLOOKUP($C27,SINAPI_COMP!G:K,5,0),IF($B27="SEINFRA",VLOOKUP($C27,SEINFRA_COMP!A:G,7,0),IF(B27="CODEVASF",VLOOKUP(C27,'CPU2 - REDE DREN'!C:I,7,0),"")))) -> 19.76 | H27: 49400
A28: Subtotal | H28: =ROUND(SUM(H11:H27),2) -> 181381.18
A29: BDI SERVIÇO | G29: ='BDI - SERVIÇOS'!C30 -> 0.225 | H29: =ROUND(H28*G29,2) -> 40810.77
A30: Subtotal - SERVIÇOS | H30: =ROUND(H28+H29,2) -> 222191.95
A32: 2.3.2.4.2 | D32: LIMPEZA DE VALETAS E SARJETAS - FORNECIMENTOS
B33: SINAPI | C33: 7763 | D33: Recuperação de obras de arte - aquisição de tubo de concreto CA II Ø 800mm | E33: M | F33: 7 | G33: =VLOOKUP(C33,SINAPI_INSUM!A:E,5,0) -> 135,22 | H33: =ROUND(F33*G33,2) -> 946.54
B34: SINAPI | C34: 7765 | D34: Recuperação de obras de arte - aquisição e instação de tubo de concreto CA II Ø 1000mm. | E34: M | F34: 7 | G34: =VLOOKUP(C34,SINAPI_INSUM!A:E,5,0) -> 197,85 | H34: =ROUND(F34*G34,2) -> 1384.95
A35: SUBTOTAL | H35: =ROUND(SUM(H33:H34),2) -> 2331.49
A36: BDI FORNECIMENTO | G36: ='BDI - FORNECIMENTOS'!$C$31 -> 0.109 | H36: =ROUND(H35*G36,2) -> 254.13
A37: Subtotal - FORNECIMENTO | H37: =ROUND(H35+H36,2) -> 2585.62
A39: TOTAL | H39: =ROUND(H37+H30,2) -> 224777.57

Sheet 2.3.2.5.Manut-Cercas
A1: 2.3. MANUTENÇÃO DAS INFRAESTRUTURAS
A3: 2.3.2. MANUTENÇÃO (SERVIÇOS SAZONAIS)
A5: 2.3.2.5. PLANILHA DE ESTIMATIVA DE CUSTO ANUAL DE MANUTENÇÃO DE CERCAS
A7: ITEM | B7: Ref. | C7: Cód. CPU | D7: DESCRIÇÃO | E7: UNID. | F7: COEF. | G7: QUANT. | H7: VALOR
H8: UNIT. (R$) | I8: TOTAL (R$)
A10: 2.3.2.5.1 | B10: SINAPI | C10: 85171 | D10: Recomposição parcial de arame farpado, fixado em mourões de concreto, reto | F10: m | G10: 19764.86
B11: SINAPI | C11: 339 | D11: ARAME FARPADO GALVANIZADO 14 BWG, CLASSE 250 | E11: M | F11: 0,3200000 | G11: =ROUND(F11*$G$10,2) -> 6324.76 | H11: =VLOOKUP(C11,SINAPI_INSUM!A:E,5,0) -> 0,55 | I11: =ROUND(H11*G11,2) -> 3478.62
B12: Painel de Preços Comprasnet | D12: ARAME GALVANIZADO 12 BWG, 2,76 MM (0,048 KG/M) | E12: KG | F12: 0,0800000 | G12: =ROUND(F12*$G$10,2) -> 1581.19 | H12: 9.88 | I12: =ROUND(H12*G12,2) -> 15622.16
A13: SUBTOTAL | I13: =ROUND(SUM(I11:I12),2) -> 19100.78
A14: BDI FORNECIMENTO | H14: ='BDI - FORNECIMENTOS'!C31 -> 0.109 | I14: =I13*H14 -> 2081.99
B16: SINAPI | C16: 6111 | D16: SERVENTE COM ENCARGOS COMPLEMENTARES | E16: H | F16: 0,1670000 | G16: 3300.73 | H16: =VLOOKUP(C16,SINAPI_INSUM!A:E,5,0)/(1+'ENC. SOCIAIS'!D46) -> 5.03 | I16: 16602.67
A17: Encargos Sociais | H17: ='ENC. SOCIAIS'!$D$46 -> 1.1718 | I17: =I16*H17 -> 19455.01
A18: SUBTOTAL | I18: =ROUND(SUM(I16:I17),2) -> 36057.68
A19: BDI SERVIÇO | H19: ='BDI - SERVIÇOS'!$C$30 -> 0.225 | I19: =I18*H19 -> 8112.98
A21: TOTAL GERAL | I21: =I13+I14+I18+I19 -> 65353.43

Sheet CPU2 - REDE DREN
B1: CODEVASF | C1: 6.1.5.1.4 | D1: COMPOSIÇÃO DE PREÇO UNITÁRIO | I1: =I15 -> 19.12
B2: SERVIÇO DE O&M PARA O PERÍMETRO DE IRRIGAÇÃO PONTAL | H2: DATA: JUNHO/2018
B3: SERVIÇO: Desassoreamento mecânico | H3: UNIDADE: | I3: m³
B4: EQUIPAMENTO
B5: DESCRIÇÃO | C5: UNIDADE | D5: QUANT. | E5: PROD | F5: IMPROD | G5: P.UNIT. PROD | H5: P.UNIT. IMPR | I5: P.TOTAL
B6: ESCAVADEIRA HIDRÁULICA SOBRE ESTEIRAS, CAÇAMBA 1,20 M3, PESO OPERACIONAL 21 T, POTÊNCIA BRUTA 155 HP - CHP DIURNO. AF_06/2014 (SINAPI 88907 - COMP.. AUX.) | C6: h | D6: 0.077 | E6: 1 | F6: 0 | G6: =IF($J6="ORSE",VLOOKUP($K6,ORSE_INSUM!$A:$D,4,0),IF($J6="SINAPI",VLOOKUP($K6,SINAPI_INSUM!$A:$E,5,0),IF($J6="SEINFRA",VLOOKUP($K6,SEINFRA_INSUM!$A:$F,5,0),IF($J6="SINAPI/SERV",VLOOKUP($K6,SINAPI_COMP!$G:$K,5,0),"")))) -> 177,28 | H6: 0 | I6: =ROUND((D6*E6*G6)+(D6*F6*H6),2) -> 13.65 | J6: SINAPI/SERV | K6: 88907
B7: SUB-TOTAL | I7: =SUM(I6:I6) -> 13.65
B8: MÃO DE OBRA
B9: DESCRIÇÃO | C9: UNIDADE | D9: QUANT. | H9: P.UNIT. | I9: P.TOTAL
B10: Servente (SINAPI - 6111) | C10: h | D10: 0.5 | H10: =IF(J10="ORSE",VLOOKUP(K10,ORSE_INSUM!A:D,4,0),IF(J10="SINAPI",VLOOKUP(K10,SINAPI_INSUM!A:E,5,0),IF(J10="SEINFRA",VLOOKUP(K10,SEINFRA_INSUM!A:F,5,0),IF(J10="SINAPI/SERV",VLOOKUP(K10,SINAPI_COMP!G:K,5,0),""))))/(1+'ENC. SOCIAIS'!$D$46) -> 5.03 | I10: =ROUND((D10*H10),4) -> 2.52 | J10: SINAPI | K10: 6111
B11: SUB-TOTAL | I11: =SUM(I10:I10) -> 2.52
B12: Encargos Sociais | C12: ='ENC. SOCIAIS'!D46 -> 1.1718 | I12: =C12*I11 -> 2.95
B14: PRODUÇÃO DA EQUIPE | C14: 1 | D14: CUSTO | I14: =I12+I11+I7 -> 19.12
B15: CUSTO UNITÁRIO DO SERVIÇO | I15: =I14/C14 -> 19.12
B16: BDI | C16: ='BDI - SERVIÇOS'!C30 -> 0.225 | I16: =ROUND((I15*C16),2) -> 4.3
B17: TOTAL DO SERVIÇO - R$ | I17: =ROUND((I15+I16),2) -> 23.42
B18: CODEVASF | C18: 8 | D18: COMPOSIÇÃO DE PREÇO UNITÁRIO | I18: =I41 -> 91.1
B19: ESTIMATIVA ANUAL DE CUSTOS DE SERVIÇOS DE ADMINISTRAÇÃO E MANUTENÇÃO PARA O PROJETO IRRIGADO PONTAL SUL | H19: DATA: JUNHO/2018
B20: SERVIÇO : Recuperação de taludes e obras de arte, com solo cimento (6%) | H20: UNIDADE: | I20: m³
B21: EQUIPAMENTO
B22: DISCRIMINAÇÃO | C22: UNIDADE | D22: QUANT. | E22: PROD | F22: IMPROD | G22: P.UNIT. PROD | H22: P.UNIT. IMPR | I22: P.TOTAL
B23: COMPACTADOR DE SOLOS DE PERCUSSÃO (SOQUETE) COM MOTOR A GASOLINA 4 TEMPOS, POTÊNCIA 4 CV - CHP DIURNO. AF_08/2015 (SINAPI 91533 - COMP AUX.) | C23: H | D23: 1 | E23: 0.4 | G23: =IF($J23="ORSE",VLOOKUP($K23,ORSE_INSUM!$A:$D,4,0),IF($J23="SINAPI",VLOOKUP($K23,SINAPI_INSUM!$A:$E,5,0),IF($J23="SEINFRA",VLOOKUP($K23,SEINFRA_INSUM!$A:$F,5,0),IF($J23="SINAPI/SERV",VLOOKUP($K23,SINAPI_COMP!$G:$K,5,0),"")))) -> 37,56 | I23: =ROUND(G23*E23*D23,2) -> 15.02 | J23: SINAPI/SERV | K23: 91533
B24: SUB-TOTAL | I24: =I23 -> 15.02
B25: MATERIAL
B26: DISCRIMINAÇÃO | C26: UNIDADE | D26: QUANT. | H26: P.UNIT. | I26: P.TOTAL
B27: Cimento Portland CP 32 - SINAPI 1379 | C27: Kg | D27: 68.57 | H27: =IF($J27="ORSE",VLOOKUP($K27,ORSE_INSUM!$A:$D,4,0),IF($J27="SINAPI",VLOOKUP($K27,SINAPI_INSUM!$A:$E,5,0),IF($J27="SEINFRA",VLOOKUP($K27,SEINFRA_INSUM!$A:$F,5,0),IF($J27="SINAPI/SERV",VLOOKUP($K27,SINAPI_COMP!$G:$K,5,0),"")))) -> 0,44 | I27: =ROUND(H27*D27,2) -> 30.17 | J27: SINAPI | K27: 1379
B28: ARGILA OU BARRO PARA ATERRO/REATERRO (COM TRANSPORTE ATE 10 KM) (SINAPI 6081 - COMP AUX.) | C28: m³ | D28: 1 | H28: =IF($J28="ORSE",VLOOKUP($K28,ORSE_INSUM!$A:$D,4,0),IF($J28="SINAPI",VLOOKUP($K28,SINAPI_INSUM!$A:$E,5,0),IF($J28="SEINFRA",VLOOKUP($K28,SEINFRA_INSUM!$A:$F,5,0),IF($J28="SINAPI/SERV",VLOOKUP($K28,SINAPI_COMP!$G:$K,5,0),"")))) -> 37,18 | I28: =ROUND(H28*D28,2) -> 37.18 | J28: SINAPI | K28: 6081
B29: SUB-TOTAL | I29: =SUM(I27:I28) -> 67.35
B30: SERVIÇOS - COMPOSIÇÕES AUXILIARES
B31: DISCRIMINAÇÃO | C31: UNIDADE | D31: QUANT. | H31: P.UNIT. | I31: P.TOTAL
B33: SUB-TOTAL | I33: 0
B34: MÃO DE OBRA
B35: DISCRIMINAÇÃO | C35: UNIDADE | D35: QUANT. | H35: P.UNIT. | I35: P.TOTAL
B36: Servente (SINAPI - 6111) | C36: h | D36: 0.8 | H36: =IF(J36="ORSE",VLOOKUP(K36,ORSE_INSUM!A:D,4,0),IF(J36="SINAPI",VLOOKUP(K36,SINAPI_INSUM!A:E,5,0),IF(J36="SEINFRA",VLOOKUP(K36,SEINFRA_INSUM!A:F,5,0),IF(J36="SINAPI/SERV",VLOOKUP(K36,SINAPI_COMP!G:K,5,0),""))))/(1+'ENC. SOCIAIS'!$D$46) -> 5.03 | I36: =ROUND(H36*D36,2) -> 4.02 | J36: SINAPI | K36: 6111
B37: SUB-TOTAL | I37: =SUM(I36) -> 4.02
B38: Encargos Sociais | C38: ='ENC. SOCIAIS'!D46 -> 1.1718 | H38: =C38 -> 1.1718 | I38: =H38*I37 -> 4.71
B40: PRODUÇÃO DA EQUIPE | C40: 1 | D40: CUSTO | I40: =I38+I36+I29+I24 -> 91.1
B41: CUSTO UNITÁRIO DO SERVIÇO | I41: =I40 -> 91.1
B42: BDI | C42: ='BDI - SERVIÇOS'!C30 -> 0.225 | I42: =ROUND(I41*C42,2) -> 20.5
B43: TOTAL DO SERVIÇO - R$ | I43: =ROUND(I42+I41,2) -> 111.6
B44: (*) Empolamento já incluso no custo unit. do material
B45: CODEVASF | C45: 6.1.5.1.6 | D45: COMPOSIÇÃO DE PREÇO UNITÁRIO | I45: =I62 -> 296.44
B46: SERVIÇO DE O&M PARA O PERÍMETRO DE IRRIGAÇÃO PONTAL | H46: DATA: JUNHO/2018
B47: SERVIÇO: Recuperação de obras de arte em alvenaria de pedra argamassada | H47: UNIDADE: | I47: m³
B48: MATERIAL
B49: DESCRIÇÃO | C49: UNIDADE | D49: QUANT. | H49: P.UNIT. | I49: P.TOTAL
B50: Cimento Portland CP II 32 - SINAPI 1379 | C50: kg | D50: 116 | H50: =SINAPI_INSUM!E1280 -> 0,44 | I50: =ROUND((D50*H50),2) -> 51.04 | J50: SINAPI | K50: 1379
B51: Areia média comercial - ORSE 202 | C51: m³ | D51: 0.38 | H51: =ORSE_INSUM!D995 -> 2.19 | I51: =ROUND((D51*H51),2) -> 0.83 | J51: ORSE | K51: 202
B52: Pedra de mão ou pedra rachão com frete - ORSE 10181 | C52: m³ | D52: 1.2 | H52: =ORSE_INSUM!D1017 -> 9.9 | I52: =ROUND((D52*H52),2) -> 11.88 | J52: ORSE | K52: 10181
B53: SUB-TOTAL | I53: =SUM(I50:I52) -> 63.75
B54: MÃO DE OBRA
B55: DESCRIÇÃO | C55: UNIDADE | D55: QUANT. | H55: P.UNIT. | I55: P.TOTAL
B56: Servente (SINAPI - 6111) | C56: h | D56: 8 | H56: =IF(J56="ORSE",VLOOKUP(K56,ORSE_INSUM!A:D,4,0),IF(J56="SINAPI",VLOOKUP(K56,SINAPI_INSUM!A:E,5,0),IF(J56="SEINFRA",VLOOKUP(K56,SEINFRA_INSUM!A:F,5,0),IF(J56="SINAPI/SERV",VLOOKUP(K56,SINAPI_COMP!G:K,5,0),""))))/(1+'ENC. SOCIAIS'!$D$46) -> 5.03 | I56: =ROUND((D56*H56),4) -> 40.24 | J56: SINAPI | K56: 6111
B57: Pedreiro (SINAPI -4750) | C57: h | D57: 10 | H57: =IF(J57="ORSE",VLOOKUP(K57,ORSE_INSUM!A:D,4,0),IF(J57="SINAPI",VLOOKUP(K57,SINAPI_INSUM!A:E,5,0),IF(J57="SEINFRA",VLOOKUP(K57,SEINFRA_INSUM!A:F,5,0),IF(J57="SINAPI/SERV",VLOOKUP(K57,SINAPI_COMP!G:K,5,0),""))))/(1+'ENC. SOCIAIS'!$D$46) -> 6.69 | I57: =ROUND((D57*H57),4) -> 66.9 | J57: SINAPI | K57: 4750
B58: SUB-TOTAL | I58: =SUM(I56:I57) -> 107.14
B59: Encargos Sociais | C59: ='ENC. SOCIAIS'!D46 -> 1.1718 | H59: =C59 -> 1.1718 | I59: =H59*I58 -> 125.55
B61: PRODUÇÃO DA EQUIPE | C61: 1 | D61: CUSTO | I61: =I59+I58+I53 -> 296.44
B62: CUSTO UNITÁRIO DO SERVIÇO | I62: =I61/C61 -> 296.44
B63: BDI | C63: ='BDI - SERVIÇOS'!C30 -> 0.225 | I63: =ROUND((I62*C63),2) -> 66.7
B64: TOTAL DO SERVIÇO - R$ | I64: =ROUND((I62+I63),2) -> 363.14
B65: CODEVASF | C65: 6.1.5.1.8 | D65: COMPOSIÇÃO DE PREÇO UNITÁRIO | I65: =I80 -> 27.77
B66: SERVIÇO DE O&M PARA O PERÍMETRO DE IRRIGAÇÃO PONTAL | H66: DATA: JUNHO/2018
B67: SERVIÇO: Assentamento de tubo de concreto diâmetro 800 mm | H67: UNIDADE: | I67: m
B68: MATERIAL
B69: DESCRIÇÃO | C69: UNIDADE | D69: QUANT. | H69: P.UNIT. | I69: P.TOTAL
C70: m | I70: =ROUND((D70*H70),4) -> 0
B71: SUB-TOTAL | I71: =I70 -> 0
B72: MÃO DE OBRA
B73: DESCRIÇÃO | C73: UNIDADE | D73: QUANT. | H73: P.UNIT. | I73: P.TOTAL
B74: Servente (SINAPI - 6111) | C74: h | D74: 1.8748 | H74: =SINAPI_INSUM!E4232 -> 10,92 | I74: =ROUND((D74*H74),4) -> 20.47 | J74: SINAPI | K74: 6111
B75: Pedreiro (SINAPI -4750) | C75: h | D75: 0.5028 | H75: =SINAPI_INSUM!E3644 -> 14,52 | I75: =ROUND((D75*H75),4) -> 7.3 | J75: SINAPI | K75: 4750
B76: SUB-TOTAL | I76: =SUM(I74:I75) -> 27.77
B77: Encargos Sociais | C77: ='ENC. SOCIAIS'!D46 -> 1.1718 | I77: =0*I76 -> 0
B79: PRODUÇÃO DA EQUIPE | C79: 1 | D79: CUSTO (exceto fornecimento) | I79: =I77+I76 -> 27.77
B80: CUSTO UNITÁRIO DO SERVIÇO | I80: =I79/C79 -> 27.77
B81: BDI – Serviços | C81: ='BDI - SERVIÇOS'!C30 -> 0.225 | I81: =ROUND((I80*C81),2) -> 6.25
B82: TOTAL DO SERVIÇO - R$ | I82: =I80+I81 -> 34.02
B83: CODEVASF | C83: 6.1.5.1.9 | D83: COMPOSIÇÃO DE PREÇO UNITÁRIO | I83: =I98 -> 94.26
B84: SERVIÇO DE O&M PARA O PERÍMETRO DE IRRIGAÇÃO PONTAL | H84: DATA: JUNHO/2018
B85: SERVIÇO: Assentamento de tubo de concreto diâmetro 1000 mm, montagem com auxílio de equipamentos | H85: UNIDADE: | I85: m
B86: MATERIAL
B87: DESCRIÇÃO | C87: UNIDADE | D87: QUANT. | H87: P.UNIT. | I87: P.TOTAL
B89: SUB-TOTAL | I89: =I88 -> 0
B91: MÃO DE OBRA
B92: DESCRIÇÃO | C92: UNIDADE | D92: QUANT. | H92: P.UNIT. | I92: P.TOTAL | J92: SINAPI | K92: 6111
B93: Servente (SINAPI - 6111) | C93: h | D93: 2.9298 | H93: =SINAPI_INSUM!E4232 -> 10,92 | I93: =ROUND((D93*H93),4) -> 31.99 | J93: SINAPI | K93: 4750
B94: Pedreiro (SINAPI -4750) | C94: h | D94: 0.7858 | H94: =SINAPI_INSUM!E3644 -> 14,52 | I94: =ROUND((D94*H94),4) -> 11.41
B95: SUB-TOTAL | I95: =SUM(I93:I94) -> 43.4
B96: Encargos Sociais | C96: ='ENC. SOCIAIS'!D46 -> 1.1718 | H96: =C96 -> 1.1718 | I96: =H96*I95 -> 50.86
B98: PRODUÇÃO DA EQUIPE | C98: 1 | D98: CUSTO (exceto fornecimento) | I98: =I96+I95 -> 94.26
B99: CUSTO UNITÁRIO DO SERVIÇO | I99: =I98/C98 -> 94.26
B100: BDI – Serviços | C100: ='BDI - SERVIÇOS'!C30 -> 0.225 | I100: =ROUND((I99*C100),2) -> 21.21
B101: TOTAL DO SERVIÇO - R$ | I101: =I99+I100 -> 115.47

Sheet CPU1 - CANAL
B1: CODEVASF | C1: 1 | D1: COMPOSIÇÃO DE PREÇO UNITÁRIO | I1: =I29 -> 298.1
B2: ESTIMATIVA ANUAL DE CUSTOS DE SERVIÇOS DE ADMINISTRAÇÃO E MANUTENÇÃO PARA O PROJETO IRRIGADO PONTAL SUL | H2: Data: JUNHO/2018
B3: SERVIÇO : Recuperação de placas de concreto 15 Mpa | H3: UNIDADE: | I3: m³
B4: EQUIPAMENTO
B5: DISCRIMINAÇÃO | C5: UNIDADE | D5: QUANT. | E5: PROD | F5: IMPROD | G5: P.UNIT. PROD | H5: P.UNIT. IMPR | I5: P.TOTAL
B9: SUB-TOTAL | I9: 0
B10: MATERIAL
B11: DISCRIMINAÇÃO | C11: UNIDADE | D11: QUANT. | H11: P.UNIT. | I11: P.TOTAL
B12: Concreto usinado bombeado FCK = 15,0MPA (ORSE - 634) | C12: m³ | D12: 1 | H12: =IF(J12="ORSE",VLOOKUP(K12,ORSE_INSUM!A:D,4,0),IF(J12="SINAPI",VLOOKUP(K12,SINAPI_INSUM!A:E,5,0),IF(J12="SEINFRA",VLOOKUP(K12,SEINFRA_INSUM!A:F,5,0),IF(J12="SINAPI/SERV",VLOOKUP(K12,SINAPI_COMP!G:K,5,0),"")))) -> 225.14 | I12: =ROUND(H12*D12,2) -> 225.14 | J12: ORSE | K12: 634 | L12: Consumo - Sika 1
B13: ADITIVO IMPERMEABILIZANTE DE PEGA NORMAL PARA ARGAMASSAS E CONCRETOS SEM ARMACAO (SINAPI - 123) | C13: l | D13: 4 | H13: =IF(J13="ORSE",VLOOKUP(K13,ORSE_INSUM!A:D,4,0),IF(J13="SINAPI",VLOOKUP(K13,SINAPI_INSUM!A:E,5,0),IF(J13="SEINFRA",VLOOKUP(K13,SEINFRA_INSUM!A:F,5,0),IF(J13="SINAPI/SERV",VLOOKUP(K13,SINAPI_COMP!G:K,5,0),"")))) -> 5,98 | I13: =ROUND(H13*D13,2) -> 23.92 | J13: SINAPI | K13: 123 | L13: 0.5 | M13: l/50kg | N13: 400 | O13: kg/m³
L14: =0.5/50 -> 0.01 | M14: l/kg | N14: 400 | O14: kg/m³
B15: SUB-TOTAL | I15: =SUM(I12:I14) -> 249.06 | L15: =L14*N14 -> 4 | M15: l/m³
B16: SERVIÇOS - COMPOSIÇÕES AUXILIARES
B17: DISCRIMINAÇÃO | C17: UNIDADE | D17: QUANT. | H17: P.UNIT. | I17: P.TOTAL
B20: SUB-TOTAL | I20: 0
B21: MÃO DE OBRA
B22: DISCRIMINAÇÃO | C22: UNIDADE | D22: QUANT. | H22: P.UNIT. | I22: P.TOTAL
B23: Pedreiro (SINAPI -4750) | C23: H | D23: 1 | H23: =IF(J23="ORSE",VLOOKUP(K23,ORSE_INSUM!A:D,4,0),IF(J23="SINAPI",VLOOKUP(K23,SINAPI_INSUM!A:E,5,0),IF(J23="SEINFRA",VLOOKUP(K23,SEINFRA_INSUM!A:F,5,0),IF(J23="SINAPI/SERV",VLOOKUP(K23,SINAPI_COMP!G:K,5,0),""))))/(1+'ENC. SOCIAIS'!$D$46) -> 6.69 | I23: =ROUND(H23*D23,2) -> 6.69 | J23: SINAPI | K23: 4750
B24: Servente (SINAPI -6111) | C24: H | D24: 3.16 | H24: =IF(J24="ORSE",VLOOKUP(K24,ORSE_INSUM!A:D,4,0),IF(J24="SINAPI",VLOOKUP(K24,SINAPI_INSUM!A:E,5,0),IF(J24="SEINFRA",VLOOKUP(K24,SEINFRA_INSUM!A:F,5,0),IF(J24="SINAPI/SERV",VLOOKUP(K24,SINAPI_COMP!G:K,5,0),""))))/(1+'ENC. SOCIAIS'!$D$46) -> 5.03 | I24: =ROUND(H24*D24,2) -> 15.89 | J24: SINAPI | K24: 6111
B25: SUB-TOTAL | I25: =SUM(I23:I24) -> 22.58
G26: Encargos Sociais | H26: ='ENC. SOCIAIS'!$D$46 -> 1.1718 | I26: =ROUND(H26*I25,2) -> 26.46
B28: PRODUÇÃO DA EQUIPE | C28: 1 | D28: CUSTO | I28: =I26+I25+I15 -> 298.1
G29: CUSTO UNITÁRIO DO SERVIÇO | I29: =I28 -> 298.1
B30: BDI | C30: ='BDI - SERVIÇOS'!C30 -> 0.225 | I30: =ROUND(I29*C30,2) -> 67.07
B31: TOTAL DO SERVIÇO - R$ | I31: =ROUND(I30+I29,2) -> 365.17
B33: CODEVASF | C33: 3 | D33: COMPOSIÇÃO DE PREÇO UNITÁRIO | I33: =I51 -> 1.09
B34: ESTIMATIVA ANUAL DE CUSTOS DE SERVIÇOS DE ADMINISTRAÇÃO E MANUTENÇÃO PARA O PROJETO IRRIGADO PONTAL SUL | H34: Data: JUNHO/2018
B35: SERVIÇO: Retirada de manta PVC existente | H35: UNIDADE: m²
B36: EQUIPAMENTO
B37: DISCRIMINAÇÃO | C37: UNIDADE | D37: QUANT. | E37: PROD | F37: IMPROD | G37: P.UNIT. PROD | H37: P.UNIT. IMPR | I37: P.TOTAL
I38: 0
B39: SUB-TOTAL | I39: 0
B40: MATERIAL
B41: DISCRIMINAÇÃO | C41: UNIDADE | D41: QUANT. | H41: P.UNIT. | I41: P.TOTAL
B43: SUB-TOTAL | I43: 0
B44: MÃO DE OBRA
B45: DISCRIMINAÇÃO | C45: UNIDADE | D45: QUANT. | H45: P.UNIT. | I45: P.TOTAL
B46: Servente (SINAPI - 6111) | C46: h | D46: 0.1 | H46: =IF(J46="ORSE",VLOOKUP(K46,ORSE_INSUM!A:D,4,0),IF(J46="SINAPI",VLOOKUP(K46,SINAPI_INSUM!A:E,5,0),IF(J46="SEINFRA",VLOOKUP(K46,SEINFRA_INSUM!A:F,5,0),IF(J46="SINAPI/SERV",VLOOKUP(K46,SINAPI_COMP!G:K,5,0),""))))/(1+'ENC. SOCIAIS'!$D$46) -> 5.03 | I46: =ROUND(H46*D46,2) -> 0.5 | J46: SINAPI | K46: 6111
B47: SUB-TOTAL | I47: =SUM(I46) -> 0.5
G48: Encargos Sociais | H48: ='ENC. SOCIAIS'!$D$46 -> 1.1718 | I48: =ROUND(I47*H48,2) -> 0.59
B50: PRODUÇÃO DA EQUIPE | C50: 1 | D50: CUSTO | I50: =I48+I47 -> 1.09
B51: CUSTO UNITÁRIO DO SERVIÇO | I51: =I50 -> 1.09
B52: BDI | C52: ='BDI - SERVIÇOS'!C30 -> 0.225 | I52: =I51*C52 -> 0.25
B53: TOTAL DO SERVIÇO - R$ | I53: =ROUND(I52+I51,2) -> 1.34
B55: CODEVASF | C55: 4 | D55: COMPOSIÇÃO DE PREÇO UNITÁRIO | I55: =I78 -> 19.37
B56: ESTIMATIVA ANUAL DE CUSTOS DE SERVIÇOS DE ADMINISTRAÇÃO E MANUTENÇÃO PARA O PROJETO IRRIGADO PONTAL SUL | H56: Data: JUNHO/2018
B57: SERVIÇO : Manta termoplástica, PEAD ou PVC, geomembrana texturizada ou com bidim acoplado, e = 0,80 mm (fornec, transporte e instal.) | H57: UNIDADE: | I57: m²
B58: EQUIPAMENTO
B59: DISCRIMINAÇÃO | C59: UNIDADE | D59: QUANT. | E59: PROD | F59: IMPROD | G59: P.UNIT. PROD | H59: P.UNIT. IMPR | I59: P.TOTAL
B61: SUB-TOTAL | I61: 0
B62: MATERIAL
B63: DISCRIMINAÇÃO | C63: UNIDADE | D63: QUANT. | H63: P.UNIT. | I63: P.TOTAL
B64: MANTA TERMOPLASTICA, PEAD OU PVC, GEOMEMBRANA TEXTURIZADA OU COM BIDIM ACOPLADO, E = 0,80 MM (REF. SINAPI - 25862) | C64: m² | D64: 1.05 | H64: =IF(J64="ORSE",VLOOKUP(K64,ORSE_INSUM!A:D,4,0),IF(J64="SINAPI",VLOOKUP(K64,SINAPI_INSUM!A:E,5,0),IF(J64="SEINFRA",VLOOKUP(K64,SEINFRA_INSUM!A:F,5,0),IF(J64="SINAPI/SERV",VLOOKUP(K64,SINAPI_COMP!G:K,5,0),"")))) -> 13,59 | I64: =ROUND(H64*D64,2) -> 14.27 | J64: SINAPI | K64: 25862
B65: SUB-TOTAL | I65: =SUM(I64) -> 14.27
B66: SERVIÇOS - COMPOSIÇÕES AUXILIARES
B67: DISCRIMINAÇÃO | C67: UNIDADE | D67: QUANT. | H67: P.UNIT. | I67: P.TOTAL
I68: 0
B69: SUB-TOTAL | I69: 0
B70: MÃO DE OBRA
B71: DISCRIMINAÇÃO | C71: UNIDADE | D71: QUANT. | H71: P.UNIT. | I71: P.TOTAL
B72: Pedreiro (SINAPI -4750) | C72: h | D72: 0.2 | H72: =IF(J72="ORSE",VLOOKUP(K72,ORSE_INSUM!A:D,4,0),IF(J72="SINAPI",VLOOKUP(K72,SINAPI_INSUM!A:E,5,0),IF(J72="SEINFRA",VLOOKUP(K72,SEINFRA_INSUM!A:F,5,0),IF(J72="SINAPI/SERV",VLOOKUP(K72,SINAPI_COMP!G:K,5,0),""))))/(1+'ENC. SOCIAIS'!$D$46) -> 6.69 | I72: =H72*D72 -> 1.34 | J72: SINAPI | K72: 4750
B73: Servente (SINAPI - 6111) | C73: h | D73: 0.2 | H73: =IF(J73="ORSE",VLOOKUP(K73,ORSE_INSUM!A:D,4,0),IF(J73="SINAPI",VLOOKUP(K73,SINAPI_INSUM!A:E,5,0),IF(J73="SEINFRA",VLOOKUP(K73,SEINFRA_INSUM!A:F,5,0),IF(J73="SINAPI/SERV",VLOOKUP(K73,SINAPI_COMP!G:K,5,0),""))))/(1+'ENC. SOCIAIS'!$D$46) -> 5.03 | I73: =H73*D73 -> 1.01 | J73: SINAPI | K73: 6111
B74: SUB-TOTAL | I74: =SUM(I72:I73) -> 2.35
G75: Encargos Sociais | H75: ='ENC. SOCIAIS'!$D$46 -> 1.1718 | I75: =H75*I74 -> 2.75
B77: PRODUÇÃO DA EQUIPE | C77: 1 | D77: CUSTO | I77: =I75+I74+I65 -> 19.37
B78: CUSTO UNITÁRIO DO SERVIÇO | I78: =I77 -> 19.37
B79: BDI | C79: ='BDI - SERVIÇOS'!C30 -> 0.225 | I79: =I78*C79 -> 4.36
B80: TOTAL DO SERVIÇO - R$ | I80: =ROUND(I79+I78,2) -> 23.73
B82: CODEVASF | C82: 7 | D82: COMPOSIÇÃO DE PREÇO UNITÁRIO | I82: =I107 -> 33.77
B83: ESTIMATIVA ANUAL DE CUSTOS DE SERVIÇOS DE ADMINISTRAÇÃO E MANUTENÇÃO PARA O PROJETO IRRIGADO PONTAL SUL | H83: =H56 -> Data: JUNHO/2018
B84: SERVIÇO : Recuperação de trincas | H84: UNIDADE: | I84: m²
B85: EQUIPAMENTO
B86: DISCRIMINAÇÃO | C86: UNIDADE | D86: QUANT. | E86: PROD | F86: IMPROD | G86: P.UNIT. PROD | H86: P.UNIT. IMPR | I86: P.TOTAL
B88: SUB-TOTAL | I88: 0
B89: MATERIAL
B90: DISCRIMINAÇÃO | C90: UNIDADE | D90: QUANT. | H90: P.UNIT. | I90: P.TOTAL
B91: Cimento Portland CP 32 (SINAPI - 00001379) | C91: Kg | D91: 25 | H91: =IF(J91="ORSE",VLOOKUP(K91,ORSE_INSUM!A:D,4,0),IF(J91="SINAPI",VLOOKUP(K91,SINAPI_INSUM!A:E,5,0),IF(J91="SEINFRA",VLOOKUP(K91,SEINFRA_INSUM!A:F,5,0),IF(J91="SINAPI/SERV",VLOOKUP(K91,SINAPI_COMP!G:K,5,0),"")))) -> 0,44 | I91: =ROUND(H91*D91,2) -> 11 | J91: SINAPI | K91: 1379
B92: Areia grossa (ORSE- 201) | C92: m³ | D92: 0.05 | H92: =IF($J92="ORSE",VLOOKUP($K92,ORSE_INSUM!$A:$D,4,0),IF($J92="SINAPI",VLOOKUP($K92,SINAPI_INSUM!$A:$E,5,0),IF($J92="SEINFRA",VLOOKUP($K92,SEINFRA_INSUM!$A:$F,5,0),IF($J92="SINAPI/SERV",VLOOKUP($K92,SINAPI_COMP!$G:$K,5,0),"")))) -> 80.71 | I92: =ROUND(H92*D92,2) -> 4.04 | J92: ORSE | K92: 201
B93: ADITIVO IMPERMEABILIZANTE DE PEGA NORMAL PARA ARGAMASSAS E CONCRETOS SEM ARMACAO (SINAPI - 123) | C93: l | D93: 1 | H93: =IF(J93="ORSE",VLOOKUP(K93,ORSE_INSUM!A:D,4,0),IF(J93="SINAPI",VLOOKUP(K93,SINAPI_INSUM!A:E,5,0),IF(J93="SEINFRA",VLOOKUP(K93,SEINFRA_INSUM!A:F,5,0),IF(J93="SINAPI/SERV",VLOOKUP(K93,SINAPI_COMP!G:K,5,0),"")))) -> 5,98 | I93: =ROUND(H93*D93,2) -> 5.98 | J93: SINAPI | K93: 123 | L93: Consumo - Sika 1
B94: SUB-TOTAL | I94: =SUM(I91:I93) -> 21.02 | L94: 2 | M94: l/50kg
B95: SERVIÇOS - COMPOSIÇÕES AUXILIARES | L95: 1 | M95: l/25kg
B96: DISCRIMINAÇÃO | C96: UNIDADE | D96: QUANT. | H96: P.UNIT. | I96: P.TOTAL
B98: SUB-TOTAL | I98: 0
B99: MÃO DE OBRA
B100: DISCRIMINAÇÃO | C100: UNIDADE | D100: QUANT. | H100: P.UNIT. | I100: P.TOTAL
B101: Ajudante de Pedreiro - 00006127 | C101: h | D101: 0.5 | H101: =IF(J101="ORSE",VLOOKUP(K101,ORSE_INSUM!A:D,4,0),IF(J101="SINAPI",VLOOKUP(K101,SINAPI_INSUM!A:E,5,0),IF(J101="SEINFRA",VLOOKUP(K101,SEINFRA_INSUM!A:F,5,0),IF(J101="SINAPI/SERV",VLOOKUP(K101,SINAPI_COMP!G:K,5,0),""))))/(1+'ENC. SOCIAIS'!$D$46) -> 5.04 | I101: =ROUND(H101*D101,2) -> 2.52 | J101: SINAPI | K101: 6127
B102: Pedreiro - 00004750 | C102: h | D102: 0.5 | H102: =IF(J102="ORSE",VLOOKUP(K102,ORSE_INSUM!A:D,4,0),IF(J102="SINAPI",VLOOKUP(K102,SINAPI_INSUM!A:E,5,0),IF(J102="SEINFRA",VLOOKUP(K102,SEINFRA_INSUM!A:F,5,0),IF(J102="SINAPI/SERV",VLOOKUP(K102,SINAPI_COMP!G:K,5,0),""))))/(1+'ENC. SOCIAIS'!$D$46) -> 6.69 | I102: =ROUND(H102*D102,2) -> 3.35 | J102: SINAPI | K102: 4750
B103: SUB-TOTAL | I103: =SUM(I101:I102) -> 5.87
G104: Encargos Sociais | H104: ='ENC. SOCIAIS'!$D$46 -> 1.1718 | I104: =H104*I103 -> 6.88
B106: PRODUÇÃO DA EQUIPE | C106: 1 | D106: CUSTO | I106: =I104+I103+I98+I94 -> 33.77
B107: CUSTO UNITÁRIO DO SERVIÇO | I107: =I106 -> 33.77
B108: BDI | C108: ='BDI - SERVIÇOS'!C30 -> 0.225 | I108: =I107*C108 -> 7.6
B109: TOTAL DO SERVIÇO - R$ | I109: =ROUND(I108+I107,2) -> 41.37
B111: CODEVASF | C111: 8 | D111: COMPOSIÇÃO DE PREÇO UNITÁRIO | I111: =I134 -> 91.1
B112: ESTIMATIVA ANUAL DE CUSTOS DE SERVIÇOS DE ADMINISTRAÇÃO E MANUTENÇÃO PARA O PROJETO IRRIGADO PONTAL SUL | H112: =H83 -> Data: JUNHO/2018
B113: SERVIÇO : Aterro compactado p/ regularização dos taludes dos canais com solo cimento (6%) | H113: UNIDADE: | I113: m³
B114: EQUIPAMENTO
B115: DISCRIMINAÇÃO | C115: UNIDADE | D115: QUANT. | E115: PROD | F115: IMPROD | G115: P.UNIT. PROD | H115: P.UNIT. IMPR | I115: P.TOTAL
B116: COMPACTADOR DE SOLOS DE PERCUSSÃO (SOQUETE) COM MOTOR A GASOLINA 4 TEMPOS, POTÊNCIA 4 CV - CHP DIURNO. AF_08/2015 (SINAPI 91533 - COMP AUX.) | C116: H | D116: 1 | E116: 0.4 | G116: =IF($J116="ORSE",VLOOKUP($K116,ORSE_INSUM!$A:$D,4,0),IF($J116="SINAPI",VLOOKUP($K116,SINAPI_INSUM!$A:$E,5,0),IF($J116="SEINFRA",VLOOKUP($K116,SEINFRA_INSUM!$A:$F,5,0),IF($J116="SINAPI/SERV",VLOOKUP($K116,SINAPI_COMP!$G:$K,5,0),"")))) -> 37,56 | I116: =ROUND(G116*E116*D116,2) -> 15.02 | J116: SINAPI/SERV | K116: 91533
B117: SUB-TOTAL | I117: =I116 -> 15.02
B118: MATERIAL
B119: DISCRIMINAÇÃO | C119: UNIDADE | D119: QUANT. | H119: P.UNIT. | I119: P.TOTAL
B120: Cimento Portland CP 32 - SINAPI 1379 | C120: Kg | D120: 68.57 | H120: =IF($J120="ORSE",VLOOKUP($K120,ORSE_INSUM!$A:$D,4,0),IF($J120="SINAPI",VLOOKUP($K120,SINAPI_INSUM!$A:$E,5,0),IF($J120="SEINFRA",VLOOKUP($K120,SEINFRA_INSUM!$A:$F,5,0),IF($J120="SINAPI/SERV",VLOOKUP($K120,SINAPI_COMP!$G:$K,5,0),"")))) -> 0,44 | I120: =ROUND(H120*D120,2) -> 30.17 | J120: SINAPI | K120: 1379
B121: ARGILA OU BARRO PARA ATERRO/REATERRO (COM TRANSPORTE ATE 10 KM) (SINAPI 6081 - COMP AUX.) | C121: m³ | D121: 1 | H121: =IF($J121="ORSE",VLOOKUP($K121,ORSE_INSUM!$A:$D,4,0),IF($J121="SINAPI",VLOOKUP($K121,SINAPI_INSUM!$A:$E,5,0),IF($J121="SEINFRA",VLOOKUP($K121,SEINFRA_INSUM!$A:$F,5,0),IF($J121="SINAPI/SERV",VLOOKUP($K121,SINAPI_COMP!$G:$K,5,0),"")))) -> 37,18 | I121: =ROUND(H121*D121,2) -> 37.18 | J121: SINAPI | K121: 6081
B122: SUB-TOTAL | I122: =SUM(I120:I121) -> 67.35
B123: SERVIÇOS - COMPOSIÇÕES AUXILIARES
B124: DISCRIMINAÇÃO | C124: UNIDADE | D124: QUANT. | H124: P.UNIT. | I124: P.TOTAL
B126: SUB-TOTAL | I126: 0
B127: MÃO DE OBRA
B128: DISCRIMINAÇÃO | C128: UNIDADE | D128: QUANT. | H128: P.UNIT. | I128: P.TOTAL
B129: Servente (SINAPI - 6111) | C129: h | D129: 0.8 | H129: =IF(J129="ORSE",VLOOKUP(K129,ORSE_INSUM!A:D,4,0),IF(J129="SINAPI",VLOOKUP(K129,SINAPI_INSUM!A:E,5,0),IF(J129="SEINFRA",VLOOKUP(K129,SEINFRA_INSUM!A:F,5,0),IF(J129="SINAPI/SERV",VLOOKUP(K129,SINAPI_COMP!G:K,5,0),""))))/(1+'ENC. SOCIAIS'!$D$46) -> 5.03 | I129: =ROUND(H129*D129,2) -> 4.02 | J129: SINAPI | K129: 6111
B130: SUB-TOTAL | I130: =SUM(I129) -> 4.02
G131: Encargos Sociais | H131: ='ENC. SOCIAIS'!$D$46 -> 1.1718 | I131: =H131*I130 -> 4.71
B133: PRODUÇÃO DA EQUIPE | C133: 1 | D133: CUSTO | I133: =I131+I130+I122+I117 -> 91.1
B134: CUSTO UNITÁRIO DO SERVIÇO | I134: =I133 -> 91.1
B135: BDI | C135: ='BDI - SERVIÇOS'!C30 -> 0.225 | I135: =ROUND(I134*C135,2) -> 20.5
B136: TOTAL DO SERVIÇO - R$ | I136: =ROUND(I135+I134,2) -> 111.6
B137: (*) Empolamento já incluso no custo unit. do material
B138: CODEVASF | C138: 9 | D138: COMPOSIÇÃO DE PREÇO UNITÁRIO | I138: =I162 -> 1191.07
B139: OBRA: LIMPEZA DOS CANAIS DO PONTAL | H139: Data: JANEIRO/2018
B140: SERVIÇO :Limpeza dos canais de irrigação com escavadeira hidráulica sobre esteira, de longo alcance, com concha lisa com lâmina | H140: UNIDADE: | I140: km
B141: EQUIPAMENTO
B142: DISCRIMINAÇÃO | C142: UNIDADE | D142: QUANT. | E142: PROD | F142: IMPROD | G142: P.UNIT. PROD | H142: P.UNIT. IMPR | I142: P.TOTAL
B143: ESCAVADEIRA HIDRÁULICA SOBRE ESTEIRAS, CAÇAMBA 1,20 M3, PESO OPERACIONAL 21 T, POTÊNCIA BRUTA 155 HP - CHP DIURNO. AF_06/2014 (SINAPI 88907 - COMP.. AUX.) | C143: h | D143: 1 | E143: 6.7186 | G143: =IF($J143="ORSE",VLOOKUP($K143,ORSE_INSUM!$A:$D,4,0),IF($J143="SINAPI",VLOOKUP($K143,SINAPI_INSUM!$A:$E,5,0),IF($J143="SEINFRA",VLOOKUP($K143,SEINFRA_INSUM!$A:$F,5,0),IF($J143="SINAPI/SERV",VLOOKUP($K143,SINAPI_COMP!$G:$K,5,0),"")))) -> 177,28 | I143: =D143*E143*G143+D143*F143*H143 -> 1191.07 | J143: SINAPI/SERV | K143: 88907
B144: SUB-TOTAL | I144: =SUM(I143:I143) -> 1191.07
B145: MATERIAL
B146: DISCRIMINAÇÃO | C146: UNIDADE | D146: QUANT. | H146: P.UNIT. | I146: P.TOTAL
H147: =[2]P.U.Insumos!E239 -> 0 | I147: =D147*H147 -> 0
H148: =[2]P.U.Insumos!E240 -> 0 | I148: =D148*H148 -> 0
H149: =[2]P.U.Insumos!E238 -> 0 | I149: =D149*H149 -> 0
B150: SUB-TOTAL | I150: =SUM(I147:I149) -> 0
B151: SERVIÇOS - COMPOSIÇÕES AUXILIARES
B152: DISCRIMINAÇÃO | C152: UNIDADE | D152: QUANT. | H152: P.UNIT. | I152: P.TOTAL
I153: =D153*H153 -> 0
B154: SUB-TOTAL | I154: =SUM(I153:I153) -> 0
B155: MÃO DE OBRA
B156: DISCRIMINAÇÃO | C156: UNIDADE | D156: QUANT. | H156: P.UNIT. | I156: P.TOTAL
I157: =D157*H157 -> 0
B158: SUB-TOTAL | I158: =SUM(I157:I157) -> 0
G159: Encargos Sociais | H159: ='ENC. SOCIAIS'!$D$46 -> 1.1718 | I159: =H159*I158 -> 0
B161: PRODUÇÃO DA EQUIPE | C161: 1 | D161: CUSTO | I161: =I158+I159+I154+I150+I144 -> 1191.07
B162: CUSTO UNITÁRIO DO SERVIÇO | I162: =I161/C161 -> 1191.07
B163: BDI % | C163: ='BDI - SERVIÇOS'!C30 -> 0.225 | I163: =ROUND(I162*C163,2) -> 267.99
B164: TOTAL DO SERVIÇO - R$ | I164: =I162+I163 -> 1459.06
B165: CODEVASF | C165: 10 | D165: COMPOSIÇÃO DE PREÇO UNITÁRIO | I165: =I194 -> 5823.2
B166: ESTIMATIVA ANUAL DE CUSTOS DE SERVIÇOS DE ADMINISTRAÇÃO E MANUTENÇÃO PARA O PROJETO IRRIGADO PONTAL SUL | H166: Data: JANEIRO/2018
B167: SERVIÇO : Limpeza manual das placas dos canais com hidrojato, com retirada de solo e vegetação, inclusive das juntas, com ferramentas | H167: UNIDADE: | I167: km
B168: EQUIPAMENTO
B169: DISCRIMINAÇÃO | C169: UNIDADE | D169: QUANT. | E169: PROD | F169: IMPROD | G169: P.UNIT. PROD | H169: P.UNIT. IMPR | I169: P.TOTAL
B170: LAVADORA DE ALTA PRESSAO (LAVA-JATO) PARA AGUA FRIA, PRESSAO DE OPERACAO ENTRE 1400 E 1900 LIB/POL2, VAZAO MAXIMA ENTRE 400 E 700 L/H (SINAPI 746) | C170: ud | D170: 0.1931 | E170: 1 | G170: =IF($J170="ORSE",VLOOKUP($K170,ORSE_INSUM!$A:$D,4,0),IF($J170="SINAPI",VLOOKUP($K170,SINAPI_INSUM!$A:$E,5,0),IF($J170="SEINFRA",VLOOKUP($K170,SEINFRA_INSUM!$A:$F,5,0),IF($J170="SINAPI/SERV",VLOOKUP($K170,SINAPI_COMP!$G:$K,5,0),"")))) -> 2.069,00 | I170: =D170*E170*G170 -> 399.52 | J170: SINAPI | K170: 746
B171: GERADOR PORTATIL MONOFASICO, POTENCIA 5500 VA, MOTOR A GASOLINA, POTENCIA DO MOTOR 13 CV (SINAPI 36498) | C171: ud | D171: 0.1931 | E171: 1 | G171: =IF($J171="ORSE",VLOOKUP($K171,ORSE_INSUM!$A:$D,4,0),IF($J171="SINAPI",VLOOKUP($K171,SINAPI_INSUM!$A:$E,5,0),IF($J171="SEINFRA",VLOOKUP($K171,SEINFRA_INSUM!$A:$F,5,0),IF($J171="SINAPI/SERV",VLOOKUP($K171,SINAPI_COMP!$G:$K,5,0),"")))) -> 3.594,35 | I171: =D171*E171*G171 -> 694.07 | J171: SINAPI | K171: 36498
B172: SUB-TOTAL | I172: =SUM(I170:I171) -> 1093.59
B173: MATERIAL
B174: DISCRIMINAÇÃO | C174: UNIDADE | D174: QUANT. | H174: P.UNIT. | I174: P.TOTAL
B175: FARDAMENTO (ORSE 941) | C175: und | D175: 0.7724 | H175: =IF($J175="ORSE",VLOOKUP($K175,ORSE_INSUM!$A:$D,4,0),IF($J175="SINAPI",VLOOKUP($K175,SINAPI_INSUM!$A:$E,5,0),IF($J175="SEINFRA",VLOOKUP($K175,SEINFRA_INSUM!$A:$F,5,0),IF($J175="SINAPI/SERV",VLOOKUP($K175,SINAPI_COMP!$G:$K,5,0),"")))) -> 68.45 | I175: =D175*H175 -> 52.87 | J175: ORSE | K175: 941
B176: BOTA BORRACHA (SETE LÉGUAS OU SIMILAR) (ORSE 293) | C176: par | D176: 0.7724 | H176: =IF($J176="ORSE",VLOOKUP($K176,ORSE_INSUM!$A:$D,4,0),IF($J176="SINAPI",VLOOKUP($K176,SINAPI_INSUM!$A:$E,5,0),IF($J176="SEINFRA",VLOOKUP($K176,SEINFRA_INSUM!$A:$F,5,0),IF($J176="SINAPI/SERV",VLOOKUP($K176,SINAPI_COMP!$G:$K,5,0),"")))) -> 52.35 | I176: 40.44 | J176: ORSE | K176: 293
B177: Chibanca com cabo (COTAÇÃO) | C177: und | D177: 0.3862 | H177: =IF($J177="ORSE",VLOOKUP($K177,ORSE_INSUM!$A:$D,4,0),IF($J177="SINAPI",VLOOKUP($K177,SINAPI_INSUM!$A:$E,5,0),IF($J177="SEINFRA",VLOOKUP($K177,SEINFRA_INSUM!$A:$F,5,0),IF($J177="SINAPI/SERV",VLOOKUP($K177,SINAPI_COMP!$G:$K,5,0),IF(J177="COTAÇÃO",VLOOKUP(K177,'COTAÇÃO - MAT_CONSUMO'!B:K,10,0),""))))) -> 54.9 | I177: 21.2 | J177: COTAÇÃO | K177: 52
B178: ENXADA ESTREITA *25 X 23* CM COM CABO (SINAPI 38403) | C178: und | D178: 0.3862 | H178: =IF($J178="ORSE",VLOOKUP($K178,ORSE_INSUM!$A:$D,4,0),IF($J178="SINAPI",VLOOKUP($K178,SINAPI_INSUM!$A:$E,5,0),IF($J178="SEINFRA",VLOOKUP($K178,SEINFRA_INSUM!$A:$F,5,0),IF($J178="SINAPI/SERV",VLOOKUP($K178,SINAPI_COMP!$G:$K,5,0),IF(J178="COTAÇÃO",VLOOKUP(K178,'COTAÇÃO - MAT_CONSUMO'!B:K,10,0),""))))) -> 25.36 | I178: 9.79 | J178: SEINFRA | K178: 122
B179: Pá de bico com cabo (SEINFRA I8933) | C179: und | D179: 0.3862 | H179: =IF($J179="ORSE",VLOOKUP($K179,ORSE_INSUM!$A:$D,4,0),IF($J179="SINAPI",VLOOKUP($K179,SINAPI_INSUM!$A:$E,5,0),IF($J179="SEINFRA",VLOOKUP($K179,SEINFRA_INSUM!$A:$F,5,0),IF($J179="SINAPI/SERV",VLOOKUP($K179,SINAPI_COMP!$G:$K,5,0),IF(J179="COTAÇÃO",VLOOKUP(K179,'COTAÇÃO - MAT_CONSUMO'!B:K,10,0),""))))) -> 109,90 | I179: 42.44 | J179: SINAPI | K179: 2711
B180: CARRINHO DE MAO DE ACO CAPACIDADE 50 A 60 L, PNEU COM CAMARA (SINAPI 2711) | C180: und | D180: 0.3862 | H180: =SINAPI_INSUM!E1143 -> 109,90 | I180: 42.44
B181: SUB-TOTAL | I181: =SUM(I175:I180) -> 209.18
B182: SERVIÇOS - COMPOSIÇÕES AUXILIARES
B183: DISCRIMINAÇÃO | C183: UNIDADE | D183: QUANT. | H183: P.UNIT. | I183: P.TOTAL
B185: SUB-TOTAL | I185: =SUM(I184:I184) -> 0
B186: MÃO DE OBRA
B187: DISCRIMINAÇÃO | C187: UNIDADE | D187: QUANT. | H187: P.UNIT. | I187: P.TOTAL
B188: Encarregado Geral (SINAPI 4083) | C188: h | D188: 67.9537 | H188: =IF(J188="ORSE",VLOOKUP(K188,ORSE_INSUM!A:D,4,0),IF(J188="SINAPI",VLOOKUP(K188,SINAPI_INSUM!A:E,5,0),IF(J188="SEINFRA",VLOOKUP(K188,SEINFRA_INSUM!A:F,5,0),IF(J188="SINAPI/SERV",VLOOKUP(K188,SINAPI_COMP!G:K,5,0),""))))/(1+'ENC. SOCIAIS'!$D$46) -> 15.54 | I188: =D188*H188 -> 1056 | J188: SINAPI | K188: 4083
B189: Servente (SINAPI 6111) | C189: h | D189: 203.8611 | H189: =IF(J189="ORSE",VLOOKUP(K189,ORSE_INSUM!A:D,4,0),IF(J189="SINAPI",VLOOKUP(K189,SINAPI_INSUM!A:E,5,0),IF(J189="SEINFRA",VLOOKUP(K189,SEINFRA_INSUM!A:F,5,0),IF(J189="SINAPI/SERV",VLOOKUP(K189,SINAPI_COMP!G:K,5,0),""))))/(1+'ENC. SOCIAIS'!$D$46) -> 5.03 | I189: =D189*H189 -> 1025.42 | J189: SINAPI | K189: 6111
B190: SUB-TOTAL | I190: =SUM(I188:I189) -> 2081.42
B191: Encargos Sociais | C191: ='ENC. SOCIAIS'!D46 -> 1.1718 | H191: =C191 -> 1.1718 | I191: =H191*I190 -> 2439.01
B193: PRODUÇÃO DA EQUIPE | C193: 1 | D193: CUSTO | I193: =I172+I185+I181+I190+I191 -> 5823.2
B194: CUSTO UNITÁRIO DO SERVIÇO | I194: =I193/C193 -> 5823.2
B195: BDI % | C195: ='BDI - SERVIÇOS'!C30 -> 0.225 | I195: =ROUND(I194*C195,2) -> 1310.22
B196: TOTAL DO SERVIÇO - R$ | I196: =I194+I195 -> 7133.42

Sheet 2.3.2.6.Manut-Estradas
A1: 2.3. MANUTENÇÃO DAS INFRAESTRUTURAS
A3: 2.3.2. MANUTENÇÃO (SERVIÇOS SAZONAIS)
A5: 2.3.2.6 PLANILHA DE ESTIMATIVA DE CUSTO ANUAL DE MANUTENÇÃO DAS ESTRADAS DE ACESSO AS ESTRUTURAS HIDRÁULICAS
A7: ITEM | B7: Ref. | C7: Cód. CPU | D7: DESCRIÇÃO | E7: QUANT. | F7: UNID. | G7: VALOR
G8: UNIT. (R$) | H8: TOTAL (R$)
A10: 2.3.2.6.1 | B10: SINAPI | C10: 73822/2 | D10: =SINAPI_COMP!H35276 -> LIMPEZA MECANIZADA DE TERRENO COM REMOCAO DE CAMADA VEGETAL, UTILIZANDO MOTONIVELADORA | E10: =ROUND('MEMO - ESTRADAS'!C19,0) -> 23460 | F10: m² | G10: =IF(B10="SINAPI",VLOOKUP(C10,SINAPI_COMP!G:K,5,0),IF(B10="SEINFRA",VLOOKUP(C10,SEINFRA_COMP!A:G,7,0),"")) -> 0,54 | H10: =G10*E10 -> 12668.4
A12: TERRAPLENAGEM
A13: 2.3.2.6.2 | B13: SINAPI | C13: 89925 | D13: =SINAPI_COMP!H27832 -> ESCAVAÇÃO VERTICAL A CÉU ABERTO, INCLUINDO CARGA, DESCARGA E TRANSPORTE, EM SOLO DE 1ª CATEGORIA COM ESCAVADEIRA HIDRÁULICA (CAÇAMBA: 1,2 M³ / 155 HP), FROTA DE 3 CAMINHÕES BASCULANTES DE 14 M³, DMT DE 1 KM E VELOCIDADE MÉDIA 15 KM/H. AF_12/2013 | E13: =ROUND('MEMO - ESTRADAS'!D20,0) -> 3000 | F13: M³ | G13: =IF(B13="SINAPI",VLOOKUP(C13,SINAPI_COMP!G:K,5,0),IF(B13="SEINFRA",VLOOKUP(C13,SEINFRA_COMP!A:G,7,0),"")) -> 7,32 | H13: =G13*E13 -> 21960 | J13: ='Planilha Resumida'!F94 -> 4950000
A14: 2.3.2.6.3 | B14: SEINFRA | C14: 2.3.7 | D14: COMPLEMENTAÇÃO DE TRANSPORTE EM CAMINHÃO BASCULANTE | E14: =ROUND(('MEMO - ESTRADAS'!D20*'MEMO - ESTRADAS'!D22),0) -> 15000 | F14: M³XKm | G14: =IF(B14="SINAPI",VLOOKUP(C14,SINAPI_COMP!G:K,5,0),IF(B14="SEINFRA",VLOOKUP(C14,SEINFRA_COMP!A:G,7,0),"")) -> 0.83 | H14: =G14*E14 -> 12450
A15: 2.3.2.6.4 | B15: SINAPI | C15: 74005/2 | D15: =IF($B15="ORSE",VLOOKUP($C15,ORSE_COMP!A:D,2,0),IF($B15="SINAPI",VLOOKUP($C15,SINAPI_COMP!G:K,2,0),IF($B15="SEINFRA",VLOOKUP($C15,SEINFRA_COMP!A:G,3,0),""))) -> COMPACTACAO MECANICA C/ CONTROLE DO GC>=95% DO PN (AREAS) (C/MONIVELADORA 140 HP E ROLO COMPRESSOR VIBRATORIO 80 HP) | E15: ='MEMO - ESTRADAS'!D20 -> 3000 | F15: M³ | G15: =IF(B15="SINAPI",VLOOKUP(C15,SINAPI_COMP!G:K,5,0),IF(B15="SEINFRA",VLOOKUP(C15,SEINFRA_COMP!A:G,7,0),"")) -> 5,68 | H15: =G15*E15 -> 17040 | J15: 74005/2
A16: 2.3.2.6.5 | B16: SINAPI | C16: 41879 | D16: =SINAPI_COMP!H30311 -> CONFORMACAO GEOMETRICA DE PLATAFORMA PARA EXECUCAO DE REVESTIMENTO PRIMARIO EM RODOVIAS VICINAIS | E16: 83028.96 | F16: M² | G16: =IF(B16="SINAPI",VLOOKUP(C16,SINAPI_COMP!G:K,5,0),IF(B16="SEINFRA",VLOOKUP(C16,SEINFRA_COMP!A:G,7,0),"")) -> 0,13 | H16: =G16*E16 -> 10793.76 | J16: 72961 | K16: 41879 | L16: =E16/6 -> 13838.16
J17: ='Planilha Resumida'!F94 -> 4950000
A18: REVESTIMENTO
A19: 2.3.2.6.6 | B19: =B13 -> SINAPI | C19: 89925 | D19: ESCAVAÇÃO VERTICAL A CÉU ABERTO, INCLUINDO CARGA, DESCARGA E TRANSPORTE, EM SOLO DE 1ª CATEGORIA COM ESCAVADEIRA HIDRÁULICA (CAÇAMBA: 1,2 M³ / 155 HP), FROTA DE 3 CAMINHÕES BASCULANTES DE 14 M³, DMT DE 1 KM E VELOCIDADE MÉDIA 15 KM/H. AF_12/2013 | E19: =ROUND('MEMO - ESTRADAS'!D21*1.17,0) -> 17632 | F19: M³ | G19: =IF(B19="SINAPI",VLOOKUP(C19,SINAPI_COMP!G:K,5,0),IF(B19="SEINFRA",VLOOKUP(C19,SEINFRA_COMP!A:G,7,0),"")) -> 7,32 | H19: =ROUND(G19*E19,2) -> 129066.24 | J19: 4950000
A20: 2.3.2.6.7 | B20: =B14 -> SEINFRA | C20: =C14 -> 2.3.7 | D20: =D14 -> COMPLEMENTAÇÃO DE TRANSPORTE EM CAMINHÃO BASCULANTE | E20: =ROUND('MEMO - ESTRADAS'!D21*'MEMO - ESTRADAS'!D22*1.17,0) -> 88160 | F20: M³XKm | G20: =IF(B20="SINAPI",VLOOKUP(C20,SINAPI_COMP!G:K,5,0),IF(B20="SEINFRA",VLOOKUP(C20,SEINFRA_COMP!A:G,7,0),"")) -> 0.83 | H20: =G20*E20 -> 73172.8
A21: 2.3.2.6.8 | B21: SINAPI | C21: 83771 | D21: =SINAPI_COMP!H30299 -> RECOMPOSICAO DE REVESTIMENTO PRIMARIO MEDIDO P/ VOLUME COMPACTADO | E21: =ROUND('MEMO - ESTRADAS'!D21,0) -> 15070 | F21: M³ | G21: =IF(B21="SINAPI",VLOOKUP(C21,SINAPI_COMP!G:K,5,0),IF(B21="SEINFRA",VLOOKUP(C21,SEINFRA_COMP!A:G,7,0),"")) -> 7,91 | H21: =G21*E21 -> 119203.7 | J21: =J17-J19 -> 0 | L21: =E21/0.2 -> 75350
J22: 10602.54 | L22: =L21/6 -> 12558.33333
A23: ENSAIO TÉCNICO DE MATERIAL/SERVIÇO CARTOGRAFIA
A24: 2.3.2.6.16 | B24: SINAPI | C24: 78472 | D24: =SINAPI_COMP!H35827 -> SERVICOS TOPOGRAFICOS PARA PAVIMENTACAO, INCLUSIVE NOTA DE SERVICOS, ACOMPANHAMENTO E GREIDE | E24: =ROUND('MEMO - ESTRADAS'!D12,0) -> 82800 | F24: M² | G24: =SINAPI_COMP!K35827*(1+'BDI - SERVIÇOS'!C30) -> 0.38 | H24: =G24*E24 -> 31464 | J24: =H16-J21 -> 10793.76
A26: SUBTOTAL | H26: =ROUND(SUM(H10:H25),2) -> 427818.9
A27: BDI SERVIÇOS | G27: ='BDI - SERVIÇOS'!C30 -> 0.225 | H27: =ROUND(G27*H26,2) -> 96259.25
A28: TOTAL GERAL | H28: =H26+H27 -> 524078.15

Sheet 2.3.2.7.Manut-Civil Prédios
A1: 2.3. MANUTENÇÃO DAS INFRAESTRUTURAS
A3: 2.3.2. MANUTENÇÃO (SERVIÇOS SAZONAIS)
A5: 2.3.2.7 PLANILHA DE ESTIMATIVA DE CUSTO ANUAL DE MANUTENÇÃO E CONSERVAÇÃO DE PRÉDIOS (ESCRITÓRIO, OFICINAS, ALMOXARIFADO, ABRIGO DO PAINEL DAS COMPORTAS, EBs, CENTRO ADMINISTRATIVO, ONE-WAY E PLACA DE IDENTIFICAÇÃO DE OBRA)
A7: ITEM | B7: Ref. | C7: Cód. CPU | D7: DESCRIÇÃO | E7: QUANT. | F7: UNID. | G7: VALOR
G8: UNIT. (R$) | H8: TOTAL (R$)
A10: SERVIÇOS (MATERIAIS E MÃO DE OBRA)
A11: 2.3.2.7.1 | B11: ORSE | C11: 2288 | D11: =IF($B11="ORSE",VLOOKUP($C11,ORSE_COMP!A:D,2,0),IF($B11="SINAPI",VLOOKUP($C11,SINAPI_COMP!G:K,2,0),IF($B11="SEINFRA",VLOOKUP($C11,SEINFRA_COMP!A:G,3,0),""))) -> PINTURA DE ACABAMENTO COM APLICAÇÃO DE 02 DEMAÕS DE TINTA ACRÍLICA CONVENCION AL | E11: =ROUND(J11/4,0) -> 1250 | F11: M² | G11: =IF($B11="ORSE",VLOOKUP($C11,ORSE_COMP!A:D,4,0),IF($B11="SINAPI",VLOOKUP($C11,SINAPI_COMP!G:K,5,0),IF($B11="SEINFRA",VLOOKUP($C11,SEINFRA_COMP!A:G,7,0),"")))*(1+'BDI - SERVIÇOS'!$C$30) -> 14.12 | H11: =G11*E11 -> 17650 | J11: 5000
A12: 2.3.2.7.2 | B12: SINAPI | C12: 73924/2 | D12: =IF($B12="ORSE",VLOOKUP($C12,ORSE_COMP!A:D,2,0),IF($B12="SINAPI",VLOOKUP($C12,SINAPI_COMP!G:K,2,0),IF($B12="SEINFRA",VLOOKUP($C12,SEINFRA_COMP!A:G,3,0),""))) -> PINTURA ESMALTE ACETINADO, DUAS DEMAOS, SOBRE SUPERFICIE METALICA | E12: =ROUND(J12/4,0) -> 125 | F12: M² | G12: =IF($B12="ORSE",VLOOKUP($C12,ORSE_COMP!A:D,4,0),IF($B12="SINAPI",VLOOKUP($C12,SINAPI_COMP!G:K,5,0),IF($B12="SEINFRA",VLOOKUP($C12,SEINFRA_COMP!A:G,7,0),"")))*(1+'BDI - SERVIÇOS'!$C$30) -> 29.06 | H12: =G12*E12 -> 3632.5 | J12: 500
A13: 2.3.2.7.3 | B13: SINAPI | C13: 74245/1 | D13: =IF($B13="ORSE",VLOOKUP($C13,ORSE_COMP!A:D,2,0),IF($B13="SINAPI",VLOOKUP($C13,SINAPI_COMP!G:K,2,0),IF($B13="SEINFRA",VLOOKUP($C13,SEINFRA_COMP!A:G,3,0),""))) -> PINTURA ACRILICA EM PISO CIMENTADO DUAS DEMAOS | E13: 60 | F13: M² | G13: =IF($B13="ORSE",VLOOKUP($C13,ORSE_COMP!A:D,4,0),IF($B13="SINAPI",VLOOKUP($C13,SINAPI_COMP!G:K,5,0),IF($B13="SEINFRA",VLOOKUP($C13,SEINFRA_COMP!A:G,7,0),"")))*(1+'BDI - SERVIÇOS'!$C$30) -> 15.39 | H13: 923.4 | J13: 240 | N13: 630425.6
A14: 2.3.2.7.4 | B14: SINAPI | C14: 73739/1 | D14: =IF($B14="ORSE",VLOOKUP($C14,ORSE_COMP!A:D,2,0),IF($B14="SINAPI",VLOOKUP($C14,SINAPI_COMP!G:K,2,0),IF($B14="SEINFRA",VLOOKUP($C14,SEINFRA_COMP!A:G,3,0),""))) -> PINTURA ESMALTE ACETINADO EM MADEIRA, DUAS DEMAOS | E14: 25 | F14: M² | G14: =IF($B14="ORSE",VLOOKUP($C14,ORSE_COMP!A:D,4,0),IF($B14="SINAPI",VLOOKUP($C14,SINAPI_COMP!G:K,5,0),IF($B14="SEINFRA",VLOOKUP($C14,SEINFRA_COMP!A:G,7,0),"")))*(1+'BDI - SERVIÇOS'!$C$30) -> 19.29 | H14: 482.25 | J14: 100 | N14: =N13*3% -> 18912.768
A15: 2.3.2.7.5 | B15: ORSE | C15: 3310 | D15: =IF($B15="ORSE",VLOOKUP($C15,ORSE_COMP!A:D,2,0),IF($B15="SINAPI",VLOOKUP($C15,SINAPI_COMP!G:K,2,0),IF($B15="SEINFRA",VLOOKUP($C15,SEINFRA_COMP!A:G,3,0),""))) -> CHAPISCO EM PAREDE COM ARGAMASSA TRAÇO T1 - 1:3 (CIMENTO / AREIA) - REVISADO 08/2015 | E15: 10 | F15: M² | G15: =IF($B15="ORSE",VLOOKUP($C15,ORSE_COMP!A:D,4,0),IF($B15="SINAPI",VLOOKUP($C15,SINAPI_COMP!G:K,5,0),IF($B15="SEINFRA",VLOOKUP($C15,SEINFRA_COMP!A:G,7,0),"")))*(1+'BDI - SERVIÇOS'!$C$30) -> 5.62 | H15: 56.2 | J15: 40 | N15: =N13*0.65% -> 4097.7664
A16: 2.3.2.7.6 | B16: ORSE | C16: 3316 | D16: =IF($B16="ORSE",VLOOKUP($C16,ORSE_COMP!A:D,2,0),IF($B16="SINAPI",VLOOKUP($C16,SINAPI_COMP!G:K,2,0),IF($B16="SEINFRA",VLOOKUP($C16,SEINFRA_COMP!A:G,3,0),""))) -> REBOCO OU EMBOÇO EXTERNO, DE PAREDE, COM ARGAMASSA TRAÇO T5 - 1:2:8 (CIMENTO / CAL / AREIA), ESPESSURA 2,5 CM | E16: 10 | F16: M² | G16: =IF($B16="ORSE",VLOOKUP($C16,ORSE_COMP!A:D,4,0),IF($B16="SINAPI",VLOOKUP($C16,SINAPI_COMP!G:K,5,0),IF($B16="SEINFRA",VLOOKUP($C16,SEINFRA_COMP!A:G,7,0),"")))*(1+'BDI - SERVIÇOS'!$C$30) -> 31.81 | H16: 318.1 | J16: 40
A17: 2.3.2.7.7 | B17: SEINFRA | C17: C1207 | D17: =SEINFRA_COMP!C4282 -> EMASSAMENTO DE PAREDES EXTERNAS 2 DEMÃOS C/MASSA ACRÍLICA | E17: 5 | F17: M² | G17: =SEINFRA_COMP!G4282*(1+'BDI - SERVIÇOS'!$C$30) -> 15.18 | H17: 75.9 | J17: 20
A18: 2.3.2.7.8 | B18: SEINFRA | C18: C1208 | D18: =SEINFRA_COMP!C4283 -> EMASSAMENTO DE PAREDES INTERNAS 2 DEMÃOS C/MASSA DE PVA | E18: 5 | F18: M² | G18: =SEINFRA_COMP!G4283*(1+'BDI - SERVIÇOS'!$C$30) -> 12.3 | H18: 61.5 | J18: 20
A19: 2.3.2.7.9 | B19: SEINFRA | C19: C0589 | D19: =SEINFRA_COMP!C4279 -> CAIAÇÃO EM TRES DEMÃOS EM PAREDES | E19: 63 | F19: M² | G19: =SEINFRA_COMP!G4279*(1+'BDI - SERVIÇOS'!$C$30) -> 5.54 | H19: 349.02 | J19: 250
A20: 2.3.2.7.10 | B20: SINAPI | C20: 97631 | D20: =IF($B20="ORSE",VLOOKUP($C20,[3]ORSE_COMP!A:D,2,0),IF($B20="SINAPI",VLOOKUP($C20,[3]SINAPI_COMP!G:K,2,0),IF($B20="SEINFRA",VLOOKUP($C20,[3]SEINFRA_COMP!A:G,3,0),""))) -> DEMOLIÇÃO DE ARGAMASSAS, DE FORMA MANUAL, SEM REAPROVEITAMENTO. AF_12/2017 | E20: 75 | F20: M² | G20: =IF($B20="ORSE",VLOOKUP($C20,ORSE_COMP!A:D,4,0),IF($B20="SINAPI",VLOOKUP($C20,SINAPI_COMP!G:K,5,0),IF($B20="SEINFRA",VLOOKUP($C20,SEINFRA_COMP!A:G,7,0),"")))*(1+'BDI - SERVIÇOS'!$C$30) -> 2.9 | H20: =G20*E20 -> 217.5 | J20: 300
A21: 2.3.2.7.11 | B21: SINAPI | C21: 73974/1 | D21: =IF($B21="ORSE",VLOOKUP($C21,[3]ORSE_COMP!A:D,2,0),IF($B21="SINAPI",VLOOKUP($C21,[3]SINAPI_COMP!G:K,2,0),IF($B21="SEINFRA",VLOOKUP($C21,[3]SEINFRA_COMP!A:G,3,0),""))) -> PISO CIMENTADO TRACO 1:3 (CIMENTO E AREIA) ACABAMENTO RUSTICO ESPESSURA 2CM, PREPARO MECANICO DA ARGAMASSA | E21: 38 | F21: M² | G21: =IF($B21="ORSE",VLOOKUP($C21,ORSE_COMP!A:D,4,0),IF($B21="SINAPI",VLOOKUP($C21,SINAPI_COMP!G:K,5,0),IF($B21="SEINFRA",VLOOKUP($C21,SEINFRA_COMP!A:G,7,0),"")))*(1+'BDI - SERVIÇOS'!$C$30) -> 45.04 | H21: 1711.52 | J21: 150
A22: 2.3.2.7.12 | B22: SINAPI | C22: 73922/3 | D22: =IF($B22="ORSE",VLOOKUP($C22,[3]ORSE_COMP!A:D,2,0),IF($B22="SINAPI",VLOOKUP($C22,[3]SINAPI_COMP!G:K,2,0),IF($B22="SEINFRA",VLOOKUP($C22,[3]SEINFRA_COMP!A:G,3,0),""))) -> PISO CIMENTADO TRACO 1:3 (CIMENTO E AREIA) ACABAMENTO LISO ESPESSURA 2,0CM, PREPARO MANUAL DA ARGAMASSA | E22: 38 | F22: M² | G22: =IF($B22="ORSE",VLOOKUP($C22,ORSE_COMP!A:D,4,0),IF($B22="SINAPI",VLOOKUP($C22,SINAPI_COMP!G:K,5,0),IF($B22="SEINFRA",VLOOKUP($C22,SEINFRA_COMP!A:G,7,0),"")))*(1+'BDI - SERVIÇOS'!$C$30) -> 52.34 | H22: 1988.92 | J22: 150
A23: 2.3.2.7.13 | B23: CODEVASF | C23: 7.14 | D23: Recuperação de piso cimentado rústico, traço 1:3 C:A, espessura 3,0 cm | E23: 38 | F23: M² | G23: ='CPU3 - MAN_CIVIL'!H52 -> 3.59 | H23: =G23*E23 -> 136.42 | J23: 150
A24: 2.3.2.7.14 | B24: CODEVASF | C24: 7.15 | D24: Recuperação ou regularização de piso cimentado liso, desempenado, traço 1:3 C:A, espessura 3,5 cm | E24: 38 | F24: M² | G24: ='CPU3 - MAN_CIVIL'!H25 -> 2.99 | H24: 113.62 | J24: 150
A25: 2.3.2.7.15 | B25: CODEVASF | C25: 7.16 | D25: REMOÇÃO DE PISO DE BORRACHA | E25: 50 | F25: M² | G25: ='CPU3 - MAN_CIVIL'!H77 -> 1.43 | H25: 71.5 | J25: 200
A26: 2.3.2.7.16 | B26: SINAPI | C26: 73876/1 | D26: =IF($B26="ORSE",VLOOKUP($C26,ORSE_COMP!A:D,2,0),IF($B26="SINAPI",VLOOKUP($C26,SINAPI_COMP!G:K,2,0),IF($B26="SEINFRA",VLOOKUP($C26,SEINFRA_COMP!A:G,3,0),""))) -> PISO DE BORRACHA PASTILHADO, ESPESSURA 7MM, FIXADO COM COLA | E26: 50 | F26: M² | G26: =IF($B26="ORSE",VLOOKUP($C26,ORSE_COMP!A:D,4,0),IF($B26="SINAPI",VLOOKUP($C26,SINAPI_COMP!G:K,5,0),IF($B26="SEINFRA",VLOOKUP($C26,SEINFRA_COMP!A:G,7,0),"")))*(1+'BDI - SERVIÇOS'!$C$30) -> 155.12 | H26: 7756 | J26: 200
A27: 2.3.2.7.17 | B27: SINAPI | C27: 87620 | D27: =SINAPI_COMP!H32356 -> CONTRAPISO EM ARGAMASSA TRAÇO 1:4 (CIMENTO E AREIA), PREPARO MECÂNICO COM BETONEIRA 400 L, APLICADO EM ÁREAS SECAS SOBRE LAJE, ADERIDO, ESPESSURA 2CM. AF_06/2014 | E27: 31 | F27: M² | G27: =SINAPI_COMP!K32356*(1+'BDI - SERVIÇOS'!$C$30) -> 32.08 | H27: 994.48 | J27: 125
A28: 2.3.2.7.18 | B28: SINAPI | C28: 72136 | D28: =SINAPI_COMP!H32135 -> PISO INDUSTRIAL DE ALTA RESISTENCIA, ESPESSURA 8MM, INCLUSO JUNTAS DE DILATACAO PLASTICAS E POLIMENTO MECANIZADO | E28: 31 | F28: M² | G28: =SINAPI_COMP!K32135*(1+'BDI - SERVIÇOS'!$C$30) -> 93.03 | H28: 2883.93 | J28: 125
A29: 2.3.2.7.19 | B29: SINAPI | C29: 97625 | D29: =SINAPI_COMP!H35335 -> DEMOLIÇÃO DE ALVENARIA PARA QUALQUER TIPO DE BLOCO, DE FORMA MECANIZADA, SEM REAPROVEITAMENTO. AF_12/2017 | E29: 5 | F29: M² | G29: =SINAPI_COMP!K35335*(1+'BDI - SERVIÇOS'!$C$30) -> 51.93 | H29: 259.65 | J29: 20
A30: 2.3.2.7.20 | B30: ORSE | C30: 10951 | D30: =IF($B30="ORSE",VLOOKUP($C30,ORSE_COMP!A:D,2,0),IF($B30="SINAPI",VLOOKUP($C30,SINAPI_COMP!G:K,2,0),IF($B30="SEINFRA",VLOOKUP($C30,SEINFRA_COMP!A:G,3,0),""))) -> ALVENARIA BLOCO CONCRETO ESTRUTURAL 19X19X39CM, FBK 8 MPA, ESP = 0,19M, COM ARGAMASSA TRAÇO T5 - 1:2:8 (CIMENTO/CAL/AREIA), JUNTA 2CM | E30: 5 | F30: M² | G30: =IF($B30="ORSE",VLOOKUP($C30,ORSE_COMP!A:D,4,0),IF($B30="SINAPI",VLOOKUP($C30,SINAPI_COMP!G:K,5,0),IF($B30="SEINFRA",VLOOKUP($C30,SEINFRA_COMP!A:G,7,0),"")))*(1+'BDI - SERVIÇOS'!$C$30) -> 73.43 | H30: 367.15 | J30: 20
A31: 2.3.2.7.21 | B31: SEINFRA | C31: C0073 | D31: =SEINFRA_COMP!C1096 -> ALVENARIA DE TIJOLO CERÂMICO FURADO (9x19x19)cm C/ARGAMASSA MISTA DE CAL HIDRATADA ESP.=10cm (1:2:8) | E31: 5 | F31: M² | G31: =SEINFRA_COMP!G1096*(1+'BDI - SERVIÇOS'!$C$30) -> 46.04 | H31: 230.2 | J31: 20
A32: 2.3.2.7.22 | B32: ORSE | C32: 18 | D32: =IF($B32="ORSE",VLOOKUP($C32,ORSE_COMP!A:D,2,0),IF($B32="SINAPI",VLOOKUP($C32,SINAPI_COMP!G:K,2,0),IF($B32="SEINFRA",VLOOKUP($C32,SEINFRA_COMP!A:G,3,0),""))) -> DEMOLIÇÃO DE PISO CERÂMICO OU LADRILHO | E32: 25 | F32: M² | G32: =IF($B32="ORSE",VLOOKUP($C32,ORSE_COMP!A:D,4,0),IF($B32="SINAPI",VLOOKUP($C32,SINAPI_COMP!G:K,5,0),IF($B32="SEINFRA",VLOOKUP($C32,SEINFRA_COMP!A:G,7,0),"")))*(1+'BDI - SERVIÇOS'!$C$30) -> 11.43 | H32: 285.75 | J32: 100
A33: 2.3.2.7.23 | B33: ORSE | C33: 22 | D33: =IF($B33="ORSE",VLOOKUP($C33,ORSE_COMP!A:D,2,0),IF($B33="SINAPI",VLOOKUP($C33,SINAPI_COMP!G:K,2,0),IF($B33="SEINFRA",VLOOKUP($C33,SEINFRA_COMP!A:G,3,0),""))) -> DEMOLIÇÃO DE REVESTIMENTO CERÂMICO OU AZULEJO | E33: 5 | F33: M² | G33: =IF($B33="ORSE",VLOOKUP($C33,ORSE_COMP!A:D,4,0),IF($B33="SINAPI",VLOOKUP($C33,SINAPI_COMP!G:K,5,0),IF($B33="SEINFRA",VLOOKUP($C33,SEINFRA_COMP!A:G,7,0),"")))*(1+'BDI - SERVIÇOS'!$C$30) -> 16.38 | H33: 81.9 | J33: 20
A34: 2.3.2.7.24 | B34: ORSE | C34: 4750 | D34: =IF($B34="ORSE",VLOOKUP($C34,ORSE_COMP!A:D,2,0),IF($B34="SINAPI",VLOOKUP($C34,SINAPI_COMP!G:K,2,0),IF($B34="SEINFRA",VLOOKUP($C34,SEINFRA_COMP!A:G,3,0),""))) -> REVESTIMENTO CERÂMICO PARA PISO OU PAREDE, 20 X 20 CM, ELIZABETH OU SIMILAR, LINHA CRISTAL BEGE, APLICADO COM ARGAMASSA INDUSTRIALIZADA AC-II, REJUNTADO, EXCLUSIVE REGULARIZAÇÃO DE BASE OU EMBOÇO | E34: 30 | F34: M² | G34: =IF($B34="ORSE",VLOOKUP($C34,ORSE_COMP!A:D,4,0),IF($B34="SINAPI",VLOOKUP($C34,SINAPI_COMP!G:K,5,0),IF($B34="SEINFRA",VLOOKUP($C34,SEINFRA_COMP!A:G,7,0),"")))*(1+'BDI - SERVIÇOS'!$C$30) -> 42.39 | H34: 1271.7 | J34: 120
A35: 2.3.2.7.25 | B35: SINAPI | C35: 97637 | D35: =SINAPI_COMP!H35378 -> REMOÇÃO DE TAPUME/ CHAPAS METÁLICAS E DE MADEIRA, DE FORMA MANUAL, SEM REAPROVEITAMENTO. AF_12/2017 | E35: 50 | F35: M² | G35: =SINAPI_COMP!K35378*(1+'BDI - SERVIÇOS'!$C$30) -> 3.05 | H35: 152.5 | J35: 200
A37: 2.3.2.7.26 | B37: SINAPI | C37: 73909/1 | D37: =IF($B37="ORSE",VLOOKUP($C37,ORSE_COMP!A:D,2,0),IF($B37="SINAPI",VLOOKUP($C37,SINAPI_COMP!G:K,2,0),IF($B37="SEINFRA",VLOOKUP($C37,SEINFRA_COMP!A:G,3,0),""))) -> DIVISORIA EM MADEIRA COMPENSADA RESINADA ESPESSURA 6MM, ESTRUTURADA EM MADEIRA DE LEI 3"X3" | E37: 50 | F37: M² | G37: =IF($B37="ORSE",VLOOKUP($C37,ORSE_COMP!A:D,4,0),IF($B37="SINAPI",VLOOKUP($C37,SINAPI_COMP!G:K,5,0),IF($B37="SEINFRA",VLOOKUP($C37,SEINFRA_COMP!A:G,7,0),"")))*(1+'BDI - SERVIÇOS'!$C$30) -> 276.13 | H37: =H50 -> 11047.13 | I37: coef | J37: 200
B38: SINAPI | C38: 1351 | D38: CHAPA DE MADEIRA COMPENSADA RESINADA PARA FORMA DE CONCRETO, DE *2,2 X 1,1* M, E = 6 MM | E38: UN | F38: =ROUND(I38*$E$37,2) -> 45.45 | G38: =VLOOKUP(C38,SINAPI_INSUM!A:E,5,0) -> 27,93 | H38: =ROUND(F38*G38,2) -> 1269.42 | I38: 0,9090908
B39: SINAPI | C39: 4433 | D39: PECA DE MADEIRA NAO APARELHADA *7,5 X 7,5* CM (3 X 3 ") MACARANDUBA, ANGELIM OU EQUIVALENTE DA REGIAO | E39: M | F39: =ROUND(I39*$E$37,2) -> 180 | G39: =VLOOKUP(C39,SINAPI_INSUM!A:E,5,0) -> 12,50 | H39: =ROUND(F39*G39,2) -> 2250 | I39: 3,6000000
B40: SINAPI | C40: 5067 | D40: PREGO DE ACO POLIDO COM CABECA 16 X 24 (2 1/4 X 12) | E40: KG | F40: 20 | G40: =VLOOKUP(C40,SINAPI_INSUM!A:E,5,0) -> 10,95 | H40: 219 | I40: 0,4000000
F41: Subtotal | H41: =SUM(H38:H40) -> 3738.42
C42: BDI fornecimento | G42: ='BDI - FORNECIMENTOS'!$C$31 -> 0.109 | H42: =H41*G42 -> 407.49
F43: Subtotal 1 | H43: =H41+H42 -> 4145.91 | I43: 4,0000000
B44: SINAPI | C44: 1214 | D44: CARPINTEIRO DE ESQUADRIA | E44: H | F44: 200 | G44: =VLOOKUP(C44,SINAPI_INSUM!A:E,5,0)/(1+'ENC. SOCIAIS'!$D$46) -> 6.28 | H44: =ROUND(F44*G44,2) -> 1256 | I44: 4,0000000
C45: 6117 | D45: CARPINTEIRO AUXILIAR | E45: H | F45: =F44 -> 200 | G45: =VLOOKUP(C45,SINAPI_INSUM!A:E,5,0)/(1+'ENC. SOCIAIS'!$D$46) -> 6.69 | H45: =ROUND(F45*G45,2) -> 1338
F46: Subtotal | H46: =SUM(H44:H45) -> 2594
C47: Encargos Sociais | G47: ='ENC. SOCIAIS'!$D$46 -> 1.1718 | H47: =ROUND(H46*G47,2) -> 3039.65
C48: BDI Serviço | G48: ='BDI - SERVIÇOS'!$C$30 -> 0.225 | H48: =ROUND((H46+H47)*G48,2) -> 1267.57
F49: Subtotal 2 | H49: =H46+H47+H48 -> 6901.22
A50: =A37 -> 2.3.2.7.26 | G50: Total | H50: =H49+H43 -> 11047.13
A52: 2.3.2.7.27 | B52: ORSE | C52: 2481 | D52: =IF($B52="ORSE",VLOOKUP($C52,ORSE_COMP!A:D,2,0),IF($B52="SINAPI",VLOOKUP($C52,SINAPI_COMP!G:K,2,0),IF($B52="SEINFRA",VLOOKUP($C52,SEINFRA_COMP!A:G,3,0),""))) -> EXECUÇAÕ DE RASGOS EM ALVENARIA PARA PASSAGEM DE TUBULAÇÃO | E52: 5 | F52: M | G52: =IF($B52="ORSE",VLOOKUP($C52,ORSE_COMP!A:D,4,0),IF($B52="SINAPI",VLOOKUP($C52,SINAPI_COMP!G:K,5,0),IF($B52="SEINFRA",VLOOKUP($C52,SEINFRA_COMP!A:G,7,0),"")))*(1+'BDI - SERVIÇOS'!$C$30) -> 2.17 | H52: 10.85 | J52: 20
A53: 2.3.2.7.28 | B53: ORSE | C53: 2483 | D53: ENCHIMENTO DE RASGOS EM ALVENARIA E CONCRETO | E53: 5 | F53: M | G53: =IF($B53="ORSE",VLOOKUP($C53,ORSE_COMP!A:D,4,0),IF($B53="SINAPI",VLOOKUP($C53,SINAPI_COMP!G:K,5,0),IF($B53="SEINFRA",VLOOKUP($C53,SEINFRA_COMP!A:G,7,0),"")))*(1+'BDI - SERVIÇOS'!$C$30) -> 4.26 | H53: 21.3 | J53: 20
A54: 2.3.2.7.29 | B54: ORSE | C54: 4740 | D54: =ORSE_COMP!B3235 -> ANDAIME METÁLICO FACHADEIRO - LOCAÇÃO MENSAL , MONTAGEM E DESMONTAGEM | E54: 120 | F54: =ORSE_COMP!C3235 -> M²XMÊS | G54: =ORSE_COMP!D3235*(1+'BDI - SERVIÇOS'!$C$30) -> 8.02 | H54: 962.4 | J54: =8*20*3 -> 480
A55: 2.3.2.7.30 | B55: ORSE | C55: =ORSE_COMP!A9467 -> 11 | D55: =ORSE_COMP!B9467 -> DEMOLIÇÃO DE TELHAMENTO COM TELHA DE CIMENTO AMIANTO TIPO CANALETE | E55: 23 | F55: M² | G55: =ORSE_COMP!D9467*(1+'BDI - SERVIÇOS'!$C$30) -> 4.29 | H55: 98.67 | J55: 90
A56: 2.3.2.7.31 | B56: ORSE | C56: 237 | D56: =ORSE_COMP!B2101 -> TELHAMENTO COM TELHA DE FIBROCIMENTO TIPO CANALETE 49 (ETERNIT OU SIMILAR) | E56: 8 | F56: M² | G56: =ORSE_COMP!D2101*(1+'BDI - SERVIÇOS'!$C$30) -> 168.78 | H56: 1350.24 | J56: 30 | K56: =SUM(E57:E57) -> 15
A57: 2.3.2.7.32 | B57: ORSE | C57: 238 | D57: =ORSE_COMP!B2103 -> TELHAMENTO COM TELHA DE FIBROCIMENTO TIPO CANALETE 90 (ETERNIT OU SIMILAR) | E57: 15 | F57: M² | G57: =ORSE_COMP!D2103*(1+'BDI - SERVIÇOS'!$C$30) -> 155.62 | H57: 2334.3 | J57: 60
A58: 2.3.2.7.33 | B58: SEINFRA | C58: C2203 | D58: =SEINFRA_COMP!C1550 -> RETELHAMENTO C/ TELHA FIBROCIMENTO MAT. DE FIXAÇÃO | E58: 23 | F58: M² | G58: =SEINFRA_COMP!G1550*(1+'BDI - SERVIÇOS'!$C$30) -> 27.21 | H58: 625.83 | J58: 90
A59: 2.3.2.7.34 | B59: ORSE | C59: 267 | D59: =ORSE_COMP!B2047 -> RETIRADA E REASSENTAMENTO DE TELHA CERÂMICA TIPO CANAL, 1ª QUALID, COR CLARA, ITABAIANINHA OU SIMILAR | E59: 75 | F59: M² | G59: =ORSE_COMP!D2047*(1+'BDI - SERVIÇOS'!$C$30) -> 37.62 | H59: 2821.5 | J59: 300
A60: 2.3.2.7.35 | B60: ORSE | C60: 263 | D60: =ORSE_COMP!B2048 -> REVISÃO EM COBERTURA COM TELHA CERAMICA TIPO CANAL COMUM, ITABAIANA OU SIMILA R, COM REPOSIÇÃO DE 10% DO MATERIAL | E60: 75 | F60: M² | G60: =ORSE_COMP!D2048*(1+'BDI - SERVIÇOS'!$C$30) -> 48.02 | H60: 3601.5 | J60: 300
A61: 2.3.2.7.36 | B61: SINAPI | C61: 97641 | D61: =SINAPI_COMP!H35390 -> REMOÇÃO DE FORRO DE GESSO, DE FORMA MANUAL, SEM REAPROVEITAMENTO. AF_12/2017 | E61: 150 | F61: M² | G61: =SINAPI_COMP!K35390*(1+'BDI - SERVIÇOS'!$C$30) -> 4.36 | H61: 654 | J61: 600
A62: 2.3.2.7.37 | B62: SINAPI | C62: 96109 | D62: =SINAPI_COMP!H33679 -> FORRO EM PLACAS DE GESSO, PARA AMBIENTES RESIDENCIAIS. AF_05/2017_P | E62: 150 | F62: M² | G62: =SINAPI_COMP!K33679*(1+'BDI - SERVIÇOS'!$C$30) -> 35.62 | H62: 5343 | J62: 600
A63: 2.3.2.7.38 | B63: ORSE | C63: 256 | D63: =ORSE_COMP!B2076 -> TAMPÃO PARA TELHA CANALETE 90 | E63: 15 | F63: Ud | G63: =ORSE_COMP!D2076*(1+'BDI - SERVIÇOS'!$C$30) -> 60.32 | H63: 904.8 | J63: 60
A64: 2.3.2.7.39 | B64: ORSE | C64: 253 | D64: =ORSE_COMP!B2016 -> CUMEEIRA NORMAL EM FIBROCIMENTO PARA TELHA CANALETE 90 OU SIMILAR | E64: 5 | F64: M | G64: =ORSE_COMP!D2016*(1+'BDI - SERVIÇOS'!$C$30) -> 237.28 | H64: 1186.4 | J64: 20 | K64: Desinsetização e Desratização Geral
A65: 2.3.2.7.40 | B65: ORSE | C65: =ORSE_COMP!A2021 -> 10821 | D65: =ORSE_COMP!B2021 -> CUMEEIRA PARA TELHA CANAL REDONDA, DIMENSÕES 20 X 41,5CM, INCLUSIVE EMASSAMEN TO | E65: 5 | F65: M | G65: =ORSE_COMP!D2021*(1+'BDI - SERVIÇOS'!$C$30) -> 41.8 | H65: =G65*E65 -> 209 | J65: 20 | K65: Cotação 1 | L65: Cotação 2 | M65: Cotação 3 | N65: Mediana - Adotado
A66: 2.3.2.7.41 | B66: COTAÇÃO | C66: S/CÓD. | D66: Desinsetização e Desratização Geral | E66: 500 | F66: M² | G66: =N66 -> 0.43 | H66: 215 | J66: 2000 | K66: =850/2000 -> 0.43 | L66: =800/2000 -> 0.4 | M66: =3600/2000 -> 1.8 | N66: =MEDIAN(K66:M66) -> 0.43
A67: 2.3.2.7.42 | B67: SINAPI | C67: 74209/1 | D67: Manutenção Placa de identificação de obra | E67: 2 | F67: M² | G67: =SINAPI_COMP!K2301*(1+'BDI - SERVIÇOS'!$C$30) -> 395.41 | H67: 790.82 | J67: 6
A68: 2.3.2.7.43 | B68: ORSE | C68: 36 | D68: =ORSE_COMP!B9487 -> REMOÇÃO DE BRISES | E68: 10 | F68: M² | G68: =ORSE_COMP!D9487*(1+'BDI - SERVIÇOS'!$C$30) -> 2.89 | H68: 28.9 | J68: 40
A69: 2.3.2.7.44 | B69: ORSE | C69: 11489 | D69: Fornecimento e instalação de Brise metálico de alumínio | E69: 10 | F69: M² | G69: =ORSE_COMP!D9393*(1+'BDI - SERVIÇOS'!$C$30) -> 551.25 | H69: 5512.5 | J69: 40
A70: 2.3.2.7.45 | B70: ORSE | C70: 1841 | D70: =ORSE_COMP!B4128 -> REVISÃO DE ESQUADRIAS DE ALUMÍNIO | E70: 5 | F70: M² | G70: =ORSE_COMP!D4128*(1+'BDI - SERVIÇOS'!$C$30) -> 91.1 | H70: 455.5 | J70: 20
A72: 2.3.2.7.46 | B72: SINAPI | C72: 72117 | D72: =SINAPI_COMP!H9854 -> VIDRO LISO COMUM TRANSPARENTE, ESPESSURA 4MM | E72: 5 | F72: M² | H72: =H84 -> 532.94 | J72: 20 | O72: COEF.
B73: SINAPI | C73: 10492 | D73: VIDRO LISO INCOLOR 4MM - SEM COLOCACAO | E73: M2 | F73: =ROUND($E$72*O73,2) -> 5 | G73: =VLOOKUP(C73,SINAPI_INSUM!A:E,5,0) -> 77,33 | H73: =ROUND(F73*G73,2) -> 386.65 | O73: 1,0000000
B74: SINAPI | C74: 10498 | D74: MASSA PARA VIDRO | E74: KG | F74: =ROUND($E$72*O74,2) -> 8 | G74: =VLOOKUP(C74,SINAPI_INSUM!A:E,5,0) -> 4,91 | H74: =ROUND(F74*G74,2) -> 39.28 | O74: 1,6000000
F75: Subtotal | H75: =SUM(H73:H74) -> 425.93
C76: BDI fornecimento | G76: ='BDI - FORNECIMENTOS'!$C$31 -> 0.109 | H76: =H75*G76 -> 46.43
F77: Subtotal 1 | H77: =H75+H76 -> 472.36
B78: SINAPI | C78: 6111 | D78: SERVENTE | E78: H | F78: =ROUND($E$72*O78,2) -> 2.25 | G78: =VLOOKUP(C78,SINAPI_INSUM!A:E,5,0)/(1+'ENC. SOCIAIS'!$D$46) -> 5.03 | H78: =ROUND(F78*G78,2) -> 11.32 | O78: 0,4500000
B79: SINAPI | C79: 10489 | D79: VIDRACEIRO | E79: H | F79: =ROUND($E$72*O79,2) -> 2.25 | G79: =VLOOKUP(C79,SINAPI_INSUM!A:E,5,0)/(1+'ENC. SOCIAIS'!$D$46) -> 5.09 | H79: =ROUND(F79*G79,2) -> 11.45 | O79: 0,4500000
F80: Subtotal | H80: =SUM(H78:H79) -> 22.77
C81: Encargos Sociais | G81: ='ENC. SOCIAIS'!$D$46 -> 1.1718 | H81: =ROUND(H80*G81,2) -> 26.68
C82: BDI Serviço | G82: ='BDI - SERVIÇOS'!$C$30 -> 0.225 | H82: =ROUND((H80+H81)*G82,2) -> 11.13
F83: Subtotal 2 | H83: =H80+H81+H82 -> 60.58
A84: 2.3.2.7.46 | G84: Total | H84: =H83+H77 -> 532.94
A86: 2.3.2.7.47 | B86: SINAPI | C86: 73790/4 | D86: =SINAPI_COMP!H30286 -> REASSENTAMENTO DE PARALELEPIPEDO SOBRE COLCHAO DE PO DE PEDRA ESPESSURA 10CM, REJUNTADO COM ARGAMASSA TRACO 1:3 (CIMENTO E AREIA), CONSIDERANDO APROVEITAMENTO DO PARALELEPIPEDO | E86: 10 | F86: M² | G86: =SINAPI_COMP!K30286*(1+'BDI - SERVIÇOS'!$C$30) -> 49.93 | H86: =G86*E86 -> 499.3 | J86: 40
A88: TOTAL GERAL | H88: =ROUND(SUM(H11:H37)+SUM(H52:H72)+H86,2) -> 81277.49

Sheet 2.3.2.8.Manut-Subest. PONTAL
A1: 2.3. MANUTENÇÃO DAS INFRAESTRUTURAS
A3: 2.3.2. MANUTENÇÃO (SERVIÇOS SAZONAIS)
A5: 2.3.2.8. PLANILHA ESTIMATIVA DE CUSTO ANUAL DE MANUTENÇÃO DE SUBESTAÇÃO
A7: ITEM | B7: DESCRIÇÃO | C7: QUANT. | D7: UNID. | E7: VALOR
E8: UNIT. (R$) | F8: TOTAL (R$)
A10: 2.3.2.8.2 | B10: Coleta de amostra de óleo para análise físico-química e cromatográfica | C10: =ROUND(H10/4,0) -> 3 | D10: unid. | E10: =VLOOKUP(A10,'CPU4 - MAN_SE'!A:E,5,0) -> 449.83 | F10: =ROUND(E10*C10,2) -> 1349.49 | H10: 10
A11: 2.3.2.8.3 | B11: Transformadores de potência de 750kVA a 1.000kVA: inspeção visual; revisão detalhada; procedimentos técnicos corretivos; ensaios de rotina, correção de vazamentos de óleo isolante; limpeza de conectores; isoladores; tratamento anticorrosivo; substituição de parafusos oxidados; reaperto das conexões; teste de atuação de relés verificando atuação desta proteção no relé de bloqueio; troca de sílica gel e limpeza de recipiente; teste de isolação dos cabos das proteções intrínsecas; atuação de indicador de nível de óleo; teste de isolação dos cabos de saída do secundário para o CCM e pintura geral. | C11: =ROUND(H11/4,0) -> 1 | D11: unid. | E11: =VLOOKUP(A11,'CPU4 - MAN_SE'!A:E,5,0) -> 5715.3 | F11: =ROUND(E11*C11,2) -> 5715.3 | H11: 4
A12: 2.3.2.8.4 | B12: Transformador auxiliar de 112,5kVA: inspeção visual; revisão detalhada; procedimentos técnicos corretivos; ensaios de rotina, correção de vazamentos de óleo isolante; limpeza de conectores; isoladores; tratamento anticorrosivo; substituição de parafusos oxidados; reaperto das conexões; teste de atuação de relés verificando atuação desta proteção no relé de bloqueio; troca de sílica gel e limpeza de recipiente; teste de isolação dos cabos das proteções intrínsecas; atuação de indicador de nível de óleo; teste de isolação dos cabos de saída do secundário para o CCM e pintura geral. | C12: =ROUND(H12/2,0) -> 1 | D12: unid. | E12: =VLOOKUP(A12,'CPU4 - MAN_SE'!A:E,5,0) -> 578.36 | F12: 578.36 | H12: 1
A13: 2.3.2.8.6 | B13: Disjuntores de AT de 15kV: inspeção visual ; revisão detalhada; procedimentos técnicos corretivos; limpeza de conectores e torqueamento; tratamento anticorrosivo; lubrificação das articulações do mecanismo de acionamento; verificação e correção de simultaneidade de abertura e fechamento dos polos; análise dos contatos móveis e fixos; realização de teste de isolação dos cabos de controle com a sala de comando; verificação / substituição junta de vedação, óleo isolante, engrenagens e buchas que apresentarem desgaste; manutenção ou substituição de contactores auxiliares, fim de curso, botoeiras e chaves sinalizadoras; verificação de sistema de aquecimento interno; integridade das bobinas de abertura e fechamento; relé de mínima tensão e pintura geral do painel. | C13: =ROUND(H13/4,0) -> 2 | D13: unid. | E13: =VLOOKUP(A13,'CPU4 - MAN_SE'!A:E,5,0) -> 3693.08 | F13: =ROUND(E13*C13,2) -> 7386.16 | H13: 8
A14: 2.3.2.8.7 | B14: Chaves Seccionadoras de MT por subestação: inspeção visual; revisão detalhada; procedimentos técnicos corretivos; tratamento anticorrosivo; substituição de parafusos oxidados; limpeza de conectores; lubrificação das articulações; verificação da fixação das chaves dos isoladores e da integridade dos isoladores; verificação e correção de simultaneidade de abertura e fechamento das chaves; verificar pressão entre contatos móveis e fixos; avaliação dos contatos e medição das resistências dos contatos das chaves. | C14: =ROUND(H14/4,0) -> 2 | D14: unid. | E14: =VLOOKUP(A14,'CPU4 - MAN_SE'!A:E,5,0) -> 1679.87 | F14: 3359.74 | H14: 7
A15: 2.3.2.8.9 | B15: Malhas de aterramento: medição de resistência de aterramento dos equipamentos; procedimentos técnicos corretivos em conexões, cabos e hastes de aterramento; limpeza de contato dos conectores com as hastes; aplicação de pasta anti-óxido; medição de resistividade do solo; medição de resistência da malha de aterramento. | C15: 1 | D15: unid. | E15: =VLOOKUP(A15,'CPU4 - MAN_SE'!A:E,5,0) -> 1698.12 | F15: 1698.12 | H15: 5
A17: SUBTOTAL | F17: =ROUND(SUM(F10:F16),2) -> 20087.17
A18: TOTAL GERAL | F18: =F17 -> 20087.17

Sheet 2.3.2.9.Man-Motobomba
A1: 2.3. MANUTENÇÃO DAS INFRAESTRUTURAS
A3: 2.3.2. MANUTENÇÃO (SERVIÇOS SAZONAIS)
A5: 2.3.2.9. PLANILHA ESTIMATIVA DE CUSTO ANUAL DE MANUTENÇÃO DE MOTORES E BOMBAS (EB-01, EB-02, EB-03)
A7: ITEM | B7: DESCRIÇÃO DOS SERVIÇOS E MATERIAIS | C7: UNID. | D7: QUANT. | E7: VALOR
E8: UNIT. c/ BDI | F8: TOTAL
A10: 2.3.2.9.1 | B10: EB-01
A12: 2.3.2.9.1.1 | B12: MATERIAIS E PEÇAS
A13: 2.3.2.9.1.1.1 | B13: KIT VEDAÇÃO - JUNTAS/ORINGS | C13: CJ | D13: 1 | E13: =VLOOKUP(A13,'COTAÇÃO - MAN_BOMBAS'!A:G,7,0) -> 3844.68 | F13: =ROUND(E13*D13,2) -> 3844.68
A14: 2.3.2.9.1.1.2 | B14: KIT FIXAÇÃO - PORCAS/PARAFUSOS/PRISIONEIROS | C14: CJ | D14: 1 | E14: =VLOOKUP(A14,'COTAÇÃO - MAN_BOMBAS'!A:G,7,0) -> 9969.91 | F14: =ROUND(E14*D14,2) -> 9969.91
A15: 2.3.2.9.1.1.3 | B15: ROLAMENTO HH826729 - 926710 | C15: Pç | D15: 1 | E15: =VLOOKUP(A15,'COTAÇÃO - MAN_BOMBAS'!A:G,7,0) -> 14949.87 | F15: 14949.87
A16: 2.3.2.9.1.1.4 | B16: ROLAMENTO H82576 - 82931 | C16: Pç | D16: 1 | E16: =VLOOKUP(A16,'COTAÇÃO - MAN_BOMBAS'!A:G,7,0) -> 13258.1 | F16: 13258.1
A17: 2.3.2.9.1.1.5 | B17: LUVA PROTETORA (AISI 410 BNF) | C17: Pç | D17: 1 | E17: =VLOOKUP(A17,'COTAÇÃO - MAN_BOMBAS'!A:G,7,0) -> 10956.92 | F17: 10956.92
A18: 2.3.2.9.1.1.6 | B18: ANEL DE DESGASTE DA CARCAÇA (AISI 410 BNF) | C18: Pç | D18: 1 | E18: =VLOOKUP(A18,'COTAÇÃO - MAN_BOMBAS'!A:G,7,0) -> 37689.7 | F18: 37689.7
A19: 2.3.2.9.1.1.7 | B19: ANEL DE DESGASTE DO ROTOR (AISI 410 BNF) | C19: Pç | D19: 1 | E19: =VLOOKUP(A19,'COTAÇÃO - MAN_BOMBAS'!A:G,7,0) -> 32848.58 | F19: 32848.58
A20: 2.3.2.9.1.1.8 | B20: CALÇO DE REGULAGEM (SAE 1045) | C20: CJ | D20: 1 | E20: =VLOOKUP(A20,'COTAÇÃO - MAN_BOMBAS'!A:G,7,0) -> 1686.23 | F20: 1686.23
A21: 2.3.2.9.1.1.9 | B21: PORCA DO ROTOR (SAE 1045) | C21: Pç | D21: 1 | E21: =VLOOKUP(A21,'COTAÇÃO - MAN_BOMBAS'!A:G,7,0) -> 5650.36 | F21: 5650.36
A22: 2.3.2.9.1.1.10 | B22: EIXO (SAE 1045) | C22: Pç | D22: 1 | E22: =VLOOKUP(A22,'COTAÇÃO - MAN_BOMBAS'!A:G,7,0) -> 28944.9 | F22: 28944.9
A23: 2.3.2.9.1.1.11 | B23: ROTOR (A743 CA15) | C23: Pç | D23: 1 | E23: =VLOOKUP(A23,'COTAÇÃO - MAN_BOMBAS'!A:G,7,0) -> 97458.92 | F23: 97458.92
E24: SUBTOTAL | F24: =SUM(F13:F23) -> 257258.17
A26: 2.3.2.9.1.2 | B26: SERVIÇOS
A27: 2.3.2.9.1.2.2 | B27: PERITAGEM E EMISSÃO DE RELATÓRIO | C27: Ud | D27: 1 | E27: =VLOOKUP(A27,'COTAÇÃO - MAN_BOMBAS'!A:G,7,0) -> 2431.63 | F27: =ROUND(E27*D27,2) -> 2431.63
A28: 2.3.2.9.1.2.3 | B28: JATEAMENTO E LIMPEZA GERAL DOS COMPONENTES | C28: Ud | D28: 1 | E28: =VLOOKUP(A28,'COTAÇÃO - MAN_BOMBAS'!A:G,7,0) -> 21627.38 | F28: =ROUND(E28*D28,2) -> 21627.38
A29: 2.3.2.9.1.2.4 | B29: RECUPERAÇÃO DO ROTOR | C29: Ud | D29: 1 | E29: =VLOOKUP(A29,'COTAÇÃO - MAN_BOMBAS'!A:G,7,0) -> 12347.39 | F29: 12347.39
A30: 2.3.2.9.1.2.5 | B30: RECUPERAÇÃO DO EIXO | C30: Ud | D30: 1 | E30: =VLOOKUP(A30,'COTAÇÃO - MAN_BOMBAS'!A:G,7,0) -> 4814.25 | F30: 4814.25
A31: 2.3.2.9.1.2.6 | B31: RECUPERAÇÃO DO MANCAL | C31: Ud | D31: 1 | E31: =VLOOKUP(A31,'COTAÇÃO - MAN_BOMBAS'!A:G,7,0) -> 14866.11 | F31: 14866.11
A32: 2.3.2.9.1.2.7 | B32: RECUPERAÇÃO DA LUVA PROTETORA | C32: Ud | D32: 1 | E32: =VLOOKUP(A32,'COTAÇÃO - MAN_BOMBAS'!A:G,7,0) -> 5304.25 | F32: 5304.25
A33: 2.3.2.9.1.2.8 | B33: MONTAGEM EM CAMPO E STARTUP | C33: Ud | D33: 1 | E33: =VLOOKUP(A33,'COTAÇÃO - MAN_BOMBAS'!A:G,7,0) -> 28709.1 | F33: 28709.1
A34: 2.3.2.9.1.2.9 | B34: ANÁLISE DE VIBRAÇÃO E RELATÓRIO | C34: Ud | D34: 1 | E34: =VLOOKUP(A34,'COTAÇÃO - MAN_BOMBAS'!A:G,7,0) -> 6370 | F34: 6370
A35: 2.3.2.9.1.2.10 | B35: TRANSPORTE RODOVIÁRIO, ENTREGA E RETIRADA (EQUIPAMENTOS E PEÇAS DA EB-01) | C35: km | D35: =2*2238.2 -> 4476.4 | E35: ='COTAÇÃO - MAN_BOMBAS'!O31 -> 6.9 | F35: 30887.16
E36: SUBTOTAL | F36: =SUM(F27:F35) -> 127357.27
A38: 2.3.2.9.2 | B38: EB-02
A40: 2.3.2.9.2.1 | B40: MATERIAIS E PEÇAS
A41: 2.3.2.9.2.1.1 | B41: KIT VEDAÇÃO | C41: CJ | D41: 1 | E41: =VLOOKUP(A41,'COTAÇÃO - MAN_BOMBAS'!A:G,7,0) -> 6601.88 | F41: =ROUND(E41*D41,2) -> 6601.88
A42: 2.3.2.9.2.1.2 | B42: KIT FIXAÇÃO | C42: CJ | D42: 1 | E42: =VLOOKUP(A42,'COTAÇÃO - MAN_BOMBAS'!A:G,7,0) -> 11147.11 | F42: 11147.11
A43: 2.3.2.9.2.1.3 | B43: ANEL DE DESGASTE DA CARCAÇA (AISI 410 BNF) | C43: Pç | D43: 1 | E43: =VLOOKUP(A43,'COTAÇÃO - MAN_BOMBAS'!A:G,7,0) -> 17920.89 | F43: 17920.89
A44: 2.3.2.9.2.1.4 | B44: ANEL DE DESGASTE DO ROTOR (AISI 410 BNF) | C44: Pç | D44: 1 | E44: =VLOOKUP(A44,'COTAÇÃO - MAN_BOMBAS'!A:G,7,0) -> 16084.94 | F44: 16084.94
A45: 2.3.2.9.2.1.5 | B45: LUVA PROTETORA (AISI 410 BNF) | C45: Pç | D45: 3 | E45: =VLOOKUP(A45,'COTAÇÃO - MAN_BOMBAS'!A:G,7,0) -> 10327.01 | F45: 30981.03
A46: 2.3.2.9.2.1.6 | B46: BUCHA DE MANCAL (DGLYDE) | C46: Pç | D46: 2 | E46: =VLOOKUP(A46,'COTAÇÃO - MAN_BOMBAS'!A:G,7,0) -> 17390.45 | F46: 34780.9
A47: 2.3.2.9.2.1.7 | B47: EIXO (AISI 420) | C47: Pç | D47: 1 | E47: =VLOOKUP(A47,'COTAÇÃO - MAN_BOMBAS'!A:G,7,0) -> 53067.54 | F47: 53067.54
A48: 2.3.2.9.2.1.8 | B48: ROTOR (A743 CA6NM) | C48: Pç | D48: 1 | E48: =VLOOKUP(A48,'COTAÇÃO - MAN_BOMBAS'!A:G,7,0) -> 136642.88 | F48: 136642.88
E49: SUBTOTAL | F49: =SUM(F41:F48) -> 307227.17
A51: 2.3.2.9.2.2 | B51: SERVIÇOS
A52: 2.3.2.9.2.2.2 | B52: PERITAGEM E EMISSÃO DE RELATÓRIO | C52: Ud | D52: 1 | E52: =VLOOKUP(A52,'COTAÇÃO - MAN_BOMBAS'!A:G,7,0) -> 2431.63 | F52: =ROUND(E52*D52,2) -> 2431.63
A53: 2.3.2.9.2.2.3 | B53: JATEAMENTO E LIMPEZA GERAL DOS COMPONENTES | C53: Ud | D53: 1 | E53: =VLOOKUP(A53,'COTAÇÃO - MAN_BOMBAS'!A:G,7,0) -> 21627.38 | F53: 21627.38
A54: 2.3.2.9.2.2.4 | B54: RECUPERAÇÃO DO ROTOR | C54: Ud | D54: 1 | E54: =VLOOKUP(A54,'COTAÇÃO - MAN_BOMBAS'!A:G,7,0) -> 9077.25 | F54: 9077.25
A55: 2.3.2.9.2.2.5 | B55: RECUPERAÇÃO DO EIXO | C55: Ud | D55: 1 | E55: =VLOOKUP(A55,'COTAÇÃO - MAN_BOMBAS'!A:G,7,0) -> 9714.25 | F55: 9714.25
A56: 2.3.2.9.2.2.6 | B56: RECUPERAÇÃO DA LUVA PROTETORA | C56: Ud | D56: 3 | E56: =VLOOKUP(A56,'COTAÇÃO - MAN_BOMBAS'!A:G,7,0) -> 5145 | F56: 15435
A57: 2.3.2.9.2.2.7 | B57: MONTAGEM EM CAMPO E STARTUP | C57: Ud | D57: 1 | E57: =VLOOKUP(A57,'COTAÇÃO - MAN_BOMBAS'!A:G,7,0) -> 28709.1 | F57: 28709.1
A58: 2.3.2.9.2.2.8 | B58: ANÁLISE DE VIBRAÇÃO E RELATÓRIO | C58: Ud | D58: 1 | E58: =VLOOKUP(A58,'COTAÇÃO - MAN_BOMBAS'!A:G,7,0) -> 6370 | F58: 6370
A59: 2.3.2.9.2.2.9 | B59: TRANSPORTE RODOVIÁRIO, ENTREGA E RETIRADA (EQUIPAMENTOS E PEÇAS DA EB-02) | C59: km | D59: =2*2238.2 -> 4476.4 | E59: ='COTAÇÃO - MAN_BOMBAS'!O57 -> 6.9 | F59: 30887.16
E60: SUBTOTAL | F60: =SUM(F52:F59) -> 124251.77
A62: 2.3.2.9.3 | B62: EB-03
A64: 2.3.2.9.3.1 | B64: MATERIAIS E PEÇAS
A65: 2.3.2.9.3.1.1 | B65: BUCHA OCTAVADA (DGLYDE) | C65: Pç | D65: 2 | E65: =VLOOKUP(A65,'COTAÇÃO - MAN_BOMBAS'!A:G,7,0) -> 3895.38 | F65: =ROUND(E65*D65,2) -> 7790.76
A66: 2.3.2.9.3.1.2 | B66: EIXO DO BOMBEADOR (SAE 4140) | C66: Pç | D66: 1 | E66: =VLOOKUP(A66,'COTAÇÃO - MAN_BOMBAS'!A:G,7,0) -> 22042.48 | F66: 22042.48
A67: 2.3.2.9.3.1.3 | B67: EIXO DO MOTOR (SAE 4140) | C67: Pç | D67: 1 | E67: =VLOOKUP(A67,'COTAÇÃO - MAN_BOMBAS'!A:G,7,0) -> 15193.3 | F67: 15193.3
A68: 2.3.2.9.3.1.4 | B68: ACOPLAMENTO BIPARTIDO (SAE 4140) | C68: Pç | D68: 1 | E68: =VLOOKUP(A68,'COTAÇÃO - MAN_BOMBAS'!A:G,7,0) -> 9775.27 | F68: 9775.27
A69: 2.3.2.9.3.1.5 | B69: CASTANHA BIPARTIDA (SAE 4140) | C69: Pç | D69: 1 | E69: =VLOOKUP(A69,'COTAÇÃO - MAN_BOMBAS'!A:G,7,0) -> 2311.43 | F69: 2311.43
E70: SUBTOTAL | F70: =SUM(F65:F69) -> 57113.24
A72: 2.3.2.9.3.2 | B72: SERVIÇOS
A73: 2.3.2.9.3.2.1 | B73: SUPERVISÃO DE MONTAGEM, ACOMPANHAMENTO AO STARUP E SUBSTITUIÇÃO DAS BUCHAS (CONSIDERANDO 5 DIÁRIAS PARA EXECUÇÃO DO SERVIÇO) | C73: Ud | D73: 1 | E73: =VLOOKUP(A73,'COTAÇÃO - MAN_BOMBAS'!A:G,7,0) -> 21116.55 | F73: =ROUND(E73*D73,2) -> 21116.55
A74: 2.3.2.9.3.2.2 | B74: TRANSPORTE RODOVIÁRIO, ENTREGA E RETIRADA (EQUIPAMENTOS E PEÇAS DA EB-03) | C74: km | D74: =2*2238.2 -> 4476.4 | E74: ='COTAÇÃO - MAN_BOMBAS'!O73 -> 5.25 | F74: 23501.1
E75: SUBTOTAL | F75: =SUM(F73:F74) -> 44617.65
A77: SUBTOTAL - FORNECIMENTOS | F77: =F24+F49+F70 -> 621598.58
A78: SUBTOTAL - SERVIÇOS | F78: =F36+F60+F75 -> 296226.69
A79: TOTAL GERAL | F79: =F77+F78 -> 917825.27

Sheet 3.Fornecimentos
A1: 3. PLANILHA DE ESTIMATIVA DE CUSTO ANUAL DE FORNECIMENTOS
A3: 3.1. PEÇAS DE REPOSIÇÃO E MATERIAIS
A5: ITEM | B5: DESCRIÇÃO DOS SERVIÇOS E MATERIAIS | C5: UNID. | D5: QUANT. | E5: VALOR
E6: UNIT. | F6: TOTAL
A8: 3.1.1 | B8: Material Elétrico | C8: Ud | D8: 1 | E8: ='3.1.Peças de Reposição e Materi'!F328 -> 450033.16 | F8: =D8*E8 -> 450033.16
A9: 3.1.2 | B9: Material Mecânico | C9: Ud | D9: 1 | E9: ='3.1.Peças de Reposição e Materi'!F486 -> 81237.44 | F9: =D9*E9 -> 81237.44
A10: 3.1.3 | B10: Material Hidráulico | C10: Ud | D10: 1 | E10: ='3.1.Peças de Reposição e Materi'!F630 -> 45209.66 | F10: =D10*E10 -> 45209.66
A11: 3.1.4 | B11: Material Civil e equipamentos de segurança | C11: Ud | D11: 1 | E11: ='3.1.Peças de Reposição e Materi'!F656 -> 2661.13 | F11: =D11*E11 -> 2661.13
A12: 3.1.5 | B12: Materiais e equipamentos de proteção individual e fardamentos | C12: Ud | D12: 1 | E12: ='3.1.Peças de Reposição e Materi'!F690 -> 16356.11 | F12: =D12*E12 -> 16356.11
A14: TOTAL GERAL | F14: =SUM(F8:F13) -> 595497.5

Sheet 3.1.Peças de Reposição e Materi
A1: 3.1. | B1: PLANILHA DE ESTIMATIVA DE CUSTO ANUAL DE PEÇAS DE REPOSIÇÃO E MATERIAIS - PONTAL
A3: 3.1.1. | B3: MATERIAL ELÉTRICO
A5: ITEM | B5: DESCRIÇÃO | C5: QUANT. | D5: UNID. | E5: VALOR | G5: REF.TAB. | H5: Cód. TAB.
E6: UNIT. (R$) | F6: TOTAL (R$)
A8: 3.1.1.1 | B8: =IF($G8="ORSE",VLOOKUP($H8,ORSE_INSUM!A:E,2,0),IF($G8="SINAPI",VLOOKUP($H8,SINAPI_INSUM!A:E,2,0),IF($G8="SEINFRA",VLOOKUP($H8,SEINFRA_INSUM!B:F,2,0),IF($G8="COTAÇÃO",VLOOKUP($H8,'COTACAO - PEÇAS E MATERIAIS'!B:L,2,0),"")))) -> ABRACADEIRA EM ACO PARA AMARRACAO DE ELETRODUTOS, TIPO D, COM 1/2" E PARAFUSO DE FIXACAO | C8: =ROUND(J8/4,0) -> 6 | D8: Pç | E8: =IF($G8="ORSE",VLOOKUP($H8,ORSE_INSUM!A:E,4,0),IF($G8="SINAPI",VLOOKUP($H8,SINAPI_INSUM!A:E,5,0),IF($G8="SEINFRA",VLOOKUP($H8,SEINFRA_INSUM!B:F,4,0),IF($G8="COTAÇÃO",VLOOKUP($H8,'COTACAO - PEÇAS E MATERIAIS'!B:L,10,0),"")))) -> 1,17 | F8: =ROUND(C8*E8,2) -> 7.02 | G8: SINAPI | H8: 392 | J8: 24
A9: 3.1.1.2 | B9: =IF($G9="ORSE",VLOOKUP($H9,ORSE_INSUM!A:E,2,0),IF($G9="SINAPI",VLOOKUP($H9,SINAPI_INSUM!A:E,2,0),IF($G9="SEINFRA",VLOOKUP($H9,SEINFRA_INSUM!B:F,2,0),IF($G9="COTAÇÃO",VLOOKUP($H9,'COTACAO - PEÇAS E MATERIAIS'!B:L,2,0),"")))) -> ABRACADEIRA EM ACO PARA AMARRACAO DE ELETRODUTOS, TIPO D, COM 1" E PARAFUSO DE FIXACAO | C9: =ROUND(J9/4,0) -> 6 | D9: Pç | E9: =IF($G9="ORSE",VLOOKUP($H9,ORSE_INSUM!A:E,4,0),IF($G9="SINAPI",VLOOKUP($H9,SINAPI_INSUM!A:E,5,0),IF($G9="SEINFRA",VLOOKUP($H9,SEINFRA_INSUM!B:F,4,0),IF($G9="COTAÇÃO",VLOOKUP($H9,'COTACAO - PEÇAS E MATERIAIS'!B:L,10,0),"")))) -> 1,40 | F9: =ROUND(C9*E9,2) -> 8.4 | G9: SINAPI | H9: 393 | J9: 24
A10: 3.1.1.3 | B10: =IF($G10="ORSE",VLOOKUP($H10,ORSE_INSUM!A:E,2,0),IF($G10="SINAPI",VLOOKUP($H10,SINAPI_INSUM!A:E,2,0),IF($G10="SEINFRA",VLOOKUP($H10,SEINFRA_INSUM!B:F,2,0),IF($G10="COTAÇÃO",VLOOKUP($H10,'COTACAO - PEÇAS E MATERIAIS'!B:L,2,0),"")))) -> ABRACADEIRA EM ACO PARA AMARRACAO DE ELETRODUTOS, TIPO D, COM 2 1/2" E PARAFUSO DE FIXACAO | C10: 6 | D10: Pç | E10: =IF($G10="ORSE",VLOOKUP($H10,ORSE_INSUM!A:E,4,0),IF($G10="SINAPI",VLOOKUP($H10,SINAPI_INSUM!A:E,5,0),IF($G10="SEINFRA",VLOOKUP($H10,SEINFRA_INSUM!B:F,4,0),IF($G10="COTAÇÃO",VLOOKUP($H10,'COTACAO - PEÇAS E MATERIAIS'!B:L,10,0),"")))) -> 3,45 | F10: 20.7 | G10: SINAPI | H10: 397 | J10: 24
A11: 3.1.1.4 | B11: =IF($G11="ORSE",VLOOKUP($H11,ORSE_INSUM!A:E,2,0),IF($G11="SINAPI",VLOOKUP($H11,SINAPI_INSUM!A:E,2,0),IF($G11="SEINFRA",VLOOKUP($H11,SEINFRA_INSUM!B:F,2,0),IF($G11="COTAÇÃO",VLOOKUP($H11,'COTACAO - PEÇAS E MATERIAIS'!B:L,2,0),"")))) -> ABRACADEIRA, GALVANIZADA/ZINCADA, ROSCA SEM FIM, PARAFUSO INOX, LARGURA FITA *12,6 A *14 MM, D = 4" A 4 3/4" | C11: 3 | D11: Pç | E11: =IF($G11="ORSE",VLOOKUP($H11,ORSE_INSUM!A:E,4,0),IF($G11="SINAPI",VLOOKUP($H11,SINAPI_INSUM!A:E,5,0),IF($G11="SEINFRA",VLOOKUP($H11,SEINFRA_INSUM!B:F,4,0),IF($G11="COTAÇÃO",VLOOKUP($H11,'COTACAO - PEÇAS E MATERIAIS'!B:L,10,0),"")))) -> 8,63 | F11: 25.89 | G11: SINAPI | H11: 11929 | J11: 12
A12: 3.1.1.5 | B12: =IF($G12="ORSE",VLOOKUP($H12,ORSE_INSUM!A:E,2,0),IF($G12="SINAPI",VLOOKUP($H12,SINAPI_INSUM!A:E,2,0),IF($G12="SEINFRA",VLOOKUP($H12,SEINFRA_INSUM!B:F,2,0),IF($G12="COTAÇÃO",VLOOKUP($H12,'COTACAO - PEÇAS E MATERIAIS'!B:L,2,0),"")))) -> ABRACADEIRA DE NYLON PARA AMARRACAO DE CABOS, COMPRIMENTO DE 390 X *4,6* MM | C12: 50 | D12: Ud | E12: =IF($G12="ORSE",VLOOKUP($H12,ORSE_INSUM!A:E,4,0),IF($G12="SINAPI",VLOOKUP($H12,SINAPI_INSUM!A:E,5,0),IF($G12="SEINFRA",VLOOKUP($H12,SEINFRA_INSUM!B:F,4,0),IF($G12="COTAÇÃO",VLOOKUP($H12,'COTACAO - PEÇAS E MATERIAIS'!B:L,10,0),"")))) -> 0,99 | F12: 49.5 | G12: SINAPI | H12: 408 | J12: 200
A13: 3.1.1.6 | B13: =IF($G13="ORSE",VLOOKUP($H13,ORSE_INSUM!A:E,2,0),IF($G13="SINAPI",VLOOKUP($H13,SINAPI_INSUM!A:E,2,0),IF($G13="SEINFRA",VLOOKUP($H13,SEINFRA_INSUM!B:F,2,0),IF($G13="COTAÇÃO",VLOOKUP($H13,'COTACAO - PEÇAS E MATERIAIS'!B:L,2,0),"")))) -> ABRACADEIRA DE NYLON PARA AMARRACAO DE CABOS, COMPRIMENTO DE 150 X *3,6* MM | C13: 250 | D13: un | E13: =IF($G13="ORSE",VLOOKUP($H13,ORSE_INSUM!A:E,4,0),IF($G13="SINAPI",VLOOKUP($H13,SINAPI_INSUM!A:E,5,0),IF($G13="SEINFRA",VLOOKUP($H13,SEINFRA_INSUM!B:F,4,0),IF($G13="COTAÇÃO",VLOOKUP($H13,'COTACAO - PEÇAS E MATERIAIS'!B:L,10,0),"")))) -> 0,15 | F13: 37.5 | G13: SINAPI | H13: 410 | J13: 1000
A14: 3.1.1.7 | B14: =IF($G14="ORSE",VLOOKUP($H14,ORSE_INSUM!A:E,2,0),IF($G14="SINAPI",VLOOKUP($H14,SINAPI_INSUM!A:E,2,0),IF($G14="SEINFRA",VLOOKUP($H14,SEINFRA_INSUM!B:F,2,0),IF($G14="COTAÇÃO",VLOOKUP($H14,'COTACAO - PEÇAS E MATERIAIS'!B:L,2,0),"")))) -> Abraçadeiras de nylon, 4,8X283mm, embalagem com 100 unidades | C14: 3 | D14: un | E14: =IF($G14="ORSE",VLOOKUP($H14,ORSE_INSUM!A:E,4,0),IF($G14="SINAPI",VLOOKUP($H14,SINAPI_INSUM!A:E,5,0),IF($G14="SEINFRA",VLOOKUP($H14,SEINFRA_INSUM!B:F,4,0),IF($G14="COTAÇÃO",VLOOKUP($H14,'COTACAO - PEÇAS E MATERIAIS'!B:L,10,0),"")))) -> 12.69 | F14: 38.07 | G14: COTAÇÃO | H14: 1 | J14: 10
A15: 3.1.1.8 | B15: =IF($G15="ORSE",VLOOKUP($H15,ORSE_INSUM!A:E,2,0),IF($G15="SINAPI",VLOOKUP($H15,SINAPI_INSUM!A:E,2,0),IF($G15="SEINFRA",VLOOKUP($H15,SEINFRA_INSUM!B:F,2,0),IF($G15="COTAÇÃO",VLOOKUP($H15,'COTACAO - PEÇAS E MATERIAIS'!B:L,2,0),"")))) -> Adaptador para condulete (box) 1,1/2" | C15: 10 | D15: Pç | E15: =IF($G15="ORSE",VLOOKUP($H15,ORSE_INSUM!A:E,4,0),IF($G15="SINAPI",VLOOKUP($H15,SINAPI_INSUM!A:E,5,0),IF($G15="SEINFRA",VLOOKUP($H15,SEINFRA_INSUM!B:F,4,0),IF($G15="COTAÇÃO",VLOOKUP($H15,'COTACAO - PEÇAS E MATERIAIS'!B:L,10,0),"")))) -> 2.41 | F15: 24.1 | G15: COTAÇÃO | H15: 3 | J15: 40
A16: 3.1.1.9 | B16: =IF($G16="ORSE",VLOOKUP($H16,ORSE_INSUM!A:E,2,0),IF($G16="SINAPI",VLOOKUP($H16,SINAPI_INSUM!A:E,2,0),IF($G16="SEINFRA",VLOOKUP($H16,SEINFRA_INSUM!B:F,2,0),IF($G16="COTAÇÃO",VLOOKUP($H16,'COTACAO - PEÇAS E MATERIAIS'!B:L,2,0),"")))) -> Adaptador para condulete (box) 1" | C16: 20 | D16: Pç | E16: =IF($G16="ORSE",VLOOKUP($H16,ORSE_INSUM!A:E,4,0),IF($G16="SINAPI",VLOOKUP($H16,SINAPI_INSUM!A:E,5,0),IF($G16="SEINFRA",VLOOKUP($H16,SEINFRA_INSUM!B:F,4,0),IF($G16="COTAÇÃO",VLOOKUP($H16,'COTACAO - PEÇAS E MATERIAIS'!B:L,10,0),"")))) -> 2.41 | F16: 48.2 | G16: COTAÇÃO | H16: 2 | J16: 80
A17: 3.1.1.10 | B17: =IF($G17="ORSE",VLOOKUP($H17,ORSE_INSUM!A:E,2,0),IF($G17="SINAPI",VLOOKUP($H17,SINAPI_INSUM!A:E,2,0),IF($G17="SEINFRA",VLOOKUP($H17,SEINFRA_INSUM!B:F,2,0),IF($G17="COTAÇÃO",VLOOKUP($H17,'COTACAO - PEÇAS E MATERIAIS'!B:L,2,0),"")))) -> Adaptador para condulete (box) 2" | C17: 10 | D17: Pç | E17: =IF($G17="ORSE",VLOOKUP($H17,ORSE_INSUM!A:E,4,0),IF($G17="SINAPI",VLOOKUP($H17,SINAPI_INSUM!A:E,5,0),IF($G17="SEINFRA",VLOOKUP($H17,SEINFRA_INSUM!B:F,4,0),IF($G17="COTAÇÃO",VLOOKUP($H17,'COTACAO - PEÇAS E MATERIAIS'!B:L,10,0),"")))) -> 2.41 | F17: 24.1 | G17: COTAÇÃO | H17: 4 | J17: 40
A18: 3.1.1.11 | B18: =IF($G18="ORSE",VLOOKUP($H18,ORSE_INSUM!A:E,2,0),IF($G18="SINAPI",VLOOKUP($H18,SINAPI_INSUM!A:E,2,0),IF($G18="SEINFRA",VLOOKUP($H18,SEINFRA_INSUM!B:F,2,0),IF($G18="COTAÇÃO",VLOOKUP($H18,'COTACAO - PEÇAS E MATERIAIS'!B:L,2,0),"")))) -> Adaptador para condulete (box) 3/4" | C18: 8 | D18: Pç | E18: =IF($G18="ORSE",VLOOKUP($H18,ORSE_INSUM!A:E,4,0),IF($G18="SINAPI",VLOOKUP($H18,SINAPI_INSUM!A:E,5,0),IF($G18="SEINFRA",VLOOKUP($H18,SEINFRA_INSUM!B:F,4,0),IF($G18="COTAÇÃO",VLOOKUP($H18,'COTACAO - PEÇAS E MATERIAIS'!B:L,10,0),"")))) -> 1.4 | F18: 11.2 | G18: COTAÇÃO | H18: 5 | J18: 30
A19: 3.1.1.12 | B19: =IF($G19="ORSE",VLOOKUP($H19,ORSE_INSUM!A:E,2,0),IF($G19="SINAPI",VLOOKUP($H19,SINAPI_INSUM!A:E,2,0),IF($G19="SEINFRA",VLOOKUP($H19,SEINFRA_INSUM!B:F,2,0),IF($G19="COTAÇÃO",VLOOKUP($H19,'COTACAO - PEÇAS E MATERIAIS'!B:L,2,0),"")))) -> Amperimetro bobina móvel, 0-120 Acc, Class de exat. 1,5; Deflex. Do ponteiro 90º; 60mV ref. Kron | C19: 1 | D19: un | E19: =IF($G19="ORSE",VLOOKUP($H19,ORSE_INSUM!A:E,4,0),IF($G19="SINAPI",VLOOKUP($H19,SINAPI_INSUM!A:E,5,0),IF($G19="SEINFRA",VLOOKUP($H19,SEINFRA_INSUM!B:F,4,0),IF($G19="COTAÇÃO",VLOOKUP($H19,'COTACAO - PEÇAS E MATERIAIS'!B:L,10,0),"")))) -> 159.27 | F19: 159.27 | G19: COTAÇÃO | H19: 6 | J19: 3
A20: 3.1.1.13 | B20: =IF($G20="ORSE",VLOOKUP($H20,ORSE_INSUM!A:E,2,0),IF($G20="SINAPI",VLOOKUP($H20,SINAPI_INSUM!A:E,2,0),IF($G20="SEINFRA",VLOOKUP($H20,SEINFRA_INSUM!B:F,2,0),IF($G20="COTAÇÃO",VLOOKUP($H20,'COTACAO - PEÇAS E MATERIAIS'!B:L,2,0),"")))) -> AMPERIMETRO | C20: 8 | D20: un | E20: =IF($G20="ORSE",VLOOKUP($H20,ORSE_INSUM!A:E,4,0),IF($G20="SINAPI",VLOOKUP($H20,SINAPI_INSUM!A:E,5,0),IF($G20="SEINFRA",VLOOKUP($H20,SEINFRA_INSUM!B:F,4,0),IF($G20="COTAÇÃO",VLOOKUP($H20,'COTACAO - PEÇAS E MATERIAIS'!B:L,10,0),"")))) -> 171.71 | F20: 1373.68 | G20: ORSE | H20: 11934 | J20: 31
A21: 3.1.1.14 | B21: =IF($G21="ORSE",VLOOKUP($H21,ORSE_INSUM!A:E,2,0),IF($G21="SINAPI",VLOOKUP($H21,SINAPI_INSUM!A:E,2,0),IF($G21="SEINFRA",VLOOKUP($H21,SEINFRA_INSUM!B:F,2,0),IF($G21="COTAÇÃO",VLOOKUP($H21,'COTACAO - PEÇAS E MATERIAIS'!B:L,2,0),"")))) -> Antena de transmissão de sinal de Rádio comunicador – PX Base | C21: 1 | D21: Ud | E21: =IF($G21="ORSE",VLOOKUP($H21,ORSE_INSUM!A:E,4,0),IF($G21="SINAPI",VLOOKUP($H21,SINAPI_INSUM!A:E,5,0),IF($G21="SEINFRA",VLOOKUP($H21,SEINFRA_INSUM!B:F,4,0),IF($G21="COTAÇÃO",VLOOKUP($H21,'COTACAO - PEÇAS E MATERIAIS'!B:L,10,0),"")))) -> 354.55 | F21: 354.55 | G21: COTAÇÃO | H21: 350 | J21: 2
A22: 3.1.1.15 | B22: =IF($G22="ORSE",VLOOKUP($H22,ORSE_INSUM!A:E,2,0),IF($G22="SINAPI",VLOOKUP($H22,SINAPI_INSUM!A:E,2,0),IF($G22="SEINFRA",VLOOKUP($H22,SEINFRA_INSUM!B:F,2,0),IF($G22="COTAÇÃO",VLOOKUP($H22,'COTACAO - PEÇAS E MATERIAIS'!B:L,2,0),"")))) -> Antena de transmissão de sinal de Rádio comunicador – PX Móvel | C22: 1 | D22: Ud | E22: =IF($G22="ORSE",VLOOKUP($H22,ORSE_INSUM!A:E,4,0),IF($G22="SINAPI",VLOOKUP($H22,SINAPI_INSUM!A:E,5,0),IF($G22="SEINFRA",VLOOKUP($H22,SEINFRA_INSUM!B:F,4,0),IF($G22="COTAÇÃO",VLOOKUP($H22,'COTACAO - PEÇAS E MATERIAIS'!B:L,10,0),"")))) -> 179.99 | F22: 179.99 | G22: COTAÇÃO | H22: 351 | J22: 4
A23: 3.1.1.16 | B23: =IF($G23="ORSE",VLOOKUP($H23,ORSE_INSUM!A:E,2,0),IF($G23="SINAPI",VLOOKUP($H23,SINAPI_INSUM!A:E,2,0),IF($G23="SEINFRA",VLOOKUP($H23,SEINFRA_INSUM!B:F,2,0),IF($G23="COTAÇÃO",VLOOKUP($H23,'COTACAO - PEÇAS E MATERIAIS'!B:L,2,0),"")))) -> LUMINARIA ARANDELA TIPO MEIA-LUA COM VIDRO FOSCO *30 X 15* CM, PARA 1 LAMPADA, BASE E27, POTENCIA MAXIMA 40/60 W (NAO INCLUI LAMPADA) | C23: 2 | E23: =IF($G23="ORSE",VLOOKUP($H23,ORSE_INSUM!A:E,4,0),IF($G23="SINAPI",VLOOKUP($H23,SINAPI_INSUM!A:E,5,0),IF($G23="SEINFRA",VLOOKUP($H23,SEINFRA_INSUM!B:F,4,0),IF($G23="COTAÇÃO",VLOOKUP($H23,'COTACAO - PEÇAS E MATERIAIS'!B:L,10,0),"")))) -> 30,37 | F23: 60.74 | G23: SINAPI | H23: 38769 | J23: 6
A24: 3.1.1.17 | B24: =IF($G24="ORSE",VLOOKUP($H24,ORSE_INSUM!A:E,2,0),IF($G24="SINAPI",VLOOKUP($H24,SINAPI_INSUM!A:E,2,0),IF($G24="SEINFRA",VLOOKUP($H24,SEINFRA_INSUM!B:F,2,0),IF($G24="COTAÇÃO",VLOOKUP($H24,'COTACAO - PEÇAS E MATERIAIS'!B:L,2,0),"")))) -> Atuador elétrico para valvula de descarga. Fab.: Bernad. Mod: modelo ASM2 STD | C24: 1 | D24: un | E24: =IF($G24="ORSE",VLOOKUP($H24,ORSE_INSUM!A:E,4,0),IF($G24="SINAPI",VLOOKUP($H24,SINAPI_INSUM!A:E,5,0),IF($G24="SEINFRA",VLOOKUP($H24,SEINFRA_INSUM!B:F,4,0),IF($G24="COTAÇÃO",VLOOKUP($H24,'COTACAO - PEÇAS E MATERIAIS'!B:L,10,0),"")))) -> 4490 | F24: 4490 | G24: COTAÇÃO | H24: 9 | J24: 2
A25: 3.1.1.18 | B25: =IF($G25="ORSE",VLOOKUP($H25,ORSE_INSUM!A:E,2,0),IF($G25="SINAPI",VLOOKUP($H25,SINAPI_INSUM!A:E,2,0),IF($G25="SEINFRA",VLOOKUP($H25,SEINFRA_INSUM!B:F,2,0),IF($G25="COTAÇÃO",VLOOKUP($H25,'COTACAO - PEÇAS E MATERIAIS'!B:L,2,0),"")))) -> Atuador eletrico para valvula de descarga. Fab.: Bernard. Modelo: ASM10 INTEGRAL | C25: 1 | D25: un | E25: =IF($G25="ORSE",VLOOKUP($H25,ORSE_INSUM!A:E,4,0),IF($G25="SINAPI",VLOOKUP($H25,SINAPI_INSUM!A:E,5,0),IF($G25="SEINFRA",VLOOKUP($H25,SEINFRA_INSUM!B:F,4,0),IF($G25="COTAÇÃO",VLOOKUP($H25,'COTACAO - PEÇAS E MATERIAIS'!B:L,10,0),"")))) -> 7780 | F25: 7780 | G25: COTAÇÃO | H25: 10 | J25: 2
A26: 3.1.1.19 | B26: =IF($G26="ORSE",VLOOKUP($H26,ORSE_INSUM!A:E,2,0),IF($G26="SINAPI",VLOOKUP($H26,SINAPI_INSUM!A:E,2,0),IF($G26="SEINFRA",VLOOKUP($H26,SEINFRA_INSUM!B:F,2,0),IF($G26="COTAÇÃO",VLOOKUP($H26,'COTACAO - PEÇAS E MATERIAIS'!B:L,2,0),"")))) -> BANCO CAPACITORES TRIFÁSICO 50kvar/380v BCW50V40 (9x UCW5V40 L10 + 3x UCW1,67V40 L4 DIMENSSIONAL 390 x 265 x 192,5 CÓD:10186095 | C26: 1 | D26: Ud | E26: =IF($G26="ORSE",VLOOKUP($H26,ORSE_INSUM!A:E,4,0),IF($G26="SINAPI",VLOOKUP($H26,SINAPI_INSUM!A:E,5,0),IF($G26="SEINFRA",VLOOKUP($H26,SEINFRA_INSUM!B:F,4,0),IF($G26="COTAÇÃO",VLOOKUP($H26,'COTACAO - PEÇAS E MATERIAIS'!B:L,10,0),"")))) -> 2480 | F26: 2480 | G26: COTAÇÃO | H26: 11 | J26: 4
A27: 3.1.1.20 | B27: =IF($G27="ORSE",VLOOKUP($H27,ORSE_INSUM!A:E,2,0),IF($G27="SINAPI",VLOOKUP($H27,SINAPI_INSUM!A:E,2,0),IF($G27="SEINFRA",VLOOKUP($H27,SEINFRA_INSUM!B:F,2,0),IF($G27="COTAÇÃO",VLOOKUP($H27,'COTACAO - PEÇAS E MATERIAIS'!B:L,2,0),"")))) -> Banco de capacitores fixos trifásico, 7,5kVar, 380V, dielétrico de baixa perda, auto regenerativo, com proteção contra curto-circuito e tempoorizador | C27: 1 | D27: Ud | E27: =IF($G27="ORSE",VLOOKUP($H27,ORSE_INSUM!A:E,4,0),IF($G27="SINAPI",VLOOKUP($H27,SINAPI_INSUM!A:E,5,0),IF($G27="SEINFRA",VLOOKUP($H27,SEINFRA_INSUM!B:F,4,0),IF($G27="COTAÇÃO",VLOOKUP($H27,'COTACAO - PEÇAS E MATERIAIS'!B:L,10,0),"")))) -> 230.56 | F27: 230.56 | G27: COTAÇÃO | H27: 12 | J27: 4
A28: 3.1.1.21 | B28: =IF($G28="ORSE",VLOOKUP($H28,ORSE_INSUM!A:E,2,0),IF($G28="SINAPI",VLOOKUP($H28,SINAPI_INSUM!A:E,2,0),IF($G28="SEINFRA",VLOOKUP($H28,SEINFRA_INSUM!B:F,2,0),IF($G28="COTAÇÃO",VLOOKUP($H28,'COTACAO - PEÇAS E MATERIAIS'!B:L,2,0),"")))) -> BARRA CHATA DE COBRE 3/4" X 3/16" | C28: 1 | D28: KG | E28: =IF($G28="ORSE",VLOOKUP($H28,ORSE_INSUM!A:E,4,0),IF($G28="SINAPI",VLOOKUP($H28,SINAPI_INSUM!A:E,5,0),IF($G28="SEINFRA",VLOOKUP($H28,SEINFRA_INSUM!B:F,4,0),IF($G28="COTAÇÃO",VLOOKUP($H28,'COTACAO - PEÇAS E MATERIAIS'!B:L,10,0),"")))) -> 69.3 | F28: 69.3 | G28: ORSE | H28: 9490 | J28: 2
A29: 3.1.1.22 | B29: =IF($G29="ORSE",VLOOKUP($H29,ORSE_INSUM!A:E,2,0),IF($G29="SINAPI",VLOOKUP($H29,SINAPI_INSUM!A:E,2,0),IF($G29="SEINFRA",VLOOKUP($H29,SEINFRA_INSUM!B:F,2,0),IF($G29="COTAÇÃO",VLOOKUP($H29,'COTACAO - PEÇAS E MATERIAIS'!B:L,2,0),"")))) -> BASE FUSÍVEL ATÉ 125A, PARA QUADRO DISTRIBUIÇÃO CIRCUITOS (NH 00 OU SIMILAR) | C29: 1 | D29: un | E29: =IF($G29="ORSE",VLOOKUP($H29,ORSE_INSUM!A:E,4,0),IF($G29="SINAPI",VLOOKUP($H29,SINAPI_INSUM!A:E,5,0),IF($G29="SEINFRA",VLOOKUP($H29,SEINFRA_INSUM!B:F,4,0),IF($G29="COTAÇÃO",VLOOKUP($H29,'COTACAO - PEÇAS E MATERIAIS'!B:L,10,0),"")))) -> 11.14 | F29: 11.14 | G29: ORSE | H29: 267 | J29: 4
A30: 3.1.1.23 | B30: =IF($G30="ORSE",VLOOKUP($H30,ORSE_INSUM!A:E,2,0),IF($G30="SINAPI",VLOOKUP($H30,SINAPI_INSUM!A:E,2,0),IF($G30="SEINFRA",VLOOKUP($H30,SEINFRA_INSUM!B:F,2,0),IF($G30="COTAÇÃO",VLOOKUP($H30,'COTACAO - PEÇAS E MATERIAIS'!B:L,2,0),"")))) -> Base DIAZED, completa Fusível de 10A, tipo 5SB231 | C30: 1 | D30: Ud | E30: =IF($G30="ORSE",VLOOKUP($H30,ORSE_INSUM!A:E,4,0),IF($G30="SINAPI",VLOOKUP($H30,SINAPI_INSUM!A:E,5,0),IF($G30="SEINFRA",VLOOKUP($H30,SEINFRA_INSUM!B:F,4,0),IF($G30="COTAÇÃO",VLOOKUP($H30,'COTACAO - PEÇAS E MATERIAIS'!B:L,10,0),"")))) -> 17.9 | F30: 17.9 | G30: COTAÇÃO | H30: 13 | J30: 4
A31: 3.1.1.24 | B31: =IF($G31="ORSE",VLOOKUP($H31,ORSE_INSUM!A:E,2,0),IF($G31="SINAPI",VLOOKUP($H31,SINAPI_INSUM!A:E,2,0),IF($G31="SEINFRA",VLOOKUP($H31,SEINFRA_INSUM!B:F,2,0),IF($G31="COTAÇÃO",VLOOKUP($H31,'COTACAO - PEÇAS E MATERIAIS'!B:L,2,0),"")))) -> Base DIAZED, completa Fusível de 2A, tipo 5SB211 | C31: 3 | D31: Ud | E31: =IF($G31="ORSE",VLOOKUP($H31,ORSE_INSUM!A:E,4,0),IF($G31="SINAPI",VLOOKUP($H31,SINAPI_INSUM!A:E,5,0),IF($G31="SEINFRA",VLOOKUP($H31,SEINFRA_INSUM!B:F,4,0),IF($G31="COTAÇÃO",VLOOKUP($H31,'COTACAO - PEÇAS E MATERIAIS'!B:L,10,0),"")))) -> 17.9 | F31: 53.7 | G31: COTAÇÃO | H31: 14 | J31: 10
A32: 3.1.1.25 | B32: =IF($G32="ORSE",VLOOKUP($H32,ORSE_INSUM!A:E,2,0),IF($G32="SINAPI",VLOOKUP($H32,SINAPI_INSUM!A:E,2,0),IF($G32="SEINFRA",VLOOKUP($H32,SEINFRA_INSUM!B:F,2,0),IF($G32="COTAÇÃO",VLOOKUP($H32,'COTACAO - PEÇAS E MATERIAIS'!B:L,2,0),"")))) -> Base DIAZED, completa Fusível de 4A, tipo 5SB221 | C32: 1 | D32: Ud | E32: =IF($G32="ORSE",VLOOKUP($H32,ORSE_INSUM!A:E,4,0),IF($G32="SINAPI",VLOOKUP($H32,SINAPI_INSUM!A:E,5,0),IF($G32="SEINFRA",VLOOKUP($H32,SEINFRA_INSUM!B:F,4,0),IF($G32="COTAÇÃO",VLOOKUP($H32,'COTACAO - PEÇAS E MATERIAIS'!B:L,10,0),"")))) -> 17.9 | F32: 17.9 | G32: COTAÇÃO | H32: 15 | J32: 4
A33: 3.1.1.26 | B33: =IF($G33="ORSE",VLOOKUP($H33,ORSE_INSUM!A:E,2,0),IF($G33="SINAPI",VLOOKUP($H33,SINAPI_INSUM!A:E,2,0),IF($G33="SEINFRA",VLOOKUP($H33,SEINFRA_INSUM!B:F,2,0),IF($G33="COTAÇÃO",VLOOKUP($H33,'COTACAO - PEÇAS E MATERIAIS'!B:L,2,0),"")))) -> BASE FUSÍVEL ATÉ 630A, PARA QUADRO DISTRIBUIÇÃO CIRCUITOS (NH 03 OU SIMILAR) | C33: 1 | D33: un | E33: =IF($G33="ORSE",VLOOKUP($H33,ORSE_INSUM!A:E,4,0),IF($G33="SINAPI",VLOOKUP($H33,SINAPI_INSUM!A:E,5,0),IF($G33="SEINFRA",VLOOKUP($H33,SEINFRA_INSUM!B:F,4,0),IF($G33="COTAÇÃO",VLOOKUP($H33,'COTACAO - PEÇAS E MATERIAIS'!B:L,10,0),"")))) -> 230.5 | F33: 230.5 | G33: ORSE | H33: 270 | J33: 2
A34: 3.1.1.27 | B34: =IF($G34="ORSE",VLOOKUP($H34,ORSE_INSUM!A:E,2,0),IF($G34="SINAPI",VLOOKUP($H34,SINAPI_INSUM!A:E,2,0),IF($G34="SEINFRA",VLOOKUP($H34,SEINFRA_INSUM!B:F,2,0),IF($G34="COTAÇÃO",VLOOKUP($H34,'COTACAO - PEÇAS E MATERIAIS'!B:L,2,0),"")))) -> Base relé fotoelétrico | C34: 1 | D34: Ud | E34: =IF($G34="ORSE",VLOOKUP($H34,ORSE_INSUM!A:E,4,0),IF($G34="SINAPI",VLOOKUP($H34,SINAPI_INSUM!A:E,5,0),IF($G34="SEINFRA",VLOOKUP($H34,SEINFRA_INSUM!B:F,4,0),IF($G34="COTAÇÃO",VLOOKUP($H34,'COTACAO - PEÇAS E MATERIAIS'!B:L,10,0),"")))) -> 17.41 | F34: 17.41 | G34: COTAÇÃO | H34: 16 | J34: 5
A35: 3.1.1.28 | B35: =IF($G35="ORSE",VLOOKUP($H35,ORSE_INSUM!A:E,2,0),IF($G35="SINAPI",VLOOKUP($H35,SINAPI_INSUM!A:E,2,0),IF($G35="SEINFRA",VLOOKUP($H35,SEINFRA_INSUM!B:F,2,0),IF($G35="COTAÇÃO",VLOOKUP($H35,'COTACAO - PEÇAS E MATERIAIS'!B:L,2,0),"")))) -> Bateria 12Vcc/40A/h (para nobreak) | C35: 1 | D35: Ud | E35: =IF($G35="ORSE",VLOOKUP($H35,ORSE_INSUM!A:E,4,0),IF($G35="SINAPI",VLOOKUP($H35,SINAPI_INSUM!A:E,5,0),IF($G35="SEINFRA",VLOOKUP($H35,SEINFRA_INSUM!B:F,4,0),IF($G35="COTAÇÃO",VLOOKUP($H35,'COTACAO - PEÇAS E MATERIAIS'!B:L,10,0),"")))) -> 385.67 | F35: 385.67 | G35: COTAÇÃO | H35: 17 | J35: 2
A36: 3.1.1.29 | B36: =IF($G36="ORSE",VLOOKUP($H36,ORSE_INSUM!A:E,2,0),IF($G36="SINAPI",VLOOKUP($H36,SINAPI_INSUM!A:E,2,0),IF($G36="SEINFRA",VLOOKUP($H36,SEINFRA_INSUM!B:F,2,0),IF($G36="COTAÇÃO",VLOOKUP($H36,'COTACAO - PEÇAS E MATERIAIS'!B:L,2,0),"")))) -> Bateria 9V, alcalina | C36: 3 | D36: Ud | E36: =IF($G36="ORSE",VLOOKUP($H36,ORSE_INSUM!A:E,4,0),IF($G36="SINAPI",VLOOKUP($H36,SINAPI_INSUM!A:E,5,0),IF($G36="SEINFRA",VLOOKUP($H36,SEINFRA_INSUM!B:F,4,0),IF($G36="COTAÇÃO",VLOOKUP($H36,'COTACAO - PEÇAS E MATERIAIS'!B:L,10,0),"")))) -> 14.16 | F36: 42.48 | G36: COTAÇÃO | H36: 18 | J36: 10
A37: 3.1.1.30 | B37: =IF($G37="ORSE",VLOOKUP($H37,ORSE_INSUM!A:E,2,0),IF($G37="SINAPI",VLOOKUP($H37,SINAPI_INSUM!A:E,2,0),IF($G37="SEINFRA",VLOOKUP($H37,SEINFRA_INSUM!B:F,2,0),IF($G37="COTAÇÃO",VLOOKUP($H37,'COTACAO - PEÇAS E MATERIAIS'!B:L,2,0),"")))) -> BATERIA ESTACIONÁRIA SELADA DF3000, 185AH, 12V FREEDOM OU SIMILAR | C37: 2 | D37: Ud | E37: =IF($G37="ORSE",VLOOKUP($H37,ORSE_INSUM!A:E,4,0),IF($G37="SINAPI",VLOOKUP($H37,SINAPI_INSUM!A:E,5,0),IF($G37="SEINFRA",VLOOKUP($H37,SEINFRA_INSUM!B:F,4,0),IF($G37="COTAÇÃO",VLOOKUP($H37,'COTACAO - PEÇAS E MATERIAIS'!B:L,10,0),"")))) -> 1110 | F37: 2220 | G37: ORSE | H37: 12853 | J37: 8
A38: 3.1.1.31 | B38: =IF($G38="ORSE",VLOOKUP($H38,ORSE_INSUM!A:E,2,0),IF($G38="SINAPI",VLOOKUP($H38,SINAPI_INSUM!A:E,2,0),IF($G38="SEINFRA",VLOOKUP($H38,SEINFRA_INSUM!B:F,2,0),IF($G38="COTAÇÃO",VLOOKUP($H38,'COTACAO - PEÇAS E MATERIAIS'!B:L,2,0),"")))) -> Bloco de contatos auxiliares de contatora auxiliar weg, combinações de contatos diversas | C38: 3 | D38: un | E38: =IF($G38="ORSE",VLOOKUP($H38,ORSE_INSUM!A:E,4,0),IF($G38="SINAPI",VLOOKUP($H38,SINAPI_INSUM!A:E,5,0),IF($G38="SEINFRA",VLOOKUP($H38,SEINFRA_INSUM!B:F,4,0),IF($G38="COTAÇÃO",VLOOKUP($H38,'COTACAO - PEÇAS E MATERIAIS'!B:L,10,0),"")))) -> 23.75 | F38: 71.25 | G38: COTAÇÃO | H38: 24 | J38: 10
A39: 3.1.1.32 | B39: =IF($G39="ORSE",VLOOKUP($H39,ORSE_INSUM!A:E,2,0),IF($G39="SINAPI",VLOOKUP($H39,SINAPI_INSUM!A:E,2,0),IF($G39="SEINFRA",VLOOKUP($H39,SEINFRA_INSUM!B:F,2,0),IF($G39="COTAÇÃO",VLOOKUP($H39,'COTACAO - PEÇAS E MATERIAIS'!B:L,2,0),"")))) -> Bobina para contator SIEMENS modelo: 3TF6844-0C, 220vac | C39: 1 | D39: un | E39: =IF($G39="ORSE",VLOOKUP($H39,ORSE_INSUM!A:E,4,0),IF($G39="SINAPI",VLOOKUP($H39,SINAPI_INSUM!A:E,5,0),IF($G39="SEINFRA",VLOOKUP($H39,SEINFRA_INSUM!B:F,4,0),IF($G39="COTAÇÃO",VLOOKUP($H39,'COTACAO - PEÇAS E MATERIAIS'!B:L,10,0),"")))) -> 2037.98 | F39: 2037.98 | G39: COTAÇÃO | H39: 27 | J39: 2
A40: 3.1.1.33 | B40: =IF($G40="ORSE",VLOOKUP($H40,ORSE_INSUM!A:E,2,0),IF($G40="SINAPI",VLOOKUP($H40,SINAPI_INSUM!A:E,2,0),IF($G40="SEINFRA",VLOOKUP($H40,SEINFRA_INSUM!B:F,2,0),IF($G40="COTAÇÃO",VLOOKUP($H40,'COTACAO - PEÇAS E MATERIAIS'!B:L,2,0),"")))) -> Bobina para contator SIEMENS modelo: 3TF6944-0C, 220vac | C40: 1 | D40: un | E40: =IF($G40="ORSE",VLOOKUP($H40,ORSE_INSUM!A:E,4,0),IF($G40="SINAPI",VLOOKUP($H40,SINAPI_INSUM!A:E,5,0),IF($G40="SEINFRA",VLOOKUP($H40,SEINFRA_INSUM!B:F,4,0),IF($G40="COTAÇÃO",VLOOKUP($H40,'COTACAO - PEÇAS E MATERIAIS'!B:L,10,0),"")))) -> 3470.35 | F40: 3470.35 | G40: COTAÇÃO | H40: 28 | J40: 2
A41: 3.1.1.34 | B41: =IF($G41="ORSE",VLOOKUP($H41,ORSE_INSUM!A:E,2,0),IF($G41="SINAPI",VLOOKUP($H41,SINAPI_INSUM!A:E,2,0),IF($G41="SEINFRA",VLOOKUP($H41,SEINFRA_INSUM!B:F,2,0),IF($G41="COTAÇÃO",VLOOKUP($H41,'COTACAO - PEÇAS E MATERIAIS'!B:L,2,0),"")))) -> Bocal E27 para lâmpada | C41: 3 | D41: Ud | E41: =IF($G41="ORSE",VLOOKUP($H41,ORSE_INSUM!A:E,4,0),IF($G41="SINAPI",VLOOKUP($H41,SINAPI_INSUM!A:E,5,0),IF($G41="SEINFRA",VLOOKUP($H41,SEINFRA_INSUM!B:F,4,0),IF($G41="COTAÇÃO",VLOOKUP($H41,'COTACAO - PEÇAS E MATERIAIS'!B:L,10,0),"")))) -> 2.85 | F41: 8.55 | G41: COTAÇÃO | H41: 29 | J41: 12
A42: 3.1.1.35 | B42: =IF($G42="ORSE",VLOOKUP($H42,ORSE_INSUM!A:E,2,0),IF($G42="SINAPI",VLOOKUP($H42,SINAPI_INSUM!A:E,2,0),IF($G42="SEINFRA",VLOOKUP($H42,SEINFRA_INSUM!B:F,2,0),IF($G42="COTAÇÃO",VLOOKUP($H42,'COTACAO - PEÇAS E MATERIAIS'!B:L,2,0),"")))) -> Bocal E40 para lâmpada | C42: 3 | D42: Ud | E42: =IF($G42="ORSE",VLOOKUP($H42,ORSE_INSUM!A:E,4,0),IF($G42="SINAPI",VLOOKUP($H42,SINAPI_INSUM!A:E,5,0),IF($G42="SEINFRA",VLOOKUP($H42,SEINFRA_INSUM!B:F,4,0),IF($G42="COTAÇÃO",VLOOKUP($H42,'COTACAO - PEÇAS E MATERIAIS'!B:L,10,0),"")))) -> 7.97 | F42: 23.91 | G42: COTAÇÃO | H42: 30 | J42: 12
A43: 3.1.1.36 | B43: =IF($G43="ORSE",VLOOKUP($H43,ORSE_INSUM!A:E,2,0),IF($G43="SINAPI",VLOOKUP($H43,SINAPI_INSUM!A:E,2,0),IF($G43="SEINFRA",VLOOKUP($H43,SEINFRA_INSUM!B:F,2,0),IF($G43="COTAÇÃO",VLOOKUP($H43,'COTACAO - PEÇAS E MATERIAIS'!B:L,2,0),"")))) -> Borne unipolar classe de tensão 500V, corrente nominal 25A com 12 pólos, tipo 100-112 | C43: 1 | D43: Ud | E43: =IF($G43="ORSE",VLOOKUP($H43,ORSE_INSUM!A:E,4,0),IF($G43="SINAPI",VLOOKUP($H43,SINAPI_INSUM!A:E,5,0),IF($G43="SEINFRA",VLOOKUP($H43,SEINFRA_INSUM!B:F,4,0),IF($G43="COTAÇÃO",VLOOKUP($H43,'COTACAO - PEÇAS E MATERIAIS'!B:L,10,0),"")))) -> 6.5 | F43: 6.5 | G43: COTAÇÃO | H43: 31 | J43: 4
A44: 3.1.1.37 | B44: =IF($G44="ORSE",VLOOKUP($H44,ORSE_INSUM!A:E,2,0),IF($G44="SINAPI",VLOOKUP($H44,SINAPI_INSUM!A:E,2,0),IF($G44="SEINFRA",VLOOKUP($H44,SEINFRA_INSUM!B:F,2,0),IF($G44="COTAÇÃO",VLOOKUP($H44,'COTACAO - PEÇAS E MATERIAIS'!B:L,2,0),"")))) -> Borne unipolar classe de tensão 750V, corrente nominal 36A tipo 95EE | C44: 3 | D44: Ud | E44: =IF($G44="ORSE",VLOOKUP($H44,ORSE_INSUM!A:E,4,0),IF($G44="SINAPI",VLOOKUP($H44,SINAPI_INSUM!A:E,5,0),IF($G44="SEINFRA",VLOOKUP($H44,SEINFRA_INSUM!B:F,4,0),IF($G44="COTAÇÃO",VLOOKUP($H44,'COTACAO - PEÇAS E MATERIAIS'!B:L,10,0),"")))) -> 13.49 | F44: 40.47 | G44: COTAÇÃO | H44: 32 | J44: 12
A45: 3.1.1.38 | B45: =IF($G45="ORSE",VLOOKUP($H45,ORSE_INSUM!A:E,2,0),IF($G45="SINAPI",VLOOKUP($H45,SINAPI_INSUM!A:E,2,0),IF($G45="SEINFRA",VLOOKUP($H45,SEINFRA_INSUM!B:F,2,0),IF($G45="COTAÇÃO",VLOOKUP($H45,'COTACAO - PEÇAS E MATERIAIS'!B:L,2,0),"")))) -> Botão de comando pulsador, redondo, cor Amarelo, contatos 1NA + 1NF, tipo XB2 – MA51 | C45: 1 | D45: Ud | E45: =IF($G45="ORSE",VLOOKUP($H45,ORSE_INSUM!A:E,4,0),IF($G45="SINAPI",VLOOKUP($H45,SINAPI_INSUM!A:E,5,0),IF($G45="SEINFRA",VLOOKUP($H45,SEINFRA_INSUM!B:F,4,0),IF($G45="COTAÇÃO",VLOOKUP($H45,'COTACAO - PEÇAS E MATERIAIS'!B:L,10,0),"")))) -> 14.9 | F45: 14.9 | G45: COTAÇÃO | H45: 33 | J45: 4
A46: 3.1.1.39 | B46: =IF($G46="ORSE",VLOOKUP($H46,ORSE_INSUM!A:E,2,0),IF($G46="SINAPI",VLOOKUP($H46,SINAPI_INSUM!A:E,2,0),IF($G46="SEINFRA",VLOOKUP($H46,SEINFRA_INSUM!B:F,2,0),IF($G46="COTAÇÃO",VLOOKUP($H46,'COTACAO - PEÇAS E MATERIAIS'!B:L,2,0),"")))) -> Botão de comando pulsador, redondo, cor Preto, contatos 1NA + 1NF, tipo XB2 – MV107 | C46: 1 | D46: Ud | E46: =IF($G46="ORSE",VLOOKUP($H46,ORSE_INSUM!A:E,4,0),IF($G46="SINAPI",VLOOKUP($H46,SINAPI_INSUM!A:E,5,0),IF($G46="SEINFRA",VLOOKUP($H46,SEINFRA_INSUM!B:F,4,0),IF($G46="COTAÇÃO",VLOOKUP($H46,'COTACAO - PEÇAS E MATERIAIS'!B:L,10,0),"")))) -> 14.9 | F46: 14.9 | G46: COTAÇÃO | H46: 34 | J46: 4
A47: 3.1.1.40 | B47: =IF($G47="ORSE",VLOOKUP($H47,ORSE_INSUM!A:E,2,0),IF($G47="SINAPI",VLOOKUP($H47,SINAPI_INSUM!A:E,2,0),IF($G47="SEINFRA",VLOOKUP($H47,SEINFRA_INSUM!B:F,2,0),IF($G47="COTAÇÃO",VLOOKUP($H47,'COTACAO - PEÇAS E MATERIAIS'!B:L,2,0),"")))) -> Botão de comando pulsador, redondo, cor verde, contatos 1NA + 1NF, furação: 30,5mm | C47: 1 | D47: un | E47: =IF($G47="ORSE",VLOOKUP($H47,ORSE_INSUM!A:E,4,0),IF($G47="SINAPI",VLOOKUP($H47,SINAPI_INSUM!A:E,5,0),IF($G47="SEINFRA",VLOOKUP($H47,SEINFRA_INSUM!B:F,4,0),IF($G47="COTAÇÃO",VLOOKUP($H47,'COTACAO - PEÇAS E MATERIAIS'!B:L,10,0),"")))) -> 14.9 | F47: 14.9 | G47: COTAÇÃO | H47: 35 | J47: 5
A48: 3.1.1.41 | B48: =IF($G48="ORSE",VLOOKUP($H48,ORSE_INSUM!A:E,2,0),IF($G48="SINAPI",VLOOKUP($H48,SINAPI_INSUM!A:E,2,0),IF($G48="SEINFRA",VLOOKUP($H48,SEINFRA_INSUM!B:F,2,0),IF($G48="COTAÇÃO",VLOOKUP($H48,'COTACAO - PEÇAS E MATERIAIS'!B:L,2,0),"")))) -> Botão de comando pulsador, redondo, cor verde, contatos 1NA + 1NF, tipo XB2 – MA31 | C48: 2 | D48: Ud | E48: =IF($G48="ORSE",VLOOKUP($H48,ORSE_INSUM!A:E,4,0),IF($G48="SINAPI",VLOOKUP($H48,SINAPI_INSUM!A:E,5,0),IF($G48="SEINFRA",VLOOKUP($H48,SEINFRA_INSUM!B:F,4,0),IF($G48="COTAÇÃO",VLOOKUP($H48,'COTACAO - PEÇAS E MATERIAIS'!B:L,10,0),"")))) -> 14.9 | F48: 29.8 | G48: COTAÇÃO | H48: 36 | J48: 6
A49: 3.1.1.42 | B49: =IF($G49="ORSE",VLOOKUP($H49,ORSE_INSUM!A:E,2,0),IF($G49="SINAPI",VLOOKUP($H49,SINAPI_INSUM!A:E,2,0),IF($G49="SEINFRA",VLOOKUP($H49,SEINFRA_INSUM!B:F,2,0),IF($G49="COTAÇÃO",VLOOKUP($H49,'COTACAO - PEÇAS E MATERIAIS'!B:L,2,0),"")))) -> Botão de comando pulsador, redondo, cor vermelha, contatos 1NA + 1NF, tipo XB2 – MA41 | C49: 1 | D49: Ud | E49: =IF($G49="ORSE",VLOOKUP($H49,ORSE_INSUM!A:E,4,0),IF($G49="SINAPI",VLOOKUP($H49,SINAPI_INSUM!A:E,5,0),IF($G49="SEINFRA",VLOOKUP($H49,SEINFRA_INSUM!B:F,4,0),IF($G49="COTAÇÃO",VLOOKUP($H49,'COTACAO - PEÇAS E MATERIAIS'!B:L,10,0),"")))) -> 14.9 | F49: 14.9 | G49: COTAÇÃO | H49: 37 | J49: 4
A50: 3.1.1.43 | B50: =IF($G50="ORSE",VLOOKUP($H50,ORSE_INSUM!A:E,2,0),IF($G50="SINAPI",VLOOKUP($H50,SINAPI_INSUM!A:E,2,0),IF($G50="SEINFRA",VLOOKUP($H50,SEINFRA_INSUM!B:F,2,0),IF($G50="COTAÇÃO",VLOOKUP($H50,'COTACAO - PEÇAS E MATERIAIS'!B:L,2,0),"")))) -> Botão de comando pulsador, redondo, cor vermelho, contatos 1NA + 1NF, furação: 30,5mm | C50: 1 | D50: un | E50: =IF($G50="ORSE",VLOOKUP($H50,ORSE_INSUM!A:E,4,0),IF($G50="SINAPI",VLOOKUP($H50,SINAPI_INSUM!A:E,5,0),IF($G50="SEINFRA",VLOOKUP($H50,SEINFRA_INSUM!B:F,4,0),IF($G50="COTAÇÃO",VLOOKUP($H50,'COTACAO - PEÇAS E MATERIAIS'!B:L,10,0),"")))) -> 14.9 | F50: 14.9 | G50: COTAÇÃO | H50: 38 | J50: 5
A51: 3.1.1.44 | B51: =IF($G51="ORSE",VLOOKUP($H51,ORSE_INSUM!A:E,2,0),IF($G51="SINAPI",VLOOKUP($H51,SINAPI_INSUM!A:E,2,0),IF($G51="SEINFRA",VLOOKUP($H51,SEINFRA_INSUM!B:F,2,0),IF($G51="COTAÇÃO",VLOOKUP($H51,'COTACAO - PEÇAS E MATERIAIS'!B:L,2,0),"")))) -> Botão de emergência com trava VM | C51: 1 | D51: Ud | E51: =IF($G51="ORSE",VLOOKUP($H51,ORSE_INSUM!A:E,4,0),IF($G51="SINAPI",VLOOKUP($H51,SINAPI_INSUM!A:E,5,0),IF($G51="SEINFRA",VLOOKUP($H51,SEINFRA_INSUM!B:F,4,0),IF($G51="COTAÇÃO",VLOOKUP($H51,'COTACAO - PEÇAS E MATERIAIS'!B:L,10,0),"")))) -> 24.47 | F51: 24.47 | G51: COTAÇÃO | H51: 39 | J51: 2
A52: 3.1.1.45 | B52: =IF($G52="ORSE",VLOOKUP($H52,ORSE_INSUM!A:E,2,0),IF($G52="SINAPI",VLOOKUP($H52,SINAPI_INSUM!A:E,2,0),IF($G52="SEINFRA",VLOOKUP($H52,SEINFRA_INSUM!B:F,2,0),IF($G52="COTAÇÃO",VLOOKUP($H52,'COTACAO - PEÇAS E MATERIAIS'!B:L,2,0),"")))) -> Botoeira dupla 1NA + 1NF | C52: 3 | D52: un | E52: =IF($G52="ORSE",VLOOKUP($H52,ORSE_INSUM!A:E,4,0),IF($G52="SINAPI",VLOOKUP($H52,SINAPI_INSUM!A:E,5,0),IF($G52="SEINFRA",VLOOKUP($H52,SEINFRA_INSUM!B:F,4,0),IF($G52="COTAÇÃO",VLOOKUP($H52,'COTACAO - PEÇAS E MATERIAIS'!B:L,10,0),"")))) -> 25 | F52: 75 | G52: COTAÇÃO | H52: 40 | J52: 10
A53: 3.1.1.46 | B53: =IF($G53="ORSE",VLOOKUP($H53,ORSE_INSUM!A:E,2,0),IF($G53="SINAPI",VLOOKUP($H53,SINAPI_INSUM!A:E,2,0),IF($G53="SEINFRA",VLOOKUP($H53,SEINFRA_INSUM!B:F,2,0),IF($G53="COTAÇÃO",VLOOKUP($H53,'COTACAO - PEÇAS E MATERIAIS'!B:L,2,0),"")))) -> Botoeira pendente para ponte rolante, com 8 botões de 2 estagios e 1 botão de emergência. Blindada IP54 ou superior | C53: 1 | D53: un | E53: =IF($G53="ORSE",VLOOKUP($H53,ORSE_INSUM!A:E,4,0),IF($G53="SINAPI",VLOOKUP($H53,SINAPI_INSUM!A:E,5,0),IF($G53="SEINFRA",VLOOKUP($H53,SEINFRA_INSUM!B:F,4,0),IF($G53="COTAÇÃO",VLOOKUP($H53,'COTACAO - PEÇAS E MATERIAIS'!B:L,10,0),"")))) -> 312.4 | F53: 312.4 | G53: COTAÇÃO | H53: 41 | J53: 2
A54: 3.1.1.47 | B54: =IF($G54="ORSE",VLOOKUP($H54,ORSE_INSUM!A:E,2,0),IF($G54="SINAPI",VLOOKUP($H54,SINAPI_INSUM!A:E,2,0),IF($G54="SEINFRA",VLOOKUP($H54,SEINFRA_INSUM!B:F,2,0),IF($G54="COTAÇÃO",VLOOKUP($H54,'COTACAO - PEÇAS E MATERIAIS'!B:L,2,0),"")))) -> BUCHA DE PASSAGEM INTERNA/INTERNA, EM PORCELANA, CLASSE 15 KV, CORRENTE 200A (NBI 95 KV) | C54: 1 | D54: Ud | E54: =IF($G54="ORSE",VLOOKUP($H54,ORSE_INSUM!A:E,4,0),IF($G54="SINAPI",VLOOKUP($H54,SINAPI_INSUM!A:E,5,0),IF($G54="SEINFRA",VLOOKUP($H54,SEINFRA_INSUM!B:F,4,0),IF($G54="COTAÇÃO",VLOOKUP($H54,'COTACAO - PEÇAS E MATERIAIS'!B:L,10,0),"")))) -> 507.9 | F54: 507.9 | G54: ORSE | H54: 6537 | J54: 4
A55: 3.1.1.48 | B55: =IF($G55="ORSE",VLOOKUP($H55,ORSE_INSUM!A:E,2,0),IF($G55="SINAPI",VLOOKUP($H55,SINAPI_INSUM!A:E,2,0),IF($G55="SEINFRA",VLOOKUP($H55,SEINFRA_INSUM!B:F,2,0),IF($G55="COTAÇÃO",VLOOKUP($H55,'COTACAO - PEÇAS E MATERIAIS'!B:L,2,0),"")))) -> BUCHA DE REDUCAO DE FERRO GALVANIZADO, COM ROSCA BSP, DE 2" X 1" | C55: 1 | D55: Ud | E55: =IF($G55="ORSE",VLOOKUP($H55,ORSE_INSUM!A:E,4,0),IF($G55="SINAPI",VLOOKUP($H55,SINAPI_INSUM!A:E,5,0),IF($G55="SEINFRA",VLOOKUP($H55,SEINFRA_INSUM!B:F,4,0),IF($G55="COTAÇÃO",VLOOKUP($H55,'COTACAO - PEÇAS E MATERIAIS'!B:L,10,0),"")))) -> 15,35 | F55: 15.35 | G55: SINAPI | H55: 771 | J55: 2
A56: 3.1.1.49 | B56: =IF($G56="ORSE",VLOOKUP($H56,ORSE_INSUM!A:E,2,0),IF($G56="SINAPI",VLOOKUP($H56,SINAPI_INSUM!A:E,2,0),IF($G56="SEINFRA",VLOOKUP($H56,SEINFRA_INSUM!B:F,2,0),IF($G56="COTAÇÃO",VLOOKUP($H56,'COTACAO - PEÇAS E MATERIAIS'!B:L,2,0),"")))) -> BUCHA DE FERRO GALVANIZADO 1'' | C56: 15 | D56: Ud | E56: =IF($G56="ORSE",VLOOKUP($H56,ORSE_INSUM!A:E,4,0),IF($G56="SINAPI",VLOOKUP($H56,SINAPI_INSUM!A:E,5,0),IF($G56="SEINFRA",VLOOKUP($H56,SEINFRA_INSUM!B:F,4,0),IF($G56="COTAÇÃO",VLOOKUP($H56,'COTACAO - PEÇAS E MATERIAIS'!B:L,10,0),"")))) -> 0.6 | F56: 9 | G56: SEINFRA | H56: I0287 | J56: 60
A57: 3.1.1.50 | B57: =IF($G57="ORSE",VLOOKUP($H57,ORSE_INSUM!A:E,2,0),IF($G57="SINAPI",VLOOKUP($H57,SINAPI_INSUM!A:E,2,0),IF($G57="SEINFRA",VLOOKUP($H57,SEINFRA_INSUM!B:F,2,0),IF($G57="COTAÇÃO",VLOOKUP($H57,'COTACAO - PEÇAS E MATERIAIS'!B:L,2,0),"")))) -> CABO DE COBRE ISOLADO EPR, FLEXIVEL, 300MM², 0,6/1KV / 90º C (EPROTENAX-G7 O U SIMILAR) | C57: 135 | D57: m | E57: =IF($G57="ORSE",VLOOKUP($H57,ORSE_INSUM!A:E,4,0),IF($G57="SINAPI",VLOOKUP($H57,SINAPI_INSUM!A:E,5,0),IF($G57="SEINFRA",VLOOKUP($H57,SEINFRA_INSUM!B:F,4,0),IF($G57="COTAÇÃO",VLOOKUP($H57,'COTACAO - PEÇAS E MATERIAIS'!B:L,10,0),"")))) -> 143 | F57: 19305 | G57: ORSE | H57: 4126 | J57: 540
A58: 3.1.1.51 | B58: =IF($G58="ORSE",VLOOKUP($H58,ORSE_INSUM!A:E,2,0),IF($G58="SINAPI",VLOOKUP($H58,SINAPI_INSUM!A:E,2,0),IF($G58="SEINFRA",VLOOKUP($H58,SEINFRA_INSUM!B:F,2,0),IF($G58="COTAÇÃO",VLOOKUP($H58,'COTACAO - PEÇAS E MATERIAIS'!B:L,2,0),"")))) -> CABO DE COBRE ISOLADO EPR, FLEXIVEL, 120MM², 0,6/1KV / 90º C (EPROTENAX-G7 O U SIMILAR) | C58: 13 | D58: M | E58: =IF($G58="ORSE",VLOOKUP($H58,ORSE_INSUM!A:E,4,0),IF($G58="SINAPI",VLOOKUP($H58,SINAPI_INSUM!A:E,5,0),IF($G58="SEINFRA",VLOOKUP($H58,SEINFRA_INSUM!B:F,4,0),IF($G58="COTAÇÃO",VLOOKUP($H58,'COTACAO - PEÇAS E MATERIAIS'!B:L,10,0),"")))) -> 51.5 | F58: 669.5 | G58: ORSE | H58: 4121 | J58: 50
A59: 3.1.1.52 | B59: =IF($G59="ORSE",VLOOKUP($H59,ORSE_INSUM!A:E,2,0),IF($G59="SINAPI",VLOOKUP($H59,SINAPI_INSUM!A:E,2,0),IF($G59="SEINFRA",VLOOKUP($H59,SEINFRA_INSUM!B:F,2,0),IF($G59="COTAÇÃO",VLOOKUP($H59,'COTACAO - PEÇAS E MATERIAIS'!B:L,2,0),"")))) -> Cabo com isolação em PVC, temperatura 70ºC, tipo Sintenax Antiflam, classe de tensão 0,6/1 kV bitola 16 mm² | C59: 13 | D59: M | E59: =IF($G59="ORSE",VLOOKUP($H59,ORSE_INSUM!A:E,4,0),IF($G59="SINAPI",VLOOKUP($H59,SINAPI_INSUM!A:E,5,0),IF($G59="SEINFRA",VLOOKUP($H59,SEINFRA_INSUM!B:F,4,0),IF($G59="COTAÇÃO",VLOOKUP($H59,'COTACAO - PEÇAS E MATERIAIS'!B:L,10,0),"")))) -> 7.1 | F59: 92.3 | G59: COTAÇÃO | H59: 48 | J59: 50
A60: 3.1.1.53 | B60: =IF($G60="ORSE",VLOOKUP($H60,ORSE_INSUM!A:E,2,0),IF($G60="SINAPI",VLOOKUP($H60,SINAPI_INSUM!A:E,2,0),IF($G60="SEINFRA",VLOOKUP($H60,SEINFRA_INSUM!B:F,2,0),IF($G60="COTAÇÃO",VLOOKUP($H60,'COTACAO - PEÇAS E MATERIAIS'!B:L,2,0),"")))) -> Cabo com isolação em PVC, temperatura 70ºC, tipo Sintenax Antiflam, classe de tensão0,6/1 kV bitola 35 mm² | C60: 13 | D60: M | E60: =IF($G60="ORSE",VLOOKUP($H60,ORSE_INSUM!A:E,4,0),IF($G60="SINAPI",VLOOKUP($H60,SINAPI_INSUM!A:E,5,0),IF($G60="SEINFRA",VLOOKUP($H60,SEINFRA_INSUM!B:F,4,0),IF($G60="COTAÇÃO",VLOOKUP($H60,'COTACAO - PEÇAS E MATERIAIS'!B:L,10,0),"")))) -> 10.98 | F60: 142.74 | G60: COTAÇÃO | H60: 49 | J60: 50
A61: 3.1.1.54 | B61: =IF($G61="ORSE",VLOOKUP($H61,ORSE_INSUM!A:E,2,0),IF($G61="SINAPI",VLOOKUP($H61,SINAPI_INSUM!A:E,2,0),IF($G61="SEINFRA",VLOOKUP($H61,SEINFRA_INSUM!B:F,2,0),IF($G61="COTAÇÃO",VLOOKUP($H61,'COTACAO - PEÇAS E MATERIAIS'!B:L,2,0),"")))) -> Cabo condutor de cobre 70ºC isolação em PVC tipo Sintenax Antiflam classe 0,6/1 kV bitola 10 mm² | C61: 13 | D61: M | E61: =IF($G61="ORSE",VLOOKUP($H61,ORSE_INSUM!A:E,4,0),IF($G61="SINAPI",VLOOKUP($H61,SINAPI_INSUM!A:E,5,0),IF($G61="SEINFRA",VLOOKUP($H61,SEINFRA_INSUM!B:F,4,0),IF($G61="COTAÇÃO",VLOOKUP($H61,'COTACAO - PEÇAS E MATERIAIS'!B:L,10,0),"")))) -> 5.43 | F61: 70.59 | G61: COTAÇÃO | H61: 50 | J61: 50
A62: 3.1.1.55 | B62: =IF($G62="ORSE",VLOOKUP($H62,ORSE_INSUM!A:E,2,0),IF($G62="SINAPI",VLOOKUP($H62,SINAPI_INSUM!A:E,2,0),IF($G62="SEINFRA",VLOOKUP($H62,SEINFRA_INSUM!B:F,2,0),IF($G62="COTAÇÃO",VLOOKUP($H62,'COTACAO - PEÇAS E MATERIAIS'!B:L,2,0),"")))) -> CABO EM PVC 1000V 16MM2 | C62: 25 | D62: M | E62: =IF($G62="ORSE",VLOOKUP($H62,ORSE_INSUM!A:E,4,0),IF($G62="SINAPI",VLOOKUP($H62,SINAPI_INSUM!A:E,5,0),IF($G62="SEINFRA",VLOOKUP($H62,SEINFRA_INSUM!B:F,4,0),IF($G62="COTAÇÃO",VLOOKUP($H62,'COTACAO - PEÇAS E MATERIAIS'!B:L,10,0),"")))) -> 7.96 | F62: 199 | G62: SEINFRA | H62: I0369 | J62: 100
A63: 3.1.1.56 | B63: =IF($G63="ORSE",VLOOKUP($H63,ORSE_INSUM!A:E,2,0),IF($G63="SINAPI",VLOOKUP($H63,SINAPI_INSUM!A:E,2,0),IF($G63="SEINFRA",VLOOKUP($H63,SEINFRA_INSUM!B:F,2,0),IF($G63="COTAÇÃO",VLOOKUP($H63,'COTACAO - PEÇAS E MATERIAIS'!B:L,2,0),"")))) -> CABO EM PVC 1000V 2,5 mm² | C63: 13 | D63: M | E63: =IF($G63="ORSE",VLOOKUP($H63,ORSE_INSUM!A:E,4,0),IF($G63="SINAPI",VLOOKUP($H63,SINAPI_INSUM!A:E,5,0),IF($G63="SEINFRA",VLOOKUP($H63,SEINFRA_INSUM!B:F,4,0),IF($G63="COTAÇÃO",VLOOKUP($H63,'COTACAO - PEÇAS E MATERIAIS'!B:L,10,0),"")))) -> 1.55 | F63: 20.15 | G63: SEINFRA | H63: I8229 | J63: 50
A64: 3.1.1.57 | B64: =IF($G64="ORSE",VLOOKUP($H64,ORSE_INSUM!A:E,2,0),IF($G64="SINAPI",VLOOKUP($H64,SINAPI_INSUM!A:E,2,0),IF($G64="SEINFRA",VLOOKUP($H64,SEINFRA_INSUM!B:F,2,0),IF($G64="COTAÇÃO",VLOOKUP($H64,'COTACAO - PEÇAS E MATERIAIS'!B:L,2,0),"")))) -> CABO EM PVC 1000V 25MM2 | C64: 13 | D64: M | E64: =IF($G64="ORSE",VLOOKUP($H64,ORSE_INSUM!A:E,4,0),IF($G64="SINAPI",VLOOKUP($H64,SINAPI_INSUM!A:E,5,0),IF($G64="SEINFRA",VLOOKUP($H64,SEINFRA_INSUM!B:F,4,0),IF($G64="COTAÇÃO",VLOOKUP($H64,'COTACAO - PEÇAS E MATERIAIS'!B:L,10,0),"")))) -> 12.28 | F64: 159.64 | G64: SEINFRA | H64: I0372 | J64: 50
A65: 3.1.1.58 | B65: =IF($G65="ORSE",VLOOKUP($H65,ORSE_INSUM!A:E,2,0),IF($G65="SINAPI",VLOOKUP($H65,SINAPI_INSUM!A:E,2,0),IF($G65="SEINFRA",VLOOKUP($H65,SEINFRA_INSUM!B:F,2,0),IF($G65="COTAÇÃO",VLOOKUP($H65,'COTACAO - PEÇAS E MATERIAIS'!B:L,2,0),"")))) -> CABO EM PVC 1000V 35MM2 | C65: 13 | D65: M | E65: =IF($G65="ORSE",VLOOKUP($H65,ORSE_INSUM!A:E,4,0),IF($G65="SINAPI",VLOOKUP($H65,SINAPI_INSUM!A:E,5,0),IF($G65="SEINFRA",VLOOKUP($H65,SEINFRA_INSUM!B:F,4,0),IF($G65="COTAÇÃO",VLOOKUP($H65,'COTACAO - PEÇAS E MATERIAIS'!B:L,10,0),"")))) -> 16.17 | F65: 210.21 | G65: SEINFRA | H65: I0373 | J65: 50
A66: 3.1.1.59 | B66: =IF($G66="ORSE",VLOOKUP($H66,ORSE_INSUM!A:E,2,0),IF($G66="SINAPI",VLOOKUP($H66,SINAPI_INSUM!A:E,2,0),IF($G66="SEINFRA",VLOOKUP($H66,SEINFRA_INSUM!B:F,2,0),IF($G66="COTAÇÃO",VLOOKUP($H66,'COTACAO - PEÇAS E MATERIAIS'!B:L,2,0),"")))) -> CABO EM PVC 1000V 4MM2 | C66: 13 | D66: M | E66: =IF($G66="ORSE",VLOOKUP($H66,ORSE_INSUM!A:E,4,0),IF($G66="SINAPI",VLOOKUP($H66,SINAPI_INSUM!A:E,5,0),IF($G66="SEINFRA",VLOOKUP($H66,SEINFRA_INSUM!B:F,4,0),IF($G66="COTAÇÃO",VLOOKUP($H66,'COTACAO - PEÇAS E MATERIAIS'!B:L,10,0),"")))) -> 2.77 | F66: 36.01 | G66: SEINFRA | H66: I0374 | J66: 50
A67: 3.1.1.60 | B67: =IF($G67="ORSE",VLOOKUP($H67,ORSE_INSUM!A:E,2,0),IF($G67="SINAPI",VLOOKUP($H67,SINAPI_INSUM!A:E,2,0),IF($G67="SEINFRA",VLOOKUP($H67,SEINFRA_INSUM!B:F,2,0),IF($G67="COTAÇÃO",VLOOKUP($H67,'COTACAO - PEÇAS E MATERIAIS'!B:L,2,0),"")))) -> CABO EM PVC 1000V 50MM2 | C67: 13 | D67: M | E67: =IF($G67="ORSE",VLOOKUP($H67,ORSE_INSUM!A:E,4,0),IF($G67="SINAPI",VLOOKUP($H67,SINAPI_INSUM!A:E,5,0),IF($G67="SEINFRA",VLOOKUP($H67,SEINFRA_INSUM!B:F,4,0),IF($G67="COTAÇÃO",VLOOKUP($H67,'COTACAO - PEÇAS E MATERIAIS'!B:L,10,0),"")))) -> 20.46 | F67: 265.98 | G67: SEINFRA | H67: I0331 | J67: 50
A68: 3.1.1.61 | B68: =IF($G68="ORSE",VLOOKUP($H68,ORSE_INSUM!A:E,2,0),IF($G68="SINAPI",VLOOKUP($H68,SINAPI_INSUM!A:E,2,0),IF($G68="SEINFRA",VLOOKUP($H68,SEINFRA_INSUM!B:F,2,0),IF($G68="COTAÇÃO",VLOOKUP($H68,'COTACAO - PEÇAS E MATERIAIS'!B:L,2,0),"")))) -> CABO EM PVC 1000V 6MM2 | C68: 13 | D68: M | E68: =IF($G68="ORSE",VLOOKUP($H68,ORSE_INSUM!A:E,4,0),IF($G68="SINAPI",VLOOKUP($H68,SINAPI_INSUM!A:E,5,0),IF($G68="SEINFRA",VLOOKUP($H68,SEINFRA_INSUM!B:F,4,0),IF($G68="COTAÇÃO",VLOOKUP($H68,'COTACAO - PEÇAS E MATERIAIS'!B:L,10,0),"")))) -> 3.45 | F68: 44.85 | G68: SEINFRA | H68: I0375 | J68: 50
A69: 3.1.1.62 | B69: =IF($G69="ORSE",VLOOKUP($H69,ORSE_INSUM!A:E,2,0),IF($G69="SINAPI",VLOOKUP($H69,SINAPI_INSUM!A:E,2,0),IF($G69="SEINFRA",VLOOKUP($H69,SEINFRA_INSUM!B:F,2,0),IF($G69="COTAÇÃO",VLOOKUP($H69,'COTACAO - PEÇAS E MATERIAIS'!B:L,2,0),"")))) -> CABO EM PVC 1000V 70MM2 | C69: 13 | D69: M | E69: =IF($G69="ORSE",VLOOKUP($H69,ORSE_INSUM!A:E,4,0),IF($G69="SINAPI",VLOOKUP($H69,SINAPI_INSUM!A:E,5,0),IF($G69="SEINFRA",VLOOKUP($H69,SEINFRA_INSUM!B:F,4,0),IF($G69="COTAÇÃO",VLOOKUP($H69,'COTACAO - PEÇAS E MATERIAIS'!B:L,10,0),"")))) -> 30.61 | F69: 397.93 | G69: SEINFRA | H69: I0376 | J69: 50
A70: 3.1.1.63 | B70: =IF($G70="ORSE",VLOOKUP($H70,ORSE_INSUM!A:E,2,0),IF($G70="SINAPI",VLOOKUP($H70,SINAPI_INSUM!A:E,2,0),IF($G70="SEINFRA",VLOOKUP($H70,SEINFRA_INSUM!B:F,2,0),IF($G70="COTAÇÃO",VLOOKUP($H70,'COTACAO - PEÇAS E MATERIAIS'!B:L,2,0),"")))) -> CABO DE COBRE ISOLADO EPR, FLEXIVEL, 35MM², 8,7/15KV / 90º C (EPROTENAX OU SIMILAR) | C70: 25 | D70: M | E70: =IF($G70="ORSE",VLOOKUP($H70,ORSE_INSUM!A:E,4,0),IF($G70="SINAPI",VLOOKUP($H70,SINAPI_INSUM!A:E,5,0),IF($G70="SEINFRA",VLOOKUP($H70,SEINFRA_INSUM!B:F,4,0),IF($G70="COTAÇÃO",VLOOKUP($H70,'COTACAO - PEÇAS E MATERIAIS'!B:L,10,0),"")))) -> 32 | F70: 800 | G70: ORSE | H70: 9856 | J70: 100
A71: 3.1.1.64 | B71: =IF($G71="ORSE",VLOOKUP($H71,ORSE_INSUM!A:E,2,0),IF($G71="SINAPI",VLOOKUP($H71,SINAPI_INSUM!A:E,2,0),IF($G71="SEINFRA",VLOOKUP($H71,SEINFRA_INSUM!B:F,2,0),IF($G71="COTAÇÃO",VLOOKUP($H71,'COTACAO - PEÇAS E MATERIAIS'!B:L,2,0),"")))) -> CABO DE COBRE ISOLADO EPR, FLEXIVEL, 150MM², 0,6/1KV / 90º C (EPROTENAX-G7 O U SIMILAR) | C71: 13 | D71: M | E71: =IF($G71="ORSE",VLOOKUP($H71,ORSE_INSUM!A:E,4,0),IF($G71="SINAPI",VLOOKUP($H71,SINAPI_INSUM!A:E,5,0),IF($G71="SEINFRA",VLOOKUP($H71,SEINFRA_INSUM!B:F,4,0),IF($G71="COTAÇÃO",VLOOKUP($H71,'COTACAO - PEÇAS E MATERIAIS'!B:L,10,0),"")))) -> 66.85 | F71: 869.05 | G71: ORSE | H71: 4124 | J71: 50
A72: 3.1.1.65 | B72: =IF($G72="ORSE",VLOOKUP($H72,ORSE_INSUM!A:E,2,0),IF($G72="SINAPI",VLOOKUP($H72,SINAPI_INSUM!A:E,2,0),IF($G72="SEINFRA",VLOOKUP($H72,SEINFRA_INSUM!B:F,2,0),IF($G72="COTAÇÃO",VLOOKUP($H72,'COTACAO - PEÇAS E MATERIAIS'!B:L,2,0),"")))) -> CABO DE COBRE ISOLADO EPR, FLEXIVEL, 240MM², 0,6/1KV / 90º C (EPROTENAX-G7 O U SIMILAR) | C72: 260 | D72: M | E72: =IF($G72="ORSE",VLOOKUP($H72,ORSE_INSUM!A:E,4,0),IF($G72="SINAPI",VLOOKUP($H72,SINAPI_INSUM!A:E,5,0),IF($G72="SEINFRA",VLOOKUP($H72,SEINFRA_INSUM!B:F,4,0),IF($G72="COTAÇÃO",VLOOKUP($H72,'COTACAO - PEÇAS E MATERIAIS'!B:L,10,0),"")))) -> 100 | F72: 26000 | G72: ORSE | H72: 4123 | J72: 1040
A73: 3.1.1.66 | B73: =IF($G73="ORSE",VLOOKUP($H73,ORSE_INSUM!A:E,2,0),IF($G73="SINAPI",VLOOKUP($H73,SINAPI_INSUM!A:E,2,0),IF($G73="SEINFRA",VLOOKUP($H73,SEINFRA_INSUM!B:F,2,0),IF($G73="COTAÇÃO",VLOOKUP($H73,'COTACAO - PEÇAS E MATERIAIS'!B:L,2,0),"")))) -> Cabo de cobre isolado, diâmetro 1,5 mm2, 750 V/1000 V (100 metros) | C73: =ROUND(J73/4,0) -> 1 | D73: UD | E73: =IF($G73="ORSE",VLOOKUP($H73,ORSE_INSUM!A:E,4,0),IF($G73="SINAPI",VLOOKUP($H73,SINAPI_INSUM!A:E,5,0),IF($G73="SEINFRA",VLOOKUP($H73,SEINFRA_INSUM!B:F,4,0),IF($G73="COTAÇÃO",VLOOKUP($H73,'COTACAO - PEÇAS E MATERIAIS'!B:L,10,0),"")))) -> 62.46 | F73: =ROUND(C73*E73,2) -> 62.46 | G73: COTAÇÃO | H73: 51 | J73: 2
A74: 3.1.1.67 | B74: =IF($G74="ORSE",VLOOKUP($H74,ORSE_INSUM!A:E,2,0),IF($G74="SINAPI",VLOOKUP($H74,SINAPI_INSUM!A:E,2,0),IF($G74="SEINFRA",VLOOKUP($H74,SEINFRA_INSUM!B:F,2,0),IF($G74="COTAÇÃO",VLOOKUP($H74,'COTACAO - PEÇAS E MATERIAIS'!B:L,2,0),"")))) -> Cabo de cobre isolado, diâmetro 185 mm2, 750 V/1000 V | C74: 13 | D74: M | E74: =IF($G74="ORSE",VLOOKUP($H74,ORSE_INSUM!A:E,4,0),IF($G74="SINAPI",VLOOKUP($H74,SINAPI_INSUM!A:E,5,0),IF($G74="SEINFRA",VLOOKUP($H74,SEINFRA_INSUM!B:F,4,0),IF($G74="COTAÇÃO",VLOOKUP($H74,'COTACAO - PEÇAS E MATERIAIS'!B:L,10,0),"")))) -> 95.98 | F74: 1247.74 | G74: COTAÇÃO | H74: 52 | J74: 50
A75: 3.1.1.68 | B75: =IF($G75="ORSE",VLOOKUP($H75,ORSE_INSUM!A:E,2,0),IF($G75="SINAPI",VLOOKUP($H75,SINAPI_INSUM!A:E,2,0),IF($G75="SEINFRA",VLOOKUP($H75,SEINFRA_INSUM!B:F,2,0),IF($G75="COTAÇÃO",VLOOKUP($H75,'COTACAO - PEÇAS E MATERIAIS'!B:L,2,0),"")))) -> Cabo de cobre isolado, diâmetro 2,5 mm2, 750 V/1000 V | C75: 25 | D75: M | E75: =IF($G75="ORSE",VLOOKUP($H75,ORSE_INSUM!A:E,4,0),IF($G75="SINAPI",VLOOKUP($H75,SINAPI_INSUM!A:E,5,0),IF($G75="SEINFRA",VLOOKUP($H75,SEINFRA_INSUM!B:F,4,0),IF($G75="COTAÇÃO",VLOOKUP($H75,'COTACAO - PEÇAS E MATERIAIS'!B:L,10,0),"")))) -> 62.5 | F75: 1562.5 | G75: COTAÇÃO | H75: 53 | J75: 100
A76: 3.1.1.69 | B76: =IF($G76="ORSE",VLOOKUP($H76,ORSE_INSUM!A:E,2,0),IF($G76="SINAPI",VLOOKUP($H76,SINAPI_INSUM!A:E,2,0),IF($G76="SEINFRA",VLOOKUP($H76,SEINFRA_INSUM!B:F,2,0),IF($G76="COTAÇÃO",VLOOKUP($H76,'COTACAO - PEÇAS E MATERIAIS'!B:L,2,0),"")))) -> Cabo de cobre isolado, diâmetro 240 mm2, 750 V/1000 V | C76: 13 | D76: M | E76: =IF($G76="ORSE",VLOOKUP($H76,ORSE_INSUM!A:E,4,0),IF($G76="SINAPI",VLOOKUP($H76,SINAPI_INSUM!A:E,5,0),IF($G76="SEINFRA",VLOOKUP($H76,SEINFRA_INSUM!B:F,4,0),IF($G76="COTAÇÃO",VLOOKUP($H76,'COTACAO - PEÇAS E MATERIAIS'!B:L,10,0),"")))) -> 139.11 | F76: 1808.43 | G76: COTAÇÃO | H76: 54 | J76: 50
A77: 3.1.1.70 | B77: =IF($G77="ORSE",VLOOKUP($H77,ORSE_INSUM!A:E,2,0),IF($G77="SINAPI",VLOOKUP($H77,SINAPI_INSUM!A:E,2,0),IF($G77="SEINFRA",VLOOKUP($H77,SEINFRA_INSUM!B:F,2,0),IF($G77="COTAÇÃO",VLOOKUP($H77,'COTACAO - PEÇAS E MATERIAIS'!B:L,2,0),"")))) -> Cabo de cobre isolado, diâmetro 95 mm2, 750 V/1000 V | C77: 13 | D77: M | E77: =IF($G77="ORSE",VLOOKUP($H77,ORSE_INSUM!A:E,4,0),IF($G77="SINAPI",VLOOKUP($H77,SINAPI_INSUM!A:E,5,0),IF($G77="SEINFRA",VLOOKUP($H77,SEINFRA_INSUM!B:F,4,0),IF($G77="COTAÇÃO",VLOOKUP($H77,'COTACAO - PEÇAS E MATERIAIS'!B:L,10,0),"")))) -> 39.98 | F77: 519.74 | G77: COTAÇÃO | H77: 55 | J77: 50
A78: 3.1.1.71 | B78: =IF($G78="ORSE",VLOOKUP($H78,ORSE_INSUM!A:E,2,0),IF($G78="SINAPI",VLOOKUP($H78,SINAPI_INSUM!A:E,2,0),IF($G78="SEINFRA",VLOOKUP($H78,SEINFRA_INSUM!B:F,2,0),IF($G78="COTAÇÃO",VLOOKUP($H78,'COTACAO - PEÇAS E MATERIAIS'!B:L,2,0),"")))) -> Cabo de cobre nu têmpera meio-mole bitola 16mm² - Ref.: Ficap | C78: 15 | D78: M | E78: =IF($G78="ORSE",VLOOKUP($H78,ORSE_INSUM!A:E,4,0),IF($G78="SINAPI",VLOOKUP($H78,SINAPI_INSUM!A:E,5,0),IF($G78="SEINFRA",VLOOKUP($H78,SEINFRA_INSUM!B:F,4,0),IF($G78="COTAÇÃO",VLOOKUP($H78,'COTACAO - PEÇAS E MATERIAIS'!B:L,10,0),"")))) -> 6.63 | F78: 99.45 | G78: COTAÇÃO | H78: 56 | J78: 60
A79: 3.1.1.72 | B79: =IF($G79="ORSE",VLOOKUP($H79,ORSE_INSUM!A:E,2,0),IF($G79="SINAPI",VLOOKUP($H79,SINAPI_INSUM!A:E,2,0),IF($G79="SEINFRA",VLOOKUP($H79,SEINFRA_INSUM!B:F,2,0),IF($G79="COTAÇÃO",VLOOKUP($H79,'COTACAO - PEÇAS E MATERIAIS'!B:L,2,0),"")))) -> Cabo de cobre nu têmpera meio-mole bitola 25mm² - Ref.: Ficap | C79: 8 | D79: M | E79: =IF($G79="ORSE",VLOOKUP($H79,ORSE_INSUM!A:E,4,0),IF($G79="SINAPI",VLOOKUP($H79,SINAPI_INSUM!A:E,5,0),IF($G79="SEINFRA",VLOOKUP($H79,SEINFRA_INSUM!B:F,4,0),IF($G79="COTAÇÃO",VLOOKUP($H79,'COTACAO - PEÇAS E MATERIAIS'!B:L,10,0),"")))) -> 10.53 | F79: 84.24 | G79: COTAÇÃO | H79: 57 | J79: 30
A80: 3.1.1.73 | B80: =IF($G80="ORSE",VLOOKUP($H80,ORSE_INSUM!A:E,2,0),IF($G80="SINAPI",VLOOKUP($H80,SINAPI_INSUM!A:E,2,0),IF($G80="SEINFRA",VLOOKUP($H80,SEINFRA_INSUM!B:F,2,0),IF($G80="COTAÇÃO",VLOOKUP($H80,'COTACAO - PEÇAS E MATERIAIS'!B:L,2,0),"")))) -> Cabo de cobre nu têmpera meio-mole bitola 35mm² - Ref.: Ficap | C80: 14 | D80: M | E80: =IF($G80="ORSE",VLOOKUP($H80,ORSE_INSUM!A:E,4,0),IF($G80="SINAPI",VLOOKUP($H80,SINAPI_INSUM!A:E,5,0),IF($G80="SEINFRA",VLOOKUP($H80,SEINFRA_INSUM!B:F,4,0),IF($G80="COTAÇÃO",VLOOKUP($H80,'COTACAO - PEÇAS E MATERIAIS'!B:L,10,0),"")))) -> 14.28 | F80: 199.92 | G80: COTAÇÃO | H80: 58 | J80: 55
A81: 3.1.1.74 | B81: =IF($G81="ORSE",VLOOKUP($H81,ORSE_INSUM!A:E,2,0),IF($G81="SINAPI",VLOOKUP($H81,SINAPI_INSUM!A:E,2,0),IF($G81="SEINFRA",VLOOKUP($H81,SEINFRA_INSUM!B:F,2,0),IF($G81="COTAÇÃO",VLOOKUP($H81,'COTACAO - PEÇAS E MATERIAIS'!B:L,2,0),"")))) -> Cabo de cobre nu têmpera meio-mole bitola 70mm² - Ref.: Ficap | C81: 25 | D81: M | E81: =IF($G81="ORSE",VLOOKUP($H81,ORSE_INSUM!A:E,4,0),IF($G81="SINAPI",VLOOKUP($H81,SINAPI_INSUM!A:E,5,0),IF($G81="SEINFRA",VLOOKUP($H81,SEINFRA_INSUM!B:F,4,0),IF($G81="COTAÇÃO",VLOOKUP($H81,'COTACAO - PEÇAS E MATERIAIS'!B:L,10,0),"")))) -> 29.93 | F81: 748.25 | G81: COTAÇÃO | H81: 59 | J81: 100
A82: 3.1.1.75 | B82: =IF($G82="ORSE",VLOOKUP($H82,ORSE_INSUM!A:E,2,0),IF($G82="SINAPI",VLOOKUP($H82,SINAPI_INSUM!A:E,2,0),IF($G82="SEINFRA",VLOOKUP($H82,SEINFRA_INSUM!B:F,2,0),IF($G82="COTAÇÃO",VLOOKUP($H82,'COTACAO - PEÇAS E MATERIAIS'!B:L,2,0),"")))) -> CABO DE ALUMÍNIO PROTEGIDO 15KV 185MM2 | C82: 50 | D82: M | E82: =IF($G82="ORSE",VLOOKUP($H82,ORSE_INSUM!A:E,4,0),IF($G82="SINAPI",VLOOKUP($H82,SINAPI_INSUM!A:E,5,0),IF($G82="SEINFRA",VLOOKUP($H82,SEINFRA_INSUM!B:F,4,0),IF($G82="COTAÇÃO",VLOOKUP($H82,'COTACAO - PEÇAS E MATERIAIS'!B:L,10,0),"")))) -> 18.72 | F82: 936 | G82: SEINFRA | H82: I8833 | J82: 200
A83: 3.1.1.76 | B83: =IF($G83="ORSE",VLOOKUP($H83,ORSE_INSUM!A:E,2,0),IF($G83="SINAPI",VLOOKUP($H83,SINAPI_INSUM!A:E,2,0),IF($G83="SEINFRA",VLOOKUP($H83,SEINFRA_INSUM!B:F,2,0),IF($G83="COTAÇÃO",VLOOKUP($H83,'COTACAO - PEÇAS E MATERIAIS'!B:L,2,0),"")))) -> CABO DE COBRE ISOLADO PVC UNIPOLAR, 25MM², 15KV | C83: 20 | D83: M | E83: =IF($G83="ORSE",VLOOKUP($H83,ORSE_INSUM!A:E,4,0),IF($G83="SINAPI",VLOOKUP($H83,SINAPI_INSUM!A:E,5,0),IF($G83="SEINFRA",VLOOKUP($H83,SEINFRA_INSUM!B:F,4,0),IF($G83="COTAÇÃO",VLOOKUP($H83,'COTACAO - PEÇAS E MATERIAIS'!B:L,10,0),"")))) -> 45.1 | F83: 902 | G83: ORSE | H83: 4373 | J83: 80
A84: 3.1.1.77 | B84: =IF($G84="ORSE",VLOOKUP($H84,ORSE_INSUM!A:E,2,0),IF($G84="SINAPI",VLOOKUP($H84,SINAPI_INSUM!A:E,2,0),IF($G84="SEINFRA",VLOOKUP($H84,SEINFRA_INSUM!B:F,2,0),IF($G84="COTAÇÃO",VLOOKUP($H84,'COTACAO - PEÇAS E MATERIAIS'!B:L,2,0),"")))) -> Cabo FICOM bitola 10.0mm² com dois condutores - Ref.: Ficap | C84: 3 | D84: M | E84: =IF($G84="ORSE",VLOOKUP($H84,ORSE_INSUM!A:E,4,0),IF($G84="SINAPI",VLOOKUP($H84,SINAPI_INSUM!A:E,5,0),IF($G84="SEINFRA",VLOOKUP($H84,SEINFRA_INSUM!B:F,4,0),IF($G84="COTAÇÃO",VLOOKUP($H84,'COTACAO - PEÇAS E MATERIAIS'!B:L,10,0),"")))) -> 2.3 | F84: 6.9 | G84: COTAÇÃO | H84: 62 | J84: 10
